Workbook

Sheet Portada

Sheet Indice
S1: 243
B3: Consejo Monetario Centroamericano
B4: Secretaría Ejecutiva
B5: www.secmca.org
B13: REPORTE EJECUTIVO MENSUAL
B14: DE INDICADORES MACROECONÓMICOS
B15: DE CENTROAMÉRICA, PANAMÁ Y REPÚBLICA DOMINICANA
J18: Con cifras al mes de:
B23: CONTENIDO
B26: INDICADORES REGIONALES
D27: Principales indicadores macroeconómicos región CARD y CAPARD
D28: CARD: evolución de los principales indicadores macroeconómicos
D29: CAPARD: evolución de los principales indicadores macroeconómicos
B31: INDICADORES POR PAÍS
D32: Cuadro comparativo por país
D33: Proyecciones 2020-2021
D34: Seguimiento de las proyecciones en 2019-2020
D35: Evolución de indicadores macroeconómicos seleccionados (series mensuales)
D36: Nota técnica
J46: Nº243
B47: Elaborado con información recibida al | G47: 2020-07-31 | J47: REM N° 244
J48: 2020-06-25 | K48: 2020
B52: ADVERTENCIA El Consejo Monetario Centroamericano y su Secretaría Ejecutiva autorizan la reproducción total, gráficos y cifras de esta publicación, siempre que se mencione la fuente. No obstante, no asumen responsabilidad legal alguna o de cualquier otra índole, por la manipulación, interpretación personal y uso de dicha información. Derechos Reservados © 2019

Sheet Regional-cuadro
A1: Consejo Monetario Centroamericano | G1: =CONCATENATE(Indice!$J$47,",") -> REM N° 244, | H1: =Indice!$J$48 -> 2020-06-25
A2: Secretaría Ejecutiva
A3: PRINCIPALES INDICADORES MACROECONÓMICOS REGIONALES
B5: Agregados Regionales | D5: Región CARD 1/ | G5: Región CAPARD 1/
B7: I. SECTOR REAL
B8: 1. Indice de Precios al Consumidor (IPC) | D8: JUNIO 2019 2020 | G8: MARZO 2019 2020
B9: 1.1 Variación interanual | D9: 2.8 % | E9: 2.2 % | G9: 2.4 % | H9: 2.3 %
B11: 2. Índice Mensual de Actividad Económica (IMAE) | D11: ABRIL 2019 2020 | G11: ABRIL 2019 2020
B12: 2.1 Variación acumulada de la tendencia-ciclo | D12: 2.6 % | E12: -8.1 % | G12: 2.5 % | H12: -9 %
B14: 3. Producto Interno Bruto Trimestral (PIB) | D14: I TRIMESTRE 2019 2020 | G14: I TRIMESTRE 2019 2020
B15: 3.1 PIB nominal (millones de US$) | D15: 71239.01719 | E15: 73142.06625 | G15: 87659.49516 | H15: 73142.06625
B16: 3.2 PIB real, tasa de variación interanual | D16: 3 % | E16: 0.4 % | G16: 3 % | H16: 0.4 %
B18: 4. Producto Interno Bruto anual (PIB) | D18: ANUAL 2019 2020 | G18: ANUAL 2019 2020
B19: 4.1 PIB nominal (millones de US$) | D19: 292028.2951 | E19: 279630.1529 | G19: 358829.0649 | H19: 343641.1868
B20: 4.2 PIB real, tasa de variación interanual | D20: 3.2 % | E20: -2.4 % | G20: 3.2 % | H20: -2.5 %
B22: II. SECTOR EXTERNO
B23: 1. Comercio Exterior 2/ | D23: ACUMULADO A ABRIL 2018 2019 | G23: ACUMULADO A ABRIL 2018 2019
B24: 1.1 Balanza de bienes (millones de US$) | D24: -10821.62222 | E24: -11363.152 | G24: -14342.31553 | H24: -15289.63715
B25: 1.2 Exportaciones totales FOB (millones de US$) | D25: 16693.4076 | E25: 16374.55787 | G25: 20779.75127 | H25: 19707.56974
B26: 1.2.1 Tasa crecimiento interanual | D26: 4.1 % | E26: -1.9 % | G26: 5.6 % | H26: -5.2 %
B27: 1.3 Importaciones totales CIF (millones de US$) | D27: 27515.02981 | E27: 27737.70987 | G27: 35122.0668 | H27: 34997.20689
B28: 1.3.1 Tasa crecimiento interanual | D28: 8.9 % | E28: 0.8 % | G28: 9.7 % | H28: -0.4 %
B30: 2. Ingreso de Remesas familiares | D30: ACUMULADO A JUNIO 2018 2019 | G30: ACUMULADO A JUNIO 2018 2019
B31: 2.1 Ingreso de Remesas familiares (millones de US$) | D31: 13585.31926 | E31: 14744.47208 | G31: 13816.51926 | H31: 14987.49087
B33: 3. Inversión Extranjera Directa (IED) | D33: ACUMULADO AL I TRIMESTRE | G33: ACUMULADO AL I TRIMESTRE
D34: 2018 | E34: 2019 | G34: 2018 | H34: 2019
B35: 3.1. IED en la economía declarante, acumulado (millones de US$) | D35: 2293.931244 | E35: 2593.891868 | G35: 3777.287044 | H35: 3782.87588
B36: 3.2. Tasa de Variación interanual | D36: -19.6 % | E36: 13.1 % | G36: -8.1 % | H36: 0.1 %
B38: 4. Cuenta Corriente | D38: ACUMULADO AL I TRIMESTRE | G38: ACUMULADO AL I TRIMESTRE
D39: 2018 | E39: 2019 | G39: 2018 | H39: 2019
B40: 4.1. Cuenta Corriente (millones de US$) | D40: 671.6305204 | E40: 336.355222 | G40: -861.9599796 | H40: -591.226974
B42: 5. Reservas Internacionales Netas del Banco Central (RIN) 3/ | D42: SALDO A MAYO 2019 2020 | G42: SALDO A ABRIL 2019 2020
B43: 5.1 RIN del Banco Central (millones de US$) | D43: 39532.1572 | E43: 45626.894 | G43: 41872.39491 | H43: 51616.37562
D44: ACUMULADO A ABRIL 2018 2019 | G44: ACUMULADO A ABRIL 2018 2019
B45: 5.2 RIN Banco Central/ Importaciones (meses de importación promedio) | D45: 5.579974064 | E45: 5.608636584 | G45: 4.75233199 | H45: 4.785798483
B47: III. SECTOR FISCAL | D47: 2017 | E47: 2018 | G47: 2017 | H47: 2018
B48: 1. Resultado del Gobierno Central | D48: ACUMULADO A DICIEMBRE 2017 2018 | G48: ACUMULADO A DICIEMBRE 2017 2018
B49: 1.1 Ingresos totales del Gobierno Central, incluye donaciones (millones US$) | D49: 39650.71939 | E49: 40929.65933 | G49: 48325.71939 | H49: 49986.65933
B50: 1.2 Gastos totales del Gobierno Central (millones US$) | D50: 47607.48338 | E50: 48834.90461 | G50: 58229.48338 | H50: 59700.90461
B51: 1.3 Donaciones recibidas (millones US$) | D51: 360.7615724 | E51: 351.4918659 | G51: 364.7615724 | H51: 351.4918659
B52: 1.4 Resultado del Gobierno Central (millones US$) | D52: -7596.002424 | E52: -7553.753415 | G52: -9539.002424 | H52: -9362.753415
B53: 1.5 Resultado del Gobierno Central / PIB | D53: -0.02792427978 | E53: -0.0267473975 | G53: -0.02853933963 | H53: -0.02694015436
B56: 2. Deuda Pública | D56: MARZO 2019 2020 | G56: MARZO 2019 2020
B57: 2.1 Deuda Interna (millones de US$) 4/ | D57: 75970.03312 | E57: 84251.45379 | G57: 81402.72312 | H57: 91106.27379
B58: 2.2 Deuda Externa (millones de US$) | D58: 64489.19814 | E58: 71878.69901 | G58: 84949.56814 | H58: 94869.07901
B59: 2.3 Deuda Total (millones de US$) 4/ | D59: 140459.2313 | E59: 156130.1528 | G59: 166352.2913 | H59: 185975.3528
B60: 2.4 Deuda Total / PIB 4/ | D60: 0.4809781574 | E60: 0.558345197 | G60: 0.4635975943 | H60: 0.5411905206
B62: Agregados Regionales | C62: Región CARD | F62: Región CAPARD
B63: IV. SECTOR MONETARIO | C63: 2020 | D63: 2019 | E63: 2020 | F63: 2020 | G63: 2019 | H63: 2020
B64: 1. Agregados Monetarios | C64: Porcentaje respecto a M3 a ABRIL | D64: Variación Interanual a ABRIL | F64: Porcentaje respecto a M3 a ABRIL | G64: Variación Interanual a ABRIL
B65: 1.1 M1 5/ | C65: 0.3218875835 | D65: 0.02368679463 | E65: 0.2010498307 | F65: 0.2908690725 | G65: 0.00905167984 | H65: 0.1677728867
B66: 1.2 M2 6/ | C66: 0.7542581387 | D66: 0.02682063167 | E66: 0.1070157805 | F66: 0.8115056648 | G66: 0.02402189881 | H66: 0.08705694527
B67: 1.3 M3 7/ | C67: 1 | D67: 0.01889923238 | E67: 0.1040970391 | F67: 1 | G67: 0.01856958929 | H67: 0.08858889606
B68: 1.4 Base Monetaria Amplia 8/ | C68: 0.3097471392 | D68: -0.004443292344 | E68: 0.08671802991 | F68: 0.2487509328 | G68: -0.004117217819 | H68: 0.09314421482
B70: 2. Crédito Neto de las OSD 9/ con el Sector Público | C70: Saldo en millones de US$ a ABRIL | D70: Variación Interanual a ABRIL | F70: Saldo en millones de US$ a ABRIL | G70: Variación Interanual a ABRIL
B71: 2.1 Total Activos | C71: 24604.59539 | D71: 0.1422645296 | E71: 0.1370845525 | F71: 27106.99843 | G71: 0.1314562041 | H71: 0.1094873855
B72: 2.2 Total Pasivos | C72: 14412.14967 | D72: 0.1022378751 | E72: 0.08981275902 | F72: 16536.23623 | G72: 0.1103340404 | H72: 0.07112859736
B73: 2.3 Crédito neto | C73: 10192.44572 | D73: 0.2114068716 | E73: 0.2113834163 | F73: 10570.7622 | G73: 0.1696497094 | H73: 0.1753310251
B75: 3. Crédito 10/ de las OSD 9/ con el Sector Privado | C75: Saldo en millones de US$ a ABRIL | D75: Variación Interanual a ABRIL | F75: Saldo en millones de US$ a ABRIL | G75: Variación Interanual a ABRIL
B76: 3.1 Otras Sociedades No Financieras 11/ | C76: 58053.90831 | D76: 0.01933341272 | E76: 0.0504613682 | F76: 83944.74103 | G76: 0.01493032879 | H76: 0.03001029318
B77: 3.2 Hogares e ISFLSH 12/ | C77: 61426.85458 | D77: 0.02503133133 | E77: 0.04146799554 | F77: 87686.32798 | G77: 0.03517531224 | H77: 0.04285676989
B78: 3.3 Otros 13/ | C78: 1215.96888 | D78: 0.2678688075 | E78: -0.1710332979 | F78: 1840.325483 | G78: 0.07101137475 | H78: -0.03595266674
B79: 3.4 Total | C79: 120696.7318 | D79: 0.02478357541 | E79: 0.04306948182 | F79: 173471.3945 | G79: 0.02561179948 | H79: 0.03570760867
B80: Fuente: Cálculos de la Secretaría Ejecutiva con base en la información proporcionada por los Bancos Centrales de la región.
B81: */ No incluye las remesas de Costa Rica debido a que se compilan trimestralmente. En 2013 Costa Rica recibió 229 millones de US$ de remesas netas (ingresos-egresos).
B82: Notas:
B83: 1/ La región CARD incluye a los países centroamericanos y a la República Dominicana. La región CAPARD incluye a los países centroamericanos, Panamá y la República Dominicana.
B84: 2/ Incluye comercio intrarregional. No incluye la maquila en el caso de Honduras. En Panamá incluye: exportación de mercancías generales, reexportaciones nacionales y reexportaciones de la Zona Libre de Colón.
B85: 3/ En Panamá, al no tener banco central, las RIN son administradas por el Banco Nacional de Panamá (BNP).
B86: 4/ Incluye la deuda interna consolidada en los casos de Guatemala, Honduras y República Dominicana, tal como lo recomienda la versión del 2001 del Manual de Estadísticas de Finanzas Públicas del FMI. En el resto de países se considera únicamente la deuda interna bruta.
B87: 5/ M1: incluye billetes y monedas en poder del público más los depósitos transferibles en MN.
B88: 6/ M2: incluye M1 más otros depósitos en MN, más valores distintos de acciones emitidos por las sociedades de depósito en moneda nacional.
B89: 7/ M3: incluye M2 más depósitos transferibles en ME, más otros depósitos en ME, más valores distintos de acciones emitidos por las sociedades de depósito en ME.
B90: 8/ Base Monetaria Amplia: incluye billetes y monedas en circulación, más depósitos transferibles por concepto de encaje en MN, más valores por concepto de encaje en MN, más pasivos frente a OSD de encaje legal en ME, más otros pasivos frente a OSD a corto plazo, más depósitos y valores de otros sectores.
B91: 9/ OSD corresponde a otras sociedades de depósito, por ejemplo: Bancos comerciales, cooperativas, y otras sociedades de depósito que reciben dinero de público.
B92: 10/ Incluye valores distintos de acciones y préstamos.
B93: 11/ Otras sociedades no Financieras abarca las sociedades y cuasisociedades que se dedican principalmente a la producción de bienes y servicios no financieros.
B94: 12/ ISFLSH corresponde a Instituciones sin fines de lucro que dan servicios a los hogares, en estas podemos encontrar organizaciones del tipo ONG´s.
B95: 13/ Incluye otros sectores residentes, por ejemplo otras sociedades financieras.

Sheet Región CARD-graficos
B1: Consejo Monetario Centroamericano | P1: =CONCATENATE(Indice!$J$47,",") -> REM N° 244, | Q1: =Indice!$J$48 -> 2020-06-25
B2: Secretaría Ejecutiva
B3: REGIÓN CARD: EVOLUCIÓN DE LOS PRINCIPALES INDICADORES MACROECONÓMICOS
B5: Región CARD: Inflación, serie original y tendencia de largo plazo | K5: Región CARD: Ciclo de crecimiento de la Actividad Económica
B6: (cálculos basados en el IPC, variación interanual) | K6: (cálculos basados en el IMAE, variación interanual)
B21: Región CARD: | K21: Región CARD:
B22: Reservas Internacionales Netas del Banco Central | K22: Flujos trimestrales de Inversión Extranjera Directa (IED) en la economía declarante
K36: Los datos de Nicaragua están disponibles hasta el I trimestre de 2019. Los flujos negativos observados en El Salvador y Honduras surgen debido a amortizaciones netas de préstamos con el inversionista directo, mayores a lo registrado por acciones u otras aportaciones de capital, los cuales por metodología deben sumarse al valor de la IED.
B38: =CONCATENATE("Región CARD:") -> Región CARD: | K38: Región CARD:
B39: Flujos mensuales de comercio exterior | K39: Ingreso de Remesas , sin acumular
K54: Los datos de Nicaragua están disponibles hasta el II trimestre de 2019.
B55: Región CARD: | K55: Región CARD: Saldo Operacional (con donaciones) del Gobierno Central con respecto al PIB
B56: Deuda Pública Bruta Total, Interna y Externa | K56: =CONCATENATE("Datos a ",'Saldo Operacional'!C4," de cada año") -> Datos a diciembre de cada año
B69: Incluye la deuda interna consolidada en los casos de Guatemala, Honduras y República Dominicana, tal como lo recomienda la versión del 2001 del Manual de Estadísticas de Finanzas Públicas del FMI. En el resto de países se considera únicamente la deuda interna bruta. A partir de 2019 se dispone únicamente de datos trimestrales de Nicaragua. | K69: En 2015 el saldo operacional disminuyó debido a que en enero de ese año República Dominicana registró dentro de las donaciones la suma de RD$ 93,157.2 millones, correspondiente al descuento generado por la transacción de deuda realizada con Petrocaribe.
B71: Región CARD: | K71: Región CARD:
B72: =CONCATENATE("Agregados Monetarios (Millones US$)"," ","y variación interanual") -> Agregados Monetarios (Millones US$) y variación interanual | K72: =CONCATENATE("Crédito Total (Millones US$)"," ","y variación interanual") -> Crédito Total (Millones US$) y variación interanual
B90: OJO, REVISAR AÑO DE INICIO DE TODOS ESTOS GRAFICOS PARA ARMONIZAR !!!
C92: deuda: a partir de diciembre 2011 mensual
C93: remesas: desde 2006
C94: ied:2008
C95: agregados monetarios:2002
C96: crédito osd:2003
C98: ***la serie mas corta es la de remesas 2008, la extensión se puede evaluar a partir de esta fecha para que se armonizado pero se perdería información en otras series
K101: OSD: Corresponde a Otras Sociedades de Depósito, por ejemplo: bancos comerciales y cooperativas.
B103: La región CARD la conforman los países de Centroamérica y República Dominicana

Sheet Región CAPARD-graficos
B1: Consejo Monetario Centroamericano | P1: =CONCATENATE(Indice!$J$47,",") -> REM N° 244, | Q1: =Indice!$J$48 -> 2020-06-25
B2: Secretaría Ejecutiva
B3: REGIÓN CAPARD: EVOLUCIÓN DE LOS PRINCIPALES INDICADORES MACROECONÓMICOS
B5: Región CAPARD: Inflación, serie original y tendencia de largo plazo | K5: Región CAPARD: Ciclo de crecimiento de la Actividad Económica
B6: (cálculos basados en el IPC, variación interanual) | K6: (cálculos basados en el IMAE, variación interanual)
B21: Región CAPARD: | K21: Región CAPARD:
B22: Reservas Internacionales Netas del Banco Central | K22: Flujos trimestrales de Inversión Extranjera Directa (IED) en la economía declarante
B35: En Panamá, el Banco Nacional de Panamá (BNP) funciona como receptor y gestor de las RIN que corresponden a los activos externos de reserva menos los pasivos de corto plazo frente a no residentes. Los primeros se componen de: billetes y depósitos en moneda extranjera e inversiones en títulos (incluidos los títulos de deuda y participaciones de capital); los pasivos se componen de los depósitos transferibles de no residentes en moneda extranjera. | K35: Los datos de Nicaragua están disponibles hasta el I trimestre de 2019. Los datos de Panamá del I trimestre de 2020 no están dísponibles. Los flujos negativos observados en El Salvador y Honduras surgen debido a amortizaciones netas de préstamos con el inversionista directo, mayores a lo registrado por acciones u otras aportaciones de capital, los cuales por metodología deben sumarse al valor de la IED.
B38: =CONCATENATE("Región CAPARD:") -> Región CAPARD: | K38: Región CAPARD:
B39: Flujos mensuales de comercio exterior | K39: Ingreso de Remesas , sin acumular
K54: Los datos de Nicaragua están disponibles al II trimestre de 2019. En Panamá los datos de 2020 no están disponibles.
B55: Región CAPARD: | K55: Región CAPARD: Saldo Operacional (con donaciones) del Gobierno Central con respecto al PIB
B56: Deuda Pública Bruta Total, Interna y Externa | K56: =CONCATENATE("Datos a ",'Saldo Operacional'!G4," de cada año") -> Datos a diciembre de cada año
B69: Incluye la deuda interna consolidada en los casos de Guatemala, Honduras y República Dominicana, tal como lo recomienda la versión del 2001 del Manual de Estadísticas de Finanzas Públicas del FMI. En el resto de países se considera únicamente la deuda interna bruta. A partir de 2019 se dispone únicamente de datos trimestrales de Nicaragua. | K69: En 2015 el saldo operacional disminuyó debido a que en enero de ese año República Dominicana registró dentro de las donaciones la suma de RD$ 93,157.2 millones, correspondiente al descuento generado por la transacción de deuda realizada con Petrocaribe.
B71: Región CAPARD: | K71: Región CAPARD:
B72: =CONCATENATE("Agregados Monetarios (Millones US$)"," ","y variación interanual") -> Agregados Monetarios (Millones US$) y variación interanual | K72: =CONCATENATE("Crédito Total (Millones US$)"," ","y variación interanual") -> Crédito Total (Millones US$) y variación interanual
B90: OJO, REVISAR AÑO DE INICIO DE TODOS ESTOS GRAFICOS PARA ARMONIZAR !!!
C92: deuda: a partir de diciembre 2011 mensual
C93: remesas: desde 2006
C94: ied:2008
C95: agregados monetarios:2002
C96: crédito osd:2003
C98: ***la serie mas corta es la de remesas 2008, la extensión se puede evaluar a partir de esta fecha para que se armonizado pero se perdería información en otras series
K100: OSD: Corresponde a Otras Sociedades de Depósito, por ejemplo: bancos comerciales y cooperativas.
B101: Las disminuciones en créditos y depósitos al cierre de 2013 se deben a que durante los meses de septiembre y octubre de ese año se originó la venta del Banco HSBC Panamá al grupo Bancolombia; algunas operaciones financieras que mantenía el Banco HSBC no fueron adquiridas o cedidas a Bancolombia (Banistmo, S.A.), saliendo del sistema bancario panameño a otros centros financieros. | K101: Las disminuciones en créditos al cierre de 2013 se deben a que durante los meses de septiembre y octubre de ese año se originó la venta del Banco HSBC Panamá al grupo Bancolombia; algunas operaciones financieras que mantenía el Banco HSBC no fueron adquiridas o cedidas a Bancolombia (Banistmo, S.A.), saliendo del sistema bancario panameño a otros centros financieros.
B103: La región CAPARD la conforman los países de Centroamérica, Panamá y República Dominicana.

Sheet Comparativo
A1: Consejo Monetario Centroamericano
A2: Secretaría Ejecutiva
A3: CUADRO COMPARATIVO POR PAIS
E4: =CONCATENATE(Indice!$J$47,",") -> REM N° 244, | F4: =Indice!$J$48 -> 2020-06-25
A6: Indicadores | B6: Costa Rica | D6: El Salvador | F6: Guatemala | H6: Honduras | J6: Nicaragua | L6: Rep. Dominicana | N6: Panamá
A8: I. SECTOR REAL
A9: 1. Precios al Consumidor | B9: JUNIO 2019 2020 | D9: JUNIO 2019 2020 | F9: JUNIO 2019 2020 | H9: JUNIO 2019 2020 | J9: JUNIO 2019 2020 | L9: JUNIO 2019 2020 | N9: MARZO 2019 2020
A10: 1.1 Tasa de variación interanual en el mes indicado | B10: 2.42137093 | C10: 0.3116148417 | D10: 0.5295546076 | E10: -0.2343531308 | F10: 4.8 | G10: 2.389030252 | H10: 4.804045512 | I10: 2.653799759 | J10: 5.62558558 | K10: 3.621463593 | L10: 0.9155959067 | M10: 2.897224764 | N10: -0.1840152236 | O10: -0.8396993135
A11: 1.2 Tasa de variación acumulada al mes indicado respecto a diciembre | B11: 0.961888839 | C11: -0.2422401131 | D11: 0.4937471082 | E11: 0.2671653754 | F11: 3.172172391 | G11: 2.15796897 | H11: 2.599009901 | I11: 1.189060642 | J11: 3.697874793 | K11: 1.24708814 | L11: 1.17247763 | M11: 0.4280066624 | N11: 0.2303528861 | O11: -0.5490439771
A12: =CONCATENATE(" 1.3 Tasa de variación de los precios en el 2019 y proyectado para el 2020") -> 1.3 Tasa de variación de los precios en el 2019 y proyectado para el 2020 | B12: 1.522429116 | C12: 3.0 ± 1 | D12: -0.008904719501 | E12: n.d. | F12: 3.405527602 | G12: 4.0 ± 1 | H12: 4.084158416 | I12: 4.0 ± 1 | J12: 6.12972437 | K12: 3 | L12: 3.66 | M12: 4.0 ± 1 | N12: -0.06258031539 | O12: 1
A13: 1.4 Tasa de variación interanual del índice subyacente de inflación | B13: 2.34526348 | C13: 0.9468047193 | D13: 0.04721881197 | E13: 0.3398149896 | F13: 3.09 | G13: 2.317641795 | H13: 4.174513497 | I13: 3.464899066 | J13: 6.177381728 | K13: 2.926066253 | L13: 1.948360526 | M13: 3.511497825 | N13: n.d. | O13: n.d.
A14: 2. Producción | B14: MAYO 2019 2020 | D14: ABRIL 2019 2020 | F14: MAYO 2019 2020 | H14: MAYO 2019 2020 | J14: ABRIL 2019 2020 | L14: MAYO 2019 2020 | N14: ABRIL 2019 2020
A15: 2.1 IMAE (variación acumulada Tendencia-Ciclo en el mes indicado) | B15: 1.223107381 | C15: -3.00407271 | D15: 2.056135008 | E15: -4.160171682 | F15: 3.788465131 | G15: -3.614924751 | H15: 2.754711884 | I15: -6.859783033 | J15: -9.102106374 | K15: -1.40403175 | L15: 5.00584433 | M15: -6.565427475 | N15: 3.181329741 | O15: -6.626539894
A16: 2.2 Tasa de variación del PIB real estimado para 2019 y 2020 | B16: 2.083859938 | C16: -5 | D16: 2.3 | E16: -8.5 a -6.5 | F16: 3.844888773 | G16: -3.5 a -1.5 | H16: 2.652807733 | I16: -3.9 a -2.9 | J16: -3.878923557 | K16: -4.5 | L16: 5.052168023 | M16: -1.0 a 1.0 | N16: 3.00643131 | O16: -3.176203186
A17: 2.3 Tasa de variación interanual del PIB trimestral, a precios constantes a/ | B17: I TRIMESTRE 2019 2020 | D17: I TRIMESTRE 2019 2020 | F17: I TRIMESTRE 2018 2019 | H17: I TRIMESTRE 2019 2020 | J17: I TRIMESTRE 2019 2020 | L17: I TRIMESTRE 2019 2020 | N17: I TRIMESTRE 2019 2020
B18: 2.032257838 | C18: 0.6483187231 | D18: 2.193475816 | E18: 0.9998165474 | F18: 3.604953246 | G18: 0.7050933098 | H18: 3.026770724 | I18: -1.238717777 | J18: -9.210949674 | K18: 1.847805006 | L18: 5.731197345 | M18: 0.004025772282 | N18: 3.052747721 | O18: 0.4461857714
A19: 2.4 PIB a precios corrientes en millones de US dólares b/(estimado) | B19: 2019 | C19: 2020 | D19: 2019 | E19: 2020 | F19: 2019 | G19: 2020 | H19: 2019 | I19: 2020 | J19: 2019 | K19: 2020 | L19: 2019 | M19: 2020 | N19: 2019 | O19: 2020
B20: 61773.94901 | C20: 59790.29413 | D20: 27022.64 | E20: 25091.9 | F20: 76710.64881 | G20: 76323.56909 | H20: 25095.35597 | I20: 25341 | J20: 12519.6013 | K20: n.d. | L20: 88906.1 | M20: 81168.6 | N20: 66800.76981 | O20: 64011.03394
A22: II. SECTOR EXTERNO
A23: 1.Indicadores de Balanza de Pagos y del comercio exterior
A24: 1.1 Comercio exterior, acumulado en millones de US$ c/ | B24: JUNIO 2019 2020 | D24: JUNIO 2019 2020 | F24: MAYO 2019 2020 | H24: MAYO 2019 2020 | J24: ABRIL 2018 2019 | L24: MARZO 2019 2020 | N24: ABRIL 2019 2020
A25: 1.1.1 Exportaciones totales de bienes FOB | B25: 6002.775579 | C25: 5888.129882 | D25: 3033.86 | E25: 2196.74 | F25: 4681 | G25: 4783.1 | H25: 1919.825812 | I25: 1929.914637 | J25: 1933 | K25: 1812.107999 | L25: 2655.4 | M25: 2723.4 | N25: 3333.011875 | O25: 2620.525
A26: 1.1.2 Importaciones totales de bienes CIF | B26: 8402.141304 | C26: 7587.473787 | D26: 5975.73 | E26: 4894.93 | F26: 8169.3 | G26: 7394.3 | H26: 4183.440821 | I26: 3432.063942 | J26: 2600.9 | K26: 2156.819737 | L26: 4790.9 | M26: 4584.5 | N26: 7259.497026 | O26: 5024.178
A27: 1.1.3 Saldo acumulado (exportaciones - importaciones) | B27: -2399.365725 | C27: -1699.343906 | D27: -2941.87 | E27: -2698.19 | F27: -3488.3 | G27: -2611.2 | H27: -2263.615009 | I27: -1502.149306 | J27: -667.9 | K27: -344.711738 | L27: -2135.5 | M27: -1861.1 | N27: -3926.485151 | O27: -2403.653
A28: 1.1.4 Saldo en el 2019 (preliminar o estimado) y proyectado para el 2020 | B28: -4859.938283 | C28: -3713 | D28: -6074.25 | E28: n.d. | F28: -8711.7 | G28: -8039.344 | H28: -5889.398672 | I28: n.d. | J28: n.d. | K28: n.d. | L28: -9069.4 | M28: n.d. | N28: -10807.72762 | O28: n.d.
A29: 2.5 Saldo RIN/ Importaciones (meses de importación promedio) | B29: 5.565129567 | C29: 6.773084355 | D29: 3.772258787 | E29: 3.985947978 | F29: 8.611570147 | G29: 11.29795924 | H29: 6.010124459 | I29: 9.255800747 | J29: 4.553571429 | K29: 3.604364633 | L29: 4.604695932 | M29: 6.101690479 | N29: 4.604695932 | O29: 6.101690479
A30: 1.2 Transferencias Corrientes, acumulado en millones de US$ | B30: I TRIMESTRE 2019 2020 | D30: JUNIO 2019 2020 | F30: JUNIO 2019 2020 | H30: JUNIO 2019 2020 | J30: JUNIO 2018 2019 | L30: MAYO 2019 2020 | N30: IV TRIMESTRE 2018 2019
A31: 1.2.1 Ingreso de remesas familiares d/ | B31: 118.7219929 | C31: 103.7958178 | D31: 2742.49 | E31: 2523.25 | F31: 4926.94 | G31: 4880.25 | H31: 2572.758829 | I31: 2464.588106 | J31: 724.6 | K31: 796.6 | L31: 2870.346151 | M31: 2736.942687 | N31: 456.8 | O31: 493.148859
A32: 1.2.2 Saldo en el 2019 (preliminar o estimado) y proyectado para el 2020 | B32: 518.7852398 | C32: n.d. | D32: 5648.96 | E32: n.d. | F32: 10508.32 | G32: 9825.2605 | H32: 5523.57091 | I32: n.d. | J32: n.d. | K32: n.d. | L32: -1204.9 | M32: n.d. | N32: n.d. | O32: n.d.
A33: 1.3 Inversión directa, saldo en millones de US$ | B33: I TRIMESTRE 2019 2020 | D33: I TRIMESTRE 2019 2020 | F33: I TRIMESTRE 2019 2020 | H33: I TRIMESTRE 2019 2020 | J33: I TRIMESTRE 2018 2019 | L33: I TRIMESTRE 2019 2020 | N33: IV TRIMESTRE 2018 2019
A34: 1.3.1 Inversión Extranjera Directa en la economía declarante e/ | B34: 651.6996489 | C34: 502.4328426 | D34: 256.9296457 | E34: 48.10028199 | F34: 318.48823 | G34: 281.4344 | H34: 301.9743433 | I34: 297.4601615 | J34: 419.2 | K34: 128.8 | L34: 936 | M34: 758.4 | N34: 5297.1588 | O34: 4835.193887
A35: 1.4 Balanza en cuenta corriente, saldo en millones de US$ | B35: I TRIMESTRE 2019 2020 | D35: I TRIMESTRE 2019 2020 | F35: I TRIMESTRE 2018 2019 | H35: I TRIMESTRE 2019 2020 | J35: I TRIMESTRE 2018 2019 | L35: I TRIMESTRE 2019 2020 | N35: IV TRIMESTRE 2018 2019
A36: 1.4.1 Saldo de Balanza en Cuenta Corriente | B36: -167.4811843 | C36: 40.1464034 | D36: -197.4730417 | E36: -37.33304258 | F36: 272.85783 | G36: 607.27033 | H36: -49.848382 | I36: 97.30725347 | J36: -8.6 | K36: 194.8 | L36: 283.5 | M36: -67.9 | N36: -5355.06022 | O36: -3500.453354
A37: 1.4.2 Saldo proyectado en el 2019 y 2020 | B37: -1474.846027 | C37: -1913.289412 | D37: -557.8346046 | E37: n.d. | F37: 1853.92715 | G37: 1512.366261 | H37: -9.221979302 | I37: -532.161 | J37: n.d. | K37: n.d. | L37: -1204.9 | M37: n.d. | N37: n.d. | O37: n.d.
A39: 1.5 Saldo RIN del Banco Central, en millones de US$ | B39: JUNIO 2019 2020 | D39: JUNIO 2019 2020 | F39: JUNIO 2019 2020 | H39: JUNIO 2019 2020 | J39: MAYO 2019 2020 | L39: JUNIO 2019 2020 | N39: ABRIL 2019 2020
A40: 1.5.1 Saldo RIN a fines de mes | B40: 7793.1675 | C40: 8565 | D40: 3757 | E40: 3103.77 | F40: 14279.8 | G40: 16992 | H40: 5062.9 | I40: 7389 | J40: 1947.8 | K40: 2563 | L40: 8711.6 | M40: 7142 | N40: 2979.711333 | O40: 5633
A41: 1.5.2 Saldo en el 2019 y proyectado para el 2020 | B41: 8912.3 | C41: n.d. | D41: 3936.49 | E41: n.d. | F41: 14789 | G41: 16489 | H41: 5808.856929 | I41: n.d | J41: 2208.5 | K41: n.d. | L41: 8781.4 | M41: n.d. | N41: 4142.34 | O41: n.d.
B42: JUNIO 2019 2020 | D42: JUNIO 2019 2020 | F42: MAYO 2019 2020 | H42: MAYO 2019 2020 | J42: ABRIL 2018 2019 | L42: MARZO 2019 2020 | N42: ABRIL 2019 2020
A43: 1.5.3 Saldo RIN/ Importaciones (importación promedio al mes indicado) | B43: 5.565129567 | C43: 6.773084355 | D43: 3.772258787 | E43: 3.985947978 | F43: 8.611570147 | G43: 11.29795924 | H43: 6.010124459 | I43: 9.255800747 | J43: 4.553571429 | K43: 3.604364633 | L43: 4.604695932 | M43: 6.101690479 | N43: 1.645466706 | O43: 5.126423643
A44: 1.5.3 Saldo RIN/ Importaciones (importación promedio al mes indicado) | B44: I TRIMESTRE | D44: JUNIO | F44: JUNIO TRIMESTRE | H44: JUNIO TRIMESTRE | J44: JUNIO TRIMESTRE 2018 2019 | L44: MAYO TRIMESTRE | N44: MAYO TRIMESTRE
A45: 1.5.3 Saldo RIN/ Importaciones (importación promedio al mes indicado) | B45: 118.7219929 | C45: 103.7958178 | D45: 2742.49 | E45: 2523.25 | F45: 4926.94 | G45: 4880.25 | H45: 2572.758829 | I45: 2464.588106 | J45: 724.6 | K45: 796.6 | L45: 2870.346151 | M45: 2736.942687 | N45: 2870.346151 | O45: 2736.942687
A46: 1.5.3 Saldo RIN/ Importaciones (importación promedio al mes indicado) | B46: 518.7852398 | C46: n.d. | D46: 5648.96 | F46: 10508.32 | G46: 9825.2605 | H46: 5523.57091 | I46: n.d. | J46: n.d. | K46: n.d. | L46: -1204.9 | M46: n.d. | N46: -1204.9 | O46: n.d.
A47: 2. Tipo de Cambio | B47: MARZO 2019 2020 | D47: MARZO 2019 2020 | F47: MARZO 2019 2020 | H47: MARZO 2019 2020 | J47: MARZO 2019 2020 | L47: MARZO 2019 2020 | N47: MARZO 2019 2020
A48: 2.1 Unidades Moneda Nacional por US$, promedio compra | B48: 600.5935484 | C48: 567.6648387 | D48: 8.75 | E48: 8.75 | F48: 7.66956 | G48: 7.67099 | H48: 24.42292381 | I48: 24.71522273 | J48: 32.82709369 | K48: 33.8985185 | L48: 50.43798571 | M48: 53.6575 | N48: 1 | O48: 1
A49: 2.2 ITCER-USA, 2000=100, tasa de variación interanual | B49: 6.901792522 | C49: -5.822899107 | D49: 1.174749013 | E49: 2.083654081 | F49: 1.674857735 | G49: -0.2056891744 | H49: 1.154220351 | I49: -1.085094364 | J49: 2.51928975 | K49: 0.4168112089 | L49: 3.102651886 | M49: 5.44096623 | N49: 2.049507941 | O49: 2.399977796
A50: 2.3 ITCER-Global f/, 2000=100, tasa de variación interanual | B50: 3.839018332 | C50: -7.690291057 | D50: -0.6358506928 | E50: 3.389116321 | F50: -0.9094303275 | G50: -2.247767271 | H50: -2.173010553 | I50: -2.04560473 | J50: -1.493908443 | K50: -0.394934302 | L50: -0.2306653674 | M50: -0.08948643659 | N50: -1.753963249 | O50: -7.592848188
A51: 2.4 ITCER-Región g/, 2000=100, tasa de variación interanual | B51: 5.446996079 | C51: -6.036072418 | D51: -0.4691422261 | E51: 3.569571283 | F51: -0.8953154008 | G51: -0.190005025 | H51: -3.294169445 | I51: -3.500152642 | J51: -0.302447418 | K51: 1.50671378 | L51: 1.578847017 | M51: 7.083138264 | N51: -1.418207515 | O51: 5.97637767
A52: 2.5 ITCER-Global f/, tasa de variación con el año base (2000) | B52: -12.43274386 | C52: -19.16692073 | D52: 5.47415762 | E52: 9.04879951 | F52: -45.3810158 | G52: -46.60872345 | H52: -14.97975766 | I52: -16.71893576 | J52: 13.0664019 | K52: 12.6198639 | L52: 32.6952489 | M52: 32.57650465 | N52: -10.76792164 | O52: -17.54317788
A54: III. SECTOR FISCAL
A55: 1. Resultado del Gobierno Central, en millones de US$ | B55: JUNIO 2019 2020 | D55: MAYO 2019 2020 | F55: JUNIO 2019 2020 | H55: ABRIL 2019 2020 | J55: DICIEMBRE 2017 2018 | L55: ABRIL 2019 2020 | N55: MARZO 2019 2020
A56: 1.1 Ingresos totales, acumulado | B56: 4240.766297 | C56: 4067.737429 | D56: 2404.588897 | E56: 2107.331587 | F56: 4167.593804 | G56: 3918.24504 | H56: 1502.999228 | I56: 1368.862159 | J56: 2457.771513 | K56: 2215.982924 | L56: 4384.939438 | M56: 3576.348151 | N56: 1625.9 | O56: 1427.9
A57: 1.2 Ingresos tributarios, acumulado | B57: 3874.144124 | C57: 3594.807316 | D57: 2278.99061 | E57: 1985.640235 | F57: 3917.811874 | G57: 3711.173897 | H57: 1435.13502 | I57: 1233.272659 | J57: 2285.439666 | K57: 2046.009003 | L57: 4091.191873 | M57: 3329.254001 | N57: 1347 | O57: 1133.7
A58: 1.3 Gastos totales, acumulado | B58: 6118.117516 | C58: 6470.247132 | D58: 2232.168071 | E58: 2875.412445 | F58: 4749.23133 | G58: 5180.094286 | H58: 1420.789654 | I58: 1516.413762 | J58: 2659.015505 | K58: 2547.153552 | L58: 4677.421404 | M58: 5175.704069 | N58: 2936.1 | O58: 2550.6
A59: 1.4 Donaciones, acumulado | B59: 0 | C59: 0 | D59: 36.67183472 | E59: 48.95284497 | F59: 1.456038534 | G59: 2.237588553 | H59: 42.54940323 | I59: 34.27008641 | J59: 123.9401325 | K59: 78.60672434 | L59: 6.450450211 | M59: 264.229866 | N59: 0 | O59: 0
A60: 1.5 Déficit (-) superávit (+) con donaciones | B60: -1877.351219 | C60: -2402.509703 | D60: 209.092661 | E60: -719.1280124 | F60: -580.1814874 | G60: -1259.611658 | H60: 124.7589776 | I60: -113.2815164 | J60: -77.30385891 | K60: -252.5639039 | L60: -286.0315153 | M60: -1335.126052 | N60: -1310.2 | O60: -1122.7
A61: 1.5.1 Financiamiento interno | B61: 1918.628324 | C61: 1576.411638 | D61: -144.5908827 | E61: 383.6245437 | F61: -459.9551884 | G61: -87.6794481 | H61: -147.391376 | I61: 71.86554417 | J61: -247.5751598 | K61: 114.4545554 | L61: 451.615077 | M61: -1333.825413 | N61: n.d. | O61: n.d.
A62: 1.5.2 Financiamiento externo | B62: 2.714656023 | C62: 803.1828073 | D62: -64.50177832 | E62: 335.5034687 | F62: 1040.136676 | G62: 1347.289811 | H62: 22.63228197 | I62: 41.41597226 | J62: 324.8790187 | K62: 138.1093485 | L62: -209.8287552 | M62: 2485.825461 | N62: n.d. | O62: n.d.
A63: 1.6 Déficit (-) superávit (+) en el 2019 y estimado 2020, con donaciones | B63: -4321.297301 | C63: -5560.497354 | D63: -436.0272083 | E63: n.d. | F63: -1731.87553 | G63: -3887.14 | H63: n.d. | I63: n.d. | J63: n.d. | K63: n.d. | L63: -2054.397907 | M63: -4058.43 | N63: n.d. | O63: n.d.
A64: 1.7 Ingresos Corrientes, tasa de variación interanual | B64: 6.683678672 | C64: -10.53999472 | D64: 2.179075303 | E64: -12.36208444 | F64: 4.554127217 | G64: -6.006001217 | H64: 1.755493861 | I64: -10.98682331 | J64: 11.72180288 | K64: -5.437856042 | L64: 9.102267912 | M64: -13.58261265 | N64: -6.718301779 | O64: =0.057*100 -> 5.7
A65: 1.8 Relación Gasto Capital / Gasto Total, en porcentajes | B65: 7.389441583 | C65: 4.765006684 | D65: 14.67299986 | E65: 13.912581 | F65: 18.62033746 | G65: 18.91898828 | H65: 22.82945427 | I65: 20.01332429 | J65: 24.75770719 | K65: 23.57129457 | L65: 13.33171287 | M65: 14.78505967 | N65: 33.74885052 | O65: 26.00564573
A66: 1.9 Ahorro Corriente, en millones de US$ | B66: -1423.731533 | C66: -2226.669525 | D66: 499.9002924 | E66: -368.0367718 | F66: 302.8774222 | G66: -282.1794749 | H66: 406.5927143 | I66: 108.0298403 | J66: 456.9731987 | K66: 269.2037701 | L66: 331.1522815 | M66: -833.5211835 | N66: -319.3 | O66: -459.4
A67: 2. Saldo Deuda Pública, en millones de US$ | B67: ABRIL 2019 2020 | D67: MAYO 2019 2020 | F67: JUNIO 2019 2020 | H67: ABRIL 2019 2020 | J67: MARZO 2019 2020 | L67: MARZO 2019 2020 | N67: JUNIO 2019 2020
A68: 2.1 Saldo Deuda Pública Total h/ | B68: 42227.28558 | C68: 48916.55427 | D68: 19240.76862 | E68: 21252.74174 | F68: 21242.25179 | G68: 24080.65282 | H68: 10467.17978 | I68: 11284.44671 | J68: 6872.21937 | K68: 7304.08585 | L68: 42076.67 | M68: 48052.3353 | N68: 26612.43 | O68: 33044.59
A69: 2.1.1 Saldo Deuda Interna Bruta | B69: 30735.77958 | C69: 36012.30327 | D69: 9617.30462 | E69: 10845.43987 | F69: 16809.51836 | G69: 19289.74591 | H69: 7941.784918 | I69: 8454.820323 | J69: 884.6340562 | K69: 969.1391645 | L69: 23042.4 | M69: 24320.7003 | N69: 6006.17 | O69: 6781.98
A70: 2.1.1.1 Sector Público No Financiero | B70: 27217.44677 | C70: 31547.65493 | D70: 4234.589036 | E70: 5181.368917 | F70: 11395.55227 | G70: 13117.96206 | H70: 6608.185419 | I70: 7297.192877 | J70: 600.5273534 | K70: 641.5350368 | L70: 11315.2 | M70: 12668.7349 | N70: 6006.17 | O70: 6781.98
A71: a) Gobierno Central | B71: 26972.44019 | C71: 30415.79497 | D71: 3836.832137 | E71: 4740.337006 | F71: 11395.55227 | G71: 13117.96206 | H71: 4572.867764 | I71: 5058.339275 | J71: 600.5273534 | K71: 641.5350368 | L71: 10710.7 | M71: 11991.5057 | N71: 5915.24 | O71: 6778.16
A72: b) Resto del Sector Público No Financiero | B72: 245.006577 | C72: 1131.859962 | D72: 397.7568982 | E72: 441.0319104 | F72: n.d. | G72: n.d. | H72: 2035.317654 | I72: 2238.853602 | J72: n.d. | K72: n.d. | L72: 604.5 | M72: 677.2292 | N72: 90.93 | O72: 3.82
A73: 2.1.1.2 Sector Público Financiero | B73: 3518.332809 | C73: 4464.648347 | D73: 5382.715585 | E73: 5664.070954 | F73: 5413.966087 | G73: 6171.783849 | H73: 1333.599499 | I73: 1157.627446 | J73: 284.1067028 | K73: 327.6041277 | L73: 11727.2 | M73: 11651.9654 | N73: n.d. | O73: n.d.
A74: a) Banco Central | B74: 3518.332809 | C74: 4464.648347 | D74: 0 | E74: 0 | F74: 5413.966087 | G74: 6171.783849 | H74: 1273.542326 | I74: 1099.314661 | J74: 284.1067028 | K74: 327.6041277 | L74: 11727.2 | M74: 11651.9654 | N74: n.d. | O74: n.d.
A75: b) Resto del Sector Público Financiero | B75: n.d. | C75: n.d. | D75: 5382.715585 | E75: 5664.070954 | F75: n.d. | G75: n.d. | H75: 60.05717349 | I75: 58.31278506 | J75: n.d. | K75: n.d. | L75: n.d. | M75: n.d. | N75: n.d. | O75: n.d.
A76: 2.1.2 Deuda Intragubernamental | B76: n.d. | C76: n.d. | D76: n.d. | E76: n.d. | F76: 4818.726566 | G76: 5657.703089 | H76: 4840.305136 | I76: 5035.773618 | J76: n.d. | K76: n.d. | L76: 2681.2 | M76: 2458.9889 | N76: n.d. | O76: n.d.
A77: a) Deuda Intragubernamental SPNF | B77: n.d. | C77: n.d. | D77: n.d. | E77: n.d. | F77: 2496.011251 | G77: 3010.266449 | H77: 3376.184227 | I77: 3552.463724 | J77: n.d. | K77: n.d. | L77: 2681.2 | M77: 2458.9889 | N77: n.d. | O77: n.d.
A78: b) Deuda Intragubernamental del BC | B78: n.d. | C78: n.d. | D78: n.d. | E78: n.d. | F78: 2322.715316 | G78: 2647.43664 | H78: 1464.120909 | I78: 1483.309894 | J78: n.d. | K78: n.d. | L78: n.d. | M78: n.d. | N78: n.d. | O78: n.d.
A79: 2.1.3 Saldo Deuda Interna Consolidada (2.1.1 - 2.1.2) | B79: n.d. | C79: n.d. | D79: n.d. | E79: n.d. | F79: 11990.79179 | G79: 13632.04282 | H79: 3101.479781 | I79: 3419.046705 | J79: n.d. | K79: n.d. | L79: 20361.2 | M79: 21861.7114 | N79: n.d. | O79: n.d.
A80: 2.1.4 Saldo Deuda Externa | B80: 11491.506 | C80: 12904.251 | D80: 9623.464 | E80: 10407.30187 | F80: 9251.46 | G80: 10448.61 | H80: 7365.7 | I80: 7865.4 | J80: 5987.585314 | K80: 6334.946685 | L80: 21715.47 | M80: 26190.6239 | N80: 20606.26 | O80: 26262.61
A81: 2.1.4.1 Sector Público No Financiero | B81: 8747.493 | C81: 11348.951 | D81: 9229.42871 | E81: 10002.49513 | F81: 9251.46 | G81: 10448.61 | H81: 7272.8 | I81: 7632.6 | J81: 4258.429108 | K81: 4649.789523 | L81: 21417.77 | M81: 25900.7939 | N81: 20606.26 | O81: 26262.61
A82: a) Gobierno Central | B82: 6129.929 | C82: 8557.299 | D82: 8674.22288 | E82: 9450.88385 | F82: 9204.51 | G82: 10409.9 | H82: 6982.3 | I82: 7351.1 | J82: 4205.543154 | K82: 4601.523494 | L82: 21411.8 | M82: 25894.827 | N82: 20586.18 | O82: 26244.87
A83: b) Resto del Sector Público No Financiero | B83: 2617.564 | C83: 2791.652 | D83: 555.20583 | E83: 551.61128 | F83: 46.95 | G83: 38.71 | H83: 290.5 | I83: 281.5 | J83: 52.88595433 | K83: 48.2660284 | L83: 5.97 | M83: 5.9669 | N83: 20.08 | O83: 17.74
A84: 2.1.4.2 Sector Público Financiero | B84: 2744.013 | C84: 1555.3 | D84: 394.03529 | E84: 404.80674 | F84: n.d. | G84: n.d. | H84: 92.9 | I84: 232.8 | J84: 1729.156205 | K84: 1685.157163 | L84: 297.7 | M84: 289.83 | N84: 0 | O84: 0
A85: a) Banco Central | B85: 1011.348 | C85: 9.158 | D85: 138.21119 | E85: 168.06961 | F85: 0 | G85: 0 | H85: 64.8 | I85: 207.1 | J85: 1729.156205 | K85: 1685.157163 | L85: 297.7 | M85: 289.83 | N85: 0 | O85: 0
A86: b) Resto del Sector Público Financiero | B86: 1732.665 | C86: 1546.142 | D86: 255.8241 | E86: 236.73713 | F86: n.d. | G86: n.d. | H86: 28.1 | I86: 25.7 | J86: 0 | K86: 0 | L86: n.d. | M86: n.d. | N86: 0 | O86: 0
A87: 2.2 Relación Deuda Pública Total/PIB h/ | B87: 68.35775639 | C87: 81.81353677 | D87: 71.20240147 | E87: 84.69961119 | F87: 27.69139894 | G87: 31.55074259 | H87: 41.70962865 | I87: 44.53039227 | J87: 54.89167911 | K87: 61.30268406 | L87: 47.32709004 | M87: 59.20064569 | N87: 39.83850796 | O87: 51.62327175
A88: 2.2.1.a Deuda Interna/PIB (bruta) | B88: 49.75524484 | C88: 60.23101876 | D88: 35.58980403 | E88: 43.2228722 | F88: 21.91288774 | G88: 25.27364239 | H88: 31.64643263 | I88: 33.36419369 | J88: 7.06599224 | K88: 8.13391754 | L88: 25.91768169 | M88: 29.9631881 | N88: 8.991168839 | O88: 10.59501711
A89: 2.2.1.b Deuda Interna/PIB (consolidada) | B89: n.d. | C89: n.d. | D89: n.d. | E89: n.d. | F89: 15.6311959 | G89: 17.86085607 | H89: 12.35877979 | I89: 13.49215384 | J89: n.d. | K89: n.d. | L89: 22.90191562 | M89: 26.93370515 | N89: n.d. | O89: n.d.
A90: 2.2.2 Deuda Externa/PIB | B90: 18.60251155 | C90: 21.58251801 | D90: 35.61259744 | E90: 41.47673899 | F90: 12.06020304 | G90: 13.68988653 | H90: 29.35084886 | I90: 31.03823843 | J90: 47.82568687 | K90: 53.16876652 | L90: 24.42517443 | M90: 32.26694054 | N90: 30.84733912 | O90: 41.02825464
A92: IV. SECTOR MONEDA Y CREDITO i/
A93: 1. Principales variables monetarias, tasas de variación | B93: ABRIL 2019 2020 | D93: MAYO 2019 2020 | F93: JUNIO 2019 2020 | H93: MAYO 2019 2020 | J93: ABRIL 2019 2020 | L93: MAYO 2019 2020 | N93: MAYO 2019 2020
A94: 1.1 Base Monetaria Restringida, tasa interanual ponderada para los componentes | B94: 3.732430884 | C94: -0.2737147828 | D94: 5.222608144 | E94: -17.75800587 | F94: 13.66281458 | G94: 18.00360643 | H94: 7.745505274 | I94: 42.65061644 | J94: -3.3344397 | K94: 4.721858621 | L94: 15.6365345 | M94: 8.219586842 | N94: 7.941286373 | O94: 17.02918691
A95: 1.1.1 Billetes y monedas en circulación | B95: 1.400139331 | C95: 6.347848598 | D95: -0.01015242301 | E95: -0.009710368168 | F95: 8.816513252 | G95: 15.6243451 | H95: 4.100173295 | I95: 14.30803704 | J95: -6.707995712 | K95: 16.8836523 | L95: 5.244680897 | M95: 21.94725617 | N95: 7.941286373 | O95: 17.02918691
A96: 1.1.2 Depósitos transferibles por concepto de encaje en MN | B96: 2.332291553 | C96: -6.621563381 | D96: 5.232760567 | E96: -17.74829551 | F96: 4.676171178 | G96: 2.191762474 | H96: 4.763570715 | I96: 30.69384891 | J96: 3.373556013 | K96: -12.16179368 | L96: 10.39185361 | M96: -13.72766932 | N96: n.a. | O96: n.a.
A97: 1.1.3 Valores por concepto de encaje en MN j/ | B97: n.a. | C97: n.a. | D97: n.d. | E97: n.d. | F97: 0.1701301486 | G97: 0.1874988635 | H97: -1.118238735 | I97: -2.351269515 | J97: n.a. | K97: n.a. | L97: n.a. | M97: n.a. | N97: n.a. | O97: n.a.
A98: 1.2. Agregados monetarios, tasa interanual ponderada para los componentes
A99: 1.2.1 Agregado Monetario M1, tasa de variación interanual | B99: 3.073975006 | C99: 31.40826254 | D99: 6.588276391 | E99: 8.976438196 | F99: 11.98442226 | G99: 20.65527541 | H99: 7.67591681 | I99: 24.5341761 | J99: -16.25512998 | K99: 22.6763076 | L99: 7.941254932 | M99: 26.80913818 | N99: -1.982517747 | O99: 2.12343753
A100: 1.2.1.1 Billetes y monedas en poder del público | B100: 0.5420622641 | C100: 2.725540408 | D100: -0.008536329693 | E100: -0.007956209043 | F100: 5.654907885 | G100: 9.468556272 | H100: 2.863121819 | I100: 14.24241587 | J100: -5.170103926 | K100: 17.69594937 | L100: 3.465529745 | M100: 12.42469786 | N100: n.a. | O100: n.a.
A101: 1.2.1.2 Depósitos transferibles en MN | B101: 2.531912742 | C101: 28.68272213 | D101: 6.596812721 | E101: 8.984394405 | F101: 6.329514379 | G101: 11.18671914 | H101: 4.812794991 | I101: 10.29176023 | J101: -11.08502605 | K101: 4.980358233 | L101: 4.475725187 | M101: 14.38444032 | N101: -1.982517747 | O101: 2.12343753
A102: 1.2.2 Agregado Monetario M2, tasa de variación interanual | B102: -0.3053176576 | C102: 14.65978575 | D102: 6.283995209 | E102: 11.30364552 | F102: 10.56888012 | G102: 14.12836695 | H102: 8.574907955 | I102: 16.63348301 | J102: -16.25512998 | K102: 22.6763076 | L102: 6.475869599 | M102: 12.17019746 | N102: 2.23951534 | O102: 4.206710685
A103: 1.2.2.1 Otros depósitos en MN | B103: 0.08634322466 | C103: 0.09448397857 | D103: 3.69095146 | E103: 8.506216162 | F103: 5.274834291 | G103: 5.477609651 | H103: 6.156182902 | I103: 10.99764223 | J103: n.a. | K103: n.a. | L103: 3.499645327 | M103: 3.214830216 | N103: 2.701910854 | O103: 2.832916885
A104: 1.2.2.2 Valores distintos de acciones emitidos por las sociedades de depósitos en MN | B104: -2.086466676 | C104: -3.338305847 | D104: 0.7930583057 | E104: 0.3379521911 | F104: 0.3626923125 | G104: 0.04270836014 | H104: 0.4578666494 | I104: -0.5796662352 | J104: n.a. | K104: n.a. | L104: 0.3421651169 | M104: -0.05942051713 | N104: -0.06474170599 | O104: 0.9654628384
A105: 1.2.2.3 Agregado Monetario M1 | B105: 1.694805793 | C105: 17.90360762 | D105: 1.799985443 | E105: 2.459477171 | F105: 4.931353518 | G105: 8.60804894 | H105: 1.960858403 | I105: 6.215507016 | J105: -16.25512998 | K105: 22.6763076 | L105: 2.634059155 | M105: 9.014787758 | N105: -0.3976538079 | O105: 0.4083309616
A106: 1.2.3 Agregado Monetario M3, tasa de variación interanual k/ | B106: 2.067578953 | C106: 11.97610647 | D106: 6.283995209 | E106: 11.30364552 | F106: 9.133589349 | G106: 14.4662453 | H106: 7.770766939 | I106: 14.12172159 | J106: -22.11077077 | K106: 11.26967803 | L106: 7.57057104 | M106: 17.01456834 | N106: 2.23951534 | O106: 4.206710685
A107: 1.2.3.1 Depósitos transferibles en ME | B107: 1.356381207 | C107: 3.523998352 | D107: n.a. | E107: n.a. | F107: -0.09350297221 | G107: 1.86925628 | H107: 0.4010399161 | I107: 0.2779798607 | J107: -1.26021872 | K107: -0.5599733581 | L107: n.a. | M107: n.a. | N107: n.a. | O107: n.a.
A108: 1.2.3.2 Otros depósitos en ME | B108: 0.01940790892 | C108: 0.03280063061 | D108: n.a. | E108: n.a. | F108: 1.011137388 | G108: 1.466381218 | H108: 1.095803597 | I108: 1.356476719 | J108: -17.62456606 | K108: 6.990990616 | L108: 2.637890533 | M108: 7.838846529 | N108: n.a. | O108: n.a.
A109: 1.2.3.3 Valores distintos de acciones emitidos por las sociedades de depósito en ME | B109: 0.898005578 | C109: -1.251922126 | D109: n.a. | E109: n.a. | F109: -0.008760872862 | G109: -0.008704150306 | H109: -0.1194956816 | I109: -0.007134912828 | J109: n.a. | K109: n.a. | L109: n.a. | M109: n.a. | N109: n.a. | O109: n.a.
A110: 1.2.3.4 Agregado Monetario M2 | B110: -0.2062157407 | C110: 9.671229612 | D110: 6.283995209 | E110: 11.30364552 | F110: 8.224715807 | G110: 11.13931195 | H110: 6.393419107 | I110: 12.49439993 | J110: -3.225985984 | K110: 4.838660773 | L110: 4.932680507 | M110: 9.175721807 | N110: 2.23951534 | O110: 4.206710685
A111: 1.3. Titulos emitidos por el Banco Central, tasa de variación interanual | B111: -7.018866868 | C111: -8.894856405 | D111: 99.55622284 | E111: -44.52459403 | F111: 4.223148623 | G111: 18.34649086 | H111: -12.25667597 | I111: -16.00615209 | J111: -68.31635354 | K111: 36.9260307 | L111: 11.11654672 | M111: -0.6111223676 | N111: n.a. | O111: n.a.
A112: 1.3.1 Títulos emitidos por el BC en MN | B112: -7.018866868 | C112: -8.894856405 | D112: -4.92652618 | E112: 0.5906217466 | F112: 5.916251302 | G112: 19.36102557 | H112: -13.2791024 | I112: -17.5559175 | J112: n.a. | K112: n.a. | L112: 11.11654672 | M112: -0.6111223676 | N112: n.a. | O112: n.a.
A113: 1.3.2 Títulos emitidos por el BC en ME | B113: n.d. | C113: n.d. | D113: 104.482749 | E113: -45.11521578 | F113: -1.693102679 | G113: -1.01453471 | H113: 1.02242643 | I113: 1.549765417 | J113: -68.31635354 | K113: 36.9260307 | L113: n.d. | M113: n.d. | N113: n.a. | O113: n.a.
A114: 1.4. Saldo de los créditos de las Otras Sociedades de Depósito, tasa de variación interanual | B114: 3.280589615 | C114: 1.366655689 | D114: 6.040390505 | E114: 13.31153549 | F114: 7.783261915 | G114: 8.810552326 | H114: 10.65351462 | I114: 8.080160821 | J114: -20.61949936 | K114: 1.560758616 | L114: 13.29570168 | M114: 12.53627785 | N114: 2.770807575 | O114: -0.1336507945
A115: 1.4.1 Al Sector Público neto | B115: -0.401796525 | C115: 3.18402613 | D115: 0.8645943327 | E115: 7.580523298 | F115: 4.023998961 | G115: 4.135465244 | H115: -0.1445380692 | I115: 0.8038304876 | J115: -9.111962542 | K115: 8.803195465 | L115: 5.129096289 | M115: 2.715655588 | N115: 0.4772139929 | O115: -0.5377471781
A116: 1.4.2 Al Sector Privado | B116: 3.383738617 | C116: -0.9304341079 | D116: 5.553393195 | E116: 5.287655687 | F116: 3.211706519 | G116: 4.447574318 | H116: 10.4028716 | I116: 6.729136857 | J116: -16.21328975 | K116: -8.095892626 | L116: 8.137038019 | M116: 9.847728159 | N116: 1.451029697 | O116: 1.433877945
A117: 1.4.3 A no residentes y otros | B117: 0.2986475234 | C117: -0.8869363335 | D117: -0.3775970229 | E117: 0.443356501 | F117: 0.5475564359 | G117: 0.227512764 | H117: 0.3951810847 | I117: 0.5471934765 | J117: 4.705752933 | K117: 0.8534557775 | L117: 0.02956737606 | M117: -0.02710589661 | N117: 0.8425638845 | O117: -1.029781562
A118: 2. Relaciones Analíticas | B118: ABRIL 2019 2020 | D118: MAYO 2019 2020 | F118: JUNIO 2019 2020 | H118: MAYO 2019 2020 | J118: DICIEMBRE 2018 2019 | L118: MAYO 2019 2020 | N118: MAYO 2019 2020
A119: 2.1 Multiplicador Monetario (M2/BMAmplia) | B119: 1.68179344 | C119: 1.80614956 | D119: 3.898389096 | E119: 5.134062887 | F119: 2.677488812 | G119: 2.588398763 | H119: 2.149566624 | I119: 2.081155093 | J119: 0.5089900532 | K119: 0.6403082098 | L119: 3.117923708 | M119: 2.733889535 | N119: 25.08498444 | O119: 20.87089285
A120: 2.2 Relación RIN / BMAmplia, en porcentajes | B120: 75.55809633 | C120: 71.48687273 | D120: 100.9246307 | E120: 117.0856007 | F120: 125.1367207 | G120: 125.9977161 | H120: 99.89159046 | I120: 106.2513982 | J120: 107.342418 | K120: 127.5125638 | L120: 101.0786812 | M120: 102.3218298 | N120: 181.7964645 | O120: 274.8371086
A121: 2.3 Relación Cuasidinero / M2, en porcentajes L/ | B121: 42.99714096 | C121: 34.67067275 | D121: 73.40565699 | E121: 73.06072174 | F121: 58.32517955 | G121: 55.94183047 | H121: 74.6659232 | I121: 72.94980566 | J121: 0 | K121: 0 | L121: 66.37419787 | M121: 61.98581187 | N121: 80.56743864 | O121: 81.12630898
A122: 2.4 Relación Depósitos en ME / Depósitos Totales, en porcentajes m/ | B122: 43.20717241 | C122: 39.55451661 | D122: n.a. | E122: n.a. | F122: 24.42669564 | G122: 25.02105161 | H122: 26.9231253 | I122: 25.40476346 | J122: 88.92342711 | K122: 87.4303234 | L122: 36.92298537 | M122: 40.27882709 | N122: n.a. | O122: n.a.
A123: 2.5 Relación Créditos en ME / Créditos Totales, en porcentajes m/ n/ | B123: 37.84623073 | C123: 35.36239416 | D123: n.a. | E123: n.a. | F123: 30.80299107 | G123: 28.65397208 | H123: 25.88990518 | I123: 25.46349046 | J123: 100 | K123: 100 | L123: 21.82366778 | M123: 20.46685038 | N123: n.a. | O123: n.a.
A124: 2.6 Relación Crédito-sector privado / PIB, en porcentajes | B124: 61.31650758 | C124: 63.78998548 | D124: 49.02852958 | E124: 55.90105492 | F124: 35.40611572 | G124: 38.048544 | H124: 59.49451006 | I124: 62.80854125 | J124: 35.89857084 | K124: 30.40339338 | L124: 25.59236493 | M124: 28.50145578 | N124: 78.98241228 | O124: 83.91561405
A125: 2.7 Relación Saldo de OMA's / M3, en porcentajes | B125: 11.25741904 | C125: 9.159175207 | D125: 2.98441976 | E125: 1.680276817 | F125: 13.71320637 | G125: 14.17806488 | H125: 12.21699552 | I125: 8.991736621 | J125: 8.244871316 | K125: 4.224764 | L125: 42.73771291 | M125: 36.30020928 | N125: 0.005418171268 | O125: 0.485721041
A126: 3. Tasas de Interés y de encaje ñ/ | B126: ABRIL 2019 2020 | D126: JUNIO 2019 2020 | F126: JUNIO 2019 2020 | H126: MAYO 2019 2020 | J126: ABRIL 2019 2020 | L126: JUNIO 2019 2020 | N126: MARZO 2019 2020
A127: 3.1 Tasa interés activa nominal promedio corto plazo en MN | B127: 14.25215688 | C127: 10.68497024 | D127: 6.52 | E127: 7.23 | F127: 12.75 | G127: 12.65 | H127: 17.31 | I127: 17.03 | J127: 12.9554707 | K127: 12.09288524 | L127: 11.8216 | M127: 11.0352 | N127: 6.635 | O127: 8.394444444
A128: 3.2 Tasa interés activa real promedio corto plazo en MN | B128: 11.93502099 | C128: 9.707299783 | D128: 5.958889817 | E128: 7.481887168 | F128: 7.585877863 | G128: 10.02155184 | H128: 11.57374283 | I128: 14.40554441 | J128: 12.37449554 | K128: 12.56369971 | L128: 10.80705514 | M128: 7.908838411 | N128: 6.831586383 | O128: 9.312339408
A129: 3.3 Tasa interés activa promedio corto plazo en ME | B129: 9.14270689 | C129: 7.57 | D129: 6.52 | E129: 7.23 | F129: 6.57 | G129: 6.21 | H129: 8.21 | I129: 7.96 | J129: 11.49472861 | K129: 10.30688997 | L129: 5.5815 | M129: 4.1985 | N129: 6.635 | O129: 8.394444444
A130: 3.4 Tasa interés pasiva nominal promedio 180 días en MN | B130: 6.15 | C130: 3.9 | D130: 4.32 | E130: 4.26 | F130: 5.08 | G130: 4.68 | H130: 8.41 | I130: 8.29 | J130: 8.172206473 | K130: 5.310325505 | L130: 5.9667 | M130: 5.2945 | N130: 2.1 | O130: 2.14
A131: 3.5 Tasa interés pasiva real promedio 180 días en MN | B131: 3.997183096 | C131: 2.982260579 | D131: 3.770478649 | E131: 4.50491053 | F131: 0.2671755725 | G131: 2.237514842 | H131: 3.108937519 | I131: 5.861543228 | J131: 7.615833557 | K131: 5.752651746 | L131: 5.005275991 | M131: 2.329776378 | N131: 2.288225908 | O131: 3.004931704
A132: 3.6 Tasa interés pasiva promedio 180 días en ME | B132: 3.98 | C132: 3.24 | D132: 4.32 | E132: 4.26 | F132: 3.19 | G132: 3.05 | H132: 3.75 | I132: 3.64 | J132: 6.18037963 | K132: 5.431762587 | L132: 1.7053 | M132: 1.5757 | N132: 2.1 | O132: 2.14
A133: 3.7 Tasa de interés de Política Monetaria de fin de mes o/ | B133: 5 | C133: 1.25 | D133: n.a. | E133: n.a. | F133: 2.75 | G133: 1.75 | H133: 5.75 | I133: 4.5 | J133: n.a. | K133: 6 | L133: 5.5 | M133: 3.5 | N133: n.a. | O133: n.a.
A134: 3.8 Tasa de encaje efectivo promedio (Obligaciones MN) | B134: 15.54898059 | C134: 12.92304328 | D134: 21.83 | E134: 16.03 | F134: 14.67898796 | G134: 14.92005734 | H134: 17.68306032 | I134: 16.49508436 | J134: 30.48632593 | K134: n.d. | L134: 11.2854109 | M134: 11.10761337 | N134: n.a. | O134: n.a.
A135: 3.9 Tasa de encaje efectivo promedio (Obligaciones ME) | B135: 15.91216481 | C135: 16.24317572 | D135: 21.83 | E135: 16.03 | F135: 15.4010593 | G135: 16.25866222 | H135: 27.7 | I135: 27.3 | J135: 21.74051529 | K135: n.d. | L135: 24.38561075 | M135: 26.01873487 | N135: n.a. | O135: n.a.
A137: V. SECTOR BURSÁTIL | B137: JUNIO 2019 2020 | D137: JUNIO 2019 2020 | F137: JUNIO 2019 2020 | H137: JUNIO 2019 2020 | J137: ABRIL 2018 2019 | L137: MAYO 2019 2020 | N137: JUNIO 2019 2020
A138: 1. Volúmen Total Negociado, en millones de US$
A139: 1.1 Volúmen Total Negociado por tipo de emisor, acumulado | B139: 17287.45192 | C139: 11921.46974 | D139: 2070.356092 | E139: 2052.58361 | F139: 56693.86547 | G139: 51970.52415 | H139: 4009.273975 | I139: 6542.933794 | J139: 2245.322417 | K139: 25.33395001 | L139: 1342.351886 | M139: 1093.774286 | N139: 4295.549525 | O139: 2421.386498
A140: 1.1.1 Público | B140: 15882.41459 | C140: 10422.39723 | D140: 1707.304365 | E140: 1253.030082 | F140: 56570.24365 | G140: 51833.84028 | H140: 3881.660205 | I140: 6399.468211 | J140: 2228.815984 | K140: 18.27888014 | L140: 1146.791106 | M140: 1013.218116 | N140: 2007.314532 | O140: 421.47594
A141: 1.1.2 Privado | B141: 1405.037334 | C141: 1499.072509 | D141: 363.0517272 | E141: 799.5535274 | F141: 123.6218249 | G141: 136.6838706 | H141: 127.6137701 | I141: 143.4655824 | J141: 16.50643311 | K141: 7.055069869 | L141: 195.5607795 | M141: 80.55617006 | N141: 2288.234993 | O141: 1999.910558
A142: 2. Relaciones Analíticas
A143: 2.1 Reportos / volúmen total negociado, en porcentajes | B143: 56.95717088 | C143: 67.52961623 | D143: 248.5173432 | E143: 65.4166717 | F143: 28.79093018 | G143: 29.81654709 | H143: 0 | I143: 0 | J143: 15.92038465 | K143: 237.220967 | L143: n.d. | M143: n.d. | N143: 2.218765014 | O143: 12.17153648
A144: 2.2 Mercado Secundario / Mercado Primario, (número de veces) | B144: 4.069060969 | C144: 6.939148245 | D144: 0.5672857333 | E144: 4.273564485 | F144: 0.4633139186 | G144: 0.4498788578 | H144: 0.0136835878 | I144: 0.05516766438 | J144: 0.008463396392 | K144: 0.1212391193 | L144: n.d. | M144: n.d. | N144: 0.1898759273 | O144: 0.4250849297
A145: 2.3 Volúmen negociado en MN / Volúmen Total, en porcentajes | B145: 45.11772658 | C145: 52.89747682 | D145: 100 | E145: 100 | F145: 89.88734118 | G145: 93.55442929 | H145: 97.59091434 | I145: 99.32011079 | J145: 98.20117181 | K145: 8.462330119 | L145: 87.48249327 | M145: 35.75822968 | N145: 100 | O145: 100
A146: 2.4 Rendimiento Promedio: Operaciones de Reporto de 1 semana | B146: n.d. | C146: n.d. | D146: 3.36 | E146: 2.322352016 | F146: n.a. | G146: n.a. | H146: n.a. | I146: n.a. | J146: n.a. | K146: n.a. | L146: n.a. | M146: n.a. | N146: n.d. | O146: n.d.
A148: Notas:
A149: Notación: n.a.=no aplica , n.d.=no disponible, n.o.=No hubo transacción ese mes.
A151: a/ En El Salvador corresponde a la nueva serie del PIB año base 2005 divulgada en marzo 2018; b/ Datos preliminares o estimados de 2019 y proyectados de 2020; c/ Los datos de Honduras no incluyen la maquila; d/ Las remesas provienen de la Balanza Cambiaria en Guatemala y Honduras y de la Balanza de Pagos para el resto de países; e/ Los flujos negativos de IED que se pudieran observar en El Salvador surgen debido a que en algunos periodos hay amortizaciones netas de préstamos con el inversionista directo, mayores a lo registrado por acciones u otras aportaciones de capital, los cuales por razones metodológicas deben sumarse al valor de la IED; f/ Incluye dentro de los socios comerciales al resto de países centroamericanos, República Dominicana, Panamá, Brasil, Canadá, China, Colombia, Corea del Sur, Haití, Japón, México, Estados Unidos y Zona Euro. Valores sobre (bajo) 100 significan una depreciación (apreciación) real de la moneda. Ver nota metodológica en http://www.secmca.org/nota/propuesta-de-actualizacion-del-indice-de-tipo-de-cambio-efectivo-real-itcer/; g/ Incluye dentro de los socios comerciales al resto de países Centroamericanos, República Dominicana y Panamá. Valores sobre (bajo) 100 significan una depreciación (apreciación) real de la moneda; h/ En Guatemala, Honduras y República Dominicana se refiere a la Deuda Pública Consolidada tal como lo recomienda la versión del 2001 del Manual de Estadísticas de Finanzas Públicas del FMI. En el resto de países se compila únicamente la deuda bruta. La Deuda Intragubernamental es la obligación contraída por una institución del gobierno con otra, por ejemplo los bonos emitidos por el Gobierno Central y que son comprados por una institución pública. Se resta de la deuda bruta para obtener la deuda consolidada; i/ Las estadísticas monetarias responden a los conceptos definidos en los cuadros armonizados que fueron aprobados por el CMCA en diciembre de 2007. Las tasas de variación de los componentes de cada concepto están ponderadas, de modo que la suma de las tasas coincide con la tasa de variación interanual de dicho concepto; j/ Costa Rica, Nicaragua y República Dominicana no tienen encaje remunerado; k/ En El Salvador el agregado monetario M3 es igual a M2 debido a que no existen pasivos de las Sociedades de Depósito en otra moneda que no sea el US dólar; L/ Esta relación es cero para Nicaragua debido a que todo el cuasidinero en MN se registra como cuasidinero en ME, dado que los depósitos y valores distintos de acciones en MN poseen cláusulas de mantenimiento de valor; m/ Esta relación no aplica a El Salvador debido a que no existen depósitos en una moneda distinta al US dólar, dada la vigencia de la Ley de Integración Monetaria; n/ Esta relación es 100 en Nicaragua debido a que los créditos en MN están indexados al tipo de cambio (mantenimiento de valor). Para efectos prácticos, están dolarizados; ñ/ En El Salvador desde el 2001 las tasas en MN y ME son las mismas, debido a la Ley de Integración Monetaria que circula el US dólar como la moneda local; o/ Para Costa Rica la Tasa de Política Monetaria (TPM) corresponde a la tasa de interés que utiliza el BCCR como referencia para conducir el costo de las operaciones a un día plazo en el Mercado Integrado de Liquidez dentro de un corredor formado por las tasas de interés de sus facilidades permanentes de crédito y de depósito en este mercado; en República Dominicana corresponde a la tasa de referencia para las operaciones de expansión y contracción al plazo de un día hábil; en Honduras la Tasa de Política Monetaria corresponde a la tasa máxima permitida para las posturas de compra y la tasa mínima para las posturas de venta, en las subastas de Letras del Banco Central de Honduras dirigidas a las instituciones del sistema financiero nacional; en Guatemala corresponde a la tasa de interés de los depósitos a plazo a un día (overnight); en El Salvador no aplica por no tener política monetaria y Nicaragua no define tasa de política monetaria.

Sheet Proyecciones
A2: Consejo Monetario Centroamericano | K2: =CONCATENATE(Indice!$J$47,",") -> REM N° 244, | L2: =Indice!$J$48 -> 2020-06-25
A3: Secretaría Ejecutiva
A4: PROYECCIONES/METAS 2020-2021 DE LOS PRINCIPALES INDICADORES MACROECONÓMICOS
A6: Cuadro 1 | I6: Cuadro 2
A7: Inflación (IPC) porcentajes | B7: 2017 | C7: =B7+1 -> 2018 | D7: =C7+1 -> 2019 | E7: =CONCATENATE("Proyección inicial ", D7+1) -> Proyección inicial 2020 | F7: =CONCATENATE("Proyección revisada ", D7+1) -> Proyección revisada 2020 | G7: =CONCATENATE("Proyección ",D7+2) -> Proyección 2021 | I7: PIB real variación anual | J7: =B7 -> 2017 | K7: =C7 -> 2018 | L7: =+D7 -> 2019 | M7: =CONCATENATE("Proyección inicial ", L7+1) -> Proyección inicial 2020 | N7: =CONCATENATE("Proyección revisada ", L7+1) -> Proyección revisada 2020 | O7: =CONCATENATE("Proyección ",L7+2) -> Proyección 2021
A8: Costa Rica | B8: 2.574109938 | C8: 2.027262161 | D8: 1.522429116 | E8: 3.0 ± 1 | F8: 3.0 ± 1 | G8: 3.0 ± 1 | I8: Costa Rica | J8: 3.860198454 | K8: 2.660375294 | L8: 2.083859938 | M8: 2.5 | N8: -5 | O8: 2.3
A9: El Salvador | B9: 2.035042891 | C9: 0.4382434487 | D9: -0.008904719501 | E9: n.d. | F9: n.d. | G9: n.d. | H9: os | I9: El Salvador | J9: 2.24994643 | K9: 2.43095981 | L9: 2.3 | M9: 2.3 - 2.7 | N9: -8.5 a -6.5 | O9: n.d.
A10: Guatemala | B10: 5.676890326 | C10: 2.312915019 | D10: 3.405527602 | E10: 4.0 ± 1 | F10: 4.0 ± 1 | G10: 4.0 ± 1 | I10: Guatemala | J10: 3.023430358 | K10: 3.21490627 | L10: 3.844888773 | M10: 3.1 – 4.1 | N10: -3.5 a -1.5 | O10: 2.0 - 4.0
A11: Honduras | B11: 4.728132388 | C11: 4.224443728 | D11: 4.084158416 | E11: 4.0 ± 1 | F11: 4.0 ± 1 | G11: 4.0 ± 1 | I11: Honduras | J11: 4.842913911 | K11: 3.696729569 | L11: 2.652807733 | M11: 1.5 – 2.5 | N11: -3.9 a -2.9 | O11: 2.0 - 3.0
A12: Nicaragua | B12: 5.678498434 | C12: 3.885054751 | D12: 6.12972437 | E12: 3.0-4.0 | F12: 3 | G12: n.d. | I12: Nicaragua | J12: 4.631207554 | K12: -3.950379399 | L12: -3.878923557 | M12: 0.5 | N12: -4.5 | O12: n.d.
A13: Rep Dominicana | B13: 4.204277466 | C13: 1.170594662 | D13: 3.66 | E13: 4.0 ± 1 | F13: 4.0 ± 1 | G13: 4.0 ± 1 | I13: Rep Dominicana | J13: 4.666704676 | K13: 6.982527584 | L13: 5.052168023 | M13: 5.0-5.3 | N13: -1.0 a 1.0 | O13: 5
A14: Promedio región CARD | B14: 4.397548694 | C14: 2.252502672 | D14: 3.113733877 | E14: n.d. | G14: n.d. | I14: Promedio región CARD | J14: 3.882198502 | K14: 3.894326579 | L14: 3.229478258 | M14: n.d. | N14: -3.5 a -2 | O14: n.d.
A16: Cuadro 3 | I16: Cuadro 4
A17: Cuenta Corriente/PIB porcentajes | B17: =B7 -> 2017 | C17: =C7 -> 2018 | D17: =+CONCATENATE("Preeliminar ",D7) -> Preeliminar 2019 | E17: =+E7 -> Proyección inicial 2020 | F17: =+F7 -> Proyección revisada 2020 | G17: Proyección 2021 | I17: RIN del Banco Central en millones de US$ | J17: =B7 -> 2017 | K17: =C7 -> 2018 | L17: =D7 -> 2019 | M17: =E7 -> Proyección inicial 2020 | N17: =F7 -> Proyección revisada 2020 | O17: Proyección 2021
A18: Costa Rica | B18: -3.35340564 | C18: -3.30039557 | D18: -2.38748866 | E18: -2.2 | F18: -3.2 | G18: -3.3 | I18: Costa Rica | J18: 7149.8 | K18: 7494.9984 | L18: 8912.3 | M18: 9031.636364 | N18: n.d. | O18: 9188.053887
A19: El Salvador | B19: -1.859906592 | C19: -4.694574606 | D19: -2.064323118 | E19: n.d. | G19: n.d. | I19: El Salvador | J19: 3273.16 | K19: 3353.55 | L19: 3936.49 | M19: n.d. | O19: n.d.
A20: Guatemala | B20: 1.122093239 | C20: 0.8138899349 | D20: 2.41677939 | E20: 1.84 | F20: 2 | G20: 1.53 | I20: Guatemala | J20: 11769.5 | K20: 12755.6 | L20: 14789 | M20: 15789 | N20: 16489 | O20: 16489 | P20: =+M20 -> 15789
A21: Honduras | B21: 0.04826210421 | C21: -3.675169413 | D21: -0.03674775251 | E21: 1.1 | F21: -2.1 | G21: 2.2 | I21: Honduras | J21: 4785.640786 | K21: 4853.138645 | L21: 5808.856929 | M21: n.d | N21: n.d | O21: n.d. | P21: =+N21 -> n.d
A22: Nicaragua | B22: -4.897509606 | C22: 0.635407328 | D22: n.d | E22: n.d. | G22: n.d. | I22: Nicaragua | J22: 2716.2 | K22: 2038.9 | L22: 2208.5 | M22: n.d. | O22: n.d.
A23: Rep Dominicana | B23: -0.1663240187 | C23: -1.355672318 | D23: -1.35525009 | E23: -1.7 | G23: n.d. | I23: Rep Dominicana | J23: 6780.40308 | K23: 7627.107884 | L23: 8781.4 | M23: n.d. | O23: n.d. | P23: =+M23 -> n.d.
A24: Promedio región CARD | B24: -0.8709537085 | C24: -1.585276218 | D24: n.d. | E24: n.d | G24: n.d. | I24: Total región CARD | J24: 36474.70387 | K24: 38123.29493 | L24: 44436.54693 | M24: n.d. | O24: n.d. | P24: =+SUM(P18:P23) -> 15789
A26: Cuadro 5 | I26: Cuadro 6
A27: Exportaciones variación anual | B27: =B7 -> 2017 | C27: =C7 -> 2018 | D27: 2019 | E27: Proyección inicial 2020 | F27: Proyección revisada 2020 | G27: Proyección 2021 | I27: Importaciones variación anual | J27: =B7 -> 2017 | K27: =C7 -> 2018 | L27: 2019 | M27: Proyección inicial 2020 | N27: Proyección revisada 2020 | O27: Proyección 2021
A28: Costa Rica | B28: 6.602928088 | C28: 5.395523688 | D28: 2.665026742 | E28: 3.8 | F28: -7.927852349 | G28: 6.369020501 | H28: =+E28 -> 3.8 | I28: Costa Rica | J28: 4.05428553 | K28: 4.069918408 | L28: -2.51365936 | M28: 3.6 | N28: -12.72727273 | O28: 5.494281046
A29: El Salvador | B29: 6.270306172 | C29: 2.510238698 | D29: 0.6555905565 | E29: n.d. | G29: n.d. | H29: =+E29 -> n.d. | I29: El Salvador | J29: 7.589313429 | K29: 11.90256823 | L29: 1.587349892 | M29: n.d. | O29: n.d.
A30: Guatemala | B30: 5.101777153 | C30: -0.1165501166 | D30: 1.824132147 | E30: 1.0 - 4.0 | F30: -11.5 a -8.5 | G30: 8.5 - 11.5 | H30: 11.9 | I30: Guatemala | J30: 8.159832498 | K30: 6.983067068 | L30: 1.052128654 | M30: 1.5 - 4.5 | N30: -10.5 a -7.5 | O30: 8.0 - 11.0
A31: Honduras | B31: 16.32099289 | C31: -5.930096241 | D31: -2.568766768 | E31: 3.2 | F31: -18.6 | G31: 19.2 | H31: 13.6 | I31: Honduras | J31: 8.641930883 | K31: 8.110001326 | L31: -3.948898508 | M31: 3.9 | N31: -17.1 | O31: 13.4
A32: Nicaragua | B32: 7.174739626 | C32: 3.871664353 | D32: n.d. | E32: n.d. | G32: n.d. | H32: 8.2 | I32: Nicaragua | J32: 3.211055998 | K32: -9.531811484 | L32: n.d. | M32: n.d. | O32: n.d.
A33: Rep Dominicana | B33: 2.998089353 | C33: 7.627336057 | D33: 2.851223 | E33: 4.3 | G33: n.d. | H33: 47 | I33: Rep Dominicana | J33: 1.734047567 | K33: 14.17264114 | L33: 0.3914117047 | M33: n.d. | O33: n.d.
A34: Promedio región CARD | B34: 5.865444328 | C34: 3.340262194 | D34: n.d | E34: n.d. | G34: n.d. | I34: Promedio región CARD | J34: 5.068459034 | K34: 8.426618278 | L34: n.d | M34: n.d. | O34: n.d.
A36: Cuadro 7 | I36: Cuadro 8
A37: Remesas (Ingreso) en millones de US$ | B37: =B7 -> 2017 | C37: =C7 -> 2018 | D37: 2019 | E37: Proyección inicial 2020 | F37: Proyección revisada 2020 | G37: Proyección 2021 | I37: Saldo Operacional del Gobierno Central/PIB | J37: =B7 -> 2017 | K37: =C7 -> 2018 | L37: 2019 | M37: Proyección inicial 2020 | N37: Proyección revisada 2020 | O37: Proyección 2021
A38: Costa Rica | B38: 530.8862109 | C38: 499.0383213 | D38: 518.7852398 | E38: n.d | F38: n.d. | G38: n.d. | H38: =+E38 -> n.d | I38: Costa Rica | J38: -6.082931091 | K38: -5.834665358 | L38: -6.938978221 | M38: -5.9 | N38: -9.3 | O38: -8.1 | P38: =+N38 -> -9.3
A39: El Salvador | B39: 4985.37 | C39: 5390.78 | D39: 5648.96 | E39: n.d. | G39: n.d. | H39: =+E39 -> n.d. | I39: El Salvador | J39: -0.06641089512 | K39: -1.05051461 | L39: -1.613562584 | M39: n.d. | O39: n.d. | P39: =+M39 -> n.d.
A40: Guatemala | B40: 8192.2161 | C40: 9287.79 | D40: 10508.32 | E40: 11664.21 | F40: 9825.2605 | G40: 10807.78655 | H40: =+E40 -> 11664.21 | I40: Guatemala | J40: -1.385012234 | K40: -1.885918337 | L40: -2.249513259 | M40: 2.01 | N40: -5.02 | O40: 2.27 | P40: =+M40 -> 2.01
A41: Honduras | B41: 4438.320862 | C41: 4884.248415 | D41: 5523.57091 | E41: 5429 | F41: n.d. | G41: n.d. | H41: =+F41 -> n.d. | I41: Honduras | J41: -2.71842921 | K41: -2.135248704 | L41: -2.4 | M41: -2.3 | N41: n.d. | O41: n.d. | P41: -3.7
A42: Nicaragua | B42: 1390.8 | C42: 1501.2 | D42: n.d. | E42: n.d. | G42: n.d. | I42: Nicaragua | J42: -0.5795754717 | K42: -1.966709628 | L42: n.d. | M42: n.d. | O42: n.d. | P42: =+M42 -> n.d.
A43: Rep Dominicana | B43: 5911.757681 | C43: 6494.063654 | D43: -1204.9 | E43: n.d. | G43: n.d. | I43: Rep Dominicana | J43: -2.87825418 | K43: -1.91242407 | L43: -2.195322703 | M43: -2.2 | N43: -5 | O43: n.d. | P43: =+M43 -> -2.2
A44: Total región CARD | B44: 25449.35085 | C44: 28057.12039 | D44: n.d. | E44: n.d. | F44: n.d. | G44: n.d. | I44: Promedio región CARD | J44: -2.541696246 | K44: -2.454725314 | L44: n.d | M44: n.d | O44: n.d.
I45: Incluye donaciones
A46: Fuente: Bancos Centrales Centroamericanos y de República Dominicana.
A47: NOTAS:
A48: La región CARD incluye a los países de Centroamérica y República Dominicana
A49: Los promedios regionales están ponderados conforme al tamaño de cada economía.

Sheet Seguimiento proyecciones
A2: CONSEJO MONETARIO CENTROAMERICANO | M2: =CONCATENATE(Indice!$J$47,",") -> REM N° 244, | N2: =Indice!$J$48 -> 2020-06-25
A3: SECRETARIA EJECUTIVA
A4: SEGUIMIENTO DE LAS PROYECCIONES EN 2020
A6: Inflación Acumulada en 2020 | I6: Resultado operacional del Gobierno Central 2020
I7: (incluye las donaciones)
A25: Cuando se especifica un rango en las metas de inflación, se toma el límite superior. | I25: El saldo positivo de República Dominicana se debe a que en enero del 2015 se incluye dentro de las donaciones la suma de RD$ 93,157.2 millones, correspondiente al descuento generado por la transacción de deuda realizada con Petrocaribe.
A28: Saldo en la Cuenta Corriente 2020 | I28: Reservas Internacionales Netas
I29: del Banco Central 2020
A50: Exportaciones Totales con Maquila 2020 | I50: Importaciones Totales con Maquila 2020
A72: Ingresos por Remesas Familiares 2020
A93: Los datos de Costa Rica al mes de junio no están disponibles. Anualmente Costa Rica recibe aproximadamente 500 millones de US dólares por concepto de remesas.

Sheet Gráfico Seguimiento (hidden)
B1: INFLACIÓN | D1: RIN | F1: RESULTADO OPERACIONAL GC | H1: CUENTA CORRIENTE | J1: Exportaciones | L1: Importaciones | N1: Remesas acumuladas | P1: Remesas sin CR-NI | Q1: JUNIO
B2: Proy.dic/20 | C2: JUN.20 | D2: Proy.dic/20 | E2: JUN.20 | F2: Proy.dic/20 | G2: ABR.20 | H2: Proy.dic/20 | I2: I TRIM 20 | J2: Proy.dic/20 | K2: MAY.20 | L2: Proy.dic/20 | M2: MAY.20 | N2: Proy.dic/20 | O2: JUN.20 | P2: Proy.dic/20 | Q2: JUN.20
A3: CR | B3: 4 | C3: -0.2422401131 | E3: 8565 | F3: -5560.497354 | G3: -1387.079247 | H3: -1913.289412 | I3: 40.1464034 | J3: 10975 | K3: 4038.276531 | L3: 14688 | M3: 5257.487264 | P3: n.d. | Q3: 0
A4: ES | C4: 0.2671653754 | E4: 3104 | G4: -469.0116699 | I4: -37.33304258 | K4: 1682.26 | M4: 3488.85 | O4: 2523.25 | P4: n.d. | Q4: 2523.25
A5: GT | B5: 5 | C5: 2.15796897 | D5: 16489 | E5: 16992 | F5: -3887.14 | G5: -75.72124815 | H5: 1512.366261 | I5: 607.27033 | J5: 10052.73 | K5: 3885.3 | L5: 18092.074 | M5: 6100.7 | N5: 9825.2605 | O5: 4880.25 | P5: 9825.2605 | Q5: 4880.25
A6: HO | B6: 5 | C6: 1.189060642 | E6: 7389 | H6: -532.161 | I6: 97.30725347 | J6: 3390.712534 | K6: 1572.775586 | L6: 8335.506451 | M6: 2875.019273 | O6: 2464.588106 | P6: n.d. | Q6: 2464.588106
A7: NI | B7: 3 | P7: n.d. | Q7: 0
A8: RD | B8: 5 | C8: 0.4280066624 | E8: 7142 | F8: -4058.43 | G8: -1335.126052 | I8: -67.9 | P8: n.d. | Q8: n.d.
Q9: FEB
B10: ver DO | C10: poner datos de ENE 20 | I10: ='[REM-REGIONAL.xlsm]METAS'!S141 | Q10: poner datos de ENE 20

Sheet Gráficos-pais
S2: Seleccione el país
A3: CONSEJO MONETARIO CENTROAMERICANO | O3: =CONCATENATE(Indice!$J$47,",") -> REM N° 244, | P3: =Indice!$J$48 -> 2020-06-25
A4: SECRETARIA EJECUTIVA
A5: EVOLUCIÓN POR PAÍS DE INDICADORES MACROECONÓMICOS SELECCIONADOS
A10: Tasa de Inflación Interanual | J10: IMAE | S10: Nota: Se le recuerda habilitar las macros para hacer uso de las herramientas dinámicas presentes en este informe.
J11: Variación interanual de la Tendencia-Ciclo
A34: ITCER bilateral USA año base 2000 | J34: Tipo de Cambio Nominal Tasa de variación interanual
A35: 2000=100 | J35: Tasa de Variación Interanual
A58: RIN Banco Central | J58: RIN Banco Central/ Base Monetaria Amplia
A81: En Panamá, el Banco Nacional de Panamá (BNP) funciona como receptor y gestor de las RIN que corresponden a los activos externos de reserva menos los pasivos de corto plazo frente a no residentes. Los primeros se componen de: billetes y depósitos en moneda extranjera e inversiones en títulos (incluidos los títulos de deuda y participaciones de capital); los pasivos se componen de los depósitos transferibles de no residentes en moneda extranjera. En Costa Rica se dió un aumento en las RIN en marzo de 2018 de US$ 1.000 millones provenientes del FLAR. | J81: República Dominicana presenta un incremento de US$1,246 millones en febrero de 2018 debido a la colocación de bonos soberanos en el mercado global de capitales. En El Salvador al cierre de febrero de 2017 las Reservas Internacionales Netas (RIN) alcanzaron un nivel de US$3,510.9 millones, un incremento de US$607 millones respecto al mes de enero de 2017, explicado por la colocación de bonos del Gobierno de El Salvador ($601 millones). La relación RIN a Base Monetaria es alta en Panamá (escala derecha) debido a que la base monetaria es pequeña; esto es consecuencia de que no existe encaje legal debido a la ausencia de Banco Central.
A85: Exportaciones totales FOB, del mes | J85: Importaciones totales CIF, del mes
A86: Promedio móvil de los últimos 12 meses | J86: Promedio móvil de los últimos 12 meses
A107: Las cifras de Honduras no incluyen la maquila. | J107: Las cifras de Honduras no incluyen la maquila.
A109: Tasa de interés pasiva real en MN a 180 días | J109: Tasa de interés activa real en MN de corto plazo
A132: La tasa real se obtiene deflatando con la tasa de variación interanual del IPC al mes indicado. | J132: La tasa real se obtiene deflatando con la tasa de variación interanual del IPC al mes indicado.
A134: Tasa de interés pasiva en ME a 180 días | J134: Tasa de interés activa en ME de corto plazo
J158: En Honduras, a partir de enero 2017, la CNBS implementó las Normas Internacionales de Información Financiera (NIIF) en los balances contables de los Bancos Comerciales, Sociedades Financieras y Banhprovi, permitiendo cambios en el cálculo de las tasas de interés activas y pasivas.
J159: En Costa Rica a partir de enero 2019 cambia la metodología de cálculo de tasas de interés para utilizar tasas ponderadas por el monto de la operación.
A160: Tasa de interés lider de Política Monetaria | J160: Créditos de las OSD al sector Privado, Variación Interanual
A161: evolución mensual
A182: En Nicaragua corresponde a la Tasa de Referencia de Reportos Monetarios (TRM) que el BCN utiliza para indicar el costo de operaciones a un día en las subastas de reportos monetarios. Es definida por el Comité de Operaciones de Mercado Abierto. La serie inicia en abril de 2020.

Sheet Nota Técnica
K1: Consejo Monetario Centroamericano
K2: Secretaría Ejecutiva
D5: REPORTE EJECUTIVO MENSUAL
D7: DE INDICADORES MACROECONÓMICOS
D8: DE CENTROAMÉRICA, REPÚBLICA DOMINICANA y
D9: PANAMÁ
B12: Glosario de Términos
B13: PIB | D13: Producto Interno Bruto
B14: IMAE | D14: Índice Mensual de Actividad Económica
B15: IPC | D15: Índice de Precios al Consumidor
B16: ISI | D16: Índice Subyacente de Inflación. En algunos países se utiliza el Indice del Nucleo Inflacionario (INI)
B17: Región CARD | D17: La región incluye los siguientes países: Costa Rica, El Salvador, Guatemala, Honduras, Nicaragua y República Dominicana
B18: Región CAPARD | D18: La región incluye los siguientes países: Costa Rica, El Salvador, Guatemala, Honduras, Nicaragua, Panamá y República Dominicana
B20: Nota Técnica
B22: Variación Interanual | E22: Variación porcentual del nivel del mes respecto al mismo mes del año anterior.
B23: Variación acumulada | E23: Variación porcentual del nivel del mes vigente respecto al mes de diciembre del año anterior.
B24: Aceleración | E24: Diferencia en valor absoluto entre la variación (interanual) de un mes respecto al mes anterior. Su interpretación se realiza en puntos porcentuales.
B25: Metas de Inflación | E25: Esquema donde el Banco Central hace explícita su meta de inflación puntual o rango, y los instrumentos de política monetaria se direccionan en la obtención de dicha meta.
B26: Inflación Subyacente | E26: El Índice subyacente de Inflación (ISI) se define como el componente del cambio total de precios común a todos los bienes y servicios, cuya persistencia se mantendría en el mediano y largo plazo. El ISI constituye una medida alternativa del IPC, al que se le han eliminado algunos de los bienes y servicios cuyos precios son, por lo general, los más volátiles. El algunos países se denomina índice del nucleo inflacionario.
B27: Tendencia-Ciclo | E27: Serie de tiempo que excluye los componentes de estacionalidad e irregularidad.
B28: RIN/meses de importación promedio | E28: Tanto en el cuadro regional como en el compartivo por país se calcula la relación de RIN a importaciones promedio. En ambos casos el denominador corresponde al promedio de importaciones observadas de enero al mes indicado. En el cálculo regional se suman las importaciones totales y las RIN de todos los países de la región.
B31: Periodos base de los principales indicadores del sector real
D32: Año Base del Indicador Mensual de Actividad Económica IMAE | H32: Año Base del Producto Interno Bruto en términos constantes | L32: Periodo base de los Índices de Precios al Consumidor
B33: País
B34: Costa Rica | E34: 2012 | I34: 2012 | M34: Junio 2015
B35: El Salvador | E35: 1990 | I35: 1990 | M35: Diciembre 2009
B36: Guatemala | E36: 2013 | I36: 2013 | M36: Diciembre 2010
B37: Honduras | E37: 2000 | I37: 2000 | M37: Diciembre 1999
B38: Nicaragua | E38: 2006 | I38: 2006 | M38: 2006
B39: República Dominicana | E39: 2007 | I39: 2007 | M39: Diciembre 2010
B40: Panamá | E40: 1996 | I40: 2007 | M40: 2013
B44: Nota Técnica Ponderadores
B46: Para los cálculos regionales se utiliza como ponderador el peso de cada economía con respecto a la región. Para esto se utiliza el Ingreso Nacional Bruto (INB) por Paridad del Poder Adquisitivo (PPA), publicado anualmente por el Banco Mundial en el cuadro 1.1 “Size of the economy” del “World development indicators” (http://datos.bancomundial.org/indicador/NY.GNP.MKTP.PP.CD). Los pesos son actualizados anualmente basados en los últimos resultados disponibles. Para 2015 y 2016 los ponderadores que se utilizan corresponden a las cifras del año 2015 y que vienen dados en la siguiente tabla:
D51: País | F51: INB PPA (en miles de millones de US$ ) | H51: Ponderador CA | J51: Ponderador Región CARD | L51: Ponderador Región CAPARD
D52: Costa Rica | F52: 72.3419007 | H52: 0.2326611062 | J52: 0.1589478697 | L52: 0.1353066652
D53: El Salvador | F53: 44.94520395 | H53: 0.1445497114 | J53: 0.09875251207 | L53: 0.08406449931
D54: Guatemala | F54: 123.8057157 | H54: 0.3981755314 | J54: 0.2720229158 | L54: 0.231563428
D55: Honduras | F55: 38.50739381 | H55: 0.1238448638 | J55: 0.08460751176 | L55: 0.07202336391
D56: Nicaragua | F56: 31.3322915 | H56: 0.1007687872 | J56: 0.06884255098 | L56: 0.05860321381
D57: Rep. Dominicana | F57: 144.1972223 | J57: 0.3168266397 | L57: 0.2697032438
D58: Panamá | F58: 79.52169232 | L58: 0.148735586

Sheet Datos_Regional (M) (hidden)
A1: Variables Mensuales Regional | D1: IPC CARD | E1: IPC CARD_T | F1: IPC CAPARD | G1: IPC CAPARD_T | H1: CARD | J1: CAPARD | L1: RIN_CARD | M1: RIN Diciembres | N1: RIN_CAPARD | O1: RIN Diciembres | P1: CARD | V1: CAPARD | AB1: Crédito de las OSD con SPNF | AF1: Créditos de las OSD con el sector privado, saldo en millones de USD | AL1: Tasa de variación Interanual | AS1: Crédito de las OSD con SPNF | AW1: Créditos de las OSD con el sector privado, saldo en millones de USD | BC1: Tasa de variación Interanual | BJ1: Tasa de Política Monetaria | BQ1: CARD Saldo operacional GC | BR1: CAPARD Saldo operacional GC | BS1: CARD | BV1: CAPARD | BY1: Crédito de las OSD con el Sector Privado MN | CM1: Mill-US$ | CN1: Mill-US$ | CO1: % | CP1: Mill-US$ | CQ1: Mill-US$ | CR1: % | CS1: CARD | DA1: CAPARD
H2: IMAER_TC | I2: IMAER_T | J2: IMAER CARD_TC | K2: IMAER CAPARD_T | P2: M1 | Q2: M2 | R2: M3 | S2: M1_% | T2: M2_% | U2: M3_% | V2: M1 | W2: M2 | X2: M3 | Y2: M1_% | Z2: M2_% | AA2: M3_% | AB2: Activos | AC2: Pasivos | AD2: Crédito Neto | AE2: %Interanual | AF2: Otras sociedades no financieras | AG2: Otros sectores 1/ | AH2: Otras sociedades no financieras | AI2: Hogares e ISFLSH | AK2: TOTAL | AL2: Otras sociedades no financieras | AN2: Otros sectores 1/ | AO2: Otras sociedades no financieras | AP2: Hogares e ISFLSH | AQ2: TOTAL | AR2: Aceleración | AS2: Activos | AT2: Pasivos | AU2: Crédito Neto | AV2: %Interanual | AW2: Otras sociedades no financieras | AX2: Otros sectores 1/ | AY2: Otras sociedades no financieras | AZ2: Hogares e ISFLSH | BB2: TOTAL | BC2: Otras sociedades no financieras | BE2: Otros sectores 1/ | BF2: Otras sociedades no financieras | BG2: Hogares e ISFLSH | BH2: TOTAL | BI2: Aceleración | BJ2: Costa Rica | BK2: El Salvador | BL2: Guatemala | BM2: Honduras | BN2: Nicaragua | BO2: República Dominicana | BP2: PA | BS2: Deuda Pública total | BT2: Deuda Interna | BU2: Deuda Externa | BV2: Deuda Pública total | BW2: Deuda Interna | BX2: Deuda Externa | BY2: CR | BZ2: SV | CA2: GT | CB2: HO | CC2: NI | CD2: RD | CE2: PA | CF2: CR % | CG2: SV % | CH2: GT % | CI2: HO % | CJ2: NI % | CK2: RD % | CL2: PA % | CM2: CARD Saldo Operacional con donaciones | CN2: CARD PIB a precios corrientes | CO2: CARD Saldo operacional/PIB | CP2: CAPARD Saldo Operacional con donaciones | CQ2: CAPARD PIB a precios corrientes | CR2: CAPARD Saldo operacional/PIB | CS2: Credito TOTAL | CT2: Créditos de las OSD a sector Público | CU2: Créditos de las OSD a sector Privado | CV2: Créditos de las OSD a no residentes y otros | CW2: Credito TOTAL % | CX2: Créditos de las OSD a sector Público % | CY2: Créditos de las OSD a sector Privado % | CZ2: Créditos de las OSD a no residentes y otros % | DA2: Credito TOTAL | DB2: Créditos de las OSD a sector Público | DC2: Créditos de las OSD a sector Privado | DD2: Créditos de las OSD a no residentes y otros | DE2: Credito TOTAL % | DF2: Créditos de las OSD a sector Público % | DG2: Créditos de las OSD a sector Privado % | DH2: Créditos de las OSD a no residentes y otros %
A3: 1990 | B3: enero | C3: =A3&"-"&B3 -> 1990-enero | D3: n.d. | E3: n.d. | F3: n.d. | G3: n.d. | H3: n.d. | I3: n.d. | J3: n.d. | K3: n.d. | L3: n.d. | M3: =IF(B3<>"diciembre","",L3) ->  | N3: n.d. | O3: =IF(B3<>"diciembre","",N3) ->  | P3: n.d. | Q3: n.d. | R3: n.d. | S3: n.d. | T3: n.d. | U3: n.d. | V3: n.d. | W3: n.d. | X3: n.d. | Y3: n.d. | Z3: n.d. | AA3: n.d. | AC3: n.d. | AD3: n.d. | AE3: n.d. | AF3: n.d. | AG3: n.d. | AH3: n.d. | AI3: n.d. | AK3: n.d. | AL3: n.d. | AN3: n.d. | AO3: n.d. | AP3: n.d. | AQ3: n.d. | AR3: n.d. | AS3: n.d. | AT3: n.d. | AU3: n.d. | AV3: n.d. | AW3: n.d. | AX3: n.d. | AY3: n.d. | AZ3: n.d. | BA3: n.d. | BB3: n.d. | BC3: n.d. | BD3: n.d. | BE3: n.d. | BF3: n.d. | BG3: n.d. | BH3: n.d. | BI3: n.d. | BJ3: n.d. | BK3: n.a. | BL3: n.d. | BM3: n.d. | BN3: n.a. | BO3: n.d. | BP3: n.a. | BQ3: n.d. | BR3: n.d. | BS3: n.d. | BT3: n.d. | BU3: n.d. | BV3: n.d. | BW3: n.d. | BX3: n.d. | BY3: n.d. | BZ3: n.d. | CA3: n.d. | CB3: n.d. | CC3: n.d. | CD3: n.d. | CE3: n.d. | CF3: n.d. | CG3: n.d. | CH3: n.d. | CI3: n.d. | CJ3: n.d. | CK3: n.d. | CL3: n.d. | CM3: n.d. | CN3: n.d. | CO3: =IF(OR(CM3="n.d.",CM3="",CN3="",CN3="n.d."),"n.d.",(CM3/CN3)*100) -> n.d. | CP3: n.d. | CQ3: n.d. | CR3: =IF(OR(CP3="n.d.",CP3="",CQ3="",CQ3="n.d."),"n.d.",(CP3/CQ3)*100) -> n.d. | CS3: n.d. | CT3: n.d. | CU3: n.d. | CV3: n.d. | CW3: n.d. | CX3: n.d. | CY3: n.d. | CZ3: n.d. | DA3: n.d. | DB3: n.d. | DC3: n.d. | DD3: n.d. | DE3: n.d. | DF3: n.d. | DG3: n.d. | DH3: n.d.
A4: 1990 | B4: febrero | C4: =A4&"-"&B4 -> 1990-febrero | D4: n.d. | E4: n.d. | F4: n.d. | G4: n.d. | H4: n.d. | I4: n.d. | J4: n.d. | K4: n.d. | L4: n.d. | M4: =IF(B4<>"diciembre","",L4) ->  | N4: n.d. | O4: =IF(B4<>"diciembre","",N4) ->  | P4: n.d. | Q4: n.d. | R4: n.d. | S4: n.d. | T4: n.d. | U4: n.d. | V4: n.d. | W4: n.d. | X4: n.d. | Y4: n.d. | Z4: n.d. | AA4: n.d. | AC4: n.d. | AD4: n.d. | AE4: n.d. | AF4: n.d. | AG4: n.d. | AH4: n.d. | AI4: n.d. | AJ4: =IFERROR(+AF4+AH4,"") ->  | AK4: n.d. | AL4: n.d. | AN4: n.d. | AO4: n.d. | AP4: n.d. | AQ4: n.d. | AR4: n.d. | AS4: n.d. | AT4: n.d. | AU4: n.d. | AV4: n.d. | AW4: n.d. | AX4: n.d. | AY4: n.d. | AZ4: n.d. | BA4: n.d. | BB4: n.d. | BC4: n.d. | BD4: n.d. | BE4: n.d. | BF4: n.d. | BG4: n.d. | BH4: n.d. | BI4: n.d. | BJ4: n.d. | BK4: n.a. | BL4: n.d. | BM4: n.d. | BN4: n.a. | BO4: n.d. | BP4: n.a. | BQ4: n.d. | BR4: n.d. | BS4: n.d. | BT4: n.d. | BU4: n.d. | BV4: n.d. | BW4: n.d. | BX4: n.d. | BY4: n.d. | BZ4: n.d. | CA4: n.d. | CB4: n.d. | CC4: n.d. | CD4: n.d. | CE4: n.d. | CF4: n.d. | CG4: n.d. | CH4: n.d. | CI4: n.d. | CJ4: n.d. | CK4: n.d. | CL4: n.d. | CM4: n.d. | CN4: n.d. | CO4: n.d. | CP4: n.d. | CQ4: n.d. | CR4: =IF(OR(CP4="n.d.",CP4="",CQ4="",CQ4="n.d."),"n.d.",(CP4/CQ4)*100) -> n.d. | CS4: n.d. | CT4: n.d. | CU4: n.d. | CV4: n.d. | CW4: n.d. | CX4: n.d. | CY4: n.d. | CZ4: n.d. | DA4: n.d. | DB4: n.d. | DC4: n.d. | DD4: n.d. | DE4: n.d. | DF4: n.d. | DG4: n.d. | DH4: n.d.
A5: 1990 | B5: marzo | C5: 1990-marzo | D5: n.d. | E5: n.d. | F5: n.d. | G5: n.d. | H5: n.d. | I5: n.d. | J5: n.d. | K5: n.d. | L5: n.d. | N5: n.d. | P5: n.d. | Q5: n.d. | R5: n.d. | S5: n.d. | T5: n.d. | U5: n.d. | V5: n.d. | W5: n.d. | X5: n.d. | Y5: n.d. | Z5: n.d. | AA5: n.d. | AC5: n.d. | AD5: n.d. | AE5: n.d. | AF5: n.d. | AG5: n.d. | AH5: n.d. | AI5: n.d. | AK5: n.d. | AL5: n.d. | AN5: n.d. | AO5: n.d. | AP5: n.d. | AQ5: n.d. | AR5: n.d. | AS5: n.d. | AT5: n.d. | AU5: n.d. | AV5: n.d. | AW5: n.d. | AX5: n.d. | AY5: n.d. | AZ5: n.d. | BA5: n.d. | BB5: n.d. | BC5: n.d. | BD5: n.d. | BE5: n.d. | BF5: n.d. | BG5: n.d. | BH5: n.d. | BI5: n.d. | BJ5: n.d. | BK5: n.a. | BL5: n.d. | BM5: n.d. | BN5: n.a. | BO5: n.d. | BP5: n.a. | BQ5: n.d. | BR5: n.d. | BS5: n.d. | BT5: n.d. | BU5: n.d. | BV5: n.d. | BW5: n.d. | BX5: n.d. | BY5: n.d. | BZ5: n.d. | CA5: n.d. | CB5: n.d. | CC5: n.d. | CD5: n.d. | CE5: n.d. | CF5: n.d. | CG5: n.d. | CH5: n.d. | CI5: n.d. | CJ5: n.d. | CK5: n.d. | CL5: n.d. | CM5: n.d. | CN5: n.d. | CO5: n.d. | CP5: n.d. | CQ5: n.d. | CR5: n.d. | CS5: n.d. | CT5: n.d. | CU5: n.d. | CV5: n.d. | CW5: n.d. | CX5: n.d. | CY5: n.d. | CZ5: n.d. | DA5: n.d. | DB5: n.d. | DC5: n.d. | DD5: n.d. | DE5: n.d. | DF5: n.d. | DG5: n.d. | DH5: n.d.
A6: 1990 | B6: abril | C6: 1990-abril | D6: n.d. | E6: n.d. | F6: n.d. | G6: n.d. | H6: n.d. | I6: n.d. | J6: n.d. | K6: n.d. | L6: n.d. | N6: n.d. | P6: n.d. | Q6: n.d. | R6: n.d. | S6: n.d. | T6: n.d. | U6: n.d. | V6: n.d. | W6: n.d. | X6: n.d. | Y6: n.d. | Z6: n.d. | AA6: n.d. | AC6: n.d. | AD6: n.d. | AE6: n.d. | AF6: n.d. | AG6: n.d. | AH6: n.d. | AI6: n.d. | AJ6: =IFERROR(+AF6+AH6,"n.d.") -> n.d. | AK6: n.d. | AL6: n.d. | AN6: n.d. | AO6: n.d. | AP6: n.d. | AQ6: n.d. | AR6: n.d. | AS6: n.d. | AT6: n.d. | AU6: n.d. | AV6: n.d. | AW6: n.d. | AX6: n.d. | AY6: n.d. | AZ6: n.d. | BA6: n.d. | BB6: n.d. | BC6: n.d. | BD6: n.d. | BE6: n.d. | BF6: n.d. | BG6: n.d. | BH6: n.d. | BI6: n.d. | BJ6: n.d. | BK6: n.a. | BL6: n.d. | BM6: n.d. | BN6: n.a. | BO6: n.d. | BP6: n.a. | BQ6: n.d. | BR6: n.d. | BS6: n.d. | BT6: n.d. | BU6: n.d. | BV6: n.d. | BW6: n.d. | BX6: n.d. | BY6: n.d. | BZ6: n.d. | CA6: n.d. | CB6: n.d. | CC6: n.d. | CD6: n.d. | CE6: n.d. | CF6: n.d. | CG6: n.d. | CH6: n.d. | CI6: n.d. | CJ6: n.d. | CK6: n.d. | CL6: n.d. | CM6: n.d. | CN6: n.d. | CO6: n.d. | CP6: n.d. | CQ6: n.d. | CR6: n.d. | CS6: n.d. | CT6: n.d. | CU6: n.d. | CV6: n.d. | CW6: n.d. | CX6: n.d. | CY6: n.d. | CZ6: n.d. | DA6: n.d. | DB6: n.d. | DC6: n.d. | DD6: n.d. | DE6: n.d. | DF6: n.d. | DG6: n.d. | DH6: n.d.
A7: 1990 | B7: mayo | C7: 1990-mayo | D7: n.d. | E7: n.d. | F7: n.d. | G7: n.d. | H7: n.d. | I7: n.d. | J7: n.d. | K7: n.d. | L7: n.d. | N7: n.d. | P7: n.d. | Q7: n.d. | R7: n.d. | S7: n.d. | T7: n.d. | U7: n.d. | V7: n.d. | W7: n.d. | X7: n.d. | Y7: n.d. | Z7: n.d. | AA7: n.d. | AC7: n.d. | AD7: n.d. | AE7: n.d. | AF7: n.d. | AG7: n.d. | AH7: n.d. | AI7: n.d. | AJ7: =IFERROR(+AF7+AH7,"n.d.") -> n.d. | AK7: n.d. | AL7: n.d. | AN7: n.d. | AO7: n.d. | AP7: n.d. | AQ7: n.d. | AR7: n.d. | AS7: n.d. | AT7: n.d. | AU7: n.d. | AV7: n.d. | AW7: n.d. | AX7: n.d. | AY7: n.d. | AZ7: n.d. | BA7: n.d. | BB7: n.d. | BC7: n.d. | BD7: n.d. | BE7: n.d. | BF7: n.d. | BG7: n.d. | BH7: n.d. | BI7: n.d. | BJ7: n.d. | BK7: n.a. | BL7: n.d. | BM7: n.d. | BN7: n.a. | BO7: n.d. | BP7: n.a. | BQ7: n.d. | BR7: n.d. | BS7: n.d. | BT7: n.d. | BU7: n.d. | BV7: n.d. | BW7: n.d. | BX7: n.d. | BY7: n.d. | BZ7: n.d. | CA7: n.d. | CB7: n.d. | CC7: n.d. | CD7: n.d. | CE7: n.d. | CF7: n.d. | CG7: n.d. | CH7: n.d. | CI7: n.d. | CJ7: n.d. | CK7: n.d. | CL7: n.d. | CM7: n.d. | CN7: n.d. | CO7: n.d. | CP7: n.d. | CQ7: n.d. | CR7: n.d. | CS7: n.d. | CT7: n.d. | CU7: n.d. | CV7: n.d. | CW7: n.d. | CX7: n.d. | CY7: n.d. | CZ7: n.d. | DA7: n.d. | DB7: n.d. | DC7: n.d. | DD7: n.d. | DE7: n.d. | DF7: n.d. | DG7: n.d. | DH7: n.d.
A8: 1990 | B8: junio | C8: 1990-junio | D8: n.d. | E8: n.d. | F8: n.d. | G8: n.d. | H8: n.d. | I8: n.d. | J8: n.d. | K8: n.d. | L8: n.d. | N8: n.d. | P8: n.d. | Q8: n.d. | R8: n.d. | S8: n.d. | T8: n.d. | U8: n.d. | V8: n.d. | W8: n.d. | X8: n.d. | Y8: n.d. | Z8: n.d. | AA8: n.d. | AC8: n.d. | AD8: n.d. | AE8: n.d. | AF8: n.d. | AG8: n.d. | AH8: n.d. | AI8: n.d. | AJ8: n.d. | AK8: n.d. | AL8: n.d. | AN8: n.d. | AO8: n.d. | AP8: n.d. | AQ8: n.d. | AR8: n.d. | AS8: n.d. | AT8: n.d. | AU8: n.d. | AV8: n.d. | AW8: n.d. | AX8: n.d. | AY8: n.d. | AZ8: n.d. | BA8: n.d. | BB8: n.d. | BC8: n.d. | BD8: n.d. | BE8: n.d. | BF8: n.d. | BG8: n.d. | BH8: n.d. | BI8: n.d. | BJ8: n.d. | BK8: n.a. | BL8: n.d. | BM8: n.d. | BN8: n.a. | BO8: n.d. | BP8: n.a. | BQ8: n.d. | BR8: n.d. | BS8: n.d. | BT8: n.d. | BU8: n.d. | BV8: n.d. | BW8: n.d. | BX8: n.d. | BY8: n.d. | BZ8: n.d. | CA8: n.d. | CB8: n.d. | CC8: n.d. | CD8: n.d. | CE8: n.d. | CF8: n.d. | CG8: n.d. | CH8: n.d. | CI8: n.d. | CJ8: n.d. | CK8: n.d. | CL8: n.d. | CM8: n.d. | CN8: n.d. | CO8: n.d. | CP8: n.d. | CQ8: n.d. | CR8: n.d. | CS8: n.d. | CT8: n.d. | CU8: n.d. | CV8: n.d. | CW8: n.d. | CX8: n.d. | CY8: n.d. | CZ8: n.d. | DA8: n.d. | DB8: n.d. | DC8: n.d. | DD8: n.d. | DE8: n.d. | DF8: n.d. | DG8: n.d. | DH8: n.d.
A9: 1990 | B9: julio | C9: 1990-julio | D9: n.d. | E9: n.d. | F9: n.d. | G9: n.d. | H9: n.d. | I9: n.d. | J9: n.d. | K9: n.d. | L9: n.d. | N9: n.d. | P9: n.d. | Q9: n.d. | R9: n.d. | S9: n.d. | T9: n.d. | U9: n.d. | V9: n.d. | W9: n.d. | X9: n.d. | Y9: n.d. | Z9: n.d. | AA9: n.d. | AC9: n.d. | AD9: n.d. | AE9: n.d. | AF9: n.d. | AG9: n.d. | AH9: n.d. | AI9: n.d. | AJ9: n.d. | AK9: n.d. | AL9: n.d. | AN9: n.d. | AO9: n.d. | AP9: n.d. | AQ9: n.d. | AR9: n.d. | AS9: n.d. | AT9: n.d. | AU9: n.d. | AV9: n.d. | AW9: n.d. | AX9: n.d. | AY9: n.d. | AZ9: n.d. | BA9: n.d. | BB9: n.d. | BC9: n.d. | BD9: n.d. | BE9: n.d. | BF9: n.d. | BG9: n.d. | BH9: n.d. | BI9: n.d. | BJ9: n.d. | BK9: n.a. | BL9: n.d. | BM9: n.d. | BN9: n.a. | BO9: n.d. | BP9: n.a. | BQ9: n.d. | BR9: n.d. | BS9: n.d. | BT9: n.d. | BU9: n.d. | BV9: n.d. | BW9: n.d. | BX9: n.d. | BY9: n.d. | BZ9: n.d. | CA9: n.d. | CB9: n.d. | CC9: n.d. | CD9: n.d. | CE9: n.d. | CF9: n.d. | CG9: n.d. | CH9: n.d. | CI9: n.d. | CJ9: n.d. | CK9: n.d. | CL9: n.d. | CM9: n.d. | CN9: n.d. | CO9: n.d. | CP9: n.d. | CQ9: n.d. | CR9: n.d. | CS9: n.d. | CT9: n.d. | CU9: n.d. | CV9: n.d. | CW9: n.d. | CX9: n.d. | CY9: n.d. | CZ9: n.d. | DA9: n.d. | DB9: n.d. | DC9: n.d. | DD9: n.d. | DE9: n.d. | DF9: n.d. | DG9: n.d. | DH9: n.d.
A10: 1990 | B10: agosto | C10: 1990-agosto | D10: n.d. | E10: n.d. | F10: n.d. | G10: n.d. | H10: n.d. | I10: n.d. | J10: n.d. | K10: n.d. | L10: n.d. | N10: n.d. | P10: n.d. | Q10: n.d. | R10: n.d. | S10: n.d. | T10: n.d. | U10: n.d. | V10: n.d. | W10: n.d. | X10: n.d. | Y10: n.d. | Z10: n.d. | AA10: n.d. | AC10: n.d. | AD10: n.d. | AE10: n.d. | AF10: n.d. | AG10: n.d. | AH10: n.d. | AI10: n.d. | AJ10: n.d. | AK10: n.d. | AL10: n.d. | AN10: n.d. | AO10: n.d. | AP10: n.d. | AQ10: n.d. | AR10: n.d. | AS10: n.d. | AT10: n.d. | AU10: n.d. | AV10: n.d. | AW10: n.d. | AX10: n.d. | AY10: n.d. | AZ10: n.d. | BA10: n.d. | BB10: n.d. | BC10: n.d. | BD10: n.d. | BE10: n.d. | BF10: n.d. | BG10: n.d. | BH10: n.d. | BI10: n.d. | BJ10: n.d. | BK10: n.a. | BL10: n.d. | BM10: n.d. | BN10: n.a. | BO10: n.d. | BP10: n.a. | BQ10: n.d. | BR10: n.d. | BS10: n.d. | BT10: n.d. | BU10: n.d. | BV10: n.d. | BW10: n.d. | BX10: n.d. | BY10: n.d. | BZ10: n.d. | CA10: n.d. | CB10: n.d. | CC10: n.d. | CD10: n.d. | CE10: n.d. | CF10: n.d. | CG10: n.d. | CH10: n.d. | CI10: n.d. | CJ10: n.d. | CK10: n.d. | CL10: n.d. | CM10: n.d. | CN10: n.d. | CO10: n.d. | CP10: n.d. | CQ10: n.d. | CR10: n.d. | CS10: n.d. | CT10: n.d. | CU10: n.d. | CV10: n.d. | CW10: n.d. | CX10: n.d. | CY10: n.d. | CZ10: n.d. | DA10: n.d. | DB10: n.d. | DC10: n.d. | DD10: n.d. | DE10: n.d. | DF10: n.d. | DG10: n.d. | DH10: n.d.
A11: 1990 | B11: septiembre | C11: 1990-septiembre | D11: n.d. | E11: n.d. | F11: n.d. | G11: n.d. | H11: n.d. | I11: n.d. | J11: n.d. | K11: n.d. | L11: n.d. | N11: n.d. | P11: n.d. | Q11: n.d. | R11: n.d. | S11: n.d. | T11: n.d. | U11: n.d. | V11: n.d. | W11: n.d. | X11: n.d. | Y11: n.d. | Z11: n.d. | AA11: n.d. | AC11: n.d. | AD11: n.d. | AE11: n.d. | AF11: n.d. | AG11: n.d. | AH11: n.d. | AI11: n.d. | AJ11: n.d. | AK11: n.d. | AL11: n.d. | AN11: n.d. | AO11: n.d. | AP11: n.d. | AQ11: n.d. | AR11: n.d. | AS11: n.d. | AT11: n.d. | AU11: n.d. | AV11: n.d. | AW11: n.d. | AX11: n.d. | AY11: n.d. | AZ11: n.d. | BA11: n.d. | BB11: n.d. | BC11: n.d. | BD11: n.d. | BE11: n.d. | BF11: n.d. | BG11: n.d. | BH11: n.d. | BI11: n.d. | BJ11: n.d. | BK11: n.a. | BL11: n.d. | BM11: n.d. | BN11: n.a. | BO11: n.d. | BP11: n.a. | BQ11: n.d. | BR11: n.d. | BS11: n.d. | BT11: n.d. | BU11: n.d. | BV11: n.d. | BW11: n.d. | BX11: n.d. | BY11: n.d. | BZ11: n.d. | CA11: n.d. | CB11: n.d. | CC11: n.d. | CD11: n.d. | CE11: n.d. | CF11: n.d. | CG11: n.d. | CH11: n.d. | CI11: n.d. | CJ11: n.d. | CK11: n.d. | CL11: n.d. | CM11: n.d. | CN11: n.d. | CO11: n.d. | CP11: n.d. | CQ11: n.d. | CR11: n.d. | CS11: n.d. | CT11: n.d. | CU11: n.d. | CV11: n.d. | CW11: n.d. | CX11: n.d. | CY11: n.d. | CZ11: n.d. | DA11: n.d. | DB11: n.d. | DC11: n.d. | DD11: n.d. | DE11: n.d. | DF11: n.d. | DG11: n.d. | DH11: n.d.
A12: 1990 | B12: octubre | C12: 1990-octubre | D12: n.d. | E12: n.d. | F12: n.d. | G12: n.d. | H12: n.d. | I12: n.d. | J12: n.d. | K12: n.d. | L12: n.d. | N12: n.d. | P12: n.d. | Q12: n.d. | R12: n.d. | S12: n.d. | T12: n.d. | U12: n.d. | V12: n.d. | W12: n.d. | X12: n.d. | Y12: n.d. | Z12: n.d. | AA12: n.d. | AC12: n.d. | AD12: n.d. | AE12: n.d. | AF12: n.d. | AG12: n.d. | AH12: n.d. | AI12: n.d. | AJ12: n.d. | AK12: n.d. | AL12: n.d. | AN12: n.d. | AO12: n.d. | AP12: n.d. | AQ12: n.d. | AR12: n.d. | AS12: n.d. | AT12: n.d. | AU12: n.d. | AV12: n.d. | AW12: n.d. | AX12: n.d. | AY12: n.d. | AZ12: n.d. | BA12: n.d. | BB12: n.d. | BC12: n.d. | BD12: n.d. | BE12: n.d. | BF12: n.d. | BG12: n.d. | BH12: n.d. | BI12: n.d. | BJ12: n.d. | BK12: n.a. | BL12: n.d. | BM12: n.d. | BN12: n.a. | BO12: n.d. | BP12: n.a. | BQ12: n.d. | BR12: n.d. | BS12: n.d. | BT12: n.d. | BU12: n.d. | BV12: n.d. | BW12: n.d. | BX12: n.d. | BY12: n.d. | BZ12: n.d. | CA12: n.d. | CB12: n.d. | CC12: n.d. | CD12: n.d. | CE12: n.d. | CF12: n.d. | CG12: n.d. | CH12: n.d. | CI12: n.d. | CJ12: n.d. | CK12: n.d. | CL12: n.d. | CM12: n.d. | CN12: n.d. | CO12: n.d. | CP12: n.d. | CQ12: n.d. | CR12: n.d. | CS12: n.d. | CT12: n.d. | CU12: n.d. | CV12: n.d. | CW12: n.d. | CX12: n.d. | CY12: n.d. | CZ12: n.d. | DA12: n.d. | DB12: n.d. | DC12: n.d. | DD12: n.d. | DE12: n.d. | DF12: n.d. | DG12: n.d. | DH12: n.d.
A13: 1990 | B13: noviembre | C13: 1990-noviembre | D13: n.d. | E13: n.d. | F13: n.d. | G13: n.d. | H13: n.d. | I13: n.d. | J13: n.d. | K13: n.d. | L13: n.d. | N13: n.d. | P13: n.d. | Q13: n.d. | R13: n.d. | S13: n.d. | T13: n.d. | U13: n.d. | V13: n.d. | W13: n.d. | X13: n.d. | Y13: n.d. | Z13: n.d. | AA13: n.d. | AC13: n.d. | AD13: n.d. | AE13: n.d. | AF13: n.d. | AG13: n.d. | AH13: n.d. | AI13: n.d. | AJ13: n.d. | AK13: n.d. | AL13: n.d. | AN13: n.d. | AO13: n.d. | AP13: n.d. | AQ13: n.d. | AR13: n.d. | AS13: n.d. | AT13: n.d. | AU13: n.d. | AV13: n.d. | AW13: n.d. | AX13: n.d. | AY13: n.d. | AZ13: n.d. | BA13: n.d. | BB13: n.d. | BC13: n.d. | BD13: n.d. | BE13: n.d. | BF13: n.d. | BG13: n.d. | BH13: n.d. | BI13: n.d. | BJ13: n.d. | BK13: n.a. | BL13: n.d. | BM13: n.d. | BN13: n.a. | BO13: n.d. | BP13: n.a. | BQ13: n.d. | BR13: n.d. | BS13: n.d. | BT13: n.d. | BU13: n.d. | BV13: n.d. | BW13: n.d. | BX13: n.d. | BY13: n.d. | BZ13: n.d. | CA13: n.d. | CB13: n.d. | CC13: n.d. | CD13: n.d. | CE13: n.d. | CF13: n.d. | CG13: n.d. | CH13: n.d. | CI13: n.d. | CJ13: n.d. | CK13: n.d. | CL13: n.d. | CM13: n.d. | CN13: n.d. | CO13: n.d. | CP13: n.d. | CQ13: n.d. | CR13: n.d. | CS13: n.d. | CT13: n.d. | CU13: n.d. | CV13: n.d. | CW13: n.d. | CX13: n.d. | CY13: n.d. | CZ13: n.d. | DA13: n.d. | DB13: n.d. | DC13: n.d. | DD13: n.d. | DE13: n.d. | DF13: n.d. | DG13: n.d. | DH13: n.d.
A14: 1990 | B14: diciembre | C14: 1990-diciembre | D14: n.d. | E14: n.d. | F14: n.d. | G14: n.d. | H14: n.d. | I14: n.d. | J14: n.d. | K14: n.d. | L14: n.d. | M14: n.d. | N14: n.d. | O14: n.d. | P14: n.d. | Q14: n.d. | R14: n.d. | S14: n.d. | T14: n.d. | U14: n.d. | V14: n.d. | W14: n.d. | X14: n.d. | Y14: n.d. | Z14: n.d. | AA14: n.d. | AC14: n.d. | AD14: n.d. | AE14: n.d. | AF14: n.d. | AG14: n.d. | AH14: n.d. | AI14: n.d. | AJ14: n.d. | AK14: n.d. | AL14: n.d. | AN14: n.d. | AO14: n.d. | AP14: n.d. | AQ14: n.d. | AR14: n.d. | AS14: n.d. | AT14: n.d. | AU14: n.d. | AV14: n.d. | AW14: n.d. | AX14: n.d. | AY14: n.d. | AZ14: n.d. | BA14: n.d. | BB14: n.d. | BC14: n.d. | BD14: n.d. | BE14: n.d. | BF14: n.d. | BG14: n.d. | BH14: n.d. | BI14: n.d. | BJ14: n.d. | BK14: n.a. | BL14: n.d. | BM14: n.d. | BN14: n.a. | BO14: n.d. | BP14: n.a. | BQ14: n.d. | BR14: n.d. | BS14: n.d. | BT14: n.d. | BU14: n.d. | BV14: n.d. | BW14: n.d. | BX14: n.d. | BY14: n.d. | BZ14: n.d. | CA14: n.d. | CB14: n.d. | CC14: n.d. | CD14: n.d. | CE14: n.d. | CF14: n.d. | CG14: n.d. | CH14: n.d. | CI14: n.d. | CJ14: n.d. | CK14: n.d. | CL14: n.d. | CM14: n.d. | CN14: n.d. | CO14: n.d. | CP14: n.d. | CQ14: n.d. | CR14: n.d. | CS14: n.d. | CT14: n.d. | CU14: n.d. | CV14: n.d. | CW14: n.d. | CX14: n.d. | CY14: n.d. | CZ14: n.d. | DA14: n.d. | DB14: n.d. | DC14: n.d. | DD14: n.d. | DE14: n.d. | DF14: n.d. | DG14: n.d. | DH14: n.d.
A15: 1991 | B15: enero | C15: 1991-enero | D15: n.d. | E15: n.d. | F15: n.d. | G15: n.d. | H15: n.d. | I15: n.d. | J15: n.d. | K15: n.d. | L15: n.d. | N15: n.d. | P15: n.d. | Q15: n.d. | R15: n.d. | S15: n.d. | T15: n.d. | U15: n.d. | V15: n.d. | W15: n.d. | X15: n.d. | Y15: n.d. | Z15: n.d. | AA15: n.d. | AC15: n.d. | AD15: n.d. | AE15: n.d. | AF15: n.d. | AG15: n.d. | AH15: n.d. | AI15: n.d. | AJ15: n.d. | AK15: n.d. | AL15: n.d. | AN15: n.d. | AO15: n.d. | AP15: n.d. | AQ15: n.d. | AR15: n.d. | AS15: n.d. | AT15: n.d. | AU15: n.d. | AV15: n.d. | AW15: n.d. | AX15: n.d. | AY15: n.d. | AZ15: n.d. | BA15: n.d. | BB15: n.d. | BC15: n.d. | BD15: n.d. | BE15: n.d. | BF15: n.d. | BG15: n.d. | BH15: n.d. | BI15: n.d. | BJ15: n.d. | BK15: n.a. | BL15: n.d. | BM15: n.d. | BN15: n.a. | BO15: n.d. | BP15: n.a. | BQ15: n.d. | BR15: n.d. | BS15: n.d. | BT15: n.d. | BU15: n.d. | BV15: n.d. | BW15: n.d. | BX15: n.d. | BY15: n.d. | BZ15: n.d. | CA15: n.d. | CB15: n.d. | CC15: n.d. | CD15: n.d. | CE15: n.d. | CF15: n.d. | CG15: n.d. | CH15: n.d. | CI15: n.d. | CJ15: n.d. | CK15: n.d. | CL15: n.d. | CM15: n.d. | CN15: n.d. | CO15: n.d. | CP15: n.d. | CQ15: n.d. | CR15: n.d. | CS15: n.d. | CT15: n.d. | CU15: n.d. | CV15: n.d. | CW15: n.d. | CX15: n.d. | CY15: n.d. | CZ15: n.d. | DA15: n.d. | DB15: n.d. | DC15: n.d. | DD15: n.d. | DE15: n.d. | DF15: n.d. | DG15: n.d. | DH15: n.d.
A16: 1991 | B16: febrero | C16: 1991-febrero | D16: n.d. | E16: n.d. | F16: n.d. | G16: n.d. | H16: n.d. | I16: n.d. | J16: n.d. | K16: n.d. | L16: n.d. | N16: n.d. | P16: n.d. | Q16: n.d. | R16: n.d. | S16: n.d. | T16: n.d. | U16: n.d. | V16: n.d. | W16: n.d. | X16: n.d. | Y16: n.d. | Z16: n.d. | AA16: n.d. | AC16: n.d. | AD16: n.d. | AE16: n.d. | AF16: n.d. | AG16: n.d. | AH16: n.d. | AI16: n.d. | AJ16: n.d. | AK16: n.d. | AL16: n.d. | AN16: n.d. | AO16: n.d. | AP16: n.d. | AQ16: n.d. | AR16: n.d. | AS16: n.d. | AT16: n.d. | AU16: n.d. | AV16: n.d. | AW16: n.d. | AX16: n.d. | AY16: n.d. | AZ16: n.d. | BA16: n.d. | BB16: n.d. | BC16: n.d. | BD16: n.d. | BE16: n.d. | BF16: n.d. | BG16: n.d. | BH16: n.d. | BI16: n.d. | BJ16: n.d. | BK16: n.a. | BL16: n.d. | BM16: n.d. | BN16: n.a. | BO16: n.d. | BP16: n.a. | BQ16: n.d. | BR16: n.d. | BS16: n.d. | BT16: n.d. | BU16: n.d. | BV16: n.d. | BW16: n.d. | BX16: n.d. | BY16: n.d. | BZ16: n.d. | CA16: n.d. | CB16: n.d. | CC16: n.d. | CD16: n.d. | CE16: n.d. | CF16: n.d. | CG16: n.d. | CH16: n.d. | CI16: n.d. | CJ16: n.d. | CK16: n.d. | CL16: n.d. | CM16: n.d. | CN16: n.d. | CO16: n.d. | CP16: n.d. | CQ16: n.d. | CR16: n.d. | CS16: n.d. | CT16: n.d. | CU16: n.d. | CV16: n.d. | CW16: n.d. | CX16: n.d. | CY16: n.d. | CZ16: n.d. | DA16: n.d. | DB16: n.d. | DC16: n.d. | DD16: n.d. | DE16: n.d. | DF16: n.d. | DG16: n.d. | DH16: n.d.
A17: 1991 | B17: marzo | C17: 1991-marzo | D17: n.d. | E17: n.d. | F17: n.d. | G17: n.d. | H17: n.d. | I17: n.d. | J17: n.d. | K17: n.d. | L17: n.d. | N17: n.d. | P17: n.d. | Q17: n.d. | R17: n.d. | S17: n.d. | T17: n.d. | U17: n.d. | V17: n.d. | W17: n.d. | X17: n.d. | Y17: n.d. | Z17: n.d. | AA17: n.d. | AC17: n.d. | AD17: n.d. | AE17: n.d. | AF17: n.d. | AG17: n.d. | AH17: n.d. | AI17: n.d. | AJ17: n.d. | AK17: n.d. | AL17: n.d. | AN17: n.d. | AO17: n.d. | AP17: n.d. | AQ17: n.d. | AR17: n.d. | AS17: n.d. | AT17: n.d. | AU17: n.d. | AV17: n.d. | AW17: n.d. | AX17: n.d. | AY17: n.d. | AZ17: n.d. | BA17: n.d. | BB17: n.d. | BC17: n.d. | BD17: n.d. | BE17: n.d. | BF17: n.d. | BG17: n.d. | BH17: n.d. | BI17: n.d. | BJ17: n.d. | BK17: n.a. | BL17: n.d. | BM17: n.d. | BN17: n.a. | BO17: n.d. | BP17: n.a. | BQ17: n.d. | BR17: n.d. | BS17: n.d. | BT17: n.d. | BU17: n.d. | BV17: n.d. | BW17: n.d. | BX17: n.d. | BY17: n.d. | BZ17: n.d. | CA17: n.d. | CB17: n.d. | CC17: n.d. | CD17: n.d. | CE17: n.d. | CF17: n.d. | CG17: n.d. | CH17: n.d. | CI17: n.d. | CJ17: n.d. | CK17: n.d. | CL17: n.d. | CM17: n.d. | CN17: n.d. | CO17: n.d. | CP17: n.d. | CQ17: n.d. | CR17: n.d. | CS17: n.d. | CT17: n.d. | CU17: n.d. | CV17: n.d. | CW17: n.d. | CX17: n.d. | CY17: n.d. | CZ17: n.d. | DA17: n.d. | DB17: n.d. | DC17: n.d. | DD17: n.d. | DE17: n.d. | DF17: n.d. | DG17: n.d. | DH17: n.d.
A18: 1991 | B18: abril | C18: 1991-abril | D18: n.d. | E18: n.d. | F18: n.d. | G18: n.d. | H18: n.d. | I18: n.d. | J18: n.d. | K18: n.d. | L18: n.d. | N18: n.d. | P18: n.d. | Q18: n.d. | R18: n.d. | S18: n.d. | T18: n.d. | U18: n.d. | V18: n.d. | W18: n.d. | X18: n.d. | Y18: n.d. | Z18: n.d. | AA18: n.d. | AC18: n.d. | AD18: n.d. | AE18: n.d. | AF18: n.d. | AG18: n.d. | AH18: n.d. | AI18: n.d. | AJ18: n.d. | AK18: n.d. | AL18: n.d. | AN18: n.d. | AO18: n.d. | AP18: n.d. | AQ18: n.d. | AR18: n.d. | AS18: n.d. | AT18: n.d. | AU18: n.d. | AV18: n.d. | AW18: n.d. | AX18: n.d. | AY18: n.d. | AZ18: n.d. | BA18: n.d. | BB18: n.d. | BC18: n.d. | BD18: n.d. | BE18: n.d. | BF18: n.d. | BG18: n.d. | BH18: n.d. | BI18: n.d. | BJ18: n.d. | BK18: n.a. | BL18: n.d. | BM18: n.d. | BN18: n.a. | BO18: n.d. | BP18: n.a. | BQ18: n.d. | BR18: n.d. | BS18: n.d. | BT18: n.d. | BU18: n.d. | BV18: n.d. | BW18: n.d. | BX18: n.d. | BY18: n.d. | BZ18: n.d. | CA18: n.d. | CB18: n.d. | CC18: n.d. | CD18: n.d. | CE18: n.d. | CF18: n.d. | CG18: n.d. | CH18: n.d. | CI18: n.d. | CJ18: n.d. | CK18: n.d. | CL18: n.d. | CM18: n.d. | CN18: n.d. | CO18: n.d. | CP18: n.d. | CQ18: n.d. | CR18: n.d. | CS18: n.d. | CT18: n.d. | CU18: n.d. | CV18: n.d. | CW18: n.d. | CX18: n.d. | CY18: n.d. | CZ18: n.d. | DA18: n.d. | DB18: n.d. | DC18: n.d. | DD18: n.d. | DE18: n.d. | DF18: n.d. | DG18: n.d. | DH18: n.d.
A19: 1991 | B19: mayo | C19: 1991-mayo | D19: n.d. | E19: n.d. | F19: n.d. | G19: n.d. | H19: n.d. | I19: n.d. | J19: n.d. | K19: n.d. | L19: n.d. | N19: n.d. | P19: n.d. | Q19: n.d. | R19: n.d. | S19: n.d. | T19: n.d. | U19: n.d. | V19: n.d. | W19: n.d. | X19: n.d. | Y19: n.d. | Z19: n.d. | AA19: n.d. | AC19: n.d. | AD19: n.d. | AE19: n.d. | AF19: n.d. | AG19: n.d. | AH19: n.d. | AI19: n.d. | AJ19: n.d. | AK19: n.d. | AL19: n.d. | AN19: n.d. | AO19: n.d. | AP19: n.d. | AQ19: n.d. | AR19: n.d. | AS19: n.d. | AT19: n.d. | AU19: n.d. | AV19: n.d. | AW19: n.d. | AX19: n.d. | AY19: n.d. | AZ19: n.d. | BA19: n.d. | BB19: n.d. | BC19: n.d. | BD19: n.d. | BE19: n.d. | BF19: n.d. | BG19: n.d. | BH19: n.d. | BI19: n.d. | BJ19: n.d. | BK19: n.a. | BL19: n.d. | BM19: n.d. | BN19: n.a. | BO19: n.d. | BP19: n.a. | BQ19: n.d. | BR19: n.d. | BS19: n.d. | BT19: n.d. | BU19: n.d. | BV19: n.d. | BW19: n.d. | BX19: n.d. | BY19: n.d. | BZ19: n.d. | CA19: n.d. | CB19: n.d. | CC19: n.d. | CD19: n.d. | CE19: n.d. | CF19: n.d. | CG19: n.d. | CH19: n.d. | CI19: n.d. | CJ19: n.d. | CK19: n.d. | CL19: n.d. | CM19: n.d. | CN19: n.d. | CO19: n.d. | CP19: n.d. | CQ19: n.d. | CR19: n.d. | CS19: n.d. | CT19: n.d. | CU19: n.d. | CV19: n.d. | CW19: n.d. | CX19: n.d. | CY19: n.d. | CZ19: n.d. | DA19: n.d. | DB19: n.d. | DC19: n.d. | DD19: n.d. | DE19: n.d. | DF19: n.d. | DG19: n.d. | DH19: n.d.
A20: 1991 | B20: junio | C20: 1991-junio | D20: n.d. | E20: n.d. | F20: n.d. | G20: n.d. | H20: n.d. | I20: n.d. | J20: n.d. | K20: n.d. | L20: n.d. | N20: n.d. | P20: n.d. | Q20: n.d. | R20: n.d. | S20: n.d. | T20: n.d. | U20: n.d. | V20: n.d. | W20: n.d. | X20: n.d. | Y20: n.d. | Z20: n.d. | AA20: n.d. | AC20: n.d. | AD20: n.d. | AE20: n.d. | AF20: n.d. | AG20: n.d. | AH20: n.d. | AI20: n.d. | AJ20: n.d. | AK20: n.d. | AL20: n.d. | AN20: n.d. | AO20: n.d. | AP20: n.d. | AQ20: n.d. | AR20: n.d. | AS20: n.d. | AT20: n.d. | AU20: n.d. | AV20: n.d. | AW20: n.d. | AX20: n.d. | AY20: n.d. | AZ20: n.d. | BA20: n.d. | BB20: n.d. | BC20: n.d. | BD20: n.d. | BE20: n.d. | BF20: n.d. | BG20: n.d. | BH20: n.d. | BI20: n.d. | BJ20: n.d. | BK20: n.a. | BL20: n.d. | BM20: n.d. | BN20: n.a. | BO20: n.d. | BP20: n.a. | BQ20: n.d. | BR20: n.d. | BS20: n.d. | BT20: n.d. | BU20: n.d. | BV20: n.d. | BW20: n.d. | BX20: n.d. | BY20: n.d. | BZ20: n.d. | CA20: n.d. | CB20: n.d. | CC20: n.d. | CD20: n.d. | CE20: n.d. | CF20: n.d. | CG20: n.d. | CH20: n.d. | CI20: n.d. | CJ20: n.d. | CK20: n.d. | CL20: n.d. | CM20: n.d. | CN20: n.d. | CO20: n.d. | CP20: n.d. | CQ20: n.d. | CR20: n.d. | CS20: n.d. | CT20: n.d. | CU20: n.d. | CV20: n.d. | CW20: n.d. | CX20: n.d. | CY20: n.d. | CZ20: n.d. | DA20: n.d. | DB20: n.d. | DC20: n.d. | DD20: n.d. | DE20: n.d. | DF20: n.d. | DG20: n.d. | DH20: n.d.
A21: 1991 | B21: julio | C21: 1991-julio | D21: n.d. | E21: n.d. | F21: n.d. | G21: n.d. | H21: n.d. | I21: n.d. | J21: n.d. | K21: n.d. | L21: n.d. | N21: n.d. | P21: n.d. | Q21: n.d. | R21: n.d. | S21: n.d. | T21: n.d. | U21: n.d. | V21: n.d. | W21: n.d. | X21: n.d. | Y21: n.d. | Z21: n.d. | AA21: n.d. | AC21: n.d. | AD21: n.d. | AE21: n.d. | AF21: n.d. | AG21: n.d. | AH21: n.d. | AI21: n.d. | AJ21: n.d. | AK21: n.d. | AL21: n.d. | AN21: n.d. | AO21: n.d. | AP21: n.d. | AQ21: n.d. | AR21: n.d. | AS21: n.d. | AT21: n.d. | AU21: n.d. | AV21: n.d. | AW21: n.d. | AX21: n.d. | AY21: n.d. | AZ21: n.d. | BA21: n.d. | BB21: n.d. | BC21: n.d. | BD21: n.d. | BE21: n.d. | BF21: n.d. | BG21: n.d. | BH21: n.d. | BI21: n.d. | BJ21: n.d. | BK21: n.a. | BL21: n.d. | BM21: n.d. | BN21: n.a. | BO21: n.d. | BP21: n.a. | BQ21: n.d. | BR21: n.d. | BS21: n.d. | BT21: n.d. | BU21: n.d. | BV21: n.d. | BW21: n.d. | BX21: n.d. | BY21: n.d. | BZ21: n.d. | CA21: n.d. | CB21: n.d. | CC21: n.d. | CD21: n.d. | CE21: n.d. | CF21: n.d. | CG21: n.d. | CH21: n.d. | CI21: n.d. | CJ21: n.d. | CK21: n.d. | CL21: n.d. | CM21: n.d. | CN21: n.d. | CO21: n.d. | CP21: n.d. | CQ21: n.d. | CR21: n.d. | CS21: n.d. | CT21: n.d. | CU21: n.d. | CV21: n.d. | CW21: n.d. | CX21: n.d. | CY21: n.d. | CZ21: n.d. | DA21: n.d. | DB21: n.d. | DC21: n.d. | DD21: n.d. | DE21: n.d. | DF21: n.d. | DG21: n.d. | DH21: n.d.
A22: 1991 | B22: agosto | C22: 1991-agosto | D22: n.d. | E22: n.d. | F22: n.d. | G22: n.d. | H22: n.d. | I22: n.d. | J22: n.d. | K22: n.d. | L22: n.d. | N22: n.d. | P22: n.d. | Q22: n.d. | R22: n.d. | S22: n.d. | T22: n.d. | U22: n.d. | V22: n.d. | W22: n.d. | X22: n.d. | Y22: n.d. | Z22: n.d. | AA22: n.d. | AC22: n.d. | AD22: n.d. | AE22: n.d. | AF22: n.d. | AG22: n.d. | AH22: n.d. | AI22: n.d. | AJ22: n.d. | AK22: n.d. | AL22: n.d. | AN22: n.d. | AO22: n.d. | AP22: n.d. | AQ22: n.d. | AR22: n.d. | AS22: n.d. | AT22: n.d. | AU22: n.d. | AV22: n.d. | AW22: n.d. | AX22: n.d. | AY22: n.d. | AZ22: n.d. | BA22: n.d. | BB22: n.d. | BC22: n.d. | BD22: n.d. | BE22: n.d. | BF22: n.d. | BG22: n.d. | BH22: n.d. | BI22: n.d. | BJ22: n.d. | BK22: n.a. | BL22: n.d. | BM22: n.d. | BN22: n.a. | BO22: n.d. | BP22: n.a. | BQ22: n.d. | BR22: n.d. | BS22: n.d. | BT22: n.d. | BU22: n.d. | BV22: n.d. | BW22: n.d. | BX22: n.d. | BY22: n.d. | BZ22: n.d. | CA22: n.d. | CB22: n.d. | CC22: n.d. | CD22: n.d. | CE22: n.d. | CF22: n.d. | CG22: n.d. | CH22: n.d. | CI22: n.d. | CJ22: n.d. | CK22: n.d. | CL22: n.d. | CM22: n.d. | CN22: n.d. | CO22: n.d. | CP22: n.d. | CQ22: n.d. | CR22: n.d. | CS22: n.d. | CT22: n.d. | CU22: n.d. | CV22: n.d. | CW22: n.d. | CX22: n.d. | CY22: n.d. | CZ22: n.d. | DA22: n.d. | DB22: n.d. | DC22: n.d. | DD22: n.d. | DE22: n.d. | DF22: n.d. | DG22: n.d. | DH22: n.d.
A23: 1991 | B23: septiembre | C23: 1991-septiembre | D23: n.d. | E23: n.d. | F23: n.d. | G23: n.d. | H23: n.d. | I23: n.d. | J23: n.d. | K23: n.d. | L23: n.d. | N23: n.d. | P23: n.d. | Q23: n.d. | R23: n.d. | S23: n.d. | T23: n.d. | U23: n.d. | V23: n.d. | W23: n.d. | X23: n.d. | Y23: n.d. | Z23: n.d. | AA23: n.d. | AC23: n.d. | AD23: n.d. | AE23: n.d. | AF23: n.d. | AG23: n.d. | AH23: n.d. | AI23: n.d. | AJ23: n.d. | AK23: n.d. | AL23: n.d. | AN23: n.d. | AO23: n.d. | AP23: n.d. | AQ23: n.d. | AR23: n.d. | AS23: n.d. | AT23: n.d. | AU23: n.d. | AV23: n.d. | AW23: n.d. | AX23: n.d. | AY23: n.d. | AZ23: n.d. | BA23: n.d. | BB23: n.d. | BC23: n.d. | BD23: n.d. | BE23: n.d. | BF23: n.d. | BG23: n.d. | BH23: n.d. | BI23: n.d. | BJ23: n.d. | BK23: n.a. | BL23: n.d. | BM23: n.d. | BN23: n.a. | BO23: n.d. | BP23: n.a. | BQ23: n.d. | BR23: n.d. | BS23: n.d. | BT23: n.d. | BU23: n.d. | BV23: n.d. | BW23: n.d. | BX23: n.d. | BY23: n.d. | BZ23: n.d. | CA23: n.d. | CB23: n.d. | CC23: n.d. | CD23: n.d. | CE23: n.d. | CF23: n.d. | CG23: n.d. | CH23: n.d. | CI23: n.d. | CJ23: n.d. | CK23: n.d. | CL23: n.d. | CM23: n.d. | CN23: n.d. | CO23: n.d. | CP23: n.d. | CQ23: n.d. | CR23: n.d. | CS23: n.d. | CT23: n.d. | CU23: n.d. | CV23: n.d. | CW23: n.d. | CX23: n.d. | CY23: n.d. | CZ23: n.d. | DA23: n.d. | DB23: n.d. | DC23: n.d. | DD23: n.d. | DE23: n.d. | DF23: n.d. | DG23: n.d. | DH23: n.d.
A24: 1991 | B24: octubre | C24: 1991-octubre | D24: n.d. | E24: n.d. | F24: n.d. | G24: n.d. | H24: n.d. | I24: n.d. | J24: n.d. | K24: n.d. | L24: n.d. | N24: n.d. | P24: n.d. | Q24: n.d. | R24: n.d. | S24: n.d. | T24: n.d. | U24: n.d. | V24: n.d. | W24: n.d. | X24: n.d. | Y24: n.d. | Z24: n.d. | AA24: n.d. | AC24: n.d. | AD24: n.d. | AE24: n.d. | AF24: n.d. | AG24: n.d. | AH24: n.d. | AI24: n.d. | AJ24: n.d. | AK24: n.d. | AL24: n.d. | AN24: n.d. | AO24: n.d. | AP24: n.d. | AQ24: n.d. | AR24: n.d. | AS24: n.d. | AT24: n.d. | AU24: n.d. | AV24: n.d. | AW24: n.d. | AX24: n.d. | AY24: n.d. | AZ24: n.d. | BA24: n.d. | BB24: n.d. | BC24: n.d. | BD24: n.d. | BE24: n.d. | BF24: n.d. | BG24: n.d. | BH24: n.d. | BI24: n.d. | BJ24: n.d. | BK24: n.a. | BL24: n.d. | BM24: n.d. | BN24: n.a. | BO24: n.d. | BP24: n.a. | BQ24: n.d. | BR24: n.d. | BS24: n.d. | BT24: n.d. | BU24: n.d. | BV24: n.d. | BW24: n.d. | BX24: n.d. | BY24: n.d. | BZ24: n.d. | CA24: n.d. | CB24: n.d. | CC24: n.d. | CD24: n.d. | CE24: n.d. | CF24: n.d. | CG24: n.d. | CH24: n.d. | CI24: n.d. | CJ24: n.d. | CK24: n.d. | CL24: n.d. | CM24: n.d. | CN24: n.d. | CO24: n.d. | CP24: n.d. | CQ24: n.d. | CR24: n.d. | CS24: n.d. | CT24: n.d. | CU24: n.d. | CV24: n.d. | CW24: n.d. | CX24: n.d. | CY24: n.d. | CZ24: n.d. | DA24: n.d. | DB24: n.d. | DC24: n.d. | DD24: n.d. | DE24: n.d. | DF24: n.d. | DG24: n.d. | DH24: n.d.
A25: 1991 | B25: noviembre | C25: 1991-noviembre | D25: n.d. | E25: n.d. | F25: n.d. | G25: n.d. | H25: n.d. | I25: n.d. | J25: n.d. | K25: n.d. | L25: n.d. | N25: n.d. | P25: n.d. | Q25: n.d. | R25: n.d. | S25: n.d. | T25: n.d. | U25: n.d. | V25: n.d. | W25: n.d. | X25: n.d. | Y25: n.d. | Z25: n.d. | AA25: n.d. | AC25: n.d. | AD25: n.d. | AE25: n.d. | AF25: n.d. | AG25: n.d. | AH25: n.d. | AI25: n.d. | AJ25: n.d. | AK25: n.d. | AL25: n.d. | AN25: n.d. | AO25: n.d. | AP25: n.d. | AQ25: n.d. | AR25: n.d. | AS25: n.d. | AT25: n.d. | AU25: n.d. | AV25: n.d. | AW25: n.d. | AX25: n.d. | AY25: n.d. | AZ25: n.d. | BA25: n.d. | BB25: n.d. | BC25: n.d. | BD25: n.d. | BE25: n.d. | BF25: n.d. | BG25: n.d. | BH25: n.d. | BI25: n.d. | BJ25: n.d. | BK25: n.a. | BL25: n.d. | BM25: n.d. | BN25: n.a. | BO25: n.d. | BP25: n.a. | BQ25: n.d. | BR25: n.d. | BS25: n.d. | BT25: n.d. | BU25: n.d. | BV25: n.d. | BW25: n.d. | BX25: n.d. | BY25: n.d. | BZ25: n.d. | CA25: n.d. | CB25: n.d. | CC25: n.d. | CD25: n.d. | CE25: n.d. | CF25: n.d. | CG25: n.d. | CH25: n.d. | CI25: n.d. | CJ25: n.d. | CK25: n.d. | CL25: n.d. | CM25: n.d. | CN25: n.d. | CO25: n.d. | CP25: n.d. | CQ25: n.d. | CR25: n.d. | CS25: n.d. | CT25: n.d. | CU25: n.d. | CV25: n.d. | CW25: n.d. | CX25: n.d. | CY25: n.d. | CZ25: n.d. | DA25: n.d. | DB25: n.d. | DC25: n.d. | DD25: n.d. | DE25: n.d. | DF25: n.d. | DG25: n.d. | DH25: n.d.
A26: 1991 | B26: diciembre | C26: 1991-diciembre | D26: n.d. | E26: n.d. | F26: n.d. | G26: n.d. | H26: n.d. | I26: n.d. | J26: n.d. | K26: n.d. | L26: n.d. | M26: n.d. | N26: n.d. | O26: n.d. | P26: n.d. | Q26: n.d. | R26: n.d. | S26: n.d. | T26: n.d. | U26: n.d. | V26: n.d. | W26: n.d. | X26: n.d. | Y26: n.d. | Z26: n.d. | AA26: n.d. | AC26: n.d. | AD26: n.d. | AE26: n.d. | AF26: n.d. | AG26: n.d. | AH26: n.d. | AI26: n.d. | AJ26: n.d. | AK26: n.d. | AL26: n.d. | AN26: n.d. | AO26: n.d. | AP26: n.d. | AQ26: n.d. | AR26: n.d. | AS26: n.d. | AT26: n.d. | AU26: n.d. | AV26: n.d. | AW26: n.d. | AX26: n.d. | AY26: n.d. | AZ26: n.d. | BA26: n.d. | BB26: n.d. | BC26: n.d. | BD26: n.d. | BE26: n.d. | BF26: n.d. | BG26: n.d. | BH26: n.d. | BI26: n.d. | BJ26: n.d. | BK26: n.a. | BL26: n.d. | BM26: n.d. | BN26: n.a. | BO26: n.d. | BP26: n.a. | BQ26: n.d. | BR26: n.d. | BS26: n.d. | BT26: n.d. | BU26: n.d. | BV26: n.d. | BW26: n.d. | BX26: n.d. | BY26: n.d. | BZ26: n.d. | CA26: n.d. | CB26: n.d. | CC26: n.d. | CD26: n.d. | CE26: n.d. | CF26: n.d. | CG26: n.d. | CH26: n.d. | CI26: n.d. | CJ26: n.d. | CK26: n.d. | CL26: n.d. | CM26: n.d. | CN26: n.d. | CO26: n.d. | CP26: n.d. | CQ26: n.d. | CR26: n.d. | CS26: n.d. | CT26: n.d. | CU26: n.d. | CV26: n.d. | CW26: n.d. | CX26: n.d. | CY26: n.d. | CZ26: n.d. | DA26: n.d. | DB26: n.d. | DC26: n.d. | DD26: n.d. | DE26: n.d. | DF26: n.d. | DG26: n.d. | DH26: n.d.
A27: 1992 | B27: enero | C27: 1992-enero | D27: n.d. | E27: n.d. | F27: n.d. | G27: n.d. | H27: n.d. | I27: n.d. | J27: n.d. | K27: n.d. | L27: n.d. | N27: n.d. | P27: n.d. | Q27: n.d. | R27: n.d. | S27: n.d. | T27: n.d. | U27: n.d. | V27: n.d. | W27: n.d. | X27: n.d. | Y27: n.d. | Z27: n.d. | AA27: n.d. | AC27: n.d. | AD27: n.d. | AE27: n.d. | AF27: n.d. | AG27: n.d. | AH27: n.d. | AI27: n.d. | AJ27: n.d. | AK27: n.d. | AL27: n.d. | AN27: n.d. | AO27: n.d. | AP27: n.d. | AQ27: n.d. | AR27: n.d. | AS27: n.d. | AT27: n.d. | AU27: n.d. | AV27: n.d. | AW27: n.d. | AX27: n.d. | AY27: n.d. | AZ27: n.d. | BA27: n.d. | BB27: n.d. | BC27: n.d. | BD27: n.d. | BE27: n.d. | BF27: n.d. | BG27: n.d. | BH27: n.d. | BI27: n.d. | BJ27: n.d. | BK27: n.a. | BL27: n.d. | BM27: n.d. | BN27: n.a. | BO27: n.d. | BP27: n.a. | BQ27: n.d. | BR27: n.d. | BS27: n.d. | BT27: n.d. | BU27: n.d. | BV27: n.d. | BW27: n.d. | BX27: n.d. | BY27: n.d. | BZ27: n.d. | CA27: n.d. | CB27: n.d. | CC27: n.d. | CD27: n.d. | CE27: n.d. | CF27: n.d. | CG27: n.d. | CH27: n.d. | CI27: n.d. | CJ27: n.d. | CK27: n.d. | CL27: n.d. | CM27: n.d. | CN27: n.d. | CO27: n.d. | CP27: n.d. | CQ27: n.d. | CR27: n.d. | CS27: n.d. | CT27: n.d. | CU27: n.d. | CV27: n.d. | CW27: n.d. | CX27: n.d. | CY27: n.d. | CZ27: n.d. | DA27: n.d. | DB27: n.d. | DC27: n.d. | DD27: n.d. | DE27: n.d. | DF27: n.d. | DG27: n.d. | DH27: n.d.
A28: 1992 | B28: febrero | C28: 1992-febrero | D28: n.d. | E28: n.d. | F28: n.d. | G28: n.d. | H28: n.d. | I28: n.d. | J28: n.d. | K28: n.d. | L28: n.d. | N28: n.d. | P28: n.d. | Q28: n.d. | R28: n.d. | S28: n.d. | T28: n.d. | U28: n.d. | V28: n.d. | W28: n.d. | X28: n.d. | Y28: n.d. | Z28: n.d. | AA28: n.d. | AC28: n.d. | AD28: n.d. | AE28: n.d. | AF28: n.d. | AG28: n.d. | AH28: n.d. | AI28: n.d. | AJ28: n.d. | AK28: n.d. | AL28: n.d. | AN28: n.d. | AO28: n.d. | AP28: n.d. | AQ28: n.d. | AR28: n.d. | AS28: n.d. | AT28: n.d. | AU28: n.d. | AV28: n.d. | AW28: n.d. | AX28: n.d. | AY28: n.d. | AZ28: n.d. | BA28: n.d. | BB28: n.d. | BC28: n.d. | BD28: n.d. | BE28: n.d. | BF28: n.d. | BG28: n.d. | BH28: n.d. | BI28: n.d. | BJ28: n.d. | BK28: n.a. | BL28: n.d. | BM28: n.d. | BN28: n.a. | BO28: n.d. | BP28: n.a. | BQ28: n.d. | BR28: n.d. | BS28: n.d. | BT28: n.d. | BU28: n.d. | BV28: n.d. | BW28: n.d. | BX28: n.d. | BY28: n.d. | BZ28: n.d. | CA28: n.d. | CB28: n.d. | CC28: n.d. | CD28: n.d. | CE28: n.d. | CF28: n.d. | CG28: n.d. | CH28: n.d. | CI28: n.d. | CJ28: n.d. | CK28: n.d. | CL28: n.d. | CM28: n.d. | CN28: n.d. | CO28: n.d. | CP28: n.d. | CQ28: n.d. | CR28: n.d. | CS28: n.d. | CT28: n.d. | CU28: n.d. | CV28: n.d. | CW28: n.d. | CX28: n.d. | CY28: n.d. | CZ28: n.d. | DA28: n.d. | DB28: n.d. | DC28: n.d. | DD28: n.d. | DE28: n.d. | DF28: n.d. | DG28: n.d. | DH28: n.d.
A29: 1992 | B29: marzo | C29: 1992-marzo | D29: n.d. | E29: n.d. | F29: n.d. | G29: n.d. | H29: n.d. | I29: n.d. | J29: n.d. | K29: n.d. | L29: n.d. | N29: n.d. | P29: n.d. | Q29: n.d. | R29: n.d. | S29: n.d. | T29: n.d. | U29: n.d. | V29: n.d. | W29: n.d. | X29: n.d. | Y29: n.d. | Z29: n.d. | AA29: n.d. | AC29: n.d. | AD29: n.d. | AE29: n.d. | AF29: n.d. | AG29: n.d. | AH29: n.d. | AI29: n.d. | AJ29: n.d. | AK29: n.d. | AL29: n.d. | AN29: n.d. | AO29: n.d. | AP29: n.d. | AQ29: n.d. | AR29: n.d. | AS29: n.d. | AT29: n.d. | AU29: n.d. | AV29: n.d. | AW29: n.d. | AX29: n.d. | AY29: n.d. | AZ29: n.d. | BA29: n.d. | BB29: n.d. | BC29: n.d. | BD29: n.d. | BE29: n.d. | BF29: n.d. | BG29: n.d. | BH29: n.d. | BI29: n.d. | BJ29: n.d. | BK29: n.a. | BL29: n.d. | BM29: n.d. | BN29: n.a. | BO29: n.d. | BP29: n.a. | BQ29: n.d. | BR29: n.d. | BS29: n.d. | BT29: n.d. | BU29: n.d. | BV29: n.d. | BW29: n.d. | BX29: n.d. | BY29: n.d. | BZ29: n.d. | CA29: n.d. | CB29: n.d. | CC29: n.d. | CD29: n.d. | CE29: n.d. | CF29: n.d. | CG29: n.d. | CH29: n.d. | CI29: n.d. | CJ29: n.d. | CK29: n.d. | CL29: n.d. | CM29: n.d. | CN29: n.d. | CO29: n.d. | CP29: n.d. | CQ29: n.d. | CR29: n.d. | CS29: n.d. | CT29: n.d. | CU29: n.d. | CV29: n.d. | CW29: n.d. | CX29: n.d. | CY29: n.d. | CZ29: n.d. | DA29: n.d. | DB29: n.d. | DC29: n.d. | DD29: n.d. | DE29: n.d. | DF29: n.d. | DG29: n.d. | DH29: n.d.
A30: 1992 | B30: abril | C30: 1992-abril | D30: n.d. | E30: n.d. | F30: n.d. | G30: n.d. | H30: n.d. | I30: n.d. | J30: n.d. | K30: n.d. | L30: n.d. | N30: n.d. | P30: n.d. | Q30: n.d. | R30: n.d. | S30: n.d. | T30: n.d. | U30: n.d. | V30: n.d. | W30: n.d. | X30: n.d. | Y30: n.d. | Z30: n.d. | AA30: n.d. | AC30: n.d. | AD30: n.d. | AE30: n.d. | AF30: n.d. | AG30: n.d. | AH30: n.d. | AI30: n.d. | AJ30: n.d. | AK30: n.d. | AL30: n.d. | AN30: n.d. | AO30: n.d. | AP30: n.d. | AQ30: n.d. | AR30: n.d. | AS30: n.d. | AT30: n.d. | AU30: n.d. | AV30: n.d. | AW30: n.d. | AX30: n.d. | AY30: n.d. | AZ30: n.d. | BA30: n.d. | BB30: n.d. | BC30: n.d. | BD30: n.d. | BE30: n.d. | BF30: n.d. | BG30: n.d. | BH30: n.d. | BI30: n.d. | BJ30: n.d. | BK30: n.a. | BL30: n.d. | BM30: n.d. | BN30: n.a. | BO30: n.d. | BP30: n.a. | BQ30: n.d. | BR30: n.d. | BS30: n.d. | BT30: n.d. | BU30: n.d. | BV30: n.d. | BW30: n.d. | BX30: n.d. | BY30: n.d. | BZ30: n.d. | CA30: n.d. | CB30: n.d. | CC30: n.d. | CD30: n.d. | CE30: n.d. | CF30: n.d. | CG30: n.d. | CH30: n.d. | CI30: n.d. | CJ30: n.d. | CK30: n.d. | CL30: n.d. | CM30: n.d. | CN30: n.d. | CO30: n.d. | CP30: n.d. | CQ30: n.d. | CR30: n.d. | CS30: n.d. | CT30: n.d. | CU30: n.d. | CV30: n.d. | CW30: n.d. | CX30: n.d. | CY30: n.d. | CZ30: n.d. | DA30: n.d. | DB30: n.d. | DC30: n.d. | DD30: n.d. | DE30: n.d. | DF30: n.d. | DG30: n.d. | DH30: n.d.
A31: 1992 | B31: mayo | C31: 1992-mayo | D31: n.d. | E31: n.d. | F31: n.d. | G31: n.d. | H31: n.d. | I31: n.d. | J31: n.d. | K31: n.d. | L31: n.d. | N31: n.d. | P31: n.d. | Q31: n.d. | R31: n.d. | S31: n.d. | T31: n.d. | U31: n.d. | V31: n.d. | W31: n.d. | X31: n.d. | Y31: n.d. | Z31: n.d. | AA31: n.d. | AC31: n.d. | AD31: n.d. | AE31: n.d. | AF31: n.d. | AG31: n.d. | AH31: n.d. | AI31: n.d. | AJ31: n.d. | AK31: n.d. | AL31: n.d. | AN31: n.d. | AO31: n.d. | AP31: n.d. | AQ31: n.d. | AR31: n.d. | AS31: n.d. | AT31: n.d. | AU31: n.d. | AV31: n.d. | AW31: n.d. | AX31: n.d. | AY31: n.d. | AZ31: n.d. | BA31: n.d. | BB31: n.d. | BC31: n.d. | BD31: n.d. | BE31: n.d. | BF31: n.d. | BG31: n.d. | BH31: n.d. | BI31: n.d. | BJ31: n.d. | BK31: n.a. | BL31: n.d. | BM31: n.d. | BN31: n.a. | BO31: n.d. | BP31: n.a. | BQ31: n.d. | BR31: n.d. | BS31: n.d. | BT31: n.d. | BU31: n.d. | BV31: n.d. | BW31: n.d. | BX31: n.d. | BY31: n.d. | BZ31: n.d. | CA31: n.d. | CB31: n.d. | CC31: n.d. | CD31: n.d. | CE31: n.d. | CF31: n.d. | CG31: n.d. | CH31: n.d. | CI31: n.d. | CJ31: n.d. | CK31: n.d. | CL31: n.d. | CM31: n.d. | CN31: n.d. | CO31: n.d. | CP31: n.d. | CQ31: n.d. | CR31: n.d. | CS31: n.d. | CT31: n.d. | CU31: n.d. | CV31: n.d. | CW31: n.d. | CX31: n.d. | CY31: n.d. | CZ31: n.d. | DA31: n.d. | DB31: n.d. | DC31: n.d. | DD31: n.d. | DE31: n.d. | DF31: n.d. | DG31: n.d. | DH31: n.d.
A32: 1992 | B32: junio | C32: 1992-junio | D32: n.d. | E32: n.d. | F32: n.d. | G32: n.d. | H32: n.d. | I32: n.d. | J32: n.d. | K32: n.d. | L32: n.d. | N32: n.d. | P32: n.d. | Q32: n.d. | R32: n.d. | S32: n.d. | T32: n.d. | U32: n.d. | V32: n.d. | W32: n.d. | X32: n.d. | Y32: n.d. | Z32: n.d. | AA32: n.d. | AC32: n.d. | AD32: n.d. | AE32: n.d. | AF32: n.d. | AG32: n.d. | AH32: n.d. | AI32: n.d. | AJ32: n.d. | AK32: n.d. | AL32: n.d. | AN32: n.d. | AO32: n.d. | AP32: n.d. | AQ32: n.d. | AR32: n.d. | AS32: n.d. | AT32: n.d. | AU32: n.d. | AV32: n.d. | AW32: n.d. | AX32: n.d. | AY32: n.d. | AZ32: n.d. | BA32: n.d. | BB32: n.d. | BC32: n.d. | BD32: n.d. | BE32: n.d. | BF32: n.d. | BG32: n.d. | BH32: n.d. | BI32: n.d. | BJ32: n.d. | BK32: n.a. | BL32: n.d. | BM32: n.d. | BN32: n.a. | BO32: n.d. | BP32: n.a. | BQ32: n.d. | BR32: n.d. | BS32: n.d. | BT32: n.d. | BU32: n.d. | BV32: n.d. | BW32: n.d. | BX32: n.d. | BY32: n.d. | BZ32: n.d. | CA32: n.d. | CB32: n.d. | CC32: n.d. | CD32: n.d. | CE32: n.d. | CF32: n.d. | CG32: n.d. | CH32: n.d. | CI32: n.d. | CJ32: n.d. | CK32: n.d. | CL32: n.d. | CM32: n.d. | CN32: n.d. | CO32: n.d. | CP32: n.d. | CQ32: n.d. | CR32: n.d. | CS32: n.d. | CT32: n.d. | CU32: n.d. | CV32: n.d. | CW32: n.d. | CX32: n.d. | CY32: n.d. | CZ32: n.d. | DA32: n.d. | DB32: n.d. | DC32: n.d. | DD32: n.d. | DE32: n.d. | DF32: n.d. | DG32: n.d. | DH32: n.d.
A33: 1992 | B33: julio | C33: 1992-julio | D33: n.d. | E33: n.d. | F33: n.d. | G33: n.d. | H33: n.d. | I33: n.d. | J33: n.d. | K33: n.d. | L33: n.d. | N33: n.d. | P33: n.d. | Q33: n.d. | R33: n.d. | S33: n.d. | T33: n.d. | U33: n.d. | V33: n.d. | W33: n.d. | X33: n.d. | Y33: n.d. | Z33: n.d. | AA33: n.d. | AC33: n.d. | AD33: n.d. | AE33: n.d. | AF33: n.d. | AG33: n.d. | AH33: n.d. | AI33: n.d. | AJ33: n.d. | AK33: n.d. | AL33: n.d. | AN33: n.d. | AO33: n.d. | AP33: n.d. | AQ33: n.d. | AR33: n.d. | AS33: n.d. | AT33: n.d. | AU33: n.d. | AV33: n.d. | AW33: n.d. | AX33: n.d. | AY33: n.d. | AZ33: n.d. | BA33: n.d. | BB33: n.d. | BC33: n.d. | BD33: n.d. | BE33: n.d. | BF33: n.d. | BG33: n.d. | BH33: n.d. | BI33: n.d. | BJ33: n.d. | BK33: n.a. | BL33: n.d. | BM33: n.d. | BN33: n.a. | BO33: n.d. | BP33: n.a. | BQ33: n.d. | BR33: n.d. | BS33: n.d. | BT33: n.d. | BU33: n.d. | BV33: n.d. | BW33: n.d. | BX33: n.d. | BY33: n.d. | BZ33: n.d. | CA33: n.d. | CB33: n.d. | CC33: n.d. | CD33: n.d. | CE33: n.d. | CF33: n.d. | CG33: n.d. | CH33: n.d. | CI33: n.d. | CJ33: n.d. | CK33: n.d. | CL33: n.d. | CM33: n.d. | CN33: n.d. | CO33: n.d. | CP33: n.d. | CQ33: n.d. | CR33: n.d. | CS33: n.d. | CT33: n.d. | CU33: n.d. | CV33: n.d. | CW33: n.d. | CX33: n.d. | CY33: n.d. | CZ33: n.d. | DA33: n.d. | DB33: n.d. | DC33: n.d. | DD33: n.d. | DE33: n.d. | DF33: n.d. | DG33: n.d. | DH33: n.d.
A34: 1992 | B34: agosto | C34: 1992-agosto | D34: n.d. | E34: n.d. | F34: n.d. | G34: n.d. | H34: n.d. | I34: n.d. | J34: n.d. | K34: n.d. | L34: n.d. | N34: n.d. | P34: n.d. | Q34: n.d. | R34: n.d. | S34: n.d. | T34: n.d. | U34: n.d. | V34: n.d. | W34: n.d. | X34: n.d. | Y34: n.d. | Z34: n.d. | AA34: n.d. | AC34: n.d. | AD34: n.d. | AE34: n.d. | AF34: n.d. | AG34: n.d. | AH34: n.d. | AI34: n.d. | AJ34: n.d. | AK34: n.d. | AL34: n.d. | AN34: n.d. | AO34: n.d. | AP34: n.d. | AQ34: n.d. | AR34: n.d. | AS34: n.d. | AT34: n.d. | AU34: n.d. | AV34: n.d. | AW34: n.d. | AX34: n.d. | AY34: n.d. | AZ34: n.d. | BA34: n.d. | BB34: n.d. | BC34: n.d. | BD34: n.d. | BE34: n.d. | BF34: n.d. | BG34: n.d. | BH34: n.d. | BI34: n.d. | BJ34: n.d. | BK34: n.a. | BL34: n.d. | BM34: n.d. | BN34: n.a. | BO34: n.d. | BP34: n.a. | BQ34: n.d. | BR34: n.d. | BS34: n.d. | BT34: n.d. | BU34: n.d. | BV34: n.d. | BW34: n.d. | BX34: n.d. | BY34: n.d. | BZ34: n.d. | CA34: n.d. | CB34: n.d. | CC34: n.d. | CD34: n.d. | CE34: n.d. | CF34: n.d. | CG34: n.d. | CH34: n.d. | CI34: n.d. | CJ34: n.d. | CK34: n.d. | CL34: n.d. | CM34: n.d. | CN34: n.d. | CO34: n.d. | CP34: n.d. | CQ34: n.d. | CR34: n.d. | CS34: n.d. | CT34: n.d. | CU34: n.d. | CV34: n.d. | CW34: n.d. | CX34: n.d. | CY34: n.d. | CZ34: n.d. | DA34: n.d. | DB34: n.d. | DC34: n.d. | DD34: n.d. | DE34: n.d. | DF34: n.d. | DG34: n.d. | DH34: n.d.
A35: 1992 | B35: septiembre | C35: 1992-septiembre | D35: n.d. | E35: n.d. | F35: n.d. | G35: n.d. | H35: n.d. | I35: n.d. | J35: n.d. | K35: n.d. | L35: n.d. | N35: n.d. | P35: n.d. | Q35: n.d. | R35: n.d. | S35: n.d. | T35: n.d. | U35: n.d. | V35: n.d. | W35: n.d. | X35: n.d. | Y35: n.d. | Z35: n.d. | AA35: n.d. | AC35: n.d. | AD35: n.d. | AE35: n.d. | AF35: n.d. | AG35: n.d. | AH35: n.d. | AI35: n.d. | AJ35: n.d. | AK35: n.d. | AL35: n.d. | AN35: n.d. | AO35: n.d. | AP35: n.d. | AQ35: n.d. | AR35: n.d. | AS35: n.d. | AT35: n.d. | AU35: n.d. | AV35: n.d. | AW35: n.d. | AX35: n.d. | AY35: n.d. | AZ35: n.d. | BA35: n.d. | BB35: n.d. | BC35: n.d. | BD35: n.d. | BE35: n.d. | BF35: n.d. | BG35: n.d. | BH35: n.d. | BI35: n.d. | BJ35: n.d. | BK35: n.a. | BL35: n.d. | BM35: n.d. | BN35: n.a. | BO35: n.d. | BP35: n.a. | BQ35: n.d. | BR35: n.d. | BS35: n.d. | BT35: n.d. | BU35: n.d. | BV35: n.d. | BW35: n.d. | BX35: n.d. | BY35: n.d. | BZ35: n.d. | CA35: n.d. | CB35: n.d. | CC35: n.d. | CD35: n.d. | CE35: n.d. | CF35: n.d. | CG35: n.d. | CH35: n.d. | CI35: n.d. | CJ35: n.d. | CK35: n.d. | CL35: n.d. | CM35: n.d. | CN35: n.d. | CO35: n.d. | CP35: n.d. | CQ35: n.d. | CR35: n.d. | CS35: n.d. | CT35: n.d. | CU35: n.d. | CV35: n.d. | CW35: n.d. | CX35: n.d. | CY35: n.d. | CZ35: n.d. | DA35: n.d. | DB35: n.d. | DC35: n.d. | DD35: n.d. | DE35: n.d. | DF35: n.d. | DG35: n.d. | DH35: n.d.
A36: 1992 | B36: octubre | C36: 1992-octubre | D36: n.d. | E36: n.d. | F36: n.d. | G36: n.d. | H36: n.d. | I36: n.d. | J36: n.d. | K36: n.d. | L36: n.d. | N36: n.d. | P36: n.d. | Q36: n.d. | R36: n.d. | S36: n.d. | T36: n.d. | U36: n.d. | V36: n.d. | W36: n.d. | X36: n.d. | Y36: n.d. | Z36: n.d. | AA36: n.d. | AC36: n.d. | AD36: n.d. | AE36: n.d. | AF36: n.d. | AG36: n.d. | AH36: n.d. | AI36: n.d. | AJ36: n.d. | AK36: n.d. | AL36: n.d. | AN36: n.d. | AO36: n.d. | AP36: n.d. | AQ36: n.d. | AR36: n.d. | AS36: n.d. | AT36: n.d. | AU36: n.d. | AV36: n.d. | AW36: n.d. | AX36: n.d. | AY36: n.d. | AZ36: n.d. | BA36: n.d. | BB36: n.d. | BC36: n.d. | BD36: n.d. | BE36: n.d. | BF36: n.d. | BG36: n.d. | BH36: n.d. | BI36: n.d. | BJ36: n.d. | BK36: n.a. | BL36: n.d. | BM36: n.d. | BN36: n.a. | BO36: n.d. | BP36: n.a. | BQ36: n.d. | BR36: n.d. | BS36: n.d. | BT36: n.d. | BU36: n.d. | BV36: n.d. | BW36: n.d. | BX36: n.d. | BY36: n.d. | BZ36: n.d. | CA36: n.d. | CB36: n.d. | CC36: n.d. | CD36: n.d. | CE36: n.d. | CF36: n.d. | CG36: n.d. | CH36: n.d. | CI36: n.d. | CJ36: n.d. | CK36: n.d. | CL36: n.d. | CM36: n.d. | CN36: n.d. | CO36: n.d. | CP36: n.d. | CQ36: n.d. | CR36: n.d. | CS36: n.d. | CT36: n.d. | CU36: n.d. | CV36: n.d. | CW36: n.d. | CX36: n.d. | CY36: n.d. | CZ36: n.d. | DA36: n.d. | DB36: n.d. | DC36: n.d. | DD36: n.d. | DE36: n.d. | DF36: n.d. | DG36: n.d. | DH36: n.d.
A37: 1992 | B37: noviembre | C37: 1992-noviembre | D37: n.d. | E37: n.d. | F37: n.d. | G37: n.d. | H37: n.d. | I37: n.d. | J37: n.d. | K37: n.d. | L37: n.d. | N37: n.d. | P37: n.d. | Q37: n.d. | R37: n.d. | S37: n.d. | T37: n.d. | U37: n.d. | V37: n.d. | W37: n.d. | X37: n.d. | Y37: n.d. | Z37: n.d. | AA37: n.d. | AC37: n.d. | AD37: n.d. | AE37: n.d. | AF37: n.d. | AG37: n.d. | AH37: n.d. | AI37: n.d. | AJ37: n.d. | AK37: n.d. | AL37: n.d. | AN37: n.d. | AO37: n.d. | AP37: n.d. | AQ37: n.d. | AR37: n.d. | AS37: n.d. | AT37: n.d. | AU37: n.d. | AV37: n.d. | AW37: n.d. | AX37: n.d. | AY37: n.d. | AZ37: n.d. | BA37: n.d. | BB37: n.d. | BC37: n.d. | BD37: n.d. | BE37: n.d. | BF37: n.d. | BG37: n.d. | BH37: n.d. | BI37: n.d. | BJ37: n.d. | BK37: n.a. | BL37: n.d. | BM37: n.d. | BN37: n.a. | BO37: n.d. | BP37: n.a. | BQ37: n.d. | BR37: n.d. | BS37: n.d. | BT37: n.d. | BU37: n.d. | BV37: n.d. | BW37: n.d. | BX37: n.d. | BY37: n.d. | BZ37: n.d. | CA37: n.d. | CB37: n.d. | CC37: n.d. | CD37: n.d. | CE37: n.d. | CF37: n.d. | CG37: n.d. | CH37: n.d. | CI37: n.d. | CJ37: n.d. | CK37: n.d. | CL37: n.d. | CM37: n.d. | CN37: n.d. | CO37: n.d. | CP37: n.d. | CQ37: n.d. | CR37: n.d. | CS37: n.d. | CT37: n.d. | CU37: n.d. | CV37: n.d. | CW37: n.d. | CX37: n.d. | CY37: n.d. | CZ37: n.d. | DA37: n.d. | DB37: n.d. | DC37: n.d. | DD37: n.d. | DE37: n.d. | DF37: n.d. | DG37: n.d. | DH37: n.d.
A38: 1992 | B38: diciembre | C38: 1992-diciembre | D38: n.d. | E38: n.d. | F38: n.d. | G38: n.d. | H38: n.d. | I38: n.d. | J38: n.d. | K38: n.d. | L38: n.d. | M38: n.d. | N38: n.d. | O38: n.d. | P38: n.d. | Q38: n.d. | R38: n.d. | S38: n.d. | T38: n.d. | U38: n.d. | V38: n.d. | W38: n.d. | X38: n.d. | Y38: n.d. | Z38: n.d. | AA38: n.d. | AC38: n.d. | AD38: n.d. | AE38: n.d. | AF38: n.d. | AG38: n.d. | AH38: n.d. | AI38: n.d. | AJ38: n.d. | AK38: n.d. | AL38: n.d. | AN38: n.d. | AO38: n.d. | AP38: n.d. | AQ38: n.d. | AR38: n.d. | AS38: n.d. | AT38: n.d. | AU38: n.d. | AV38: n.d. | AW38: n.d. | AX38: n.d. | AY38: n.d. | AZ38: n.d. | BA38: n.d. | BB38: n.d. | BC38: n.d. | BD38: n.d. | BE38: n.d. | BF38: n.d. | BG38: n.d. | BH38: n.d. | BI38: n.d. | BJ38: n.d. | BK38: n.a. | BL38: n.d. | BM38: n.d. | BN38: n.a. | BO38: n.d. | BP38: n.a. | BQ38: n.d. | BR38: n.d. | BS38: n.d. | BT38: n.d. | BU38: n.d. | BV38: n.d. | BW38: n.d. | BX38: n.d. | BY38: n.d. | BZ38: n.d. | CA38: n.d. | CB38: n.d. | CC38: n.d. | CD38: n.d. | CE38: n.d. | CF38: n.d. | CG38: n.d. | CH38: n.d. | CI38: n.d. | CJ38: n.d. | CK38: n.d. | CL38: n.d. | CM38: n.d. | CN38: n.d. | CO38: n.d. | CP38: n.d. | CQ38: n.d. | CR38: n.d. | CS38: n.d. | CT38: n.d. | CU38: n.d. | CV38: n.d. | CW38: n.d. | CX38: n.d. | CY38: n.d. | CZ38: n.d. | DA38: n.d. | DB38: n.d. | DC38: n.d. | DD38: n.d. | DE38: n.d. | DF38: n.d. | DG38: n.d. | DH38: n.d.
A39: 1993 | B39: enero | C39: 1993-enero | D39: 12.5123616 | E39: n.d. | F39: 10.90628786 | G39: n.d. | H39: n.d. | I39: n.d. | J39: n.d. | K39: n.d. | L39: n.d. | N39: n.d. | P39: n.d. | Q39: n.d. | R39: n.d. | S39: n.d. | T39: n.d. | U39: n.d. | V39: n.d. | W39: n.d. | X39: n.d. | Y39: n.d. | Z39: n.d. | AA39: n.d. | AC39: n.d. | AD39: n.d. | AE39: n.d. | AF39: n.d. | AG39: n.d. | AH39: n.d. | AI39: n.d. | AJ39: n.d. | AK39: n.d. | AL39: n.d. | AN39: n.d. | AO39: n.d. | AP39: n.d. | AQ39: n.d. | AR39: n.d. | AS39: n.d. | AT39: n.d. | AU39: n.d. | AV39: n.d. | AW39: n.d. | AX39: n.d. | AY39: n.d. | AZ39: n.d. | BA39: n.d. | BB39: n.d. | BC39: n.d. | BD39: n.d. | BE39: n.d. | BF39: n.d. | BG39: n.d. | BH39: n.d. | BI39: n.d. | BJ39: n.d. | BK39: n.a. | BL39: n.d. | BM39: n.d. | BN39: n.a. | BO39: n.d. | BP39: n.a. | BQ39: n.d. | BR39: n.d. | BS39: n.d. | BT39: n.d. | BU39: n.d. | BV39: n.d. | BW39: n.d. | BX39: n.d. | BY39: n.d. | BZ39: n.d. | CA39: n.d. | CB39: n.d. | CC39: n.d. | CD39: n.d. | CE39: n.d. | CF39: n.d. | CG39: n.d. | CH39: n.d. | CI39: n.d. | CJ39: n.d. | CK39: n.d. | CL39: n.d. | CM39: n.d. | CN39: n.d. | CO39: n.d. | CP39: n.d. | CQ39: n.d. | CR39: n.d. | CS39: n.d. | CT39: n.d. | CU39: n.d. | CV39: n.d. | CW39: n.d. | CX39: n.d. | CY39: n.d. | CZ39: n.d. | DA39: n.d. | DB39: n.d. | DC39: n.d. | DD39: n.d. | DE39: n.d. | DF39: n.d. | DG39: n.d. | DH39: n.d.
A40: 1993 | B40: febrero | C40: 1993-febrero | D40: 12.85395084 | E40: n.d. | F40: 11.16035053 | G40: n.d. | H40: n.d. | I40: n.d. | J40: n.d. | K40: n.d. | L40: n.d. | N40: n.d. | P40: n.d. | Q40: n.d. | R40: n.d. | S40: n.d. | T40: n.d. | U40: n.d. | V40: n.d. | W40: n.d. | X40: n.d. | Y40: n.d. | Z40: n.d. | AA40: n.d. | AC40: n.d. | AD40: n.d. | AE40: n.d. | AF40: n.d. | AG40: n.d. | AH40: n.d. | AI40: n.d. | AJ40: n.d. | AK40: n.d. | AL40: n.d. | AN40: n.d. | AO40: n.d. | AP40: n.d. | AQ40: n.d. | AR40: n.d. | AS40: n.d. | AT40: n.d. | AU40: n.d. | AV40: n.d. | AW40: n.d. | AX40: n.d. | AY40: n.d. | AZ40: n.d. | BA40: n.d. | BB40: n.d. | BC40: n.d. | BD40: n.d. | BE40: n.d. | BF40: n.d. | BG40: n.d. | BH40: n.d. | BI40: n.d. | BJ40: n.d. | BK40: n.a. | BL40: n.d. | BM40: n.d. | BN40: n.a. | BO40: n.d. | BP40: n.a. | BQ40: n.d. | BR40: n.d. | BS40: n.d. | BT40: n.d. | BU40: n.d. | BV40: n.d. | BW40: n.d. | BX40: n.d. | BY40: n.d. | BZ40: n.d. | CA40: n.d. | CB40: n.d. | CC40: n.d. | CD40: n.d. | CE40: n.d. | CF40: n.d. | CG40: n.d. | CH40: n.d. | CI40: n.d. | CJ40: n.d. | CK40: n.d. | CL40: n.d. | CM40: n.d. | CN40: n.d. | CO40: n.d. | CP40: n.d. | CQ40: n.d. | CR40: n.d. | CS40: n.d. | CT40: n.d. | CU40: n.d. | CV40: n.d. | CW40: n.d. | CX40: n.d. | CY40: n.d. | CZ40: n.d. | DA40: n.d. | DB40: n.d. | DC40: n.d. | DD40: n.d. | DE40: n.d. | DF40: n.d. | DG40: n.d. | DH40: n.d.
A41: 1993 | B41: marzo | C41: 1993-marzo | D41: 12.38632241 | E41: n.d. | F41: 10.74887473 | G41: n.d. | H41: n.d. | I41: n.d. | J41: n.d. | K41: n.d. | L41: n.d. | N41: n.d. | P41: n.d. | Q41: n.d. | R41: n.d. | S41: n.d. | T41: n.d. | U41: n.d. | V41: n.d. | W41: n.d. | X41: n.d. | Y41: n.d. | Z41: n.d. | AA41: n.d. | AC41: n.d. | AD41: n.d. | AE41: n.d. | AF41: n.d. | AG41: n.d. | AH41: n.d. | AI41: n.d. | AJ41: n.d. | AK41: n.d. | AL41: n.d. | AN41: n.d. | AO41: n.d. | AP41: n.d. | AQ41: n.d. | AR41: n.d. | AS41: n.d. | AT41: n.d. | AU41: n.d. | AV41: n.d. | AW41: n.d. | AX41: n.d. | AY41: n.d. | AZ41: n.d. | BA41: n.d. | BB41: n.d. | BC41: n.d. | BD41: n.d. | BE41: n.d. | BF41: n.d. | BG41: n.d. | BH41: n.d. | BI41: n.d. | BJ41: n.d. | BK41: n.a. | BL41: n.d. | BM41: n.d. | BN41: n.a. | BO41: n.d. | BP41: n.a. | BQ41: n.d. | BR41: n.d. | BS41: n.d. | BT41: n.d. | BU41: n.d. | BV41: n.d. | BW41: n.d. | BX41: n.d. | BY41: n.d. | BZ41: n.d. | CA41: n.d. | CB41: n.d. | CC41: n.d. | CD41: n.d. | CE41: n.d. | CF41: n.d. | CG41: n.d. | CH41: n.d. | CI41: n.d. | CJ41: n.d. | CK41: n.d. | CL41: n.d. | CM41: n.d. | CN41: n.d. | CO41: n.d. | CP41: n.d. | CQ41: n.d. | CR41: n.d. | CS41: n.d. | CT41: n.d. | CU41: n.d. | CV41: n.d. | CW41: n.d. | CX41: n.d. | CY41: n.d. | CZ41: n.d. | DA41: n.d. | DB41: n.d. | DC41: n.d. | DD41: n.d. | DE41: n.d. | DF41: n.d. | DG41: n.d. | DH41: n.d.
A42: 1993 | B42: abril | C42: 1993-abril | D42: 12.08790791 | E42: n.d. | F42: 10.51562481 | G42: n.d. | H42: n.d. | I42: n.d. | J42: n.d. | K42: n.d. | L42: n.d. | N42: n.d. | P42: n.d. | Q42: n.d. | R42: n.d. | S42: n.d. | T42: n.d. | U42: n.d. | V42: n.d. | W42: n.d. | X42: n.d. | Y42: n.d. | Z42: n.d. | AA42: n.d. | AC42: n.d. | AD42: n.d. | AE42: n.d. | AF42: n.d. | AG42: n.d. | AH42: n.d. | AI42: n.d. | AJ42: n.d. | AK42: n.d. | AL42: n.d. | AN42: n.d. | AO42: n.d. | AP42: n.d. | AQ42: n.d. | AR42: n.d. | AS42: n.d. | AT42: n.d. | AU42: n.d. | AV42: n.d. | AW42: n.d. | AX42: n.d. | AY42: n.d. | AZ42: n.d. | BA42: n.d. | BB42: n.d. | BC42: n.d. | BD42: n.d. | BE42: n.d. | BF42: n.d. | BG42: n.d. | BH42: n.d. | BI42: n.d. | BJ42: n.d. | BK42: n.a. | BL42: n.d. | BM42: n.d. | BN42: n.a. | BO42: n.d. | BP42: n.a. | BQ42: n.d. | BR42: n.d. | BS42: n.d. | BT42: n.d. | BU42: n.d. | BV42: n.d. | BW42: n.d. | BX42: n.d. | BY42: n.d. | BZ42: n.d. | CA42: n.d. | CB42: n.d. | CC42: n.d. | CD42: n.d. | CE42: n.d. | CF42: n.d. | CG42: n.d. | CH42: n.d. | CI42: n.d. | CJ42: n.d. | CK42: n.d. | CL42: n.d. | CM42: n.d. | CN42: n.d. | CO42: n.d. | CP42: n.d. | CQ42: n.d. | CR42: n.d. | CS42: n.d. | CT42: n.d. | CU42: n.d. | CV42: n.d. | CW42: n.d. | CX42: n.d. | CY42: n.d. | CZ42: n.d. | DA42: n.d. | DB42: n.d. | DC42: n.d. | DD42: n.d. | DE42: n.d. | DF42: n.d. | DG42: n.d. | DH42: n.d.
A43: 1993 | B43: mayo | C43: 1993-mayo | D43: 12.2513397 | E43: n.d. | F43: 10.59365105 | G43: n.d. | H43: n.d. | I43: n.d. | J43: n.d. | K43: n.d. | L43: n.d. | N43: n.d. | P43: n.d. | Q43: n.d. | R43: n.d. | S43: n.d. | T43: n.d. | U43: n.d. | V43: n.d. | W43: n.d. | X43: n.d. | Y43: n.d. | Z43: n.d. | AA43: n.d. | AC43: n.d. | AD43: n.d. | AE43: n.d. | AF43: n.d. | AG43: n.d. | AH43: n.d. | AI43: n.d. | AJ43: n.d. | AK43: n.d. | AL43: n.d. | AN43: n.d. | AO43: n.d. | AP43: n.d. | AQ43: n.d. | AR43: n.d. | AS43: n.d. | AT43: n.d. | AU43: n.d. | AV43: n.d. | AW43: n.d. | AX43: n.d. | AY43: n.d. | AZ43: n.d. | BA43: n.d. | BB43: n.d. | BC43: n.d. | BD43: n.d. | BE43: n.d. | BF43: n.d. | BG43: n.d. | BH43: n.d. | BI43: n.d. | BJ43: n.d. | BK43: n.a. | BL43: n.d. | BM43: n.d. | BN43: n.a. | BO43: n.d. | BP43: n.a. | BQ43: n.d. | BR43: n.d. | BS43: n.d. | BT43: n.d. | BU43: n.d. | BV43: n.d. | BW43: n.d. | BX43: n.d. | BY43: n.d. | BZ43: n.d. | CA43: n.d. | CB43: n.d. | CC43: n.d. | CD43: n.d. | CE43: n.d. | CF43: n.d. | CG43: n.d. | CH43: n.d. | CI43: n.d. | CJ43: n.d. | CK43: n.d. | CL43: n.d. | CM43: n.d. | CN43: n.d. | CO43: n.d. | CP43: n.d. | CQ43: n.d. | CR43: n.d. | CS43: n.d. | CT43: n.d. | CU43: n.d. | CV43: n.d. | CW43: n.d. | CX43: n.d. | CY43: n.d. | CZ43: n.d. | DA43: n.d. | DB43: n.d. | DC43: n.d. | DD43: n.d. | DE43: n.d. | DF43: n.d. | DG43: n.d. | DH43: n.d.
A44: 1993 | B44: junio | C44: 1993-junio | D44: 12.50697207 | E44: n.d. | F44: 10.80352204 | G44: n.d. | H44: n.d. | I44: n.d. | J44: n.d. | K44: n.d. | L44: n.d. | N44: n.d. | P44: n.d. | Q44: n.d. | R44: n.d. | S44: n.d. | T44: n.d. | U44: n.d. | V44: n.d. | W44: n.d. | X44: n.d. | Y44: n.d. | Z44: n.d. | AA44: n.d. | AC44: n.d. | AD44: n.d. | AE44: n.d. | AF44: n.d. | AG44: n.d. | AH44: n.d. | AI44: n.d. | AJ44: n.d. | AK44: n.d. | AL44: n.d. | AN44: n.d. | AO44: n.d. | AP44: n.d. | AQ44: n.d. | AR44: n.d. | AS44: n.d. | AT44: n.d. | AU44: n.d. | AV44: n.d. | AW44: n.d. | AX44: n.d. | AY44: n.d. | AZ44: n.d. | BA44: n.d. | BB44: n.d. | BC44: n.d. | BD44: n.d. | BE44: n.d. | BF44: n.d. | BG44: n.d. | BH44: n.d. | BI44: n.d. | BJ44: n.d. | BK44: n.a. | BL44: n.d. | BM44: n.d. | BN44: n.a. | BO44: n.d. | BP44: n.a. | BQ44: n.d. | BR44: n.d. | BS44: n.d. | BT44: n.d. | BU44: n.d. | BV44: n.d. | BW44: n.d. | BX44: n.d. | BY44: n.d. | BZ44: n.d. | CA44: n.d. | CB44: n.d. | CC44: n.d. | CD44: n.d. | CE44: n.d. | CF44: n.d. | CG44: n.d. | CH44: n.d. | CI44: n.d. | CJ44: n.d. | CK44: n.d. | CL44: n.d. | CM44: n.d. | CN44: n.d. | CO44: n.d. | CP44: n.d. | CQ44: n.d. | CR44: n.d. | CS44: n.d. | CT44: n.d. | CU44: n.d. | CV44: n.d. | CW44: n.d. | CX44: n.d. | CY44: n.d. | CZ44: n.d. | DA44: n.d. | DB44: n.d. | DC44: n.d. | DD44: n.d. | DE44: n.d. | DF44: n.d. | DG44: n.d. | DH44: n.d.
A45: 1993 | B45: julio | C45: 1993-julio | D45: 13.55426063 | E45: n.d. | F45: 11.73318825 | G45: n.d. | H45: n.d. | I45: n.d. | J45: n.d. | K45: n.d. | L45: n.d. | N45: n.d. | P45: n.d. | Q45: n.d. | R45: n.d. | S45: n.d. | T45: n.d. | U45: n.d. | V45: n.d. | W45: n.d. | X45: n.d. | Y45: n.d. | Z45: n.d. | AA45: n.d. | AC45: n.d. | AD45: n.d. | AE45: n.d. | AF45: n.d. | AG45: n.d. | AH45: n.d. | AI45: n.d. | AJ45: n.d. | AK45: n.d. | AL45: n.d. | AN45: n.d. | AO45: n.d. | AP45: n.d. | AQ45: n.d. | AR45: n.d. | AS45: n.d. | AT45: n.d. | AU45: n.d. | AV45: n.d. | AW45: n.d. | AX45: n.d. | AY45: n.d. | AZ45: n.d. | BA45: n.d. | BB45: n.d. | BC45: n.d. | BD45: n.d. | BE45: n.d. | BF45: n.d. | BG45: n.d. | BH45: n.d. | BI45: n.d. | BJ45: n.d. | BK45: n.a. | BL45: n.d. | BM45: n.d. | BN45: n.a. | BO45: n.d. | BP45: n.a. | BQ45: n.d. | BR45: n.d. | BS45: n.d. | BT45: n.d. | BU45: n.d. | BV45: n.d. | BW45: n.d. | BX45: n.d. | BY45: n.d. | BZ45: n.d. | CA45: n.d. | CB45: n.d. | CC45: n.d. | CD45: n.d. | CE45: n.d. | CF45: n.d. | CG45: n.d. | CH45: n.d. | CI45: n.d. | CJ45: n.d. | CK45: n.d. | CL45: n.d. | CM45: n.d. | CN45: n.d. | CO45: n.d. | CP45: n.d. | CQ45: n.d. | CR45: n.d. | CS45: n.d. | CT45: n.d. | CU45: n.d. | CV45: n.d. | CW45: n.d. | CX45: n.d. | CY45: n.d. | CZ45: n.d. | DA45: n.d. | DB45: n.d. | DC45: n.d. | DD45: n.d. | DE45: n.d. | DF45: n.d. | DG45: n.d. | DH45: n.d.
A46: 1993 | B46: agosto | C46: 1993-agosto | D46: 12.77983686 | E46: n.d. | F46: 11.03700427 | G46: n.d. | H46: n.d. | I46: n.d. | J46: n.d. | K46: n.d. | L46: n.d. | N46: n.d. | P46: n.d. | Q46: n.d. | R46: n.d. | S46: n.d. | T46: n.d. | U46: n.d. | V46: n.d. | W46: n.d. | X46: n.d. | Y46: n.d. | Z46: n.d. | AA46: n.d. | AC46: n.d. | AD46: n.d. | AE46: n.d. | AF46: n.d. | AG46: n.d. | AH46: n.d. | AI46: n.d. | AJ46: n.d. | AK46: n.d. | AL46: n.d. | AN46: n.d. | AO46: n.d. | AP46: n.d. | AQ46: n.d. | AR46: n.d. | AS46: n.d. | AT46: n.d. | AU46: n.d. | AV46: n.d. | AW46: n.d. | AX46: n.d. | AY46: n.d. | AZ46: n.d. | BA46: n.d. | BB46: n.d. | BC46: n.d. | BD46: n.d. | BE46: n.d. | BF46: n.d. | BG46: n.d. | BH46: n.d. | BI46: n.d. | BJ46: n.d. | BK46: n.a. | BL46: n.d. | BM46: n.d. | BN46: n.a. | BO46: n.d. | BP46: n.a. | BQ46: n.d. | BR46: n.d. | BS46: n.d. | BT46: n.d. | BU46: n.d. | BV46: n.d. | BW46: n.d. | BX46: n.d. | BY46: n.d. | BZ46: n.d. | CA46: n.d. | CB46: n.d. | CC46: n.d. | CD46: n.d. | CE46: n.d. | CF46: n.d. | CG46: n.d. | CH46: n.d. | CI46: n.d. | CJ46: n.d. | CK46: n.d. | CL46: n.d. | CM46: n.d. | CN46: n.d. | CO46: n.d. | CP46: n.d. | CQ46: n.d. | CR46: n.d. | CS46: n.d. | CT46: n.d. | CU46: n.d. | CV46: n.d. | CW46: n.d. | CX46: n.d. | CY46: n.d. | CZ46: n.d. | DA46: n.d. | DB46: n.d. | DC46: n.d. | DD46: n.d. | DE46: n.d. | DF46: n.d. | DG46: n.d. | DH46: n.d.
A47: 1993 | B47: septiembre | C47: 1993-septiembre | D47: 11.52450848 | E47: n.d. | F47: 10.04840717 | G47: n.d. | H47: n.d. | I47: n.d. | J47: n.d. | K47: n.d. | L47: n.d. | N47: n.d. | P47: n.d. | Q47: n.d. | R47: n.d. | S47: n.d. | T47: n.d. | U47: n.d. | V47: n.d. | W47: n.d. | X47: n.d. | Y47: n.d. | Z47: n.d. | AA47: n.d. | AC47: n.d. | AD47: n.d. | AE47: n.d. | AF47: n.d. | AG47: n.d. | AH47: n.d. | AI47: n.d. | AJ47: n.d. | AK47: n.d. | AL47: n.d. | AN47: n.d. | AO47: n.d. | AP47: n.d. | AQ47: n.d. | AR47: n.d. | AS47: n.d. | AT47: n.d. | AU47: n.d. | AV47: n.d. | AW47: n.d. | AX47: n.d. | AY47: n.d. | AZ47: n.d. | BA47: n.d. | BB47: n.d. | BC47: n.d. | BD47: n.d. | BE47: n.d. | BF47: n.d. | BG47: n.d. | BH47: n.d. | BI47: n.d. | BJ47: n.d. | BK47: n.a. | BL47: n.d. | BM47: n.d. | BN47: n.a. | BO47: n.d. | BP47: n.a. | BQ47: n.d. | BR47: n.d. | BS47: n.d. | BT47: n.d. | BU47: n.d. | BV47: n.d. | BW47: n.d. | BX47: n.d. | BY47: n.d. | BZ47: n.d. | CA47: n.d. | CB47: n.d. | CC47: n.d. | CD47: n.d. | CE47: n.d. | CF47: n.d. | CG47: n.d. | CH47: n.d. | CI47: n.d. | CJ47: n.d. | CK47: n.d. | CL47: n.d. | CM47: n.d. | CN47: n.d. | CO47: n.d. | CP47: n.d. | CQ47: n.d. | CR47: n.d. | CS47: n.d. | CT47: n.d. | CU47: n.d. | CV47: n.d. | CW47: n.d. | CX47: n.d. | CY47: n.d. | CZ47: n.d. | DA47: n.d. | DB47: n.d. | DC47: n.d. | DD47: n.d. | DE47: n.d. | DF47: n.d. | DG47: n.d. | DH47: n.d.
A48: 1993 | B48: octubre | C48: 1993-octubre | D48: 11.35986204 | E48: n.d. | F48: 10.10827914 | G48: n.d. | H48: n.d. | I48: n.d. | J48: n.d. | K48: n.d. | L48: n.d. | N48: n.d. | P48: n.d. | Q48: n.d. | R48: n.d. | S48: n.d. | T48: n.d. | U48: n.d. | V48: n.d. | W48: n.d. | X48: n.d. | Y48: n.d. | Z48: n.d. | AA48: n.d. | AC48: n.d. | AD48: n.d. | AE48: n.d. | AF48: n.d. | AG48: n.d. | AH48: n.d. | AI48: n.d. | AJ48: n.d. | AK48: n.d. | AL48: n.d. | AN48: n.d. | AO48: n.d. | AP48: n.d. | AQ48: n.d. | AR48: n.d. | AS48: n.d. | AT48: n.d. | AU48: n.d. | AV48: n.d. | AW48: n.d. | AX48: n.d. | AY48: n.d. | AZ48: n.d. | BA48: n.d. | BB48: n.d. | BC48: n.d. | BD48: n.d. | BE48: n.d. | BF48: n.d. | BG48: n.d. | BH48: n.d. | BI48: n.d. | BJ48: n.d. | BK48: n.a. | BL48: n.d. | BM48: n.d. | BN48: n.a. | BO48: n.d. | BP48: n.a. | BQ48: n.d. | BR48: n.d. | BS48: n.d. | BT48: n.d. | BU48: n.d. | BV48: n.d. | BW48: n.d. | BX48: n.d. | BY48: n.d. | BZ48: n.d. | CA48: n.d. | CB48: n.d. | CC48: n.d. | CD48: n.d. | CE48: n.d. | CF48: n.d. | CG48: n.d. | CH48: n.d. | CI48: n.d. | CJ48: n.d. | CK48: n.d. | CL48: n.d. | CM48: n.d. | CN48: n.d. | CO48: n.d. | CP48: n.d. | CQ48: n.d. | CR48: n.d. | CS48: n.d. | CT48: n.d. | CU48: n.d. | CV48: n.d. | CW48: n.d. | CX48: n.d. | CY48: n.d. | CZ48: n.d. | DA48: n.d. | DB48: n.d. | DC48: n.d. | DD48: n.d. | DE48: n.d. | DF48: n.d. | DG48: n.d. | DH48: n.d.
A49: 1993 | B49: noviembre | C49: 1993-noviembre | D49: 10.65830566 | E49: n.d. | F49: 9.457259859 | G49: n.d. | H49: n.d. | I49: n.d. | J49: n.d. | K49: n.d. | L49: n.d. | N49: n.d. | P49: n.d. | Q49: n.d. | R49: n.d. | S49: n.d. | T49: n.d. | U49: n.d. | V49: n.d. | W49: n.d. | X49: n.d. | Y49: n.d. | Z49: n.d. | AA49: n.d. | AC49: n.d. | AD49: n.d. | AE49: n.d. | AF49: n.d. | AG49: n.d. | AH49: n.d. | AI49: n.d. | AJ49: n.d. | AK49: n.d. | AL49: n.d. | AN49: n.d. | AO49: n.d. | AP49: n.d. | AQ49: n.d. | AR49: n.d. | AS49: n.d. | AT49: n.d. | AU49: n.d. | AV49: n.d. | AW49: n.d. | AX49: n.d. | AY49: n.d. | AZ49: n.d. | BA49: n.d. | BB49: n.d. | BC49: n.d. | BD49: n.d. | BE49: n.d. | BF49: n.d. | BG49: n.d. | BH49: n.d. | BI49: n.d. | BJ49: n.d. | BK49: n.a. | BL49: n.d. | BM49: n.d. | BN49: n.a. | BO49: n.d. | BP49: n.a. | BQ49: n.d. | BR49: n.d. | BS49: n.d. | BT49: n.d. | BU49: n.d. | BV49: n.d. | BW49: n.d. | BX49: n.d. | BY49: n.d. | BZ49: n.d. | CA49: n.d. | CB49: n.d. | CC49: n.d. | CD49: n.d. | CE49: n.d. | CF49: n.d. | CG49: n.d. | CH49: n.d. | CI49: n.d. | CJ49: n.d. | CK49: n.d. | CL49: n.d. | CM49: n.d. | CN49: n.d. | CO49: n.d. | CP49: n.d. | CQ49: n.d. | CR49: n.d. | CS49: n.d. | CT49: n.d. | CU49: n.d. | CV49: n.d. | CW49: n.d. | CX49: n.d. | CY49: n.d. | CZ49: n.d. | DA49: n.d. | DB49: n.d. | DC49: n.d. | DD49: n.d. | DE49: n.d. | DF49: n.d. | DG49: n.d. | DH49: n.d.
A50: 1993 | B50: diciembre | C50: 1993-diciembre | D50: 10.0249582 | E50: n.d. | F50: 8.877038862 | G50: n.d. | H50: n.d. | I50: n.d. | J50: n.d. | K50: n.d. | L50: n.d. | M50: n.d. | N50: n.d. | O50: n.d. | P50: n.d. | Q50: n.d. | R50: n.d. | S50: n.d. | T50: n.d. | U50: n.d. | V50: n.d. | W50: n.d. | X50: n.d. | Y50: n.d. | Z50: n.d. | AA50: n.d. | AC50: n.d. | AD50: n.d. | AE50: n.d. | AF50: n.d. | AG50: n.d. | AH50: n.d. | AI50: n.d. | AJ50: n.d. | AK50: n.d. | AL50: n.d. | AN50: n.d. | AO50: n.d. | AP50: n.d. | AQ50: n.d. | AR50: n.d. | AS50: n.d. | AT50: n.d. | AU50: n.d. | AV50: n.d. | AW50: n.d. | AX50: n.d. | AY50: n.d. | AZ50: n.d. | BA50: n.d. | BB50: n.d. | BC50: n.d. | BD50: n.d. | BE50: n.d. | BF50: n.d. | BG50: n.d. | BH50: n.d. | BI50: n.d. | BJ50: n.d. | BK50: n.a. | BL50: n.d. | BM50: n.d. | BN50: n.a. | BO50: n.d. | BP50: n.a. | BQ50: n.d. | BR50: n.d. | BS50: n.d. | BT50: n.d. | BU50: n.d. | BV50: n.d. | BW50: n.d. | BX50: n.d. | BY50: n.d. | BZ50: n.d. | CA50: n.d. | CB50: n.d. | CC50: n.d. | CD50: n.d. | CE50: n.d. | CF50: n.d. | CG50: n.d. | CH50: n.d. | CI50: n.d. | CJ50: n.d. | CK50: n.d. | CL50: n.d. | CM50: n.d. | CN50: n.d. | CO50: n.d. | CP50: n.d. | CQ50: n.d. | CR50: n.d. | CS50: n.d. | CT50: n.d. | CU50: n.d. | CV50: n.d. | CW50: n.d. | CX50: n.d. | CY50: n.d. | CZ50: n.d. | DA50: n.d. | DB50: n.d. | DC50: n.d. | DD50: n.d. | DE50: n.d. | DF50: n.d. | DG50: n.d. | DH50: n.d.
A51: 1994 | B51: enero | C51: 1994-enero | D51: 9.635975223 | E51: n.d. | F51: 8.592917226 | G51: n.d. | H51: n.d. | I51: n.d. | J51: n.d. | K51: n.d. | L51: n.d. | N51: n.d. | P51: n.d. | Q51: n.d. | R51: n.d. | S51: n.d. | T51: n.d. | U51: n.d. | V51: n.d. | W51: n.d. | X51: n.d. | Y51: n.d. | Z51: n.d. | AA51: n.d. | AC51: n.d. | AD51: n.d. | AE51: n.d. | AF51: n.d. | AG51: n.d. | AH51: n.d. | AI51: n.d. | AJ51: n.d. | AK51: n.d. | AL51: n.d. | AN51: n.d. | AO51: n.d. | AP51: n.d. | AQ51: n.d. | AR51: n.d. | AS51: n.d. | AT51: n.d. | AU51: n.d. | AV51: n.d. | AW51: n.d. | AX51: n.d. | AY51: n.d. | AZ51: n.d. | BA51: n.d. | BB51: n.d. | BC51: n.d. | BD51: n.d. | BE51: n.d. | BF51: n.d. | BG51: n.d. | BH51: n.d. | BI51: n.d. | BJ51: n.d. | BK51: n.a. | BL51: n.d. | BM51: n.d. | BN51: n.a. | BO51: n.d. | BP51: n.a. | BQ51: n.d. | BR51: n.d. | BS51: n.d. | BT51: n.d. | BU51: n.d. | BV51: n.d. | BW51: n.d. | BX51: n.d. | BY51: n.d. | BZ51: n.d. | CA51: n.d. | CB51: n.d. | CC51: n.d. | CD51: n.d. | CE51: n.d. | CF51: n.d. | CG51: n.d. | CH51: n.d. | CI51: n.d. | CJ51: n.d. | CK51: n.d. | CL51: n.d. | CM51: n.d. | CN51: n.d. | CO51: n.d. | CP51: n.d. | CQ51: n.d. | CR51: n.d. | CS51: n.d. | CT51: n.d. | CU51: n.d. | CV51: n.d. | CW51: n.d. | CX51: n.d. | CY51: n.d. | CZ51: n.d. | DA51: n.d. | DB51: n.d. | DC51: n.d. | DD51: n.d. | DE51: n.d. | DF51: n.d. | DG51: n.d. | DH51: n.d.
A52: 1994 | B52: febrero | C52: 1994-febrero | D52: 9.561808466 | E52: n.d. | F52: 8.508917779 | G52: n.d. | H52: n.d. | I52: n.d. | J52: n.d. | K52: n.d. | L52: n.d. | N52: n.d. | P52: n.d. | Q52: n.d. | R52: n.d. | S52: n.d. | T52: n.d. | U52: n.d. | V52: n.d. | W52: n.d. | X52: n.d. | Y52: n.d. | Z52: n.d. | AA52: n.d. | AC52: n.d. | AD52: n.d. | AE52: n.d. | AF52: n.d. | AG52: n.d. | AH52: n.d. | AI52: n.d. | AJ52: n.d. | AK52: n.d. | AL52: n.d. | AN52: n.d. | AO52: n.d. | AP52: n.d. | AQ52: n.d. | AR52: n.d. | AS52: n.d. | AT52: n.d. | AU52: n.d. | AV52: n.d. | AW52: n.d. | AX52: n.d. | AY52: n.d. | AZ52: n.d. | BA52: n.d. | BB52: n.d. | BC52: n.d. | BD52: n.d. | BE52: n.d. | BF52: n.d. | BG52: n.d. | BH52: n.d. | BI52: n.d. | BJ52: n.d. | BK52: n.a. | BL52: n.d. | BM52: n.d. | BN52: n.a. | BO52: n.d. | BP52: n.a. | BQ52: n.d. | BR52: n.d. | BS52: n.d. | BT52: n.d. | BU52: n.d. | BV52: n.d. | BW52: n.d. | BX52: n.d. | BY52: n.d. | BZ52: n.d. | CA52: n.d. | CB52: n.d. | CC52: n.d. | CD52: n.d. | CE52: n.d. | CF52: n.d. | CG52: n.d. | CH52: n.d. | CI52: n.d. | CJ52: n.d. | CK52: n.d. | CL52: n.d. | CM52: n.d. | CN52: n.d. | CO52: n.d. | CP52: n.d. | CQ52: n.d. | CR52: n.d. | CS52: n.d. | CT52: n.d. | CU52: n.d. | CV52: n.d. | CW52: n.d. | CX52: n.d. | CY52: n.d. | CZ52: n.d. | DA52: n.d. | DB52: n.d. | DC52: n.d. | DD52: n.d. | DE52: n.d. | DF52: n.d. | DG52: n.d. | DH52: n.d.
A53: 1994 | B53: marzo | C53: 1994-marzo | D53: 10.26989269 | E53: n.d. | F53: 9.118011259 | G53: n.d. | H53: n.d. | I53: n.d. | J53: n.d. | K53: n.d. | L53: n.d. | N53: n.d. | P53: n.d. | Q53: n.d. | R53: n.d. | S53: n.d. | T53: n.d. | U53: n.d. | V53: n.d. | W53: n.d. | X53: n.d. | Y53: n.d. | Z53: n.d. | AA53: n.d. | AC53: n.d. | AD53: n.d. | AE53: n.d. | AF53: n.d. | AG53: n.d. | AH53: n.d. | AI53: n.d. | AJ53: n.d. | AK53: n.d. | AL53: n.d. | AN53: n.d. | AO53: n.d. | AP53: n.d. | AQ53: n.d. | AR53: n.d. | AS53: n.d. | AT53: n.d. | AU53: n.d. | AV53: n.d. | AW53: n.d. | AX53: n.d. | AY53: n.d. | AZ53: n.d. | BA53: n.d. | BB53: n.d. | BC53: n.d. | BD53: n.d. | BE53: n.d. | BF53: n.d. | BG53: n.d. | BH53: n.d. | BI53: n.d. | BJ53: n.d. | BK53: n.a. | BL53: n.d. | BM53: n.d. | BN53: n.a. | BO53: n.d. | BP53: n.a. | BQ53: n.d. | BR53: n.d. | BS53: n.d. | BT53: n.d. | BU53: n.d. | BV53: n.d. | BW53: n.d. | BX53: n.d. | BY53: n.d. | BZ53: n.d. | CA53: n.d. | CB53: n.d. | CC53: n.d. | CD53: n.d. | CE53: n.d. | CF53: n.d. | CG53: n.d. | CH53: n.d. | CI53: n.d. | CJ53: n.d. | CK53: n.d. | CL53: n.d. | CM53: n.d. | CN53: n.d. | CO53: n.d. | CP53: n.d. | CQ53: n.d. | CR53: n.d. | CS53: n.d. | CT53: n.d. | CU53: n.d. | CV53: n.d. | CW53: n.d. | CX53: n.d. | CY53: n.d. | CZ53: n.d. | DA53: n.d. | DB53: n.d. | DC53: n.d. | DD53: n.d. | DE53: n.d. | DF53: n.d. | DG53: n.d. | DH53: n.d.
A54: 1994 | B54: abril | C54: 1994-abril | D54: 10.83629969 | E54: n.d. | F54: 9.642732479 | G54: n.d. | H54: n.d. | I54: n.d. | J54: n.d. | K54: n.d. | L54: n.d. | N54: n.d. | P54: n.d. | Q54: n.d. | R54: n.d. | S54: n.d. | T54: n.d. | U54: n.d. | V54: n.d. | W54: n.d. | X54: n.d. | Y54: n.d. | Z54: n.d. | AA54: n.d. | AC54: n.d. | AD54: n.d. | AE54: n.d. | AF54: n.d. | AG54: n.d. | AH54: n.d. | AI54: n.d. | AJ54: n.d. | AK54: n.d. | AL54: n.d. | AN54: n.d. | AO54: n.d. | AP54: n.d. | AQ54: n.d. | AR54: n.d. | AS54: n.d. | AT54: n.d. | AU54: n.d. | AV54: n.d. | AW54: n.d. | AX54: n.d. | AY54: n.d. | AZ54: n.d. | BA54: n.d. | BB54: n.d. | BC54: n.d. | BD54: n.d. | BE54: n.d. | BF54: n.d. | BG54: n.d. | BH54: n.d. | BI54: n.d. | BJ54: n.d. | BK54: n.a. | BL54: n.d. | BM54: n.d. | BN54: n.a. | BO54: n.d. | BP54: n.a. | BQ54: n.d. | BR54: n.d. | BS54: n.d. | BT54: n.d. | BU54: n.d. | BV54: n.d. | BW54: n.d. | BX54: n.d. | BY54: n.d. | BZ54: n.d. | CA54: n.d. | CB54: n.d. | CC54: n.d. | CD54: n.d. | CE54: n.d. | CF54: n.d. | CG54: n.d. | CH54: n.d. | CI54: n.d. | CJ54: n.d. | CK54: n.d. | CL54: n.d. | CM54: n.d. | CN54: n.d. | CO54: n.d. | CP54: n.d. | CQ54: n.d. | CR54: n.d. | CS54: n.d. | CT54: n.d. | CU54: n.d. | CV54: n.d. | CW54: n.d. | CX54: n.d. | CY54: n.d. | CZ54: n.d. | DA54: n.d. | DB54: n.d. | DC54: n.d. | DD54: n.d. | DE54: n.d. | DF54: n.d. | DG54: n.d. | DH54: n.d.
A55: 1994 | B55: mayo | C55: 1994-mayo | D55: 11.24786114 | E55: n.d. | F55: 10.03485996 | G55: n.d. | H55: n.d. | I55: n.d. | J55: n.d. | K55: n.d. | L55: n.d. | N55: n.d. | P55: n.d. | Q55: n.d. | R55: n.d. | S55: n.d. | T55: n.d. | U55: n.d. | V55: n.d. | W55: n.d. | X55: n.d. | Y55: n.d. | Z55: n.d. | AA55: n.d. | AC55: n.d. | AD55: n.d. | AE55: n.d. | AF55: n.d. | AG55: n.d. | AH55: n.d. | AI55: n.d. | AJ55: n.d. | AK55: n.d. | AL55: n.d. | AN55: n.d. | AO55: n.d. | AP55: n.d. | AQ55: n.d. | AR55: n.d. | AS55: n.d. | AT55: n.d. | AU55: n.d. | AV55: n.d. | AW55: n.d. | AX55: n.d. | AY55: n.d. | AZ55: n.d. | BA55: n.d. | BB55: n.d. | BC55: n.d. | BD55: n.d. | BE55: n.d. | BF55: n.d. | BG55: n.d. | BH55: n.d. | BI55: n.d. | BJ55: n.d. | BK55: n.a. | BL55: n.d. | BM55: n.d. | BN55: n.a. | BO55: n.d. | BP55: n.a. | BQ55: n.d. | BR55: n.d. | BS55: n.d. | BT55: n.d. | BU55: n.d. | BV55: n.d. | BW55: n.d. | BX55: n.d. | BY55: n.d. | BZ55: n.d. | CA55: n.d. | CB55: n.d. | CC55: n.d. | CD55: n.d. | CE55: n.d. | CF55: n.d. | CG55: n.d. | CH55: n.d. | CI55: n.d. | CJ55: n.d. | CK55: n.d. | CL55: n.d. | CM55: n.d. | CN55: n.d. | CO55: n.d. | CP55: n.d. | CQ55: n.d. | CR55: n.d. | CS55: n.d. | CT55: n.d. | CU55: n.d. | CV55: n.d. | CW55: n.d. | CX55: n.d. | CY55: n.d. | CZ55: n.d. | DA55: n.d. | DB55: n.d. | DC55: n.d. | DD55: n.d. | DE55: n.d. | DF55: n.d. | DG55: n.d. | DH55: n.d.
A56: 1994 | B56: junio | C56: 1994-junio | D56: 10.72153141 | E56: n.d. | F56: 9.575300921 | G56: n.d. | H56: n.d. | I56: n.d. | J56: n.d. | K56: n.d. | L56: n.d. | N56: n.d. | P56: n.d. | Q56: n.d. | R56: n.d. | S56: n.d. | T56: n.d. | U56: n.d. | V56: n.d. | W56: n.d. | X56: n.d. | Y56: n.d. | Z56: n.d. | AA56: n.d. | AC56: n.d. | AD56: n.d. | AE56: n.d. | AF56: n.d. | AG56: n.d. | AH56: n.d. | AI56: n.d. | AJ56: n.d. | AK56: n.d. | AL56: n.d. | AN56: n.d. | AO56: n.d. | AP56: n.d. | AQ56: n.d. | AR56: n.d. | AS56: n.d. | AT56: n.d. | AU56: n.d. | AV56: n.d. | AW56: n.d. | AX56: n.d. | AY56: n.d. | AZ56: n.d. | BA56: n.d. | BB56: n.d. | BC56: n.d. | BD56: n.d. | BE56: n.d. | BF56: n.d. | BG56: n.d. | BH56: n.d. | BI56: n.d. | BJ56: n.d. | BK56: n.a. | BL56: n.d. | BM56: n.d. | BN56: n.a. | BO56: n.d. | BP56: n.a. | BQ56: n.d. | BR56: n.d. | BS56: n.d. | BT56: n.d. | BU56: n.d. | BV56: n.d. | BW56: n.d. | BX56: n.d. | BY56: n.d. | BZ56: n.d. | CA56: n.d. | CB56: n.d. | CC56: n.d. | CD56: n.d. | CE56: n.d. | CF56: n.d. | CG56: n.d. | CH56: n.d. | CI56: n.d. | CJ56: n.d. | CK56: n.d. | CL56: n.d. | CM56: n.d. | CN56: n.d. | CO56: n.d. | CP56: n.d. | CQ56: n.d. | CR56: n.d. | CS56: n.d. | CT56: n.d. | CU56: n.d. | CV56: n.d. | CW56: n.d. | CX56: n.d. | CY56: n.d. | CZ56: n.d. | DA56: n.d. | DB56: n.d. | DC56: n.d. | DD56: n.d. | DE56: n.d. | DF56: n.d. | DG56: n.d. | DH56: n.d.
A57: 1994 | B57: julio | C57: 1994-julio | D57: 9.663188145 | E57: n.d. | F57: 8.646354347 | G57: n.d. | H57: n.d. | I57: n.d. | J57: n.d. | K57: n.d. | L57: n.d. | N57: n.d. | P57: n.d. | Q57: n.d. | R57: n.d. | S57: n.d. | T57: n.d. | U57: n.d. | V57: n.d. | W57: n.d. | X57: n.d. | Y57: n.d. | Z57: n.d. | AA57: n.d. | AC57: n.d. | AD57: n.d. | AE57: n.d. | AF57: n.d. | AG57: n.d. | AH57: n.d. | AI57: n.d. | AJ57: n.d. | AK57: n.d. | AL57: n.d. | AN57: n.d. | AO57: n.d. | AP57: n.d. | AQ57: n.d. | AR57: n.d. | AS57: n.d. | AT57: n.d. | AU57: n.d. | AV57: n.d. | AW57: n.d. | AX57: n.d. | AY57: n.d. | AZ57: n.d. | BA57: n.d. | BB57: n.d. | BC57: n.d. | BD57: n.d. | BE57: n.d. | BF57: n.d. | BG57: n.d. | BH57: n.d. | BI57: n.d. | BJ57: n.d. | BK57: n.a. | BL57: n.d. | BM57: n.d. | BN57: n.a. | BO57: n.d. | BP57: n.a. | BQ57: n.d. | BR57: n.d. | BS57: n.d. | BT57: n.d. | BU57: n.d. | BV57: n.d. | BW57: n.d. | BX57: n.d. | BY57: n.d. | BZ57: n.d. | CA57: n.d. | CB57: n.d. | CC57: n.d. | CD57: n.d. | CE57: n.d. | CF57: n.d. | CG57: n.d. | CH57: n.d. | CI57: n.d. | CJ57: n.d. | CK57: n.d. | CL57: n.d. | CM57: n.d. | CN57: n.d. | CO57: n.d. | CP57: n.d. | CQ57: n.d. | CR57: n.d. | CS57: n.d. | CT57: n.d. | CU57: n.d. | CV57: n.d. | CW57: n.d. | CX57: n.d. | CY57: n.d. | CZ57: n.d. | DA57: n.d. | DB57: n.d. | DC57: n.d. | DD57: n.d. | DE57: n.d. | DF57: n.d. | DG57: n.d. | DH57: n.d.
A58: 1994 | B58: agosto | C58: 1994-agosto | D58: 10.94777926 | E58: n.d. | F58: 9.827783093 | G58: n.d. | H58: n.d. | I58: n.d. | J58: n.d. | K58: n.d. | L58: n.d. | N58: n.d. | P58: n.d. | Q58: n.d. | R58: n.d. | S58: n.d. | T58: n.d. | U58: n.d. | V58: n.d. | W58: n.d. | X58: n.d. | Y58: n.d. | Z58: n.d. | AA58: n.d. | AC58: n.d. | AD58: n.d. | AE58: n.d. | AF58: n.d. | AG58: n.d. | AH58: n.d. | AI58: n.d. | AJ58: n.d. | AK58: n.d. | AL58: n.d. | AN58: n.d. | AO58: n.d. | AP58: n.d. | AQ58: n.d. | AR58: n.d. | AS58: n.d. | AT58: n.d. | AU58: n.d. | AV58: n.d. | AW58: n.d. | AX58: n.d. | AY58: n.d. | AZ58: n.d. | BA58: n.d. | BB58: n.d. | BC58: n.d. | BD58: n.d. | BE58: n.d. | BF58: n.d. | BG58: n.d. | BH58: n.d. | BI58: n.d. | BJ58: n.d. | BK58: n.a. | BL58: n.d. | BM58: n.d. | BN58: n.a. | BO58: n.d. | BP58: n.a. | BQ58: n.d. | BR58: n.d. | BS58: n.d. | BT58: n.d. | BU58: n.d. | BV58: n.d. | BW58: n.d. | BX58: n.d. | BY58: n.d. | BZ58: n.d. | CA58: n.d. | CB58: n.d. | CC58: n.d. | CD58: n.d. | CE58: n.d. | CF58: n.d. | CG58: n.d. | CH58: n.d. | CI58: n.d. | CJ58: n.d. | CK58: n.d. | CL58: n.d. | CM58: n.d. | CN58: n.d. | CO58: n.d. | CP58: n.d. | CQ58: n.d. | CR58: n.d. | CS58: n.d. | CT58: n.d. | CU58: n.d. | CV58: n.d. | CW58: n.d. | CX58: n.d. | CY58: n.d. | CZ58: n.d. | DA58: n.d. | DB58: n.d. | DC58: n.d. | DD58: n.d. | DE58: n.d. | DF58: n.d. | DG58: n.d. | DH58: n.d.
A59: 1994 | B59: septiembre | C59: 1994-septiembre | D59: 12.12931711 | E59: n.d. | F59: 10.90602235 | G59: n.d. | H59: n.d. | I59: n.d. | J59: n.d. | K59: n.d. | L59: n.d. | N59: n.d. | P59: n.d. | Q59: n.d. | R59: n.d. | S59: n.d. | T59: n.d. | U59: n.d. | V59: n.d. | W59: n.d. | X59: n.d. | Y59: n.d. | Z59: n.d. | AA59: n.d. | AC59: n.d. | AD59: n.d. | AE59: n.d. | AF59: n.d. | AG59: n.d. | AH59: n.d. | AI59: n.d. | AJ59: n.d. | AK59: n.d. | AL59: n.d. | AN59: n.d. | AO59: n.d. | AP59: n.d. | AQ59: n.d. | AR59: n.d. | AS59: n.d. | AT59: n.d. | AU59: n.d. | AV59: n.d. | AW59: n.d. | AX59: n.d. | AY59: n.d. | AZ59: n.d. | BA59: n.d. | BB59: n.d. | BC59: n.d. | BD59: n.d. | BE59: n.d. | BF59: n.d. | BG59: n.d. | BH59: n.d. | BI59: n.d. | BJ59: n.d. | BK59: n.a. | BL59: n.d. | BM59: n.d. | BN59: n.a. | BO59: n.d. | BP59: n.a. | BQ59: n.d. | BR59: n.d. | BS59: n.d. | BT59: n.d. | BU59: n.d. | BV59: n.d. | BW59: n.d. | BX59: n.d. | BY59: n.d. | BZ59: n.d. | CA59: n.d. | CB59: n.d. | CC59: n.d. | CD59: n.d. | CE59: n.d. | CF59: n.d. | CG59: n.d. | CH59: n.d. | CI59: n.d. | CJ59: n.d. | CK59: n.d. | CL59: n.d. | CM59: n.d. | CN59: n.d. | CO59: n.d. | CP59: n.d. | CQ59: n.d. | CR59: n.d. | CS59: n.d. | CT59: n.d. | CU59: n.d. | CV59: n.d. | CW59: n.d. | CX59: n.d. | CY59: n.d. | CZ59: n.d. | DA59: n.d. | DB59: n.d. | DC59: n.d. | DD59: n.d. | DE59: n.d. | DF59: n.d. | DG59: n.d. | DH59: n.d.
A60: 1994 | B60: octubre | C60: 1994-octubre | D60: 12.75589732 | E60: n.d. | F60: 11.36424427 | G60: n.d. | H60: n.d. | I60: n.d. | J60: n.d. | K60: n.d. | L60: n.d. | N60: n.d. | P60: n.d. | Q60: n.d. | R60: n.d. | S60: n.d. | T60: n.d. | U60: n.d. | V60: n.d. | W60: n.d. | X60: n.d. | Y60: n.d. | Z60: n.d. | AA60: n.d. | AC60: n.d. | AD60: n.d. | AE60: n.d. | AF60: n.d. | AG60: n.d. | AH60: n.d. | AI60: n.d. | AJ60: n.d. | AK60: n.d. | AL60: n.d. | AN60: n.d. | AO60: n.d. | AP60: n.d. | AQ60: n.d. | AR60: n.d. | AS60: n.d. | AT60: n.d. | AU60: n.d. | AV60: n.d. | AW60: n.d. | AX60: n.d. | AY60: n.d. | AZ60: n.d. | BA60: n.d. | BB60: n.d. | BC60: n.d. | BD60: n.d. | BE60: n.d. | BF60: n.d. | BG60: n.d. | BH60: n.d. | BI60: n.d. | BJ60: n.d. | BK60: n.a. | BL60: n.d. | BM60: n.d. | BN60: n.a. | BO60: n.d. | BP60: n.a. | BQ60: n.d. | BR60: n.d. | BS60: n.d. | BT60: n.d. | BU60: n.d. | BV60: n.d. | BW60: n.d. | BX60: n.d. | BY60: n.d. | BZ60: n.d. | CA60: n.d. | CB60: n.d. | CC60: n.d. | CD60: n.d. | CE60: n.d. | CF60: n.d. | CG60: n.d. | CH60: n.d. | CI60: n.d. | CJ60: n.d. | CK60: n.d. | CL60: n.d. | CM60: n.d. | CN60: n.d. | CO60: n.d. | CP60: n.d. | CQ60: n.d. | CR60: n.d. | CS60: n.d. | CT60: n.d. | CU60: n.d. | CV60: n.d. | CW60: n.d. | CX60: n.d. | CY60: n.d. | CZ60: n.d. | DA60: n.d. | DB60: n.d. | DC60: n.d. | DD60: n.d. | DE60: n.d. | DF60: n.d. | DG60: n.d. | DH60: n.d.
A61: 1994 | B61: noviembre | C61: 1994-noviembre | D61: 13.33759451 | E61: n.d. | F61: 11.9309704 | G61: n.d. | H61: n.d. | I61: n.d. | J61: n.d. | K61: n.d. | L61: n.d. | N61: n.d. | P61: n.d. | Q61: n.d. | R61: n.d. | S61: n.d. | T61: n.d. | U61: n.d. | V61: n.d. | W61: n.d. | X61: n.d. | Y61: n.d. | Z61: n.d. | AA61: n.d. | AC61: n.d. | AD61: n.d. | AE61: n.d. | AF61: n.d. | AG61: n.d. | AH61: n.d. | AI61: n.d. | AJ61: n.d. | AK61: n.d. | AL61: n.d. | AN61: n.d. | AO61: n.d. | AP61: n.d. | AQ61: n.d. | AR61: n.d. | AS61: n.d. | AT61: n.d. | AU61: n.d. | AV61: n.d. | AW61: n.d. | AX61: n.d. | AY61: n.d. | AZ61: n.d. | BA61: n.d. | BB61: n.d. | BC61: n.d. | BD61: n.d. | BE61: n.d. | BF61: n.d. | BG61: n.d. | BH61: n.d. | BI61: n.d. | BJ61: n.d. | BK61: n.a. | BL61: n.d. | BM61: n.d. | BN61: n.a. | BO61: n.d. | BP61: n.a. | BQ61: n.d. | BR61: n.d. | BS61: n.d. | BT61: n.d. | BU61: n.d. | BV61: n.d. | BW61: n.d. | BX61: n.d. | BY61: n.d. | BZ61: n.d. | CA61: n.d. | CB61: n.d. | CC61: n.d. | CD61: n.d. | CE61: n.d. | CF61: n.d. | CG61: n.d. | CH61: n.d. | CI61: n.d. | CJ61: n.d. | CK61: n.d. | CL61: n.d. | CM61: n.d. | CN61: n.d. | CO61: n.d. | CP61: n.d. | CQ61: n.d. | CR61: n.d. | CS61: n.d. | CT61: n.d. | CU61: n.d. | CV61: n.d. | CW61: n.d. | CX61: n.d. | CY61: n.d. | CZ61: n.d. | DA61: n.d. | DB61: n.d. | DC61: n.d. | DD61: n.d. | DE61: n.d. | DF61: n.d. | DG61: n.d. | DH61: n.d.
A62: 1994 | B62: diciembre | C62: 1994-diciembre | D62: 14.22841957 | E62: n.d. | F62: 12.71409329 | G62: n.d. | H62: n.d. | I62: n.d. | J62: n.d. | K62: n.d. | L62: n.d. | M62: n.d. | N62: n.d. | O62: n.d. | P62: n.d. | Q62: n.d. | R62: n.d. | S62: n.d. | T62: n.d. | U62: n.d. | V62: n.d. | W62: n.d. | X62: n.d. | Y62: n.d. | Z62: n.d. | AA62: n.d. | AC62: n.d. | AD62: n.d. | AE62: n.d. | AF62: n.d. | AG62: n.d. | AH62: n.d. | AI62: n.d. | AJ62: n.d. | AK62: n.d. | AL62: n.d. | AN62: n.d. | AO62: n.d. | AP62: n.d. | AQ62: n.d. | AR62: n.d. | AS62: n.d. | AT62: n.d. | AU62: n.d. | AV62: n.d. | AW62: n.d. | AX62: n.d. | AY62: n.d. | AZ62: n.d. | BA62: n.d. | BB62: n.d. | BC62: n.d. | BD62: n.d. | BE62: n.d. | BF62: n.d. | BG62: n.d. | BH62: n.d. | BI62: n.d. | BJ62: n.d. | BK62: n.a. | BL62: n.d. | BM62: n.d. | BN62: n.a. | BO62: n.d. | BP62: n.a. | BQ62: n.d. | BR62: n.d. | BS62: n.d. | BT62: n.d. | BU62: n.d. | BV62: n.d. | BW62: n.d. | BX62: n.d. | BY62: n.d. | BZ62: n.d. | CA62: n.d. | CB62: n.d. | CC62: n.d. | CD62: n.d. | CE62: n.d. | CF62: n.d. | CG62: n.d. | CH62: n.d. | CI62: n.d. | CJ62: n.d. | CK62: n.d. | CL62: n.d. | CM62: n.d. | CN62: n.d. | CO62: n.d. | CP62: n.d. | CQ62: n.d. | CR62: n.d. | CS62: n.d. | CT62: n.d. | CU62: n.d. | CV62: n.d. | CW62: n.d. | CX62: n.d. | CY62: n.d. | CZ62: n.d. | DA62: n.d. | DB62: n.d. | DC62: n.d. | DD62: n.d. | DE62: n.d. | DF62: n.d. | DG62: n.d. | DH62: n.d.
A63: 1995 | B63: enero | C63: 1995-enero | D63: 14.33053579 | E63: 14.79043141 | F63: 12.84026116 | G63: 13.30609072 | H63: n.d. | I63: n.d. | J63: n.d. | K63: n.d. | L63: n.d. | N63: n.d. | P63: n.d. | Q63: n.d. | R63: n.d. | S63: n.d. | T63: n.d. | U63: n.d. | V63: n.d. | W63: n.d. | X63: n.d. | Y63: n.d. | Z63: n.d. | AA63: n.d. | AC63: n.d. | AD63: n.d. | AE63: n.d. | AF63: n.d. | AG63: n.d. | AH63: n.d. | AI63: n.d. | AJ63: n.d. | AK63: n.d. | AL63: n.d. | AN63: n.d. | AO63: n.d. | AP63: n.d. | AQ63: n.d. | AR63: n.d. | AS63: n.d. | AT63: n.d. | AU63: n.d. | AV63: n.d. | AW63: n.d. | AX63: n.d. | AY63: n.d. | AZ63: n.d. | BA63: n.d. | BB63: n.d. | BC63: n.d. | BD63: n.d. | BE63: n.d. | BF63: n.d. | BG63: n.d. | BH63: n.d. | BI63: n.d. | BJ63: n.d. | BK63: n.a. | BL63: n.d. | BM63: n.d. | BN63: n.a. | BO63: n.d. | BP63: n.a. | BQ63: n.d. | BR63: n.d. | BS63: n.d. | BT63: n.d. | BU63: n.d. | BV63: n.d. | BW63: n.d. | BX63: n.d. | BY63: n.d. | BZ63: n.d. | CA63: n.d. | CB63: n.d. | CC63: n.d. | CD63: n.d. | CE63: n.d. | CF63: n.d. | CG63: n.d. | CH63: n.d. | CI63: n.d. | CJ63: n.d. | CK63: n.d. | CL63: n.d. | CM63: n.d. | CN63: n.d. | CO63: n.d. | CP63: n.d. | CQ63: n.d. | CR63: n.d. | CS63: n.d. | CT63: n.d. | CU63: n.d. | CV63: n.d. | CW63: n.d. | CX63: n.d. | CY63: n.d. | CZ63: n.d. | DA63: n.d. | DB63: n.d. | DC63: n.d. | DD63: n.d. | DE63: n.d. | DF63: n.d. | DG63: n.d. | DH63: n.d.
A64: 1995 | B64: febrero | C64: 1995-febrero | D64: 14.79283191 | E64: 14.60754654 | F64: 13.27470582 | G64: 13.15849182 | H64: n.d. | I64: n.d. | J64: n.d. | K64: n.d. | L64: n.d. | N64: n.d. | P64: n.d. | Q64: n.d. | R64: n.d. | S64: n.d. | T64: n.d. | U64: n.d. | V64: n.d. | W64: n.d. | X64: n.d. | Y64: n.d. | Z64: n.d. | AA64: n.d. | AC64: n.d. | AD64: n.d. | AE64: n.d. | AF64: n.d. | AG64: n.d. | AH64: n.d. | AI64: n.d. | AJ64: n.d. | AK64: n.d. | AL64: n.d. | AN64: n.d. | AO64: n.d. | AP64: n.d. | AQ64: n.d. | AR64: n.d. | AS64: n.d. | AT64: n.d. | AU64: n.d. | AV64: n.d. | AW64: n.d. | AX64: n.d. | AY64: n.d. | AZ64: n.d. | BA64: n.d. | BB64: n.d. | BC64: n.d. | BD64: n.d. | BE64: n.d. | BF64: n.d. | BG64: n.d. | BH64: n.d. | BI64: n.d. | BJ64: n.d. | BK64: n.a. | BL64: n.d. | BM64: n.d. | BN64: n.a. | BO64: n.d. | BP64: n.a. | BQ64: n.d. | BR64: n.d. | BS64: n.d. | BT64: n.d. | BU64: n.d. | BV64: n.d. | BW64: n.d. | BX64: n.d. | BY64: n.d. | BZ64: n.d. | CA64: n.d. | CB64: n.d. | CC64: n.d. | CD64: n.d. | CE64: n.d. | CF64: n.d. | CG64: n.d. | CH64: n.d. | CI64: n.d. | CJ64: n.d. | CK64: n.d. | CL64: n.d. | CM64: n.d. | CN64: n.d. | CO64: n.d. | CP64: n.d. | CQ64: n.d. | CR64: n.d. | CS64: n.d. | CT64: n.d. | CU64: n.d. | CV64: n.d. | CW64: n.d. | CX64: n.d. | CY64: n.d. | CZ64: n.d. | DA64: n.d. | DB64: n.d. | DC64: n.d. | DD64: n.d. | DE64: n.d. | DF64: n.d. | DG64: n.d. | DH64: n.d.
A65: 1995 | B65: marzo | C65: 1995-marzo | D65: 14.68888233 | E65: 14.42754858 | F65: 13.21835226 | G65: 13.01279157 | H65: n.d. | I65: n.d. | J65: n.d. | K65: n.d. | L65: n.d. | N65: n.d. | P65: n.d. | Q65: n.d. | R65: n.d. | S65: n.d. | T65: n.d. | U65: n.d. | V65: n.d. | W65: n.d. | X65: n.d. | Y65: n.d. | Z65: n.d. | AA65: n.d. | AC65: n.d. | AD65: n.d. | AE65: n.d. | AF65: n.d. | AG65: n.d. | AH65: n.d. | AI65: n.d. | AJ65: n.d. | AK65: n.d. | AL65: n.d. | AN65: n.d. | AO65: n.d. | AP65: n.d. | AQ65: n.d. | AR65: n.d. | AS65: n.d. | AT65: n.d. | AU65: n.d. | AV65: n.d. | AW65: n.d. | AX65: n.d. | AY65: n.d. | AZ65: n.d. | BA65: n.d. | BB65: n.d. | BC65: n.d. | BD65: n.d. | BE65: n.d. | BF65: n.d. | BG65: n.d. | BH65: n.d. | BI65: n.d. | BJ65: n.d. | BK65: n.a. | BL65: n.d. | BM65: n.d. | BN65: n.a. | BO65: n.d. | BP65: n.a. | BQ65: n.d. | BR65: n.d. | BS65: n.d. | BT65: n.d. | BU65: n.d. | BV65: n.d. | BW65: n.d. | BX65: n.d. | BY65: n.d. | BZ65: n.d. | CA65: n.d. | CB65: n.d. | CC65: n.d. | CD65: n.d. | CE65: n.d. | CF65: n.d. | CG65: n.d. | CH65: n.d. | CI65: n.d. | CJ65: n.d. | CK65: n.d. | CL65: n.d. | CM65: n.d. | CN65: n.d. | CO65: n.d. | CP65: n.d. | CQ65: n.d. | CR65: n.d. | CS65: n.d. | CT65: n.d. | CU65: n.d. | CV65: n.d. | CW65: n.d. | CX65: n.d. | CY65: n.d. | CZ65: n.d. | DA65: n.d. | DB65: n.d. | DC65: n.d. | DD65: n.d. | DE65: n.d. | DF65: n.d. | DG65: n.d. | DH65: n.d.
A66: 1995 | B66: abril | C66: 1995-abril | D66: 14.05523122 | E66: 14.2500324 | F66: 12.64777551 | G66: 12.86863565 | H66: n.d. | I66: n.d. | J66: n.d. | K66: n.d. | L66: n.d. | N66: n.d. | P66: n.d. | Q66: n.d. | R66: n.d. | S66: n.d. | T66: n.d. | U66: n.d. | V66: n.d. | W66: n.d. | X66: n.d. | Y66: n.d. | Z66: n.d. | AA66: n.d. | AC66: n.d. | AD66: n.d. | AE66: n.d. | AF66: n.d. | AG66: n.d. | AH66: n.d. | AI66: n.d. | AJ66: n.d. | AK66: n.d. | AL66: n.d. | AN66: n.d. | AO66: n.d. | AP66: n.d. | AQ66: n.d. | AR66: n.d. | AS66: n.d. | AT66: n.d. | AU66: n.d. | AV66: n.d. | AW66: n.d. | AX66: n.d. | AY66: n.d. | AZ66: n.d. | BA66: n.d. | BB66: n.d. | BC66: n.d. | BD66: n.d. | BE66: n.d. | BF66: n.d. | BG66: n.d. | BH66: n.d. | BI66: n.d. | BJ66: n.d. | BK66: n.a. | BL66: n.d. | BM66: n.d. | BN66: n.a. | BO66: n.d. | BP66: n.a. | BQ66: n.d. | BR66: n.d. | BS66: n.d. | BT66: n.d. | BU66: n.d. | BV66: n.d. | BW66: n.d. | BX66: n.d. | BY66: n.d. | BZ66: n.d. | CA66: n.d. | CB66: n.d. | CC66: n.d. | CD66: n.d. | CE66: n.d. | CF66: n.d. | CG66: n.d. | CH66: n.d. | CI66: n.d. | CJ66: n.d. | CK66: n.d. | CL66: n.d. | CM66: n.d. | CN66: n.d. | CO66: n.d. | CP66: n.d. | CQ66: n.d. | CR66: n.d. | CS66: n.d. | CT66: n.d. | CU66: n.d. | CV66: n.d. | CW66: n.d. | CX66: n.d. | CY66: n.d. | CZ66: n.d. | DA66: n.d. | DB66: n.d. | DC66: n.d. | DD66: n.d. | DE66: n.d. | DF66: n.d. | DG66: n.d. | DH66: n.d.
A67: 1995 | B67: mayo | C67: 1995-mayo | D67: 13.93227296 | E67: 14.07462427 | F67: 12.56480018 | G67: 12.72569485 | H67: n.d. | I67: n.d. | J67: n.d. | K67: n.d. | L67: n.d. | N67: n.d. | P67: n.d. | Q67: n.d. | R67: n.d. | S67: n.d. | T67: n.d. | U67: n.d. | V67: n.d. | W67: n.d. | X67: n.d. | Y67: n.d. | Z67: n.d. | AA67: n.d. | AC67: n.d. | AD67: n.d. | AE67: n.d. | AF67: n.d. | AG67: n.d. | AH67: n.d. | AI67: n.d. | AJ67: n.d. | AK67: n.d. | AL67: n.d. | AN67: n.d. | AO67: n.d. | AP67: n.d. | AQ67: n.d. | AR67: n.d. | AS67: n.d. | AT67: n.d. | AU67: n.d. | AV67: n.d. | AW67: n.d. | AX67: n.d. | AY67: n.d. | AZ67: n.d. | BA67: n.d. | BB67: n.d. | BC67: n.d. | BD67: n.d. | BE67: n.d. | BF67: n.d. | BG67: n.d. | BH67: n.d. | BI67: n.d. | BJ67: n.d. | BK67: n.a. | BL67: n.d. | BM67: n.d. | BN67: n.a. | BO67: n.d. | BP67: n.a. | BQ67: n.d. | BR67: n.d. | BS67: n.d. | BT67: n.d. | BU67: n.d. | BV67: n.d. | BW67: n.d. | BX67: n.d. | BY67: n.d. | BZ67: n.d. | CA67: n.d. | CB67: n.d. | CC67: n.d. | CD67: n.d. | CE67: n.d. | CF67: n.d. | CG67: n.d. | CH67: n.d. | CI67: n.d. | CJ67: n.d. | CK67: n.d. | CL67: n.d. | CM67: n.d. | CN67: n.d. | CO67: =IF(OR(CM67="n.d.",CM67="",CN67="",CN67="n.d."),"n.d.",(CM67/CN67)*100) -> n.d. | CP67: n.d. | CQ67: n.d. | CR67: n.d. | CS67: n.d. | CT67: n.d. | CU67: n.d. | CV67: n.d. | CW67: n.d. | CX67: n.d. | CY67: n.d. | CZ67: n.d. | DA67: n.d. | DB67: n.d. | DC67: n.d. | DD67: n.d. | DE67: n.d. | DF67: n.d. | DG67: n.d. | DH67: n.d.
A68: 1995 | B68: junio | C68: =A68&"-"&B68 -> 1995-junio | D68: 14.00715641 | E68: 13.90096118 | F68: 12.67026017 | G68: 12.58364294 | H68: n.d. | I68: n.d. | J68: n.d. | K68: n.d. | L68: n.d. | M68: =IF(B68<>"diciembre","",L68) ->  | N68: n.d. | O68: =IF(B68<>"diciembre","",N68) ->  | P68: n.d. | Q68: n.d. | R68: n.d. | S68: n.d. | T68: n.d. | U68: n.d. | V68: n.d. | W68: n.d. | X68: n.d. | Y68: n.d. | Z68: n.d. | AA68: n.d. | AC68: n.d. | AD68: n.d. | AE68: n.d. | AF68: n.d. | AG68: n.d. | AH68: n.d. | AI68: n.d. | AJ68: n.d. | AK68: n.d. | AL68: n.d. | AN68: n.d. | AO68: n.d. | AP68: n.d. | AQ68: n.d. | AR68: n.d. | AS68: n.d. | AT68: n.d. | AU68: n.d. | AV68: n.d. | AW68: n.d. | AX68: n.d. | AY68: n.d. | AZ68: n.d. | BA68: n.d. | BB68: n.d. | BC68: n.d. | BD68: n.d. | BE68: n.d. | BF68: n.d. | BG68: n.d. | BH68: n.d. | BI68: n.d. | BJ68: n.d. | BK68: n.a. | BL68: n.d. | BM68: n.d. | BN68: n.a. | BO68: n.d. | BP68: n.a. | BQ68: n.d. | BR68: n.d. | BS68: n.d. | BT68: n.d. | BU68: n.d. | BV68: n.d. | BW68: n.d. | BX68: n.d. | BY68: n.d. | BZ68: n.d. | CA68: n.d. | CB68: n.d. | CC68: n.d. | CD68: n.d. | CE68: n.d. | CF68: n.d. | CG68: n.d. | CH68: n.d. | CI68: n.d. | CJ68: n.d. | CK68: n.d. | CL68: n.d. | CM68: n.d. | CN68: n.d. | CO68: n.d. | CP68: n.d. | CQ68: n.d. | CR68: =IF(OR(CP68="n.d.",CP68="",CQ68="",CQ68="n.d."),"n.d.",(CP68/CQ68)*100) -> n.d. | CS68: n.d. | CT68: n.d. | CU68: n.d. | CV68: n.d. | CW68: n.d. | CX68: n.d. | CY68: n.d. | CZ68: n.d. | DA68: n.d. | DB68: n.d. | DC68: n.d. | DD68: n.d. | DE68: n.d. | DF68: n.d. | DG68: n.d. | DH68: n.d.
A69: 1995 | B69: julio | C69: 1995-julio | D69: 14.43915148 | E69: 13.72868516 | F69: 13.06736899 | G69: 12.44215244 | H69: n.d. | I69: n.d. | J69: n.d. | K69: n.d. | L69: n.d. | N69: n.d. | P69: n.d. | Q69: n.d. | R69: n.d. | S69: n.d. | T69: n.d. | U69: n.d. | V69: n.d. | W69: n.d. | X69: n.d. | Y69: n.d. | Z69: n.d. | AA69: n.d. | AC69: n.d. | AD69: n.d. | AE69: n.d. | AF69: n.d. | AG69: n.d. | AH69: n.d. | AI69: n.d. | AJ69: n.d. | AK69: n.d. | AL69: n.d. | AN69: n.d. | AO69: n.d. | AP69: n.d. | AQ69: n.d. | AR69: n.d. | AS69: n.d. | AT69: n.d. | AU69: n.d. | AV69: n.d. | AW69: n.d. | AX69: n.d. | AY69: n.d. | AZ69: n.d. | BA69: n.d. | BB69: n.d. | BC69: n.d. | BD69: n.d. | BE69: n.d. | BF69: n.d. | BG69: n.d. | BH69: n.d. | BI69: n.d. | BJ69: n.d. | BK69: n.a. | BL69: n.d. | BM69: n.d. | BN69: n.a. | BO69: n.d. | BP69: n.a. | BQ69: n.d. | BR69: n.d. | BS69: n.d. | BT69: n.d. | BU69: n.d. | BV69: n.d. | BW69: n.d. | BX69: n.d. | BY69: n.d. | BZ69: n.d. | CA69: n.d. | CB69: n.d. | CC69: n.d. | CD69: n.d. | CE69: n.d. | CF69: n.d. | CG69: n.d. | CH69: n.d. | CI69: n.d. | CJ69: n.d. | CK69: n.d. | CL69: n.d. | CM69: n.d. | CN69: n.d. | CO69: n.d. | CP69: n.d. | CQ69: n.d. | CR69: n.d. | CS69: n.d. | CT69: n.d. | CU69: n.d. | CV69: n.d. | CW69: n.d. | CX69: n.d. | CY69: n.d. | CZ69: n.d. | DA69: n.d. | DB69: n.d. | DC69: n.d. | DD69: n.d. | DE69: n.d. | DF69: n.d. | DG69: n.d. | DH69: n.d.
A70: 1995 | B70: agosto | C70: 1995-agosto | D70: 13.69034276 | E70: 13.55746673 | F70: 12.41906178 | G70: 12.30092391 | H70: n.d. | I70: n.d. | J70: n.d. | K70: n.d. | L70: n.d. | N70: n.d. | P70: n.d. | Q70: n.d. | R70: n.d. | S70: n.d. | T70: n.d. | U70: n.d. | V70: n.d. | W70: n.d. | X70: n.d. | Y70: n.d. | Z70: n.d. | AA70: n.d. | AC70: n.d. | AD70: n.d. | AE70: n.d. | AF70: n.d. | AG70: n.d. | AH70: n.d. | AI70: n.d. | AJ70: n.d. | AK70: n.d. | AL70: n.d. | AN70: n.d. | AO70: n.d. | AP70: n.d. | AQ70: n.d. | AR70: n.d. | AS70: n.d. | AT70: n.d. | AU70: n.d. | AV70: n.d. | AW70: n.d. | AX70: n.d. | AY70: n.d. | AZ70: n.d. | BA70: n.d. | BB70: n.d. | BC70: n.d. | BD70: n.d. | BE70: n.d. | BF70: n.d. | BG70: n.d. | BH70: n.d. | BI70: n.d. | BJ70: n.d. | BK70: n.a. | BL70: n.d. | BM70: n.d. | BN70: n.a. | BO70: n.d. | BP70: n.a. | BQ70: n.d. | BR70: n.d. | BS70: n.d. | BT70: n.d. | BU70: n.d. | BV70: n.d. | BW70: n.d. | BX70: n.d. | BY70: n.d. | BZ70: n.d. | CA70: n.d. | CB70: n.d. | CC70: n.d. | CD70: n.d. | CE70: n.d. | CF70: n.d. | CG70: n.d. | CH70: n.d. | CI70: n.d. | CJ70: n.d. | CK70: n.d. | CL70: n.d. | CM70: n.d. | CN70: n.d. | CO70: n.d. | CP70: n.d. | CQ70: n.d. | CR70: n.d. | CS70: n.d. | CT70: n.d. | CU70: n.d. | CV70: n.d. | CW70: n.d. | CX70: n.d. | CY70: n.d. | CZ70: n.d. | DA70: n.d. | DB70: n.d. | DC70: n.d. | DD70: n.d. | DE70: n.d. | DF70: n.d. | DG70: n.d. | DH70: n.d.
A71: 1995 | B71: septiembre | C71: 1995-septiembre | D71: 14.04916543 | E71: 13.38702157 | F71: 12.74855771 | G71: 12.15970319 | H71: n.d. | I71: n.d. | J71: n.d. | K71: n.d. | L71: n.d. | N71: n.d. | P71: n.d. | Q71: n.d. | R71: n.d. | S71: n.d. | T71: n.d. | U71: n.d. | V71: n.d. | W71: n.d. | X71: n.d. | Y71: n.d. | Z71: n.d. | AA71: n.d. | AC71: n.d. | AD71: n.d. | AE71: n.d. | AF71: n.d. | AG71: n.d. | AH71: n.d. | AI71: n.d. | AJ71: =IFERROR(+AF71+AH71,"n.d.") -> n.d. | AK71: n.d. | AL71: n.d. | AN71: n.d. | AO71: n.d. | AP71: n.d. | AQ71: n.d. | AR71: n.d. | AS71: n.d. | AT71: n.d. | AU71: n.d. | AV71: n.d. | AW71: n.d. | AX71: n.d. | AY71: n.d. | AZ71: n.d. | BA71: n.d. | BB71: n.d. | BC71: n.d. | BD71: n.d. | BE71: n.d. | BF71: n.d. | BG71: n.d. | BH71: n.d. | BI71: n.d. | BJ71: n.d. | BK71: n.a. | BL71: n.d. | BM71: n.d. | BN71: n.a. | BO71: n.d. | BP71: n.a. | BQ71: n.d. | BR71: n.d. | BS71: n.d. | BT71: n.d. | BU71: n.d. | BV71: n.d. | BW71: n.d. | BX71: n.d. | BY71: n.d. | BZ71: n.d. | CA71: n.d. | CB71: n.d. | CC71: n.d. | CD71: n.d. | CE71: n.d. | CF71: n.d. | CG71: n.d. | CH71: n.d. | CI71: n.d. | CJ71: n.d. | CK71: n.d. | CL71: n.d. | CM71: n.d. | CN71: n.d. | CO71: n.d. | CP71: n.d. | CQ71: n.d. | CR71: n.d. | CS71: n.d. | CT71: n.d. | CU71: n.d. | CV71: n.d. | CW71: n.d. | CX71: n.d. | CY71: n.d. | CZ71: n.d. | DA71: n.d. | DB71: n.d. | DC71: n.d. | DD71: n.d. | DE71: n.d. | DF71: n.d. | DG71: n.d. | DH71: n.d.
A72: 1995 | B72: octubre | C72: 1995-octubre | D72: 14.45068758 | E72: 13.2170953 | F72: 13.09965438 | G72: 12.01826309 | H72: n.d. | I72: n.d. | J72: n.d. | K72: n.d. | L72: n.d. | N72: n.d. | P72: n.d. | Q72: n.d. | R72: n.d. | S72: n.d. | T72: n.d. | U72: n.d. | V72: n.d. | W72: n.d. | X72: n.d. | Y72: n.d. | Z72: n.d. | AA72: n.d. | AC72: n.d. | AD72: n.d. | AE72: n.d. | AF72: n.d. | AG72: n.d. | AH72: n.d. | AI72: n.d. | AJ72: n.d. | AK72: n.d. | AL72: n.d. | AN72: n.d. | AO72: n.d. | AP72: n.d. | AQ72: n.d. | AR72: n.d. | AS72: n.d. | AT72: n.d. | AU72: n.d. | AV72: n.d. | AW72: n.d. | AX72: n.d. | AY72: n.d. | AZ72: n.d. | BA72: n.d. | BB72: n.d. | BC72: n.d. | BD72: n.d. | BE72: n.d. | BF72: n.d. | BG72: n.d. | BH72: n.d. | BI72: n.d. | BJ72: n.d. | BK72: n.a. | BL72: n.d. | BM72: n.d. | BN72: n.a. | BO72: n.d. | BP72: n.a. | BQ72: n.d. | BR72: n.d. | BS72: n.d. | BT72: n.d. | BU72: n.d. | BV72: n.d. | BW72: n.d. | BX72: n.d. | BY72: n.d. | BZ72: n.d. | CA72: n.d. | CB72: n.d. | CC72: n.d. | CD72: n.d. | CE72: n.d. | CF72: n.d. | CG72: n.d. | CH72: n.d. | CI72: n.d. | CJ72: n.d. | CK72: n.d. | CL72: n.d. | CM72: n.d. | CN72: n.d. | CO72: n.d. | CP72: n.d. | CQ72: n.d. | CR72: n.d. | CS72: n.d. | CT72: n.d. | CU72: n.d. | CV72: n.d. | CW72: n.d. | CX72: n.d. | CY72: n.d. | CZ72: n.d. | DA72: n.d. | DB72: n.d. | DC72: n.d. | DD72: n.d. | DE72: n.d. | DF72: n.d. | DG72: n.d. | DH72: n.d.
A73: 1995 | B73: noviembre | C73: 1995-noviembre | D73: 14.593158 | E73: 13.04747812 | F73: 13.20520052 | G73: 11.87641724 | H73: n.d. | I73: n.d. | J73: n.d. | K73: n.d. | L73: n.d. | N73: n.d. | P73: n.d. | Q73: n.d. | R73: n.d. | S73: n.d. | T73: n.d. | U73: n.d. | V73: n.d. | W73: n.d. | X73: n.d. | Y73: n.d. | Z73: n.d. | AA73: n.d. | AC73: n.d. | AD73: n.d. | AE73: n.d. | AF73: n.d. | AG73: n.d. | AH73: n.d. | AI73: n.d. | AJ73: n.d. | AK73: n.d. | AL73: n.d. | AN73: n.d. | AO73: n.d. | AP73: n.d. | AQ73: n.d. | AR73: n.d. | AS73: n.d. | AT73: n.d. | AU73: n.d. | AV73: n.d. | AW73: n.d. | AX73: n.d. | AY73: n.d. | AZ73: n.d. | BA73: n.d. | BB73: n.d. | BC73: n.d. | BD73: n.d. | BE73: n.d. | BF73: n.d. | BG73: n.d. | BH73: n.d. | BI73: n.d. | BJ73: n.d. | BK73: n.a. | BL73: n.d. | BM73: n.d. | BN73: n.a. | BO73: n.d. | BP73: n.a. | BQ73: n.d. | BR73: n.d. | BS73: n.d. | BT73: n.d. | BU73: n.d. | BV73: n.d. | BW73: n.d. | BX73: n.d. | BY73: n.d. | BZ73: n.d. | CA73: n.d. | CB73: n.d. | CC73: n.d. | CD73: n.d. | CE73: n.d. | CF73: n.d. | CG73: n.d. | CH73: n.d. | CI73: n.d. | CJ73: n.d. | CK73: n.d. | CL73: n.d. | CM73: n.d. | CN73: n.d. | CO73: n.d. | CP73: n.d. | CQ73: n.d. | CR73: n.d. | CS73: n.d. | CT73: n.d. | CU73: n.d. | CV73: n.d. | CW73: n.d. | CX73: n.d. | CY73: n.d. | CZ73: n.d. | DA73: n.d. | DB73: n.d. | DC73: n.d. | DD73: n.d. | DE73: n.d. | DF73: n.d. | DG73: n.d. | DH73: n.d.
A74: 1995 | B74: diciembre | C74: 1995-diciembre | D74: 13.44098982 | E74: 12.87804407 | F74: 12.23414097 | G74: 11.73406146 | H74: n.d. | I74: n.d. | J74: n.d. | K74: n.d. | L74: n.d. | M74: n.d. | N74: n.d. | O74: n.d. | P74: n.d. | Q74: n.d. | R74: n.d. | S74: n.d. | T74: n.d. | U74: n.d. | V74: n.d. | W74: n.d. | X74: n.d. | Y74: n.d. | Z74: n.d. | AA74: n.d. | AC74: n.d. | AD74: n.d. | AE74: n.d. | AF74: n.d. | AG74: n.d. | AH74: n.d. | AI74: n.d. | AJ74: n.d. | AK74: n.d. | AL74: n.d. | AN74: n.d. | AO74: n.d. | AP74: n.d. | AQ74: n.d. | AR74: n.d. | AS74: n.d. | AT74: n.d. | AU74: n.d. | AV74: n.d. | AW74: n.d. | AX74: n.d. | AY74: n.d. | AZ74: n.d. | BA74: n.d. | BB74: n.d. | BC74: n.d. | BD74: n.d. | BE74: n.d. | BF74: n.d. | BG74: n.d. | BH74: n.d. | BI74: n.d. | BJ74: n.d. | BK74: n.a. | BL74: n.d. | BM74: n.d. | BN74: n.a. | BO74: n.d. | BP74: n.a. | BQ74: n.d. | BR74: n.d. | BS74: n.d. | BT74: n.d. | BU74: n.d. | BV74: n.d. | BW74: n.d. | BX74: n.d. | BY74: n.d. | BZ74: n.d. | CA74: n.d. | CB74: n.d. | CC74: n.d. | CD74: n.d. | CE74: n.d. | CF74: n.d. | CG74: n.d. | CH74: n.d. | CI74: n.d. | CJ74: n.d. | CK74: n.d. | CL74: n.d. | CM74: n.d. | CN74: n.d. | CO74: n.d. | CP74: n.d. | CQ74: n.d. | CR74: n.d. | CS74: n.d. | CT74: n.d. | CU74: n.d. | CV74: n.d. | CW74: n.d. | CX74: n.d. | CY74: n.d. | CZ74: n.d. | DA74: n.d. | DB74: n.d. | DC74: n.d. | DD74: n.d. | DE74: n.d. | DF74: n.d. | DG74: n.d. | DH74: n.d.
A75: 1996 | B75: enero | C75: 1996-enero | D75: 12.57813334 | E75: 12.70875411 | F75: 11.4395443 | G75: 11.59117766 | H75: n.d. | I75: n.d. | J75: n.d. | K75: n.d. | L75: n.d. | N75: n.d. | P75: n.d. | Q75: n.d. | R75: n.d. | S75: n.d. | T75: n.d. | U75: n.d. | V75: n.d. | W75: n.d. | X75: n.d. | Y75: n.d. | Z75: n.d. | AA75: n.d. | AC75: n.d. | AD75: n.d. | AE75: n.d. | AF75: n.d. | AG75: n.d. | AH75: n.d. | AI75: n.d. | AJ75: n.d. | AK75: n.d. | AL75: n.d. | AN75: n.d. | AO75: n.d. | AP75: n.d. | AQ75: n.d. | AR75: n.d. | AS75: n.d. | AT75: n.d. | AU75: n.d. | AV75: n.d. | AW75: n.d. | AX75: n.d. | AY75: n.d. | AZ75: n.d. | BA75: n.d. | BB75: n.d. | BC75: n.d. | BD75: n.d. | BE75: n.d. | BF75: n.d. | BG75: n.d. | BH75: n.d. | BI75: n.d. | BJ75: n.d. | BK75: n.a. | BL75: n.d. | BM75: n.d. | BN75: n.a. | BO75: n.d. | BP75: n.a. | BQ75: n.d. | BR75: n.d. | BS75: n.d. | BT75: n.d. | BU75: n.d. | BV75: n.d. | BW75: n.d. | BX75: n.d. | BY75: n.d. | BZ75: n.d. | CA75: n.d. | CB75: n.d. | CC75: n.d. | CD75: n.d. | CE75: n.d. | CF75: n.d. | CG75: n.d. | CH75: n.d. | CI75: n.d. | CJ75: n.d. | CK75: n.d. | CL75: n.d. | CM75: n.d. | CN75: n.d. | CO75: n.d. | CP75: n.d. | CQ75: n.d. | CR75: n.d. | CS75: n.d. | CT75: n.d. | CU75: n.d. | CV75: n.d. | CW75: n.d. | CX75: n.d. | CY75: n.d. | CZ75: n.d. | DA75: n.d. | DB75: n.d. | DC75: n.d. | DD75: n.d. | DE75: n.d. | DF75: n.d. | DG75: n.d. | DH75: n.d.
A76: 1996 | B76: febrero | C76: 1996-febrero | D76: 12.39203041 | E76: 12.5396052 | F76: 11.28048712 | G76: 11.4477824 | H76: n.d. | I76: n.d. | J76: n.d. | K76: n.d. | L76: n.d. | N76: n.d. | P76: n.d. | Q76: n.d. | R76: n.d. | S76: n.d. | T76: n.d. | U76: n.d. | V76: n.d. | W76: n.d. | X76: n.d. | Y76: n.d. | Z76: n.d. | AA76: n.d. | AC76: n.d. | AD76: n.d. | AE76: n.d. | AF76: n.d. | AG76: n.d. | AH76: n.d. | AI76: n.d. | AJ76: n.d. | AK76: n.d. | AL76: n.d. | AN76: n.d. | AO76: n.d. | AP76: n.d. | AQ76: n.d. | AR76: n.d. | AS76: n.d. | AT76: n.d. | AU76: n.d. | AV76: n.d. | AW76: n.d. | AX76: n.d. | AY76: n.d. | AZ76: n.d. | BA76: n.d. | BB76: n.d. | BC76: n.d. | BD76: n.d. | BE76: n.d. | BF76: n.d. | BG76: n.d. | BH76: n.d. | BI76: n.d. | BJ76: n.d. | BK76: n.a. | BL76: n.d. | BM76: n.d. | BN76: n.a. | BO76: n.d. | BP76: n.a. | BQ76: n.d. | BR76: n.d. | BS76: n.d. | BT76: n.d. | BU76: n.d. | BV76: n.d. | BW76: n.d. | BX76: n.d. | BY76: n.d. | BZ76: n.d. | CA76: n.d. | CB76: n.d. | CC76: n.d. | CD76: n.d. | CE76: n.d. | CF76: n.d. | CG76: n.d. | CH76: n.d. | CI76: n.d. | CJ76: n.d. | CK76: n.d. | CL76: n.d. | CM76: n.d. | CN76: n.d. | CO76: n.d. | CP76: n.d. | CQ76: n.d. | CR76: n.d. | CS76: n.d. | CT76: n.d. | CU76: n.d. | CV76: n.d. | CW76: n.d. | CX76: n.d. | CY76: n.d. | CZ76: n.d. | DA76: n.d. | DB76: n.d. | DC76: n.d. | DD76: n.d. | DE76: n.d. | DF76: n.d. | DG76: n.d. | DH76: n.d.
A77: 1996 | B77: marzo | C77: 1996-marzo | D77: 12.27584017 | E77: 12.37058686 | F77: 11.18004157 | G77: 11.3038823 | H77: n.d. | I77: n.d. | J77: n.d. | K77: n.d. | L77: n.d. | N77: n.d. | P77: n.d. | Q77: n.d. | R77: n.d. | S77: n.d. | T77: n.d. | U77: n.d. | V77: n.d. | W77: n.d. | X77: n.d. | Y77: n.d. | Z77: n.d. | AA77: n.d. | AC77: n.d. | AD77: n.d. | AE77: n.d. | AF77: n.d. | AG77: n.d. | AH77: n.d. | AI77: n.d. | AJ77: n.d. | AK77: n.d. | AL77: n.d. | AN77: n.d. | AO77: n.d. | AP77: n.d. | AQ77: n.d. | AR77: n.d. | AS77: n.d. | AT77: n.d. | AU77: n.d. | AV77: n.d. | AW77: n.d. | AX77: n.d. | AY77: n.d. | AZ77: n.d. | BA77: n.d. | BB77: n.d. | BC77: n.d. | BD77: n.d. | BE77: n.d. | BF77: n.d. | BG77: n.d. | BH77: n.d. | BI77: n.d. | BJ77: n.d. | BK77: n.a. | BL77: n.d. | BM77: n.d. | BN77: n.a. | BO77: n.d. | BP77: n.a. | BQ77: n.d. | BR77: n.d. | BS77: n.d. | BT77: n.d. | BU77: n.d. | BV77: n.d. | BW77: n.d. | BX77: n.d. | BY77: n.d. | BZ77: n.d. | CA77: n.d. | CB77: n.d. | CC77: n.d. | CD77: n.d. | CE77: n.d. | CF77: n.d. | CG77: n.d. | CH77: n.d. | CI77: n.d. | CJ77: n.d. | CK77: n.d. | CL77: n.d. | CM77: n.d. | CN77: n.d. | CO77: n.d. | CP77: n.d. | CQ77: n.d. | CR77: n.d. | CS77: n.d. | CT77: n.d. | CU77: n.d. | CV77: n.d. | CW77: n.d. | CX77: n.d. | CY77: n.d. | CZ77: n.d. | DA77: n.d. | DB77: n.d. | DC77: n.d. | DD77: n.d. | DE77: n.d. | DF77: n.d. | DG77: n.d. | DH77: n.d.
A78: 1996 | B78: abril | C78: 1996-abril | D78: 12.49151055 | E78: 12.20167737 | F78: 11.37810761 | G78: 11.15947099 | H78: n.d. | I78: n.d. | J78: n.d. | K78: n.d. | L78: n.d. | N78: n.d. | P78: n.d. | Q78: n.d. | R78: n.d. | S78: n.d. | T78: n.d. | U78: n.d. | V78: n.d. | W78: n.d. | X78: n.d. | Y78: n.d. | Z78: n.d. | AA78: n.d. | AC78: n.d. | AD78: n.d. | AE78: n.d. | AF78: n.d. | AG78: n.d. | AH78: n.d. | AI78: n.d. | AJ78: n.d. | AK78: n.d. | AL78: n.d. | AN78: n.d. | AO78: n.d. | AP78: n.d. | AQ78: n.d. | AR78: n.d. | AS78: n.d. | AT78: n.d. | AU78: n.d. | AV78: n.d. | AW78: n.d. | AX78: n.d. | AY78: n.d. | AZ78: n.d. | BA78: n.d. | BB78: n.d. | BC78: n.d. | BD78: n.d. | BE78: n.d. | BF78: n.d. | BG78: n.d. | BH78: n.d. | BI78: n.d. | BJ78: n.d. | BK78: n.a. | BL78: n.d. | BM78: n.d. | BN78: n.a. | BO78: n.d. | BP78: n.a. | BQ78: n.d. | BR78: n.d. | BS78: n.d. | BT78: n.d. | BU78: n.d. | BV78: n.d. | BW78: n.d. | BX78: n.d. | BY78: n.d. | BZ78: n.d. | CA78: n.d. | CB78: n.d. | CC78: n.d. | CD78: n.d. | CE78: n.d. | CF78: n.d. | CG78: n.d. | CH78: n.d. | CI78: n.d. | CJ78: n.d. | CK78: n.d. | CL78: n.d. | CM78: n.d. | CN78: n.d. | CO78: n.d. | CP78: n.d. | CQ78: n.d. | CR78: n.d. | CS78: n.d. | CT78: n.d. | CU78: n.d. | CV78: n.d. | CW78: n.d. | CX78: n.d. | CY78: n.d. | CZ78: n.d. | DA78: n.d. | DB78: n.d. | DC78: n.d. | DD78: n.d. | DE78: n.d. | DF78: n.d. | DG78: n.d. | DH78: n.d.
A79: 1996 | B79: mayo | C79: 1996-mayo | D79: 12.46084913 | E79: 12.03285188 | F79: 11.31103871 | G79: 11.014537 | H79: n.d. | I79: n.d. | J79: n.d. | K79: n.d. | L79: n.d. | N79: n.d. | P79: n.d. | Q79: n.d. | R79: n.d. | S79: n.d. | T79: n.d. | U79: n.d. | V79: n.d. | W79: n.d. | X79: n.d. | Y79: n.d. | Z79: n.d. | AA79: n.d. | AC79: n.d. | AD79: n.d. | AE79: n.d. | AF79: n.d. | AG79: n.d. | AH79: n.d. | AI79: n.d. | AJ79: n.d. | AK79: n.d. | AL79: n.d. | AN79: n.d. | AO79: n.d. | AP79: n.d. | AQ79: n.d. | AR79: n.d. | AS79: n.d. | AT79: n.d. | AU79: n.d. | AV79: n.d. | AW79: n.d. | AX79: n.d. | AY79: n.d. | AZ79: n.d. | BA79: n.d. | BB79: n.d. | BC79: n.d. | BD79: n.d. | BE79: n.d. | BF79: n.d. | BG79: n.d. | BH79: n.d. | BI79: n.d. | BJ79: n.d. | BK79: n.a. | BL79: n.d. | BM79: n.d. | BN79: n.a. | BO79: n.d. | BP79: n.a. | BQ79: n.d. | BR79: n.d. | BS79: n.d. | BT79: n.d. | BU79: n.d. | BV79: n.d. | BW79: n.d. | BX79: n.d. | BY79: n.d. | BZ79: n.d. | CA79: n.d. | CB79: n.d. | CC79: n.d. | CD79: n.d. | CE79: n.d. | CF79: n.d. | CG79: n.d. | CH79: n.d. | CI79: n.d. | CJ79: n.d. | CK79: n.d. | CL79: n.d. | CM79: n.d. | CN79: n.d. | CO79: n.d. | CP79: n.d. | CQ79: n.d. | CR79: n.d. | CS79: n.d. | CT79: n.d. | CU79: n.d. | CV79: n.d. | CW79: n.d. | CX79: n.d. | CY79: n.d. | CZ79: n.d. | DA79: n.d. | DB79: n.d. | DC79: n.d. | DD79: n.d. | DE79: n.d. | DF79: n.d. | DG79: n.d. | DH79: n.d.
A80: 1996 | B80: junio | C80: 1996-junio | D80: 12.39203371 | E80: 11.86409877 | F80: 11.23002363 | G80: 10.86908046 | H80: n.d. | I80: n.d. | J80: n.d. | K80: n.d. | L80: n.d. | N80: n.d. | P80: n.d. | Q80: n.d. | R80: n.d. | S80: n.d. | T80: n.d. | U80: n.d. | V80: n.d. | W80: n.d. | X80: n.d. | Y80: n.d. | Z80: n.d. | AA80: n.d. | AC80: n.d. | AD80: n.d. | AE80: n.d. | AF80: n.d. | AG80: n.d. | AH80: n.d. | AI80: n.d. | AJ80: n.d. | AK80: n.d. | AL80: n.d. | AN80: n.d. | AO80: n.d. | AP80: n.d. | AQ80: n.d. | AR80: n.d. | AS80: n.d. | AT80: n.d. | AU80: n.d. | AV80: n.d. | AW80: n.d. | AX80: n.d. | AY80: n.d. | AZ80: n.d. | BA80: n.d. | BB80: n.d. | BC80: n.d. | BD80: n.d. | BE80: n.d. | BF80: n.d. | BG80: n.d. | BH80: n.d. | BI80: n.d. | BJ80: n.d. | BK80: n.a. | BL80: n.d. | BM80: n.d. | BN80: n.a. | BO80: n.d. | BP80: n.a. | BQ80: n.d. | BR80: n.d. | BS80: n.d. | BT80: n.d. | BU80: n.d. | BV80: n.d. | BW80: n.d. | BX80: n.d. | BY80: n.d. | BZ80: n.d. | CA80: n.d. | CB80: n.d. | CC80: n.d. | CD80: n.d. | CE80: n.d. | CF80: n.d. | CG80: n.d. | CH80: n.d. | CI80: n.d. | CJ80: n.d. | CK80: n.d. | CL80: n.d. | CM80: n.d. | CN80: n.d. | CO80: n.d. | CP80: n.d. | CQ80: n.d. | CR80: n.d. | CS80: n.d. | CT80: n.d. | CU80: n.d. | CV80: n.d. | CW80: n.d. | CX80: n.d. | CY80: n.d. | CZ80: n.d. | DA80: n.d. | DB80: n.d. | DC80: n.d. | DD80: n.d. | DE80: n.d. | DF80: n.d. | DG80: n.d. | DH80: n.d.
A81: 1996 | B81: julio | C81: 1996-julio | D81: 12.2117486 | E81: 11.69543271 | F81: 11.09387213 | G81: 10.72312323 | H81: n.d. | I81: n.d. | J81: n.d. | K81: n.d. | L81: n.d. | N81: n.d. | P81: n.d. | Q81: n.d. | R81: n.d. | S81: n.d. | T81: n.d. | U81: n.d. | V81: n.d. | W81: n.d. | X81: n.d. | Y81: n.d. | Z81: n.d. | AA81: n.d. | AC81: n.d. | AD81: n.d. | AE81: n.d. | AF81: n.d. | AG81: n.d. | AH81: n.d. | AI81: n.d. | AJ81: n.d. | AK81: n.d. | AL81: n.d. | AN81: n.d. | AO81: n.d. | AP81: n.d. | AQ81: n.d. | AR81: n.d. | AS81: n.d. | AT81: n.d. | AU81: n.d. | AV81: n.d. | AW81: n.d. | AX81: n.d. | AY81: n.d. | AZ81: n.d. | BA81: n.d. | BB81: n.d. | BC81: n.d. | BD81: n.d. | BE81: n.d. | BF81: n.d. | BG81: n.d. | BH81: n.d. | BI81: n.d. | BJ81: n.d. | BK81: n.a. | BL81: n.d. | BM81: n.d. | BN81: n.a. | BO81: n.d. | BP81: n.a. | BQ81: n.d. | BR81: n.d. | BS81: n.d. | BT81: n.d. | BU81: n.d. | BV81: n.d. | BW81: n.d. | BX81: n.d. | BY81: n.d. | BZ81: n.d. | CA81: n.d. | CB81: n.d. | CC81: n.d. | CD81: n.d. | CE81: n.d. | CF81: n.d. | CG81: n.d. | CH81: n.d. | CI81: n.d. | CJ81: n.d. | CK81: n.d. | CL81: n.d. | CM81: n.d. | CN81: n.d. | CO81: n.d. | CP81: n.d. | CQ81: n.d. | CR81: n.d. | CS81: n.d. | CT81: n.d. | CU81: n.d. | CV81: n.d. | CW81: n.d. | CX81: n.d. | CY81: n.d. | CZ81: n.d. | DA81: n.d. | DB81: n.d. | DC81: n.d. | DD81: n.d. | DE81: n.d. | DF81: n.d. | DG81: n.d. | DH81: n.d.
A82: 1996 | B82: agosto | C82: 1996-agosto | D82: 12.64120969 | E82: 11.52689363 | F82: 11.48735084 | G82: 10.57670335 | H82: n.d. | I82: n.d. | J82: n.d. | K82: n.d. | L82: n.d. | N82: n.d. | P82: n.d. | Q82: n.d. | R82: n.d. | S82: n.d. | T82: n.d. | U82: n.d. | V82: n.d. | W82: n.d. | X82: n.d. | Y82: n.d. | Z82: n.d. | AA82: n.d. | AC82: n.d. | AD82: n.d. | AE82: n.d. | AF82: n.d. | AG82: n.d. | AH82: n.d. | AI82: n.d. | AJ82: n.d. | AK82: n.d. | AL82: n.d. | AN82: n.d. | AO82: n.d. | AP82: n.d. | AQ82: n.d. | AR82: n.d. | AS82: n.d. | AT82: n.d. | AU82: n.d. | AV82: n.d. | AW82: n.d. | AX82: n.d. | AY82: n.d. | AZ82: n.d. | BA82: n.d. | BB82: n.d. | BC82: n.d. | BD82: n.d. | BE82: n.d. | BF82: n.d. | BG82: n.d. | BH82: n.d. | BI82: n.d. | BJ82: n.d. | BK82: n.a. | BL82: n.d. | BM82: n.d. | BN82: n.a. | BO82: n.d. | BP82: n.a. | BQ82: n.d. | BR82: n.d. | BS82: n.d. | BT82: n.d. | BU82: n.d. | BV82: n.d. | BW82: n.d. | BX82: n.d. | BY82: n.d. | BZ82: n.d. | CA82: n.d. | CB82: n.d. | CC82: n.d. | CD82: n.d. | CE82: n.d. | CF82: n.d. | CG82: n.d. | CH82: n.d. | CI82: n.d. | CJ82: n.d. | CK82: n.d. | CL82: n.d. | CM82: n.d. | CN82: n.d. | CO82: n.d. | CP82: n.d. | CQ82: n.d. | CR82: n.d. | CS82: n.d. | CT82: n.d. | CU82: n.d. | CV82: n.d. | CW82: n.d. | CX82: n.d. | CY82: n.d. | CZ82: n.d. | DA82: n.d. | DB82: n.d. | DC82: n.d. | DD82: n.d. | DE82: n.d. | DF82: n.d. | DG82: n.d. | DH82: n.d.
A83: 1996 | B83: septiembre | C83: 1996-septiembre | D83: 11.79406896 | E83: 11.35855573 | F83: 10.76798001 | G83: 10.42988664 | H83: n.d. | I83: n.d. | J83: n.d. | K83: n.d. | L83: n.d. | N83: n.d. | P83: n.d. | Q83: n.d. | R83: n.d. | S83: n.d. | T83: n.d. | U83: n.d. | V83: n.d. | W83: n.d. | X83: n.d. | Y83: n.d. | Z83: n.d. | AA83: n.d. | AC83: n.d. | AD83: n.d. | AE83: n.d. | AF83: n.d. | AG83: n.d. | AH83: n.d. | AI83: n.d. | AJ83: n.d. | AK83: n.d. | AL83: n.d. | AN83: n.d. | AO83: n.d. | AP83: n.d. | AQ83: n.d. | AR83: n.d. | AS83: n.d. | AT83: n.d. | AU83: n.d. | AV83: n.d. | AW83: n.d. | AX83: n.d. | AY83: n.d. | AZ83: n.d. | BA83: n.d. | BB83: n.d. | BC83: n.d. | BD83: n.d. | BE83: n.d. | BF83: n.d. | BG83: n.d. | BH83: n.d. | BI83: n.d. | BJ83: n.d. | BK83: n.a. | BL83: n.d. | BM83: n.d. | BN83: n.a. | BO83: n.d. | BP83: n.a. | BQ83: n.d. | BR83: n.d. | BS83: n.d. | BT83: n.d. | BU83: n.d. | BV83: n.d. | BW83: n.d. | BX83: n.d. | BY83: n.d. | BZ83: n.d. | CA83: n.d. | CB83: n.d. | CC83: n.d. | CD83: n.d. | CE83: n.d. | CF83: n.d. | CG83: n.d. | CH83: n.d. | CI83: n.d. | CJ83: n.d. | CK83: n.d. | CL83: n.d. | CM83: n.d. | CN83: n.d. | CO83: n.d. | CP83: n.d. | CQ83: n.d. | CR83: n.d. | CS83: n.d. | CT83: n.d. | CU83: n.d. | CV83: n.d. | CW83: n.d. | CX83: n.d. | CY83: n.d. | CZ83: n.d. | DA83: n.d. | DB83: n.d. | DC83: n.d. | DD83: n.d. | DE83: n.d. | DF83: n.d. | DG83: n.d. | DH83: n.d.
A84: 1996 | B84: octubre | C84: 1996-octubre | D84: 10.86835682 | E84: 11.190545 | F84: 10.00252534 | G84: 10.28278762 | H84: n.d. | I84: n.d. | J84: n.d. | K84: n.d. | L84: n.d. | N84: n.d. | P84: n.d. | Q84: n.d. | R84: n.d. | S84: n.d. | T84: n.d. | U84: n.d. | V84: n.d. | W84: n.d. | X84: n.d. | Y84: n.d. | Z84: n.d. | AA84: n.d. | AC84: n.d. | AD84: n.d. | AE84: n.d. | AF84: n.d. | AG84: n.d. | AH84: n.d. | AI84: n.d. | AJ84: n.d. | AK84: n.d. | AL84: n.d. | AN84: n.d. | AO84: n.d. | AP84: n.d. | AQ84: n.d. | AR84: n.d. | AS84: n.d. | AT84: n.d. | AU84: n.d. | AV84: n.d. | AW84: n.d. | AX84: n.d. | AY84: n.d. | AZ84: n.d. | BA84: n.d. | BB84: n.d. | BC84: n.d. | BD84: n.d. | BE84: n.d. | BF84: n.d. | BG84: n.d. | BH84: n.d. | BI84: n.d. | BJ84: n.d. | BK84: n.a. | BL84: n.d. | BM84: n.d. | BN84: n.a. | BO84: n.d. | BP84: n.a. | BQ84: n.d. | BR84: n.d. | BS84: n.d. | BT84: n.d. | BU84: n.d. | BV84: n.d. | BW84: n.d. | BX84: n.d. | BY84: n.d. | BZ84: n.d. | CA84: n.d. | CB84: n.d. | CC84: n.d. | CD84: n.d. | CE84: n.d. | CF84: n.d. | CG84: n.d. | CH84: n.d. | CI84: n.d. | CJ84: n.d. | CK84: n.d. | CL84: n.d. | CM84: n.d. | CN84: n.d. | CO84: n.d. | CP84: n.d. | CQ84: n.d. | CR84: n.d. | CS84: n.d. | CT84: n.d. | CU84: n.d. | CV84: n.d. | CW84: n.d. | CX84: n.d. | CY84: n.d. | CZ84: n.d. | DA84: n.d. | DB84: n.d. | DC84: n.d. | DD84: n.d. | DE84: n.d. | DF84: n.d. | DG84: n.d. | DH84: n.d.
A85: 1996 | B85: noviembre | C85: 1996-noviembre | D85: 10.33975601 | E85: 11.02300934 | F85: 9.539948128 | G85: 10.13554348 | H85: n.d. | I85: n.d. | J85: n.d. | K85: n.d. | L85: n.d. | N85: n.d. | P85: n.d. | Q85: n.d. | R85: n.d. | S85: n.d. | T85: n.d. | U85: n.d. | V85: n.d. | W85: n.d. | X85: n.d. | Y85: n.d. | Z85: n.d. | AA85: n.d. | AC85: n.d. | AD85: n.d. | AE85: n.d. | AF85: n.d. | AG85: n.d. | AH85: n.d. | AI85: n.d. | AJ85: n.d. | AK85: n.d. | AL85: n.d. | AN85: n.d. | AO85: n.d. | AP85: n.d. | AQ85: n.d. | AR85: n.d. | AS85: n.d. | AT85: n.d. | AU85: n.d. | AV85: n.d. | AW85: n.d. | AX85: n.d. | AY85: n.d. | AZ85: n.d. | BA85: n.d. | BB85: n.d. | BC85: n.d. | BD85: n.d. | BE85: n.d. | BF85: n.d. | BG85: n.d. | BH85: n.d. | BI85: n.d. | BJ85: n.d. | BK85: n.a. | BL85: n.d. | BM85: n.d. | BN85: n.a. | BO85: n.d. | BP85: n.a. | BQ85: n.d. | BR85: n.d. | BS85: n.d. | BT85: n.d. | BU85: n.d. | BV85: n.d. | BW85: n.d. | BX85: n.d. | BY85: n.d. | BZ85: n.d. | CA85: n.d. | CB85: n.d. | CC85: n.d. | CD85: n.d. | CE85: n.d. | CF85: n.d. | CG85: n.d. | CH85: n.d. | CI85: n.d. | CJ85: n.d. | CK85: n.d. | CL85: n.d. | CM85: n.d. | CN85: n.d. | CO85: n.d. | CP85: n.d. | CQ85: n.d. | CR85: n.d. | CS85: n.d. | CT85: n.d. | CU85: n.d. | CV85: n.d. | CW85: n.d. | CX85: n.d. | CY85: n.d. | CZ85: n.d. | DA85: n.d. | DB85: n.d. | DC85: n.d. | DD85: n.d. | DE85: n.d. | DF85: n.d. | DG85: n.d. | DH85: n.d.
A86: 1996 | B86: diciembre | C86: 1996-diciembre | D86: 10.85199458 | E86: 10.85606838 | F86: 10.0478095 | G86: 9.988264904 | H86: n.d. | I86: n.d. | J86: n.d. | K86: n.d. | L86: n.d. | M86: n.d. | N86: n.d. | O86: n.d. | P86: n.d. | Q86: n.d. | R86: n.d. | S86: n.d. | T86: n.d. | U86: n.d. | V86: n.d. | W86: n.d. | X86: n.d. | Y86: n.d. | Z86: n.d. | AA86: n.d. | AC86: n.d. | AD86: n.d. | AE86: n.d. | AF86: n.d. | AG86: n.d. | AH86: n.d. | AI86: n.d. | AJ86: n.d. | AK86: n.d. | AL86: n.d. | AN86: n.d. | AO86: n.d. | AP86: n.d. | AQ86: n.d. | AR86: n.d. | AS86: n.d. | AT86: n.d. | AU86: n.d. | AV86: n.d. | AW86: n.d. | AX86: n.d. | AY86: n.d. | AZ86: n.d. | BA86: n.d. | BB86: n.d. | BC86: n.d. | BD86: n.d. | BE86: n.d. | BF86: n.d. | BG86: n.d. | BH86: n.d. | BI86: n.d. | BJ86: n.d. | BK86: n.a. | BL86: n.d. | BM86: n.d. | BN86: n.a. | BO86: n.d. | BP86: n.a. | BQ86: n.d. | BR86: n.d. | BS86: n.d. | BT86: n.d. | BU86: n.d. | BV86: n.d. | BW86: n.d. | BX86: n.d. | BY86: n.d. | BZ86: n.d. | CA86: n.d. | CB86: n.d. | CC86: n.d. | CD86: n.d. | CE86: n.d. | CF86: n.d. | CG86: n.d. | CH86: n.d. | CI86: n.d. | CJ86: n.d. | CK86: n.d. | CL86: n.d. | CM86: n.d. | CN86: n.d. | CO86: n.d. | CP86: n.d. | CQ86: n.d. | CR86: n.d. | CS86: n.d. | CT86: n.d. | CU86: n.d. | CV86: n.d. | CW86: n.d. | CX86: n.d. | CY86: n.d. | CZ86: n.d. | DA86: n.d. | DB86: n.d. | DC86: n.d. | DD86: n.d. | DE86: n.d. | DF86: n.d. | DG86: n.d. | DH86: n.d.
A87: 1997 | B87: enero | C87: 1997-enero | D87: 11.87966684 | E87: 10.68979931 | F87: 10.99981715 | G87: 9.841021809 | H87: n.d. | I87: n.d. | J87: n.d. | K87: n.d. | L87: n.d. | N87: n.d. | P87: n.d. | Q87: n.d. | R87: n.d. | S87: n.d. | T87: n.d. | U87: n.d. | V87: n.d. | W87: n.d. | X87: n.d. | Y87: n.d. | Z87: n.d. | AA87: n.d. | AC87: n.d. | AD87: n.d. | AE87: n.d. | AF87: n.d. | AG87: n.d. | AH87: n.d. | AI87: n.d. | AJ87: n.d. | AK87: n.d. | AL87: n.d. | AN87: n.d. | AO87: n.d. | AP87: n.d. | AQ87: n.d. | AR87: n.d. | AS87: n.d. | AT87: n.d. | AU87: n.d. | AV87: n.d. | AW87: n.d. | AX87: n.d. | AY87: n.d. | AZ87: n.d. | BA87: n.d. | BB87: n.d. | BC87: n.d. | BD87: n.d. | BE87: n.d. | BF87: n.d. | BG87: n.d. | BH87: n.d. | BI87: n.d. | BJ87: n.d. | BK87: n.a. | BL87: n.d. | BM87: n.d. | BN87: n.a. | BO87: n.d. | BP87: n.a. | BQ87: n.d. | BR87: n.d. | BS87: n.d. | BT87: n.d. | BU87: n.d. | BV87: n.d. | BW87: n.d. | BX87: n.d. | BY87: n.d. | BZ87: n.d. | CA87: n.d. | CB87: n.d. | CC87: n.d. | CD87: n.d. | CE87: n.d. | CF87: n.d. | CG87: n.d. | CH87: n.d. | CI87: n.d. | CJ87: n.d. | CK87: n.d. | CL87: n.d. | CM87: n.d. | CN87: n.d. | CO87: n.d. | CP87: n.d. | CQ87: n.d. | CR87: n.d. | CS87: n.d. | CT87: n.d. | CU87: n.d. | CV87: n.d. | CW87: n.d. | CX87: n.d. | CY87: n.d. | CZ87: n.d. | DA87: n.d. | DB87: n.d. | DC87: n.d. | DD87: n.d. | DE87: n.d. | DF87: n.d. | DG87: n.d. | DH87: n.d.
A88: 1997 | B88: febrero | C88: 1997-febrero | D88: 12.29752402 | E88: 10.524276 | F88: 11.38691244 | G88: 9.69388631 | H88: n.d. | I88: n.d. | J88: n.d. | K88: n.d. | L88: n.d. | N88: n.d. | P88: n.d. | Q88: n.d. | R88: n.d. | S88: n.d. | T88: n.d. | U88: n.d. | V88: n.d. | W88: n.d. | X88: n.d. | Y88: n.d. | Z88: n.d. | AA88: n.d. | AC88: n.d. | AD88: n.d. | AE88: n.d. | AF88: n.d. | AG88: n.d. | AH88: n.d. | AI88: n.d. | AJ88: n.d. | AK88: n.d. | AL88: n.d. | AN88: n.d. | AO88: n.d. | AP88: n.d. | AQ88: n.d. | AR88: n.d. | AS88: n.d. | AT88: n.d. | AU88: n.d. | AV88: n.d. | AW88: n.d. | AX88: n.d. | AY88: n.d. | AZ88: n.d. | BA88: n.d. | BB88: n.d. | BC88: n.d. | BD88: n.d. | BE88: n.d. | BF88: n.d. | BG88: n.d. | BH88: n.d. | BI88: n.d. | BJ88: n.d. | BK88: n.a. | BL88: n.d. | BM88: n.d. | BN88: n.a. | BO88: n.d. | BP88: n.a. | BQ88: n.d. | BR88: n.d. | BS88: n.d. | BT88: n.d. | BU88: n.d. | BV88: n.d. | BW88: n.d. | BX88: n.d. | BY88: n.d. | BZ88: n.d. | CA88: n.d. | CB88: n.d. | CC88: n.d. | CD88: n.d. | CE88: n.d. | CF88: n.d. | CG88: n.d. | CH88: n.d. | CI88: n.d. | CJ88: n.d. | CK88: n.d. | CL88: n.d. | CM88: n.d. | CN88: n.d. | CO88: n.d. | CP88: n.d. | CQ88: n.d. | CR88: n.d. | CS88: n.d. | CT88: n.d. | CU88: n.d. | CV88: n.d. | CW88: n.d. | CX88: n.d. | CY88: n.d. | CZ88: n.d. | DA88: n.d. | DB88: n.d. | DC88: n.d. | DD88: n.d. | DE88: n.d. | DF88: n.d. | DG88: n.d. | DH88: n.d.
A89: 1997 | B89: marzo | C89: 1997-marzo | D89: 11.89961784 | E89: 10.35963776 | F89: 10.99481305 | G89: 9.547004984 | H89: n.d. | I89: n.d. | J89: n.d. | K89: n.d. | L89: n.d. | N89: n.d. | P89: n.d. | Q89: n.d. | R89: n.d. | S89: n.d. | T89: n.d. | U89: n.d. | V89: n.d. | W89: n.d. | X89: n.d. | Y89: n.d. | Z89: n.d. | AA89: n.d. | AC89: n.d. | AD89: n.d. | AE89: n.d. | AF89: n.d. | AG89: n.d. | AH89: n.d. | AI89: n.d. | AJ89: n.d. | AK89: n.d. | AL89: n.d. | AN89: n.d. | AO89: n.d. | AP89: n.d. | AQ89: n.d. | AR89: n.d. | AS89: n.d. | AT89: n.d. | AU89: n.d. | AV89: n.d. | AW89: n.d. | AX89: n.d. | AY89: n.d. | AZ89: n.d. | BA89: n.d. | BB89: n.d. | BC89: n.d. | BD89: n.d. | BE89: n.d. | BF89: n.d. | BG89: n.d. | BH89: n.d. | BI89: n.d. | BJ89: n.d. | BK89: n.a. | BL89: n.d. | BM89: n.d. | BN89: n.a. | BO89: n.d. | BP89: n.a. | BQ89: n.d. | BR89: n.d. | BS89: n.d. | BT89: n.d. | BU89: n.d. | BV89: n.d. | BW89: n.d. | BX89: n.d. | BY89: n.d. | BZ89: n.d. | CA89: n.d. | CB89: n.d. | CC89: n.d. | CD89: n.d. | CE89: n.d. | CF89: n.d. | CG89: n.d. | CH89: n.d. | CI89: n.d. | CJ89: n.d. | CK89: n.d. | CL89: n.d. | CM89: n.d. | CN89: n.d. | CO89: n.d. | CP89: n.d. | CQ89: n.d. | CR89: n.d. | CS89: n.d. | CT89: n.d. | CU89: n.d. | CV89: n.d. | CW89: n.d. | CX89: n.d. | CY89: n.d. | CZ89: n.d. | DA89: n.d. | DB89: n.d. | DC89: n.d. | DD89: n.d. | DE89: n.d. | DF89: n.d. | DG89: n.d. | DH89: n.d.
A90: 1997 | B90: abril | C90: 1997-abril | D90: 11.58439604 | E90: 10.19611928 | F90: 10.67191254 | G90: 9.400628403 | H90: n.d. | I90: n.d. | J90: n.d. | K90: n.d. | L90: n.d. | N90: n.d. | P90: n.d. | Q90: n.d. | R90: n.d. | S90: n.d. | T90: n.d. | U90: n.d. | V90: n.d. | W90: n.d. | X90: n.d. | Y90: n.d. | Z90: n.d. | AA90: n.d. | AC90: n.d. | AD90: n.d. | AE90: n.d. | AF90: n.d. | AG90: n.d. | AH90: n.d. | AI90: n.d. | AJ90: n.d. | AK90: n.d. | AL90: n.d. | AN90: n.d. | AO90: n.d. | AP90: n.d. | AQ90: n.d. | AR90: n.d. | AS90: n.d. | AT90: n.d. | AU90: n.d. | AV90: n.d. | AW90: n.d. | AX90: n.d. | AY90: n.d. | AZ90: n.d. | BA90: n.d. | BB90: n.d. | BC90: n.d. | BD90: n.d. | BE90: n.d. | BF90: n.d. | BG90: n.d. | BH90: n.d. | BI90: n.d. | BJ90: n.d. | BK90: n.a. | BL90: n.d. | BM90: n.d. | BN90: n.a. | BO90: n.d. | BP90: n.a. | BQ90: n.d. | BR90: n.d. | BS90: n.d. | BT90: n.d. | BU90: n.d. | BV90: n.d. | BW90: n.d. | BX90: n.d. | BY90: n.d. | BZ90: n.d. | CA90: n.d. | CB90: n.d. | CC90: n.d. | CD90: n.d. | CE90: n.d. | CF90: n.d. | CG90: n.d. | CH90: n.d. | CI90: n.d. | CJ90: n.d. | CK90: n.d. | CL90: n.d. | CM90: n.d. | CN90: n.d. | CO90: n.d. | CP90: n.d. | CQ90: n.d. | CR90: n.d. | CS90: n.d. | CT90: n.d. | CU90: n.d. | CV90: n.d. | CW90: n.d. | CX90: n.d. | CY90: n.d. | CZ90: n.d. | DA90: n.d. | DB90: n.d. | DC90: n.d. | DD90: n.d. | DE90: n.d. | DF90: n.d. | DG90: n.d. | DH90: n.d.
A91: 1997 | B91: mayo | C91: 1997-mayo | D91: 10.9118477 | E91: 10.03403957 | F91: 10.10923758 | G91: 9.255097039 | H91: n.d. | I91: n.d. | J91: n.d. | K91: n.d. | L91: n.d. | N91: n.d. | P91: n.d. | Q91: n.d. | R91: n.d. | S91: n.d. | T91: n.d. | U91: n.d. | V91: n.d. | W91: n.d. | X91: n.d. | Y91: n.d. | Z91: n.d. | AA91: n.d. | AC91: n.d. | AD91: n.d. | AE91: n.d. | AF91: n.d. | AG91: n.d. | AH91: n.d. | AI91: n.d. | AJ91: n.d. | AK91: n.d. | AL91: n.d. | AN91: n.d. | AO91: n.d. | AP91: n.d. | AQ91: n.d. | AR91: n.d. | AS91: n.d. | AT91: n.d. | AU91: n.d. | AV91: n.d. | AW91: n.d. | AX91: n.d. | AY91: n.d. | AZ91: n.d. | BA91: n.d. | BB91: n.d. | BC91: n.d. | BD91: n.d. | BE91: n.d. | BF91: n.d. | BG91: n.d. | BH91: n.d. | BI91: n.d. | BJ91: n.d. | BK91: n.a. | BL91: n.d. | BM91: n.d. | BN91: n.a. | BO91: n.d. | BP91: n.a. | BQ91: n.d. | BR91: n.d. | BS91: n.d. | BT91: n.d. | BU91: n.d. | BV91: n.d. | BW91: n.d. | BX91: n.d. | BY91: n.d. | BZ91: n.d. | CA91: n.d. | CB91: n.d. | CC91: n.d. | CD91: n.d. | CE91: n.d. | CF91: n.d. | CG91: n.d. | CH91: n.d. | CI91: n.d. | CJ91: n.d. | CK91: n.d. | CL91: n.d. | CM91: n.d. | CN91: n.d. | CO91: n.d. | CP91: n.d. | CQ91: n.d. | CR91: n.d. | CS91: n.d. | CT91: n.d. | CU91: n.d. | CV91: n.d. | CW91: n.d. | CX91: n.d. | CY91: n.d. | CZ91: n.d. | DA91: n.d. | DB91: n.d. | DC91: n.d. | DD91: n.d. | DE91: n.d. | DF91: n.d. | DG91: n.d. | DH91: n.d.
A92: 1997 | B92: junio | C92: 1997-junio | D92: 10.44069681 | E92: 9.873785509 | F92: 9.703913047 | G92: 9.110823744 | H92: n.d. | I92: n.d. | J92: n.d. | K92: n.d. | L92: n.d. | N92: n.d. | P92: n.d. | Q92: n.d. | R92: n.d. | S92: n.d. | T92: n.d. | U92: n.d. | V92: n.d. | W92: n.d. | X92: n.d. | Y92: n.d. | Z92: n.d. | AA92: n.d. | AC92: n.d. | AD92: n.d. | AE92: n.d. | AF92: n.d. | AG92: n.d. | AH92: n.d. | AI92: n.d. | AJ92: n.d. | AK92: n.d. | AL92: n.d. | AN92: n.d. | AO92: n.d. | AP92: n.d. | AQ92: n.d. | AR92: n.d. | AS92: n.d. | AT92: n.d. | AU92: n.d. | AV92: n.d. | AW92: n.d. | AX92: n.d. | AY92: n.d. | AZ92: n.d. | BA92: n.d. | BB92: n.d. | BC92: n.d. | BD92: n.d. | BE92: n.d. | BF92: n.d. | BG92: n.d. | BH92: n.d. | BI92: n.d. | BJ92: n.d. | BK92: n.a. | BL92: n.d. | BM92: n.d. | BN92: n.a. | BO92: n.d. | BP92: n.a. | BQ92: n.d. | BR92: n.d. | BS92: n.d. | BT92: n.d. | BU92: n.d. | BV92: n.d. | BW92: n.d. | BX92: n.d. | BY92: n.d. | BZ92: n.d. | CA92: n.d. | CB92: n.d. | CC92: n.d. | CD92: n.d. | CE92: n.d. | CF92: n.d. | CG92: n.d. | CH92: n.d. | CI92: n.d. | CJ92: n.d. | CK92: n.d. | CL92: n.d. | CM92: n.d. | CN92: n.d. | CO92: n.d. | CP92: n.d. | CQ92: n.d. | CR92: n.d. | CS92: n.d. | CT92: n.d. | CU92: n.d. | CV92: n.d. | CW92: n.d. | CX92: n.d. | CY92: n.d. | CZ92: n.d. | DA92: n.d. | DB92: n.d. | DC92: n.d. | DD92: n.d. | DE92: n.d. | DF92: n.d. | DG92: n.d. | DH92: n.d.
A93: 1997 | B93: julio | C93: 1997-julio | D93: 10.64690353 | E93: 9.715781624 | F93: 9.888500281 | G93: 8.968264778 | H93: n.d. | I93: n.d. | J93: n.d. | K93: n.d. | L93: n.d. | N93: n.d. | P93: n.d. | Q93: n.d. | R93: n.d. | S93: n.d. | T93: n.d. | U93: n.d. | V93: n.d. | W93: n.d. | X93: n.d. | Y93: n.d. | Z93: n.d. | AA93: n.d. | AC93: n.d. | AD93: n.d. | AE93: n.d. | AF93: n.d. | AG93: n.d. | AH93: n.d. | AI93: n.d. | AJ93: n.d. | AK93: n.d. | AL93: n.d. | AN93: n.d. | AO93: n.d. | AP93: n.d. | AQ93: n.d. | AR93: n.d. | AS93: n.d. | AT93: n.d. | AU93: n.d. | AV93: n.d. | AW93: n.d. | AX93: n.d. | AY93: n.d. | AZ93: n.d. | BA93: n.d. | BB93: n.d. | BC93: n.d. | BD93: n.d. | BE93: n.d. | BF93: n.d. | BG93: n.d. | BH93: n.d. | BI93: n.d. | BJ93: n.d. | BK93: n.a. | BL93: n.d. | BM93: n.d. | BN93: n.a. | BO93: n.d. | BP93: n.a. | BQ93: n.d. | BR93: n.d. | BS93: n.d. | BT93: n.d. | BU93: n.d. | BV93: n.d. | BW93: n.d. | BX93: n.d. | BY93: n.d. | BZ93: n.d. | CA93: n.d. | CB93: n.d. | CC93: n.d. | CD93: n.d. | CE93: n.d. | CF93: n.d. | CG93: n.d. | CH93: n.d. | CI93: n.d. | CJ93: n.d. | CK93: n.d. | CL93: n.d. | CM93: n.d. | CN93: n.d. | CO93: n.d. | CP93: n.d. | CQ93: n.d. | CR93: n.d. | CS93: n.d. | CT93: n.d. | CU93: n.d. | CV93: n.d. | CW93: n.d. | CX93: n.d. | CY93: n.d. | CZ93: n.d. | DA93: n.d. | DB93: n.d. | DC93: n.d. | DD93: n.d. | DE93: n.d. | DF93: n.d. | DG93: n.d. | DH93: n.d.
A94: 1997 | B94: agosto | C94: 1997-agosto | D94: 10.11901142 | E94: 9.56047601 | F94: 9.396885074 | G94: 8.827907036 | H94: n.d. | I94: n.d. | J94: n.d. | K94: n.d. | L94: n.d. | N94: n.d. | P94: n.d. | Q94: n.d. | R94: n.d. | S94: n.d. | T94: n.d. | U94: n.d. | V94: n.d. | W94: n.d. | X94: n.d. | Y94: n.d. | Z94: n.d. | AA94: n.d. | AC94: n.d. | AD94: n.d. | AE94: n.d. | AF94: n.d. | AG94: n.d. | AH94: n.d. | AI94: n.d. | AJ94: n.d. | AK94: n.d. | AL94: n.d. | AN94: n.d. | AO94: n.d. | AP94: n.d. | AQ94: n.d. | AR94: n.d. | AS94: n.d. | AT94: n.d. | AU94: n.d. | AV94: n.d. | AW94: n.d. | AX94: n.d. | AY94: n.d. | AZ94: n.d. | BA94: n.d. | BB94: n.d. | BC94: n.d. | BD94: n.d. | BE94: n.d. | BF94: n.d. | BG94: n.d. | BH94: n.d. | BI94: n.d. | BJ94: n.d. | BK94: n.a. | BL94: n.d. | BM94: n.d. | BN94: n.a. | BO94: n.d. | BP94: n.a. | BQ94: n.d. | BR94: n.d. | BS94: n.d. | BT94: n.d. | BU94: n.d. | BV94: n.d. | BW94: n.d. | BX94: n.d. | BY94: n.d. | BZ94: n.d. | CA94: n.d. | CB94: n.d. | CC94: n.d. | CD94: n.d. | CE94: n.d. | CF94: n.d. | CG94: n.d. | CH94: n.d. | CI94: n.d. | CJ94: n.d. | CK94: n.d. | CL94: n.d. | CM94: n.d. | CN94: n.d. | CO94: n.d. | CP94: n.d. | CQ94: n.d. | CR94: n.d. | CS94: n.d. | CT94: n.d. | CU94: n.d. | CV94: n.d. | CW94: n.d. | CX94: n.d. | CY94: n.d. | CZ94: n.d. | DA94: n.d. | DB94: n.d. | DC94: n.d. | DD94: n.d. | DE94: n.d. | DF94: n.d. | DG94: n.d. | DH94: n.d.
A95: 1997 | B95: septiembre | C95: 1997-septiembre | D95: 9.694735005 | E95: 9.408350284 | F95: 8.994897877 | G95: 8.690278315 | H95: n.d. | I95: n.d. | J95: n.d. | K95: n.d. | L95: n.d. | N95: n.d. | P95: n.d. | Q95: n.d. | R95: n.d. | S95: n.d. | T95: n.d. | U95: n.d. | V95: n.d. | W95: n.d. | X95: n.d. | Y95: n.d. | Z95: n.d. | AA95: n.d. | AC95: n.d. | AD95: n.d. | AE95: n.d. | AF95: n.d. | AG95: n.d. | AH95: n.d. | AI95: n.d. | AJ95: n.d. | AK95: n.d. | AL95: n.d. | AN95: n.d. | AO95: n.d. | AP95: n.d. | AQ95: n.d. | AR95: n.d. | AS95: n.d. | AT95: n.d. | AU95: n.d. | AV95: n.d. | AW95: n.d. | AX95: n.d. | AY95: n.d. | AZ95: n.d. | BA95: n.d. | BB95: n.d. | BC95: n.d. | BD95: n.d. | BE95: n.d. | BF95: n.d. | BG95: n.d. | BH95: n.d. | BI95: n.d. | BJ95: n.d. | BK95: n.a. | BL95: n.d. | BM95: n.d. | BN95: n.a. | BO95: n.d. | BP95: n.a. | BQ95: n.d. | BR95: n.d. | BS95: n.d. | BT95: n.d. | BU95: n.d. | BV95: n.d. | BW95: n.d. | BX95: n.d. | BY95: n.d. | BZ95: n.d. | CA95: n.d. | CB95: n.d. | CC95: n.d. | CD95: n.d. | CE95: n.d. | CF95: n.d. | CG95: n.d. | CH95: n.d. | CI95: n.d. | CJ95: n.d. | CK95: n.d. | CL95: n.d. | CM95: n.d. | CN95: n.d. | CO95: n.d. | CP95: n.d. | CQ95: n.d. | CR95: n.d. | CS95: n.d. | CT95: n.d. | CU95: n.d. | CV95: n.d. | CW95: n.d. | CX95: n.d. | CY95: n.d. | CZ95: n.d. | DA95: n.d. | DB95: n.d. | DC95: n.d. | DD95: n.d. | DE95: n.d. | DF95: n.d. | DG95: n.d. | DH95: n.d.
A96: 1997 | B96: octubre | C96: 1997-octubre | D96: 9.117459933 | E96: 9.259907164 | F96: 8.390298296 | G96: 8.555934017 | H96: n.d. | I96: n.d. | J96: n.d. | K96: n.d. | L96: n.d. | N96: n.d. | P96: n.d. | Q96: n.d. | R96: n.d. | S96: n.d. | T96: n.d. | U96: n.d. | V96: n.d. | W96: n.d. | X96: n.d. | Y96: n.d. | Z96: n.d. | AA96: n.d. | AC96: n.d. | AD96: n.d. | AE96: n.d. | AF96: n.d. | AG96: n.d. | AH96: n.d. | AI96: n.d. | AJ96: n.d. | AK96: n.d. | AL96: n.d. | AN96: n.d. | AO96: n.d. | AP96: n.d. | AQ96: n.d. | AR96: n.d. | AS96: n.d. | AT96: n.d. | AU96: n.d. | AV96: n.d. | AW96: n.d. | AX96: n.d. | AY96: n.d. | AZ96: n.d. | BA96: n.d. | BB96: n.d. | BC96: n.d. | BD96: n.d. | BE96: n.d. | BF96: n.d. | BG96: n.d. | BH96: n.d. | BI96: n.d. | BJ96: n.d. | BK96: n.a. | BL96: n.d. | BM96: n.d. | BN96: n.a. | BO96: n.d. | BP96: n.a. | BQ96: n.d. | BR96: n.d. | BS96: n.d. | BT96: n.d. | BU96: n.d. | BV96: n.d. | BW96: n.d. | BX96: n.d. | BY96: n.d. | BZ96: n.d. | CA96: n.d. | CB96: n.d. | CC96: n.d. | CD96: n.d. | CE96: n.d. | CF96: n.d. | CG96: n.d. | CH96: n.d. | CI96: n.d. | CJ96: n.d. | CK96: n.d. | CL96: n.d. | CM96: n.d. | CN96: n.d. | CO96: n.d. | CP96: n.d. | CQ96: n.d. | CR96: n.d. | CS96: n.d. | CT96: n.d. | CU96: n.d. | CV96: n.d. | CW96: n.d. | CX96: n.d. | CY96: n.d. | CZ96: n.d. | DA96: n.d. | DB96: n.d. | DC96: n.d. | DD96: n.d. | DE96: n.d. | DF96: n.d. | DG96: n.d. | DH96: n.d.
A97: 1997 | B97: noviembre | C97: 1997-noviembre | D97: 8.909865324 | E97: 9.115646757 | F97: 8.190511304 | G97: 8.42542727 | H97: n.d. | I97: n.d. | J97: n.d. | K97: n.d. | L97: n.d. | N97: n.d. | P97: n.d. | Q97: n.d. | R97: n.d. | S97: n.d. | T97: n.d. | U97: n.d. | V97: n.d. | W97: n.d. | X97: n.d. | Y97: n.d. | Z97: n.d. | AA97: n.d. | AC97: n.d. | AD97: n.d. | AE97: n.d. | AF97: n.d. | AG97: n.d. | AH97: n.d. | AI97: n.d. | AJ97: n.d. | AK97: n.d. | AL97: n.d. | AN97: n.d. | AO97: n.d. | AP97: n.d. | AQ97: n.d. | AR97: n.d. | AS97: n.d. | AT97: n.d. | AU97: n.d. | AV97: n.d. | AW97: n.d. | AX97: n.d. | AY97: n.d. | AZ97: n.d. | BA97: n.d. | BB97: n.d. | BC97: n.d. | BD97: n.d. | BE97: n.d. | BF97: n.d. | BG97: n.d. | BH97: n.d. | BI97: n.d. | BJ97: n.d. | BK97: n.a. | BL97: n.d. | BM97: n.d. | BN97: n.a. | BO97: n.d. | BP97: n.a. | BQ97: n.d. | BR97: n.d. | BS97: n.d. | BT97: n.d. | BU97: n.d. | BV97: n.d. | BW97: n.d. | BX97: n.d. | BY97: n.d. | BZ97: n.d. | CA97: n.d. | CB97: n.d. | CC97: n.d. | CD97: n.d. | CE97: n.d. | CF97: n.d. | CG97: n.d. | CH97: n.d. | CI97: n.d. | CJ97: n.d. | CK97: n.d. | CL97: n.d. | CM97: n.d. | CN97: n.d. | CO97: n.d. | CP97: n.d. | CQ97: n.d. | CR97: n.d. | CS97: n.d. | CT97: n.d. | CU97: n.d. | CV97: n.d. | CW97: n.d. | CX97: n.d. | CY97: n.d. | CZ97: n.d. | DA97: n.d. | DB97: n.d. | DC97: n.d. | DD97: n.d. | DE97: n.d. | DF97: n.d. | DG97: n.d. | DH97: n.d.
A98: 1997 | B98: diciembre | C98: 1997-diciembre | D98: 8.23393247 | E98: 8.976049277 | F98: 7.511474093 | G98: 8.299287753 | H98: n.d. | I98: n.d. | J98: n.d. | K98: n.d. | L98: n.d. | M98: n.d. | N98: n.d. | O98: n.d. | P98: n.d. | Q98: n.d. | R98: n.d. | S98: n.d. | T98: n.d. | U98: n.d. | V98: n.d. | W98: n.d. | X98: n.d. | Y98: n.d. | Z98: n.d. | AA98: n.d. | AC98: n.d. | AD98: n.d. | AE98: n.d. | AF98: n.d. | AG98: n.d. | AH98: n.d. | AI98: n.d. | AJ98: n.d. | AK98: n.d. | AL98: n.d. | AN98: n.d. | AO98: n.d. | AP98: n.d. | AQ98: n.d. | AR98: n.d. | AS98: n.d. | AT98: n.d. | AU98: n.d. | AV98: n.d. | AW98: n.d. | AX98: n.d. | AY98: n.d. | AZ98: n.d. | BA98: n.d. | BB98: n.d. | BC98: n.d. | BD98: n.d. | BE98: n.d. | BF98: n.d. | BG98: n.d. | BH98: n.d. | BI98: n.d. | BJ98: n.d. | BK98: n.a. | BL98: n.d. | BM98: n.d. | BN98: n.a. | BO98: n.d. | BP98: n.a. | BQ98: n.d. | BR98: n.d. | BS98: n.d. | BT98: n.d. | BU98: n.d. | BV98: n.d. | BW98: n.d. | BX98: n.d. | BY98: n.d. | BZ98: n.d. | CA98: n.d. | CB98: n.d. | CC98: n.d. | CD98: n.d. | CE98: n.d. | CF98: n.d. | CG98: n.d. | CH98: n.d. | CI98: n.d. | CJ98: n.d. | CK98: n.d. | CL98: n.d. | CM98: n.d. | CN98: n.d. | CO98: n.d. | CP98: n.d. | CQ98: n.d. | CR98: n.d. | CS98: n.d. | CT98: n.d. | CU98: n.d. | CV98: n.d. | CW98: n.d. | CX98: n.d. | CY98: n.d. | CZ98: n.d. | DA98: n.d. | DB98: n.d. | DC98: n.d. | DD98: n.d. | DE98: n.d. | DF98: n.d. | DG98: n.d. | DH98: n.d.
A99: 1998 | B99: enero | C99: 1998-enero | D99: 7.427489203 | E99: 8.841564288 | F99: 6.767584822 | G99: 8.178010053 | H99: n.d. | I99: n.d. | J99: n.d. | K99: n.d. | L99: n.d. | N99: n.d. | P99: n.d. | Q99: n.d. | R99: n.d. | S99: n.d. | T99: n.d. | U99: n.d. | V99: n.d. | W99: n.d. | X99: n.d. | Y99: n.d. | Z99: n.d. | AA99: n.d. | AC99: n.d. | AD99: n.d. | AE99: n.d. | AF99: n.d. | AG99: n.d. | AH99: n.d. | AI99: n.d. | AJ99: n.d. | AK99: n.d. | AL99: n.d. | AN99: n.d. | AO99: n.d. | AP99: n.d. | AQ99: n.d. | AR99: n.d. | AS99: n.d. | AT99: n.d. | AU99: n.d. | AV99: n.d. | AW99: n.d. | AX99: n.d. | AY99: n.d. | AZ99: n.d. | BA99: n.d. | BB99: n.d. | BC99: n.d. | BD99: n.d. | BE99: n.d. | BF99: n.d. | BG99: n.d. | BH99: n.d. | BI99: n.d. | BJ99: n.d. | BK99: n.a. | BL99: n.d. | BM99: n.d. | BN99: n.a. | BO99: n.d. | BP99: n.a. | BQ99: n.d. | BR99: n.d. | BS99: n.d. | BT99: n.d. | BU99: n.d. | BV99: n.d. | BW99: n.d. | BX99: n.d. | BY99: n.d. | BZ99: n.d. | CA99: n.d. | CB99: n.d. | CC99: n.d. | CD99: n.d. | CE99: n.d. | CF99: n.d. | CG99: n.d. | CH99: n.d. | CI99: n.d. | CJ99: n.d. | CK99: n.d. | CL99: n.d. | CM99: n.d. | CN99: n.d. | CO99: n.d. | CP99: n.d. | CQ99: n.d. | CR99: n.d. | CS99: n.d. | CT99: n.d. | CU99: n.d. | CV99: n.d. | CW99: n.d. | CX99: n.d. | CY99: n.d. | CZ99: n.d. | DA99: n.d. | DB99: n.d. | DC99: n.d. | DD99: n.d. | DE99: n.d. | DF99: n.d. | DG99: n.d. | DH99: n.d.
A100: 1998 | B100: febrero | C100: 1998-febrero | D100: 6.995263898 | E100: 8.712584895 | F100: 6.353870199 | G100: 8.062024727 | H100: n.d. | I100: n.d. | J100: n.d. | K100: n.d. | L100: n.d. | N100: n.d. | P100: n.d. | Q100: n.d. | R100: n.d. | S100: n.d. | T100: n.d. | U100: n.d. | V100: n.d. | W100: n.d. | X100: n.d. | Y100: n.d. | Z100: n.d. | AA100: n.d. | AC100: n.d. | AD100: n.d. | AE100: n.d. | AF100: n.d. | AG100: n.d. | AH100: n.d. | AI100: n.d. | AJ100: n.d. | AK100: n.d. | AL100: n.d. | AN100: n.d. | AO100: n.d. | AP100: n.d. | AQ100: n.d. | AR100: n.d. | AS100: n.d. | AT100: n.d. | AU100: n.d. | AV100: n.d. | AW100: n.d. | AX100: n.d. | AY100: n.d. | AZ100: n.d. | BA100: n.d. | BB100: n.d. | BC100: n.d. | BD100: n.d. | BE100: n.d. | BF100: n.d. | BG100: n.d. | BH100: n.d. | BI100: n.d. | BJ100: n.d. | BK100: n.a. | BL100: n.d. | BM100: n.d. | BN100: n.a. | BO100: n.d. | BP100: n.a. | BQ100: n.d. | BR100: n.d. | BS100: n.d. | BT100: n.d. | BU100: n.d. | BV100: n.d. | BW100: n.d. | BX100: n.d. | BY100: n.d. | BZ100: n.d. | CA100: n.d. | CB100: n.d. | CC100: n.d. | CD100: n.d. | CE100: n.d. | CF100: n.d. | CG100: n.d. | CH100: n.d. | CI100: n.d. | CJ100: n.d. | CK100: n.d. | CL100: n.d. | CM100: n.d. | CN100: n.d. | CO100: n.d. | CP100: n.d. | CQ100: n.d. | CR100: n.d. | CS100: n.d. | CT100: n.d. | CU100: n.d. | CV100: n.d. | CW100: n.d. | CX100: n.d. | CY100: n.d. | CZ100: n.d. | DA100: n.d. | DB100: n.d. | DC100: n.d. | DD100: n.d. | DE100: n.d. | DF100: n.d. | DG100: n.d. | DH100: n.d.
A101: 1998 | B101: marzo | C101: 1998-marzo | D101: 7.333167279 | E101: 8.589407854 | F101: 6.687968906 | G101: 7.951654188 | H101: n.d. | I101: n.d. | J101: n.d. | K101: n.d. | L101: n.d. | N101: n.d. | P101: n.d. | Q101: n.d. | R101: n.d. | S101: n.d. | T101: n.d. | U101: n.d. | V101: n.d. | W101: n.d. | X101: n.d. | Y101: n.d. | Z101: n.d. | AA101: n.d. | AC101: n.d. | AD101: n.d. | AE101: n.d. | AF101: n.d. | AG101: n.d. | AH101: n.d. | AI101: n.d. | AJ101: n.d. | AK101: n.d. | AL101: n.d. | AN101: n.d. | AO101: n.d. | AP101: n.d. | AQ101: n.d. | AR101: n.d. | AS101: n.d. | AT101: n.d. | AU101: n.d. | AV101: n.d. | AW101: n.d. | AX101: n.d. | AY101: n.d. | AZ101: n.d. | BA101: n.d. | BB101: n.d. | BC101: n.d. | BD101: n.d. | BE101: n.d. | BF101: n.d. | BG101: n.d. | BH101: n.d. | BI101: n.d. | BJ101: n.d. | BK101: n.a. | BL101: n.d. | BM101: n.d. | BN101: n.a. | BO101: n.d. | BP101: n.a. | BQ101: n.d. | BR101: n.d. | BS101: n.d. | BT101: n.d. | BU101: n.d. | BV101: n.d. | BW101: n.d. | BX101: n.d. | BY101: n.d. | BZ101: n.d. | CA101: n.d. | CB101: n.d. | CC101: n.d. | CD101: n.d. | CE101: n.d. | CF101: n.d. | CG101: n.d. | CH101: n.d. | CI101: n.d. | CJ101: n.d. | CK101: n.d. | CL101: n.d. | CM101: n.d. | CN101: n.d. | CO101: n.d. | CP101: n.d. | CQ101: n.d. | CR101: n.d. | CS101: n.d. | CT101: n.d. | CU101: n.d. | CV101: n.d. | CW101: n.d. | CX101: n.d. | CY101: n.d. | CZ101: n.d. | DA101: n.d. | DB101: n.d. | DC101: n.d. | DD101: n.d. | DE101: n.d. | DF101: n.d. | DG101: n.d. | DH101: n.d.
A102: 1998 | B102: abril | C102: 1998-abril | D102: 7.632110547 | E102: 8.472223364 | F102: 6.98050984 | G102: 7.847101061 | H102: n.d. | I102: n.d. | J102: n.d. | K102: n.d. | L102: n.d. | N102: n.d. | P102: n.d. | Q102: n.d. | R102: n.d. | S102: n.d. | T102: n.d. | U102: n.d. | V102: n.d. | W102: n.d. | X102: n.d. | Y102: n.d. | Z102: n.d. | AA102: n.d. | AC102: n.d. | AD102: n.d. | AE102: n.d. | AF102: n.d. | AG102: n.d. | AH102: n.d. | AI102: n.d. | AJ102: n.d. | AK102: n.d. | AL102: n.d. | AN102: n.d. | AO102: n.d. | AP102: n.d. | AQ102: n.d. | AR102: n.d. | AS102: n.d. | AT102: n.d. | AU102: n.d. | AV102: n.d. | AW102: n.d. | AX102: n.d. | AY102: n.d. | AZ102: n.d. | BA102: n.d. | BB102: n.d. | BC102: n.d. | BD102: n.d. | BE102: n.d. | BF102: n.d. | BG102: n.d. | BH102: n.d. | BI102: n.d. | BJ102: n.d. | BK102: n.a. | BL102: n.d. | BM102: n.d. | BN102: n.a. | BO102: n.d. | BP102: n.a. | BQ102: n.d. | BR102: n.d. | BS102: n.d. | BT102: n.d. | BU102: n.d. | BV102: n.d. | BW102: n.d. | BX102: n.d. | BY102: n.d. | BZ102: n.d. | CA102: n.d. | CB102: n.d. | CC102: n.d. | CD102: n.d. | CE102: n.d. | CF102: n.d. | CG102: n.d. | CH102: n.d. | CI102: n.d. | CJ102: n.d. | CK102: n.d. | CL102: n.d. | CM102: n.d. | CN102: n.d. | CO102: n.d. | CP102: n.d. | CQ102: n.d. | CR102: n.d. | CS102: n.d. | CT102: n.d. | CU102: n.d. | CV102: n.d. | CW102: n.d. | CX102: n.d. | CY102: n.d. | CZ102: n.d. | DA102: n.d. | DB102: n.d. | DC102: n.d. | DD102: n.d. | DE102: n.d. | DF102: n.d. | DG102: n.d. | DH102: n.d.
A103: 1998 | B103: mayo | C103: 1998-mayo | D103: 8.029597303 | E103: 8.361140274 | F103: 7.337880179 | G103: 7.748475836 | H103: n.d. | I103: n.d. | J103: n.d. | K103: n.d. | L103: n.d. | N103: n.d. | P103: n.d. | Q103: n.d. | R103: n.d. | S103: n.d. | T103: n.d. | U103: n.d. | V103: n.d. | W103: n.d. | X103: n.d. | Y103: n.d. | Z103: n.d. | AA103: n.d. | AC103: n.d. | AD103: n.d. | AE103: n.d. | AF103: n.d. | AG103: n.d. | AH103: n.d. | AI103: n.d. | AJ103: n.d. | AK103: n.d. | AL103: n.d. | AN103: n.d. | AO103: n.d. | AP103: n.d. | AQ103: n.d. | AR103: n.d. | AS103: n.d. | AT103: n.d. | AU103: n.d. | AV103: n.d. | AW103: n.d. | AX103: n.d. | AY103: n.d. | AZ103: n.d. | BA103: n.d. | BB103: n.d. | BC103: n.d. | BD103: n.d. | BE103: n.d. | BF103: n.d. | BG103: n.d. | BH103: n.d. | BI103: n.d. | BJ103: n.d. | BK103: n.a. | BL103: n.d. | BM103: n.d. | BN103: n.a. | BO103: n.d. | BP103: n.a. | BQ103: n.d. | BR103: n.d. | BS103: n.d. | BT103: n.d. | BU103: n.d. | BV103: n.d. | BW103: n.d. | BX103: n.d. | BY103: n.d. | BZ103: n.d. | CA103: n.d. | CB103: n.d. | CC103: n.d. | CD103: n.d. | CE103: n.d. | CF103: n.d. | CG103: n.d. | CH103: n.d. | CI103: n.d. | CJ103: n.d. | CK103: n.d. | CL103: n.d. | CM103: n.d. | CN103: n.d. | CO103: n.d. | CP103: n.d. | CQ103: n.d. | CR103: n.d. | CS103: n.d. | CT103: n.d. | CU103: n.d. | CV103: n.d. | CW103: n.d. | CX103: n.d. | CY103: n.d. | CZ103: n.d. | DA103: n.d. | DB103: n.d. | DC103: n.d. | DD103: n.d. | DE103: n.d. | DF103: n.d. | DG103: n.d. | DH103: n.d.
A104: 1998 | B104: junio | C104: 1998-junio | D104: 8.122587456 | E104: 8.256218281 | F104: 7.440355632 | G104: 7.655830014 | H104: n.d. | I104: n.d. | J104: n.d. | K104: n.d. | L104: n.d. | N104: n.d. | P104: n.d. | Q104: n.d. | R104: n.d. | S104: n.d. | T104: n.d. | U104: n.d. | V104: n.d. | W104: n.d. | X104: n.d. | Y104: n.d. | Z104: n.d. | AA104: n.d. | AC104: n.d. | AD104: n.d. | AE104: n.d. | AF104: n.d. | AG104: n.d. | AH104: n.d. | AI104: n.d. | AJ104: n.d. | AK104: n.d. | AL104: n.d. | AN104: n.d. | AO104: n.d. | AP104: n.d. | AQ104: n.d. | AR104: n.d. | AS104: n.d. | AT104: n.d. | AU104: n.d. | AV104: n.d. | AW104: n.d. | AX104: n.d. | AY104: n.d. | AZ104: n.d. | BA104: n.d. | BB104: n.d. | BC104: n.d. | BD104: n.d. | BE104: n.d. | BF104: n.d. | BG104: n.d. | BH104: n.d. | BI104: n.d. | BJ104: n.d. | BK104: n.a. | BL104: n.d. | BM104: n.d. | BN104: n.a. | BO104: n.d. | BP104: n.a. | BQ104: n.d. | BR104: n.d. | BS104: n.d. | BT104: n.d. | BU104: n.d. | BV104: n.d. | BW104: n.d. | BX104: n.d. | BY104: n.d. | BZ104: n.d. | CA104: n.d. | CB104: n.d. | CC104: n.d. | CD104: n.d. | CE104: n.d. | CF104: n.d. | CG104: n.d. | CH104: n.d. | CI104: n.d. | CJ104: n.d. | CK104: n.d. | CL104: n.d. | CM104: n.d. | CN104: n.d. | CO104: n.d. | CP104: n.d. | CQ104: n.d. | CR104: n.d. | CS104: n.d. | CT104: n.d. | CU104: n.d. | CV104: n.d. | CW104: n.d. | CX104: n.d. | CY104: n.d. | CZ104: n.d. | DA104: n.d. | DB104: n.d. | DC104: n.d. | DD104: n.d. | DE104: n.d. | DF104: n.d. | DG104: n.d. | DH104: n.d.
A105: 1998 | B105: julio | C105: 1998-julio | D105: 7.794572912 | E105: 8.157497271 | F105: 7.135863537 | G105: 7.5691856 | H105: n.d. | I105: n.d. | J105: n.d. | K105: n.d. | L105: n.d. | N105: n.d. | P105: n.d. | Q105: n.d. | R105: n.d. | S105: n.d. | T105: n.d. | U105: n.d. | V105: n.d. | W105: n.d. | X105: n.d. | Y105: n.d. | Z105: n.d. | AA105: n.d. | AC105: n.d. | AD105: n.d. | AE105: n.d. | AF105: n.d. | AG105: n.d. | AH105: n.d. | AI105: n.d. | AJ105: n.d. | AK105: n.d. | AL105: n.d. | AN105: n.d. | AO105: n.d. | AP105: n.d. | AQ105: n.d. | AR105: n.d. | AS105: n.d. | AT105: n.d. | AU105: n.d. | AV105: n.d. | AW105: n.d. | AX105: n.d. | AY105: n.d. | AZ105: n.d. | BA105: n.d. | BB105: n.d. | BC105: n.d. | BD105: n.d. | BE105: n.d. | BF105: n.d. | BG105: n.d. | BH105: n.d. | BI105: n.d. | BJ105: n.d. | BK105: n.a. | BL105: n.d. | BM105: n.d. | BN105: n.a. | BO105: n.d. | BP105: n.a. | BQ105: n.d. | BR105: n.d. | BS105: n.d. | BT105: n.d. | BU105: n.d. | BV105: n.d. | BW105: n.d. | BX105: n.d. | BY105: n.d. | BZ105: n.d. | CA105: n.d. | CB105: n.d. | CC105: n.d. | CD105: n.d. | CE105: n.d. | CF105: n.d. | CG105: n.d. | CH105: n.d. | CI105: n.d. | CJ105: n.d. | CK105: n.d. | CL105: n.d. | CM105: n.d. | CN105: n.d. | CO105: n.d. | CP105: n.d. | CQ105: n.d. | CR105: n.d. | CS105: n.d. | CT105: n.d. | CU105: n.d. | CV105: n.d. | CW105: n.d. | CX105: n.d. | CY105: n.d. | CZ105: n.d. | DA105: n.d. | DB105: n.d. | DC105: n.d. | DD105: n.d. | DE105: n.d. | DF105: n.d. | DG105: n.d. | DH105: n.d.
A106: 1998 | B106: agosto | C106: 1998-agosto | D106: 7.423990557 | E106: 8.06500889 | F106: 6.798252583 | G106: 7.488549494 | H106: n.d. | I106: n.d. | J106: n.d. | K106: n.d. | L106: n.d. | N106: n.d. | P106: n.d. | Q106: n.d. | R106: n.d. | S106: n.d. | T106: n.d. | U106: n.d. | V106: n.d. | W106: n.d. | X106: n.d. | Y106: n.d. | Z106: n.d. | AA106: n.d. | AC106: n.d. | AD106: n.d. | AE106: n.d. | AF106: n.d. | AG106: n.d. | AH106: n.d. | AI106: n.d. | AJ106: n.d. | AK106: n.d. | AL106: n.d. | AN106: n.d. | AO106: n.d. | AP106: n.d. | AQ106: n.d. | AR106: n.d. | AS106: n.d. | AT106: n.d. | AU106: n.d. | AV106: n.d. | AW106: n.d. | AX106: n.d. | AY106: n.d. | AZ106: n.d. | BA106: n.d. | BB106: n.d. | BC106: n.d. | BD106: n.d. | BE106: n.d. | BF106: n.d. | BG106: n.d. | BH106: n.d. | BI106: n.d. | BJ106: n.d. | BK106: n.a. | BL106: n.d. | BM106: n.d. | BN106: n.a. | BO106: n.d. | BP106: n.a. | BQ106: n.d. | BR106: n.d. | BS106: n.d. | BT106: n.d. | BU106: n.d. | BV106: n.d. | BW106: n.d. | BX106: n.d. | BY106: n.d. | BZ106: n.d. | CA106: n.d. | CB106: n.d. | CC106: n.d. | CD106: n.d. | CE106: n.d. | CF106: n.d. | CG106: n.d. | CH106: n.d. | CI106: n.d. | CJ106: n.d. | CK106: n.d. | CL106: n.d. | CM106: n.d. | CN106: n.d. | CO106: n.d. | CP106: n.d. | CQ106: n.d. | CR106: n.d. | CS106: n.d. | CT106: n.d. | CU106: n.d. | CV106: n.d. | CW106: n.d. | CX106: n.d. | CY106: n.d. | CZ106: n.d. | DA106: n.d. | DB106: n.d. | DC106: n.d. | DD106: n.d. | DE106: n.d. | DF106: n.d. | DG106: n.d. | DH106: n.d.
A107: 1998 | B107: septiembre | C107: 1998-septiembre | D107: 7.200772273 | E107: 7.978766574 | F107: 6.630003176 | G107: 7.413903017 | H107: n.d. | I107: n.d. | J107: n.d. | K107: n.d. | L107: n.d. | N107: n.d. | P107: n.d. | Q107: n.d. | R107: n.d. | S107: n.d. | T107: n.d. | U107: n.d. | V107: n.d. | W107: n.d. | X107: n.d. | Y107: n.d. | Z107: n.d. | AA107: n.d. | AC107: n.d. | AD107: n.d. | AE107: n.d. | AF107: n.d. | AG107: n.d. | AH107: n.d. | AI107: n.d. | AJ107: n.d. | AK107: n.d. | AL107: n.d. | AN107: n.d. | AO107: n.d. | AP107: n.d. | AQ107: n.d. | AR107: n.d. | AS107: n.d. | AT107: n.d. | AU107: n.d. | AV107: n.d. | AW107: n.d. | AX107: n.d. | AY107: n.d. | AZ107: n.d. | BA107: n.d. | BB107: n.d. | BC107: n.d. | BD107: n.d. | BE107: n.d. | BF107: n.d. | BG107: n.d. | BH107: n.d. | BI107: n.d. | BJ107: n.d. | BK107: n.a. | BL107: n.d. | BM107: n.d. | BN107: n.a. | BO107: n.d. | BP107: n.a. | BQ107: n.d. | BR107: n.d. | BS107: n.d. | BT107: n.d. | BU107: n.d. | BV107: n.d. | BW107: n.d. | BX107: n.d. | BY107: n.d. | BZ107: n.d. | CA107: n.d. | CB107: n.d. | CC107: n.d. | CD107: n.d. | CE107: n.d. | CF107: n.d. | CG107: n.d. | CH107: n.d. | CI107: n.d. | CJ107: n.d. | CK107: n.d. | CL107: n.d. | CM107: n.d. | CN107: n.d. | CO107: n.d. | CP107: n.d. | CQ107: n.d. | CR107: n.d. | CS107: n.d. | CT107: n.d. | CU107: n.d. | CV107: n.d. | CW107: n.d. | CX107: n.d. | CY107: n.d. | CZ107: n.d. | DA107: n.d. | DB107: n.d. | DC107: n.d. | DD107: n.d. | DE107: n.d. | DF107: n.d. | DG107: n.d. | DH107: n.d.
A108: 1998 | B108: octubre | C108: 1998-octubre | D108: 7.859782706 | E108: 7.898745187 | F108: 7.28936705 | G108: 7.345181183 | H108: n.d. | I108: n.d. | J108: n.d. | K108: n.d. | L108: n.d. | N108: n.d. | P108: n.d. | Q108: n.d. | R108: n.d. | S108: n.d. | T108: n.d. | U108: n.d. | V108: n.d. | W108: n.d. | X108: n.d. | Y108: n.d. | Z108: n.d. | AA108: n.d. | AC108: n.d. | AD108: n.d. | AE108: n.d. | AF108: n.d. | AG108: n.d. | AH108: n.d. | AI108: n.d. | AJ108: n.d. | AK108: n.d. | AL108: n.d. | AN108: n.d. | AO108: n.d. | AP108: n.d. | AQ108: n.d. | AR108: n.d. | AS108: n.d. | AT108: n.d. | AU108: n.d. | AV108: n.d. | AW108: n.d. | AX108: n.d. | AY108: n.d. | AZ108: n.d. | BA108: n.d. | BB108: n.d. | BC108: n.d. | BD108: n.d. | BE108: n.d. | BF108: n.d. | BG108: n.d. | BH108: n.d. | BI108: n.d. | BJ108: n.d. | BK108: n.a. | BL108: n.d. | BM108: n.d. | BN108: n.a. | BO108: n.d. | BP108: n.a. | BQ108: n.d. | BR108: n.d. | BS108: n.d. | BT108: n.d. | BU108: n.d. | BV108: n.d. | BW108: n.d. | BX108: n.d. | BY108: n.d. | BZ108: n.d. | CA108: n.d. | CB108: n.d. | CC108: n.d. | CD108: n.d. | CE108: n.d. | CF108: n.d. | CG108: n.d. | CH108: n.d. | CI108: n.d. | CJ108: n.d. | CK108: n.d. | CL108: n.d. | CM108: n.d. | CN108: n.d. | CO108: n.d. | CP108: n.d. | CQ108: n.d. | CR108: n.d. | CS108: n.d. | CT108: n.d. | CU108: n.d. | CV108: n.d. | CW108: n.d. | CX108: n.d. | CY108: n.d. | CZ108: n.d. | DA108: n.d. | DB108: n.d. | DC108: n.d. | DD108: n.d. | DE108: n.d. | DF108: n.d. | DG108: n.d. | DH108: n.d.
A109: 1998 | B109: noviembre | C109: 1998-noviembre | D109: 9.4262365 | E109: 7.824883385 | F109: 8.74033511 | G109: 7.282278003 | H109: n.d. | I109: n.d. | J109: n.d. | K109: n.d. | L109: n.d. | N109: n.d. | P109: n.d. | Q109: n.d. | R109: n.d. | S109: n.d. | T109: n.d. | U109: n.d. | V109: n.d. | W109: n.d. | X109: n.d. | Y109: n.d. | Z109: n.d. | AA109: n.d. | AC109: n.d. | AD109: n.d. | AE109: n.d. | AF109: n.d. | AG109: n.d. | AH109: n.d. | AI109: n.d. | AJ109: n.d. | AK109: n.d. | AL109: n.d. | AN109: n.d. | AO109: n.d. | AP109: n.d. | AQ109: n.d. | AR109: n.d. | AS109: n.d. | AT109: n.d. | AU109: n.d. | AV109: n.d. | AW109: n.d. | AX109: n.d. | AY109: n.d. | AZ109: n.d. | BA109: n.d. | BB109: n.d. | BC109: n.d. | BD109: n.d. | BE109: n.d. | BF109: n.d. | BG109: n.d. | BH109: n.d. | BI109: n.d. | BJ109: n.d. | BK109: n.a. | BL109: n.d. | BM109: n.d. | BN109: n.a. | BO109: n.d. | BP109: n.a. | BQ109: n.d. | BR109: n.d. | BS109: n.d. | BT109: n.d. | BU109: n.d. | BV109: n.d. | BW109: n.d. | BX109: n.d. | BY109: n.d. | BZ109: n.d. | CA109: n.d. | CB109: n.d. | CC109: n.d. | CD109: n.d. | CE109: n.d. | CF109: n.d. | CG109: n.d. | CH109: n.d. | CI109: n.d. | CJ109: n.d. | CK109: n.d. | CL109: n.d. | CM109: n.d. | CN109: n.d. | CO109: n.d. | CP109: n.d. | CQ109: n.d. | CR109: n.d. | CS109: n.d. | CT109: n.d. | CU109: n.d. | CV109: n.d. | CW109: n.d. | CX109: n.d. | CY109: n.d. | CZ109: n.d. | DA109: n.d. | DB109: n.d. | DC109: n.d. | DD109: n.d. | DE109: n.d. | DF109: n.d. | DG109: n.d. | DH109: n.d.
A110: 1998 | B110: diciembre | C110: 1998-diciembre | D110: 9.848910385 | E110: 7.757115179 | F110: 9.115873535 | G110: 7.225081355 | H110: n.d. | I110: n.d. | J110: n.d. | K110: n.d. | L110: n.d. | M110: n.d. | N110: n.d. | O110: n.d. | P110: n.d. | Q110: n.d. | R110: n.d. | S110: n.d. | T110: n.d. | U110: n.d. | V110: n.d. | W110: n.d. | X110: n.d. | Y110: n.d. | Z110: n.d. | AA110: n.d. | AC110: n.d. | AD110: n.d. | AE110: n.d. | AF110: n.d. | AG110: n.d. | AH110: n.d. | AI110: n.d. | AJ110: n.d. | AK110: n.d. | AL110: n.d. | AN110: n.d. | AO110: n.d. | AP110: n.d. | AQ110: n.d. | AR110: n.d. | AS110: n.d. | AT110: n.d. | AU110: n.d. | AV110: n.d. | AW110: n.d. | AX110: n.d. | AY110: n.d. | AZ110: n.d. | BA110: n.d. | BB110: n.d. | BC110: n.d. | BD110: n.d. | BE110: n.d. | BF110: n.d. | BG110: n.d. | BH110: n.d. | BI110: n.d. | BJ110: n.d. | BK110: n.a. | BL110: n.d. | BM110: n.d. | BN110: n.a. | BO110: n.d. | BP110: n.a. | BQ110: n.d. | BR110: n.d. | BS110: n.d. | BT110: n.d. | BU110: n.d. | BV110: n.d. | BW110: n.d. | BX110: n.d. | BY110: n.d. | BZ110: n.d. | CA110: n.d. | CB110: n.d. | CC110: n.d. | CD110: n.d. | CE110: n.d. | CF110: n.d. | CG110: n.d. | CH110: n.d. | CI110: n.d. | CJ110: n.d. | CK110: n.d. | CL110: n.d. | CM110: n.d. | CN110: n.d. | CO110: n.d. | CP110: n.d. | CQ110: n.d. | CR110: n.d. | CS110: n.d. | CT110: n.d. | CU110: n.d. | CV110: n.d. | CW110: n.d. | CX110: n.d. | CY110: n.d. | CZ110: n.d. | DA110: n.d. | DB110: n.d. | DC110: n.d. | DD110: n.d. | DE110: n.d. | DF110: n.d. | DG110: n.d. | DH110: n.d.
A111: 1999 | B111: enero | C111: 1999-enero | D111: 9.133892153 | E111: 7.6954076 | F111: 8.533697234 | G111: 7.173509984 | H111: n.d. | I111: n.d. | J111: n.d. | K111: n.d. | L111: n.d. | N111: n.d. | P111: n.d. | Q111: n.d. | R111: n.d. | S111: n.d. | T111: n.d. | U111: n.d. | V111: n.d. | W111: n.d. | X111: n.d. | Y111: n.d. | Z111: n.d. | AA111: n.d. | AC111: n.d. | AD111: n.d. | AE111: n.d. | AF111: n.d. | AG111: n.d. | AH111: n.d. | AI111: n.d. | AJ111: n.d. | AK111: n.d. | AL111: n.d. | AN111: n.d. | AO111: n.d. | AP111: n.d. | AQ111: n.d. | AR111: n.d. | AS111: n.d. | AT111: n.d. | AU111: n.d. | AV111: n.d. | AW111: n.d. | AX111: n.d. | AY111: n.d. | AZ111: n.d. | BA111: n.d. | BB111: n.d. | BC111: n.d. | BD111: n.d. | BE111: n.d. | BF111: n.d. | BG111: n.d. | BH111: n.d. | BI111: n.d. | BJ111: n.d. | BK111: n.a. | BL111: n.d. | BM111: n.d. | BN111: n.a. | BO111: n.d. | BP111: n.a. | BQ111: n.d. | BR111: n.d. | BS111: n.d. | BT111: n.d. | BU111: n.d. | BV111: n.d. | BW111: n.d. | BX111: n.d. | BY111: n.d. | BZ111: n.d. | CA111: n.d. | CB111: n.d. | CC111: n.d. | CD111: n.d. | CE111: n.d. | CF111: n.d. | CG111: n.d. | CH111: n.d. | CI111: n.d. | CJ111: n.d. | CK111: n.d. | CL111: n.d. | CM111: n.d. | CN111: n.d. | CO111: n.d. | CP111: n.d. | CQ111: n.d. | CR111: n.d. | CS111: n.d. | CT111: n.d. | CU111: n.d. | CV111: n.d. | CW111: n.d. | CX111: n.d. | CY111: n.d. | CZ111: n.d. | DA111: n.d. | DB111: n.d. | DC111: n.d. | DD111: n.d. | DE111: n.d. | DF111: n.d. | DG111: n.d. | DH111: n.d.
A112: 1999 | B112: febrero | C112: 1999-febrero | D112: 8.318155158 | E112: 7.639794 | F112: 7.809203823 | G112: 7.127547097 | H112: n.d. | I112: n.d. | J112: n.d. | K112: n.d. | L112: n.d. | N112: n.d. | P112: n.d. | Q112: n.d. | R112: n.d. | S112: n.d. | T112: n.d. | U112: n.d. | V112: n.d. | W112: n.d. | X112: n.d. | Y112: n.d. | Z112: n.d. | AA112: n.d. | AC112: n.d. | AD112: n.d. | AE112: n.d. | AF112: n.d. | AG112: n.d. | AH112: n.d. | AI112: n.d. | AJ112: n.d. | AK112: n.d. | AL112: n.d. | AN112: n.d. | AO112: n.d. | AP112: n.d. | AQ112: n.d. | AR112: n.d. | AS112: n.d. | AT112: n.d. | AU112: n.d. | AV112: n.d. | AW112: n.d. | AX112: n.d. | AY112: n.d. | AZ112: n.d. | BA112: n.d. | BB112: n.d. | BC112: n.d. | BD112: n.d. | BE112: n.d. | BF112: n.d. | BG112: n.d. | BH112: n.d. | BI112: n.d. | BJ112: n.d. | BK112: n.a. | BL112: n.d. | BM112: n.d. | BN112: n.a. | BO112: n.d. | BP112: n.a. | BQ112: n.d. | BR112: n.d. | BS112: n.d. | BT112: n.d. | BU112: n.d. | BV112: n.d. | BW112: n.d. | BX112: n.d. | BY112: n.d. | BZ112: n.d. | CA112: n.d. | CB112: n.d. | CC112: n.d. | CD112: n.d. | CE112: n.d. | CF112: n.d. | CG112: n.d. | CH112: n.d. | CI112: n.d. | CJ112: n.d. | CK112: n.d. | CL112: n.d. | CM112: n.d. | CN112: n.d. | CO112: n.d. | CP112: n.d. | CQ112: n.d. | CR112: n.d. | CS112: n.d. | CT112: n.d. | CU112: n.d. | CV112: n.d. | CW112: n.d. | CX112: n.d. | CY112: n.d. | CZ112: n.d. | DA112: n.d. | DB112: n.d. | DC112: n.d. | DD112: n.d. | DE112: n.d. | DF112: n.d. | DG112: n.d. | DH112: n.d.
A113: 1999 | B113: marzo | C113: 1999-marzo | D113: 7.400366864 | E113: 7.590361693 | F113: 6.964718704 | G113: 7.087232299 | H113: n.d. | I113: n.d. | J113: n.d. | K113: n.d. | L113: n.d. | N113: n.d. | P113: n.d. | Q113: n.d. | R113: n.d. | S113: n.d. | T113: n.d. | U113: n.d. | V113: n.d. | W113: n.d. | X113: n.d. | Y113: n.d. | Z113: n.d. | AA113: n.d. | AC113: n.d. | AD113: n.d. | AE113: n.d. | AF113: n.d. | AG113: n.d. | AH113: n.d. | AI113: n.d. | AJ113: n.d. | AK113: n.d. | AL113: n.d. | AN113: n.d. | AO113: n.d. | AP113: n.d. | AQ113: n.d. | AR113: n.d. | AS113: n.d. | AT113: n.d. | AU113: n.d. | AV113: n.d. | AW113: n.d. | AX113: n.d. | AY113: n.d. | AZ113: n.d. | BA113: n.d. | BB113: n.d. | BC113: n.d. | BD113: n.d. | BE113: n.d. | BF113: n.d. | BG113: n.d. | BH113: n.d. | BI113: n.d. | BJ113: n.d. | BK113: n.a. | BL113: n.d. | BM113: n.d. | BN113: n.a. | BO113: n.d. | BP113: n.a. | BQ113: n.d. | BR113: n.d. | BS113: n.d. | BT113: n.d. | BU113: n.d. | BV113: n.d. | BW113: n.d. | BX113: n.d. | BY113: n.d. | BZ113: n.d. | CA113: n.d. | CB113: n.d. | CC113: n.d. | CD113: n.d. | CE113: n.d. | CF113: n.d. | CG113: n.d. | CH113: n.d. | CI113: n.d. | CJ113: n.d. | CK113: n.d. | CL113: n.d. | CM113: n.d. | CN113: n.d. | CO113: n.d. | CP113: n.d. | CQ113: n.d. | CR113: n.d. | CS113: n.d. | CT113: n.d. | CU113: n.d. | CV113: n.d. | CW113: n.d. | CX113: n.d. | CY113: n.d. | CZ113: n.d. | DA113: n.d. | DB113: n.d. | DC113: n.d. | DD113: n.d. | DE113: n.d. | DF113: n.d. | DG113: n.d. | DH113: n.d.
A114: 1999 | B114: abril | C114: 1999-abril | D114: 6.696432453 | E114: 7.547210522 | F114: 6.333089038 | G114: 7.052620434 | H114: n.d. | I114: n.d. | J114: n.d. | K114: n.d. | L114: n.d. | N114: n.d. | P114: n.d. | Q114: n.d. | R114: n.d. | S114: n.d. | T114: n.d. | U114: n.d. | V114: n.d. | W114: n.d. | X114: n.d. | Y114: n.d. | Z114: n.d. | AA114: n.d. | AC114: n.d. | AD114: n.d. | AE114: n.d. | AF114: n.d. | AG114: n.d. | AH114: n.d. | AI114: n.d. | AJ114: n.d. | AK114: n.d. | AL114: n.d. | AN114: n.d. | AO114: n.d. | AP114: n.d. | AQ114: n.d. | AR114: n.d. | AS114: n.d. | AT114: n.d. | AU114: n.d. | AV114: n.d. | AW114: n.d. | AX114: n.d. | AY114: n.d. | AZ114: n.d. | BA114: n.d. | BB114: n.d. | BC114: n.d. | BD114: n.d. | BE114: n.d. | BF114: n.d. | BG114: n.d. | BH114: n.d. | BI114: n.d. | BJ114: n.d. | BK114: n.a. | BL114: n.d. | BM114: n.d. | BN114: n.a. | BO114: n.d. | BP114: n.a. | BQ114: n.d. | BR114: n.d. | BS114: n.d. | BT114: n.d. | BU114: n.d. | BV114: n.d. | BW114: n.d. | BX114: n.d. | BY114: n.d. | BZ114: n.d. | CA114: n.d. | CB114: n.d. | CC114: n.d. | CD114: n.d. | CE114: n.d. | CF114: n.d. | CG114: n.d. | CH114: n.d. | CI114: n.d. | CJ114: n.d. | CK114: n.d. | CL114: n.d. | CM114: n.d. | CN114: n.d. | CO114: n.d. | CP114: n.d. | CQ114: n.d. | CR114: n.d. | CS114: n.d. | CT114: n.d. | CU114: n.d. | CV114: n.d. | CW114: n.d. | CX114: n.d. | CY114: n.d. | CZ114: n.d. | DA114: n.d. | DB114: n.d. | DC114: n.d. | DD114: n.d. | DE114: n.d. | DF114: n.d. | DG114: n.d. | DH114: n.d.
A115: 1999 | B115: mayo | C115: 1999-mayo | D115: 6.417847363 | E115: 7.51041178 | F115: 6.064007453 | G115: 7.023739354 | H115: n.d. | I115: n.d. | J115: n.d. | K115: n.d. | L115: n.d. | N115: n.d. | P115: n.d. | Q115: n.d. | R115: n.d. | S115: n.d. | T115: n.d. | U115: n.d. | V115: n.d. | W115: n.d. | X115: n.d. | Y115: n.d. | Z115: n.d. | AA115: n.d. | AC115: n.d. | AD115: n.d. | AE115: n.d. | AF115: n.d. | AG115: n.d. | AH115: n.d. | AI115: n.d. | AJ115: n.d. | AK115: n.d. | AL115: n.d. | AN115: n.d. | AO115: n.d. | AP115: n.d. | AQ115: n.d. | AR115: n.d. | AS115: n.d. | AT115: n.d. | AU115: n.d. | AV115: n.d. | AW115: n.d. | AX115: n.d. | AY115: n.d. | AZ115: n.d. | BA115: n.d. | BB115: n.d. | BC115: n.d. | BD115: n.d. | BE115: n.d. | BF115: n.d. | BG115: n.d. | BH115: n.d. | BI115: n.d. | BJ115: n.d. | BK115: n.a. | BL115: n.d. | BM115: n.d. | BN115: n.a. | BO115: n.d. | BP115: n.a. | BQ115: n.d. | BR115: n.d. | BS115: n.d. | BT115: n.d. | BU115: n.d. | BV115: n.d. | BW115: n.d. | BX115: n.d. | BY115: n.d. | BZ115: n.d. | CA115: n.d. | CB115: n.d. | CC115: n.d. | CD115: n.d. | CE115: n.d. | CF115: n.d. | CG115: n.d. | CH115: n.d. | CI115: n.d. | CJ115: n.d. | CK115: n.d. | CL115: n.d. | CM115: n.d. | CN115: n.d. | CO115: n.d. | CP115: n.d. | CQ115: n.d. | CR115: n.d. | CS115: n.d. | CT115: n.d. | CU115: n.d. | CV115: n.d. | CW115: n.d. | CX115: n.d. | CY115: n.d. | CZ115: n.d. | DA115: n.d. | DB115: n.d. | DC115: n.d. | DD115: n.d. | DE115: n.d. | DF115: n.d. | DG115: n.d. | DH115: n.d.
A116: 1999 | B116: junio | C116: 1999-junio | D116: 6.226065452 | E116: 7.479974166 | F116: 5.881348044 | G116: 7.000555901 | H116: n.d. | I116: n.d. | J116: n.d. | K116: n.d. | L116: n.d. | N116: n.d. | P116: n.d. | Q116: n.d. | R116: n.d. | S116: n.d. | T116: n.d. | U116: n.d. | V116: n.d. | W116: n.d. | X116: n.d. | Y116: n.d. | Z116: n.d. | AA116: n.d. | AC116: n.d. | AD116: n.d. | AE116: n.d. | AF116: n.d. | AG116: n.d. | AH116: n.d. | AI116: n.d. | AJ116: n.d. | AK116: n.d. | AL116: n.d. | AN116: n.d. | AO116: n.d. | AP116: n.d. | AQ116: n.d. | AR116: n.d. | AS116: n.d. | AT116: n.d. | AU116: n.d. | AV116: n.d. | AW116: n.d. | AX116: n.d. | AY116: n.d. | AZ116: n.d. | BA116: n.d. | BB116: n.d. | BC116: n.d. | BD116: n.d. | BE116: n.d. | BF116: n.d. | BG116: n.d. | BH116: n.d. | BI116: n.d. | BJ116: n.d. | BK116: n.a. | BL116: n.d. | BM116: n.d. | BN116: n.a. | BO116: n.d. | BP116: n.a. | BQ116: n.d. | BR116: n.d. | BS116: n.d. | BT116: n.d. | BU116: n.d. | BV116: n.d. | BW116: n.d. | BX116: n.d. | BY116: n.d. | BZ116: n.d. | CA116: n.d. | CB116: n.d. | CC116: n.d. | CD116: n.d. | CE116: n.d. | CF116: n.d. | CG116: n.d. | CH116: n.d. | CI116: n.d. | CJ116: n.d. | CK116: n.d. | CL116: n.d. | CM116: n.d. | CN116: n.d. | CO116: n.d. | CP116: n.d. | CQ116: n.d. | CR116: n.d. | CS116: n.d. | CT116: n.d. | CU116: n.d. | CV116: n.d. | CW116: n.d. | CX116: n.d. | CY116: n.d. | CZ116: n.d. | DA116: n.d. | DB116: n.d. | DC116: n.d. | DD116: n.d. | DE116: n.d. | DF116: n.d. | DG116: n.d. | DH116: n.d.
A117: 1999 | B117: julio | C117: 1999-julio | D117: 5.938072924 | E117: 7.455833508 | F117: 5.624682737 | G117: 6.982965427 | H117: n.d. | I117: n.d. | J117: n.d. | K117: n.d. | L117: n.d. | N117: n.d. | P117: n.d. | Q117: n.d. | R117: n.d. | S117: n.d. | T117: n.d. | U117: n.d. | V117: n.d. | W117: n.d. | X117: n.d. | Y117: n.d. | Z117: n.d. | AA117: n.d. | AC117: n.d. | AD117: n.d. | AE117: n.d. | AF117: n.d. | AG117: n.d. | AH117: n.d. | AI117: n.d. | AJ117: n.d. | AK117: n.d. | AL117: n.d. | AN117: n.d. | AO117: n.d. | AP117: n.d. | AQ117: n.d. | AR117: n.d. | AS117: n.d. | AT117: n.d. | AU117: n.d. | AV117: n.d. | AW117: n.d. | AX117: n.d. | AY117: n.d. | AZ117: n.d. | BA117: n.d. | BB117: n.d. | BC117: n.d. | BD117: n.d. | BE117: n.d. | BF117: n.d. | BG117: n.d. | BH117: n.d. | BI117: n.d. | BJ117: n.d. | BK117: n.a. | BL117: n.d. | BM117: n.d. | BN117: n.a. | BO117: n.d. | BP117: n.a. | BQ117: n.d. | BR117: n.d. | BS117: n.d. | BT117: n.d. | BU117: n.d. | BV117: n.d. | BW117: n.d. | BX117: n.d. | BY117: n.d. | BZ117: n.d. | CA117: n.d. | CB117: n.d. | CC117: n.d. | CD117: n.d. | CE117: n.d. | CF117: n.d. | CG117: n.d. | CH117: n.d. | CI117: n.d. | CJ117: n.d. | CK117: n.d. | CL117: n.d. | CM117: n.d. | CN117: n.d. | CO117: n.d. | CP117: n.d. | CQ117: n.d. | CR117: n.d. | CS117: n.d. | CT117: n.d. | CU117: n.d. | CV117: n.d. | CW117: n.d. | CX117: n.d. | CY117: n.d. | CZ117: n.d. | DA117: n.d. | DB117: n.d. | DC117: n.d. | DD117: n.d. | DE117: n.d. | DF117: n.d. | DG117: n.d. | DH117: n.d.
A118: 1999 | B118: agosto | C118: 1999-agosto | D118: 6.274972431 | E118: 7.437844831 | F118: 5.944344249 | G118: 6.970782587 | H118: n.d. | I118: n.d. | J118: n.d. | K118: n.d. | L118: n.d. | N118: n.d. | P118: n.d. | Q118: n.d. | R118: n.d. | S118: n.d. | T118: n.d. | U118: n.d. | V118: n.d. | W118: n.d. | X118: n.d. | Y118: n.d. | Z118: n.d. | AA118: n.d. | AC118: n.d. | AD118: n.d. | AE118: n.d. | AF118: n.d. | AG118: n.d. | AH118: n.d. | AI118: n.d. | AJ118: n.d. | AK118: n.d. | AL118: n.d. | AN118: n.d. | AO118: n.d. | AP118: n.d. | AQ118: n.d. | AR118: n.d. | AS118: n.d. | AT118: n.d. | AU118: n.d. | AV118: n.d. | AW118: n.d. | AX118: n.d. | AY118: n.d. | AZ118: n.d. | BA118: n.d. | BB118: n.d. | BC118: n.d. | BD118: n.d. | BE118: n.d. | BF118: n.d. | BG118: n.d. | BH118: n.d. | BI118: n.d. | BJ118: n.d. | BK118: n.a. | BL118: n.d. | BM118: n.d. | BN118: n.a. | BO118: n.d. | BP118: n.a. | BQ118: n.d. | BR118: n.d. | BS118: n.d. | BT118: n.d. | BU118: n.d. | BV118: n.d. | BW118: n.d. | BX118: n.d. | BY118: n.d. | BZ118: n.d. | CA118: n.d. | CB118: n.d. | CC118: n.d. | CD118: n.d. | CE118: n.d. | CF118: n.d. | CG118: n.d. | CH118: n.d. | CI118: n.d. | CJ118: n.d. | CK118: n.d. | CL118: n.d. | CM118: n.d. | CN118: n.d. | CO118: n.d. | CP118: n.d. | CQ118: n.d. | CR118: n.d. | CS118: n.d. | CT118: n.d. | CU118: n.d. | CV118: n.d. | CW118: n.d. | CX118: n.d. | CY118: n.d. | CZ118: n.d. | DA118: n.d. | DB118: n.d. | DC118: n.d. | DD118: n.d. | DE118: n.d. | DF118: n.d. | DG118: n.d. | DH118: n.d.
A119: 1999 | B119: septiembre | C119: 1999-septiembre | D119: 6.918695213 | E119: 7.425775542 | F119: 6.495924528 | G119: 6.963733588 | H119: n.d. | I119: n.d. | J119: n.d. | K119: n.d. | L119: n.d. | N119: n.d. | P119: n.d. | Q119: n.d. | R119: n.d. | S119: n.d. | T119: n.d. | U119: n.d. | V119: n.d. | W119: n.d. | X119: n.d. | Y119: n.d. | Z119: n.d. | AA119: n.d. | AC119: n.d. | AD119: n.d. | AE119: n.d. | AF119: n.d. | AG119: n.d. | AH119: n.d. | AI119: n.d. | AJ119: n.d. | AK119: n.d. | AL119: n.d. | AN119: n.d. | AO119: n.d. | AP119: n.d. | AQ119: n.d. | AR119: n.d. | AS119: n.d. | AT119: n.d. | AU119: n.d. | AV119: n.d. | AW119: n.d. | AX119: n.d. | AY119: n.d. | AZ119: n.d. | BA119: n.d. | BB119: n.d. | BC119: n.d. | BD119: n.d. | BE119: n.d. | BF119: n.d. | BG119: n.d. | BH119: n.d. | BI119: n.d. | BJ119: n.d. | BK119: n.a. | BL119: n.d. | BM119: n.d. | BN119: n.a. | BO119: n.d. | BP119: n.a. | BQ119: n.d. | BR119: n.d. | BS119: n.d. | BT119: n.d. | BU119: n.d. | BV119: n.d. | BW119: n.d. | BX119: n.d. | BY119: n.d. | BZ119: n.d. | CA119: n.d. | CB119: n.d. | CC119: n.d. | CD119: n.d. | CE119: n.d. | CF119: n.d. | CG119: n.d. | CH119: n.d. | CI119: n.d. | CJ119: n.d. | CK119: n.d. | CL119: n.d. | CM119: n.d. | CN119: n.d. | CO119: n.d. | CP119: n.d. | CQ119: n.d. | CR119: n.d. | CS119: n.d. | CT119: n.d. | CU119: n.d. | CV119: n.d. | CW119: n.d. | CX119: n.d. | CY119: n.d. | CZ119: n.d. | DA119: n.d. | DB119: n.d. | DC119: n.d. | DD119: n.d. | DE119: n.d. | DF119: n.d. | DG119: n.d. | DH119: n.d.
A120: 1999 | B120: octubre | C120: 1999-octubre | D120: 7.76623244 | E120: 7.419325324 | F120: 7.276136961 | G120: 6.961474263 | H120: n.d. | I120: n.d. | J120: n.d. | K120: n.d. | L120: n.d. | N120: n.d. | P120: n.d. | Q120: n.d. | R120: n.d. | S120: n.d. | T120: n.d. | U120: n.d. | V120: n.d. | W120: n.d. | X120: n.d. | Y120: n.d. | Z120: n.d. | AA120: n.d. | AC120: n.d. | AD120: n.d. | AE120: n.d. | AF120: n.d. | AG120: n.d. | AH120: n.d. | AI120: n.d. | AJ120: n.d. | AK120: n.d. | AL120: n.d. | AN120: n.d. | AO120: n.d. | AP120: n.d. | AQ120: n.d. | AR120: n.d. | AS120: n.d. | AT120: n.d. | AU120: n.d. | AV120: n.d. | AW120: n.d. | AX120: n.d. | AY120: n.d. | AZ120: n.d. | BA120: n.d. | BB120: n.d. | BC120: n.d. | BD120: n.d. | BE120: n.d. | BF120: n.d. | BG120: n.d. | BH120: n.d. | BI120: n.d. | BJ120: n.d. | BK120: n.a. | BL120: n.d. | BM120: n.d. | BN120: n.a. | BO120: n.d. | BP120: n.a. | BQ120: n.d. | BR120: n.d. | BS120: n.d. | BT120: n.d. | BU120: n.d. | BV120: n.d. | BW120: n.d. | BX120: n.d. | BY120: n.d. | BZ120: n.d. | CA120: n.d. | CB120: n.d. | CC120: n.d. | CD120: n.d. | CE120: n.d. | CF120: n.d. | CG120: n.d. | CH120: n.d. | CI120: n.d. | CJ120: n.d. | CK120: n.d. | CL120: n.d. | CM120: n.d. | CN120: n.d. | CO120: n.d. | CP120: n.d. | CQ120: n.d. | CR120: n.d. | CS120: n.d. | CT120: n.d. | CU120: n.d. | CV120: n.d. | CW120: n.d. | CX120: n.d. | CY120: n.d. | CZ120: n.d. | DA120: n.d. | DB120: n.d. | DC120: n.d. | DD120: n.d. | DE120: n.d. | DF120: n.d. | DG120: n.d. | DH120: n.d.
A121: 1999 | B121: noviembre | C121: 1999-noviembre | D121: 6.290642815 | E121: 7.418171844 | F121: 5.93387305 | G121: 6.96363699 | H121: n.d. | I121: n.d. | J121: n.d. | K121: n.d. | L121: n.d. | N121: n.d. | P121: n.d. | Q121: n.d. | R121: n.d. | S121: n.d. | T121: n.d. | U121: n.d. | V121: n.d. | W121: n.d. | X121: n.d. | Y121: n.d. | Z121: n.d. | AA121: n.d. | AC121: n.d. | AD121: n.d. | AE121: n.d. | AF121: n.d. | AG121: n.d. | AH121: n.d. | AI121: n.d. | AJ121: n.d. | AK121: n.d. | AL121: n.d. | AN121: n.d. | AO121: n.d. | AP121: n.d. | AQ121: n.d. | AR121: n.d. | AS121: n.d. | AT121: n.d. | AU121: n.d. | AV121: n.d. | AW121: n.d. | AX121: n.d. | AY121: n.d. | AZ121: n.d. | BA121: n.d. | BB121: n.d. | BC121: n.d. | BD121: n.d. | BE121: n.d. | BF121: n.d. | BG121: n.d. | BH121: n.d. | BI121: n.d. | BJ121: n.d. | BK121: n.a. | BL121: n.d. | BM121: n.d. | BN121: n.a. | BO121: n.d. | BP121: n.a. | BQ121: n.d. | BR121: n.d. | BS121: n.d. | BT121: n.d. | BU121: n.d. | BV121: n.d. | BW121: n.d. | BX121: n.d. | BY121: n.d. | BZ121: n.d. | CA121: n.d. | CB121: n.d. | CC121: n.d. | CD121: n.d. | CE121: n.d. | CF121: n.d. | CG121: n.d. | CH121: n.d. | CI121: n.d. | CJ121: n.d. | CK121: n.d. | CL121: n.d. | CM121: n.d. | CN121: n.d. | CO121: n.d. | CP121: n.d. | CQ121: n.d. | CR121: n.d. | CS121: n.d. | CT121: n.d. | CU121: n.d. | CV121: n.d. | CW121: n.d. | CX121: n.d. | CY121: n.d. | CZ121: n.d. | DA121: n.d. | DB121: n.d. | DC121: n.d. | DD121: n.d. | DE121: n.d. | DF121: n.d. | DG121: n.d. | DH121: n.d.
A122: 1999 | B122: diciembre | C122: 1999-diciembre | D122: 6.066142402 | E122: 7.422014168 | F122: 5.768714666 | G122: 6.969877542 | H122: n.d. | I122: n.d. | J122: n.d. | K122: n.d. | L122: n.d. | M122: n.d. | N122: n.d. | O122: n.d. | P122: n.d. | Q122: n.d. | R122: n.d. | S122: n.d. | T122: n.d. | U122: n.d. | V122: n.d. | W122: n.d. | X122: n.d. | Y122: n.d. | Z122: n.d. | AA122: n.d. | AC122: n.d. | AD122: n.d. | AE122: n.d. | AF122: n.d. | AG122: n.d. | AH122: n.d. | AI122: n.d. | AJ122: n.d. | AK122: n.d. | AL122: n.d. | AN122: n.d. | AO122: n.d. | AP122: n.d. | AQ122: n.d. | AR122: n.d. | AS122: n.d. | AT122: n.d. | AU122: n.d. | AV122: n.d. | AW122: n.d. | AX122: n.d. | AY122: n.d. | AZ122: n.d. | BA122: n.d. | BB122: n.d. | BC122: n.d. | BD122: n.d. | BE122: n.d. | BF122: n.d. | BG122: n.d. | BH122: n.d. | BI122: n.d. | BJ122: n.d. | BK122: n.a. | BL122: n.d. | BM122: n.d. | BN122: n.a. | BO122: n.d. | BP122: n.a. | BQ122: n.d. | BR122: n.d. | BS122: n.d. | BT122: n.d. | BU122: n.d. | BV122: n.d. | BW122: n.d. | BX122: n.d. | BY122: n.d. | BZ122: n.d. | CA122: n.d. | CB122: n.d. | CC122: n.d. | CD122: n.d. | CE122: n.d. | CF122: n.d. | CG122: n.d. | CH122: n.d. | CI122: n.d. | CJ122: n.d. | CK122: n.d. | CL122: n.d. | CM122: n.d. | CN122: n.d. | CO122: n.d. | CP122: n.d. | CQ122: n.d. | CR122: n.d. | CS122: n.d. | CT122: n.d. | CU122: n.d. | CV122: n.d. | CW122: n.d. | CX122: n.d. | CY122: n.d. | CZ122: n.d. | DA122: n.d. | DB122: n.d. | DC122: n.d. | DD122: n.d. | DE122: n.d. | DF122: n.d. | DG122: n.d. | DH122: n.d.
A123: 2000 | B123: enero | C123: 2000-enero | D123: 6.734489635 | E123: 7.43056177 | F123: 6.325375012 | G123: 6.979866522 | H123: n.d. | I123: n.d. | J123: n.d. | K123: n.d. | L123: n.d. | N123: n.d. | P123: n.d. | Q123: n.d. | R123: n.d. | S123: n.d. | T123: n.d. | U123: n.d. | V123: n.d. | W123: n.d. | X123: n.d. | Y123: n.d. | Z123: n.d. | AA123: n.d. | AC123: n.d. | AD123: n.d. | AE123: n.d. | AF123: n.d. | AG123: n.d. | AH123: n.d. | AI123: n.d. | AJ123: n.d. | AK123: n.d. | AL123: n.d. | AN123: n.d. | AO123: n.d. | AP123: n.d. | AQ123: n.d. | AR123: n.d. | AS123: n.d. | AT123: n.d. | AU123: n.d. | AV123: n.d. | AW123: n.d. | AX123: n.d. | AY123: n.d. | AZ123: n.d. | BA123: n.d. | BB123: n.d. | BC123: n.d. | BD123: n.d. | BE123: n.d. | BF123: n.d. | BG123: n.d. | BH123: n.d. | BI123: n.d. | BJ123: n.d. | BK123: n.a. | BL123: n.d. | BM123: n.d. | BN123: n.a. | BO123: n.d. | BP123: n.a. | BQ123: n.d. | BR123: n.d. | BS123: n.d. | BT123: n.d. | BU123: n.d. | BV123: n.d. | BW123: n.d. | BX123: n.d. | BY123: n.d. | BZ123: n.d. | CA123: n.d. | CB123: n.d. | CC123: n.d. | CD123: n.d. | CE123: n.d. | CF123: n.d. | CG123: n.d. | CH123: n.d. | CI123: n.d. | CJ123: n.d. | CK123: n.d. | CL123: n.d. | CM123: n.d. | CN123: n.d. | CO123: n.d. | CP123: n.d. | CQ123: n.d. | CR123: n.d. | CS123: n.d. | CT123: n.d. | CU123: n.d. | CV123: n.d. | CW123: n.d. | CX123: n.d. | CY123: n.d. | CZ123: n.d. | DA123: n.d. | DB123: n.d. | DC123: n.d. | DD123: n.d. | DE123: n.d. | DF123: n.d. | DG123: n.d. | DH123: n.d.
A124: 2000 | B124: febrero | C124: 2000-febrero | D124: 7.689344441 | E124: 7.443504127 | F124: 7.20362377 | G124: 6.993258151 | H124: n.d. | I124: n.d. | J124: n.d. | K124: n.d. | L124: n.d. | N124: n.d. | P124: n.d. | Q124: n.d. | R124: n.d. | S124: n.d. | T124: n.d. | U124: n.d. | V124: n.d. | W124: n.d. | X124: n.d. | Y124: n.d. | Z124: n.d. | AA124: n.d. | AC124: n.d. | AD124: n.d. | AE124: n.d. | AF124: n.d. | AG124: n.d. | AH124: n.d. | AI124: n.d. | AJ124: n.d. | AK124: n.d. | AL124: n.d. | AN124: n.d. | AO124: n.d. | AP124: n.d. | AQ124: n.d. | AR124: n.d. | AS124: n.d. | AT124: n.d. | AU124: n.d. | AV124: n.d. | AW124: n.d. | AX124: n.d. | AY124: n.d. | AZ124: n.d. | BA124: n.d. | BB124: n.d. | BC124: n.d. | BD124: n.d. | BE124: n.d. | BF124: n.d. | BG124: n.d. | BH124: n.d. | BI124: n.d. | BJ124: n.d. | BK124: n.a. | BL124: n.d. | BM124: n.d. | BN124: n.a. | BO124: n.d. | BP124: n.a. | BQ124: n.d. | BR124: n.d. | BS124: n.d. | BT124: n.d. | BU124: n.d. | BV124: n.d. | BW124: n.d. | BX124: n.d. | BY124: n.d. | BZ124: n.d. | CA124: n.d. | CB124: n.d. | CC124: n.d. | CD124: n.d. | CE124: n.d. | CF124: n.d. | CG124: n.d. | CH124: n.d. | CI124: n.d. | CJ124: n.d. | CK124: n.d. | CL124: n.d. | CM124: n.d. | CN124: n.d. | CO124: n.d. | CP124: n.d. | CQ124: n.d. | CR124: n.d. | CS124: n.d. | CT124: n.d. | CU124: n.d. | CV124: n.d. | CW124: n.d. | CX124: n.d. | CY124: n.d. | CZ124: n.d. | DA124: n.d. | DB124: n.d. | DC124: n.d. | DD124: n.d. | DE124: n.d. | DF124: n.d. | DG124: n.d. | DH124: n.d.
A125: 2000 | B125: marzo | C125: 2000-marzo | D125: 8.542605797 | E125: 7.460530646 | F125: 8.02518189 | G125: 7.009707378 | H125: n.d. | I125: n.d. | J125: n.d. | K125: n.d. | L125: n.d. | N125: n.d. | P125: n.d. | Q125: n.d. | R125: n.d. | S125: n.d. | T125: n.d. | U125: n.d. | V125: n.d. | W125: n.d. | X125: n.d. | Y125: n.d. | Z125: n.d. | AA125: n.d. | AC125: n.d. | AD125: n.d. | AE125: n.d. | AF125: n.d. | AG125: n.d. | AH125: n.d. | AI125: n.d. | AJ125: n.d. | AK125: n.d. | AL125: n.d. | AN125: n.d. | AO125: n.d. | AP125: n.d. | AQ125: n.d. | AR125: n.d. | AS125: n.d. | AT125: n.d. | AU125: n.d. | AV125: n.d. | AW125: n.d. | AX125: n.d. | AY125: n.d. | AZ125: n.d. | BA125: n.d. | BB125: n.d. | BC125: n.d. | BD125: n.d. | BE125: n.d. | BF125: n.d. | BG125: n.d. | BH125: n.d. | BI125: n.d. | BJ125: n.d. | BK125: n.a. | BL125: n.d. | BM125: n.d. | BN125: n.a. | BO125: n.d. | BP125: n.a. | BQ125: n.d. | BR125: n.d. | BS125: n.d. | BT125: n.d. | BU125: n.d. | BV125: n.d. | BW125: n.d. | BX125: n.d. | BY125: n.d. | BZ125: n.d. | CA125: n.d. | CB125: n.d. | CC125: n.d. | CD125: n.d. | CE125: n.d. | CF125: n.d. | CG125: n.d. | CH125: n.d. | CI125: n.d. | CJ125: n.d. | CK125: n.d. | CL125: n.d. | CM125: n.d. | CN125: n.d. | CO125: n.d. | CP125: n.d. | CQ125: n.d. | CR125: n.d. | CS125: n.d. | CT125: n.d. | CU125: n.d. | CV125: n.d. | CW125: n.d. | CX125: n.d. | CY125: n.d. | CZ125: n.d. | DA125: n.d. | DB125: n.d. | DC125: n.d. | DD125: n.d. | DE125: n.d. | DF125: n.d. | DG125: n.d. | DH125: n.d.
A126: 2000 | B126: abril | C126: 2000-abril | D126: 8.8315745 | E126: 7.481376537 | F126: 8.279866246 | G126: 7.028918953 | H126: n.d. | I126: n.d. | J126: n.d. | K126: n.d. | L126: n.d. | N126: n.d. | P126: n.d. | Q126: n.d. | R126: n.d. | S126: n.d. | T126: n.d. | U126: n.d. | V126: n.d. | W126: n.d. | X126: n.d. | Y126: n.d. | Z126: n.d. | AA126: n.d. | AC126: n.d. | AD126: n.d. | AE126: n.d. | AF126: n.d. | AG126: n.d. | AH126: n.d. | AI126: n.d. | AJ126: n.d. | AK126: n.d. | AL126: n.d. | AN126: n.d. | AO126: n.d. | AP126: n.d. | AQ126: n.d. | AR126: n.d. | AS126: n.d. | AT126: n.d. | AU126: n.d. | AV126: n.d. | AW126: n.d. | AX126: n.d. | AY126: n.d. | AZ126: n.d. | BA126: n.d. | BB126: n.d. | BC126: n.d. | BD126: n.d. | BE126: n.d. | BF126: n.d. | BG126: n.d. | BH126: n.d. | BI126: n.d. | BJ126: n.d. | BK126: n.a. | BL126: n.d. | BM126: n.d. | BN126: n.a. | BO126: n.d. | BP126: n.a. | BQ126: n.d. | BR126: n.d. | BS126: n.d. | BT126: n.d. | BU126: n.d. | BV126: n.d. | BW126: n.d. | BX126: n.d. | BY126: n.d. | BZ126: n.d. | CA126: n.d. | CB126: n.d. | CC126: n.d. | CD126: n.d. | CE126: n.d. | CF126: n.d. | CG126: n.d. | CH126: n.d. | CI126: n.d. | CJ126: n.d. | CK126: n.d. | CL126: n.d. | CM126: n.d. | CN126: n.d. | CO126: n.d. | CP126: n.d. | CQ126: n.d. | CR126: n.d. | CS126: n.d. | CT126: n.d. | CU126: n.d. | CV126: n.d. | CW126: n.d. | CX126: n.d. | CY126: n.d. | CZ126: n.d. | DA126: n.d. | DB126: n.d. | DC126: n.d. | DD126: n.d. | DE126: n.d. | DF126: n.d. | DG126: n.d. | DH126: n.d.
A127: 2000 | B127: mayo | C127: 2000-mayo | D127: 8.37450661 | E127: 7.505863954 | F127: 7.865052696 | G127: 7.050692377 | H127: n.d. | I127: n.d. | J127: n.d. | K127: n.d. | L127: n.d. | N127: n.d. | P127: n.d. | Q127: n.d. | R127: n.d. | S127: n.d. | T127: n.d. | U127: n.d. | V127: n.d. | W127: n.d. | X127: n.d. | Y127: n.d. | Z127: n.d. | AA127: n.d. | AC127: n.d. | AD127: n.d. | AE127: n.d. | AF127: n.d. | AG127: n.d. | AH127: n.d. | AI127: n.d. | AJ127: n.d. | AK127: n.d. | AL127: n.d. | AN127: n.d. | AO127: n.d. | AP127: n.d. | AQ127: n.d. | AR127: n.d. | AS127: n.d. | AT127: n.d. | AU127: n.d. | AV127: n.d. | AW127: n.d. | AX127: n.d. | AY127: n.d. | AZ127: n.d. | BA127: n.d. | BB127: n.d. | BC127: n.d. | BD127: n.d. | BE127: n.d. | BF127: n.d. | BG127: n.d. | BH127: n.d. | BI127: n.d. | BJ127: n.d. | BK127: n.a. | BL127: n.d. | BM127: n.d. | BN127: n.a. | BO127: n.d. | BP127: n.a. | BQ127: n.d. | BR127: n.d. | BS127: n.d. | BT127: n.d. | BU127: n.d. | BV127: n.d. | BW127: n.d. | BX127: n.d. | BY127: n.d. | BZ127: n.d. | CA127: n.d. | CB127: n.d. | CC127: n.d. | CD127: n.d. | CE127: n.d. | CF127: n.d. | CG127: n.d. | CH127: n.d. | CI127: n.d. | CJ127: n.d. | CK127: n.d. | CL127: n.d. | CM127: n.d. | CN127: n.d. | CO127: n.d. | CP127: n.d. | CQ127: n.d. | CR127: n.d. | CS127: n.d. | CT127: n.d. | CU127: n.d. | CV127: n.d. | CW127: n.d. | CX127: n.d. | CY127: n.d. | CZ127: n.d. | DA127: n.d. | DB127: n.d. | DC127: n.d. | DD127: n.d. | DE127: n.d. | DF127: n.d. | DG127: n.d. | DH127: n.d.
A128: 2000 | B128: junio | C128: 2000-junio | D128: 8.816021608 | E128: 7.533904884 | F128: 8.281884303 | G128: 7.074922345 | H128: n.d. | I128: n.d. | J128: n.d. | K128: n.d. | L128: n.d. | N128: n.d. | P128: n.d. | Q128: n.d. | R128: n.d. | S128: n.d. | T128: n.d. | U128: n.d. | V128: n.d. | W128: n.d. | X128: n.d. | Y128: n.d. | Z128: n.d. | AA128: n.d. | AC128: n.d. | AD128: n.d. | AE128: n.d. | AF128: n.d. | AG128: n.d. | AH128: n.d. | AI128: n.d. | AJ128: n.d. | AK128: n.d. | AL128: n.d. | AN128: n.d. | AO128: n.d. | AP128: n.d. | AQ128: n.d. | AR128: n.d. | AS128: n.d. | AT128: n.d. | AU128: n.d. | AV128: n.d. | AW128: n.d. | AX128: n.d. | AY128: n.d. | AZ128: n.d. | BA128: n.d. | BB128: n.d. | BC128: n.d. | BD128: n.d. | BE128: n.d. | BF128: n.d. | BG128: n.d. | BH128: n.d. | BI128: n.d. | BJ128: n.d. | BK128: n.a. | BL128: n.d. | BM128: n.d. | BN128: n.a. | BO128: n.d. | BP128: n.a. | BQ128: n.d. | BR128: n.d. | BS128: n.d. | BT128: n.d. | BU128: n.d. | BV128: n.d. | BW128: n.d. | BX128: n.d. | BY128: n.d. | BZ128: n.d. | CA128: n.d. | CB128: n.d. | CC128: n.d. | CD128: n.d. | CE128: n.d. | CF128: n.d. | CG128: n.d. | CH128: n.d. | CI128: n.d. | CJ128: n.d. | CK128: n.d. | CL128: n.d. | CM128: n.d. | CN128: n.d. | CO128: n.d. | CP128: n.d. | CQ128: n.d. | CR128: n.d. | CS128: n.d. | CT128: n.d. | CU128: n.d. | CV128: n.d. | CW128: n.d. | CX128: n.d. | CY128: n.d. | CZ128: n.d. | DA128: n.d. | DB128: n.d. | DC128: n.d. | DD128: n.d. | DE128: n.d. | DF128: n.d. | DG128: n.d. | DH128: n.d.
A129: 2000 | B129: julio | C129: 2000-julio | D129: 8.764842006 | E129: 7.56547927 | F129: 8.235763194 | G129: 7.101575906 | H129: n.d. | I129: n.d. | J129: n.d. | K129: n.d. | L129: n.d. | N129: n.d. | P129: n.d. | Q129: n.d. | R129: n.d. | S129: n.d. | T129: n.d. | U129: n.d. | V129: n.d. | W129: n.d. | X129: n.d. | Y129: n.d. | Z129: n.d. | AA129: n.d. | AC129: n.d. | AD129: n.d. | AE129: n.d. | AF129: n.d. | AG129: n.d. | AH129: n.d. | AI129: n.d. | AJ129: n.d. | AK129: n.d. | AL129: n.d. | AN129: n.d. | AO129: n.d. | AP129: n.d. | AQ129: n.d. | AR129: n.d. | AS129: n.d. | AT129: n.d. | AU129: n.d. | AV129: n.d. | AW129: n.d. | AX129: n.d. | AY129: n.d. | AZ129: n.d. | BA129: n.d. | BB129: n.d. | BC129: n.d. | BD129: n.d. | BE129: n.d. | BF129: n.d. | BG129: n.d. | BH129: n.d. | BI129: n.d. | BJ129: n.d. | BK129: n.a. | BL129: n.d. | BM129: n.d. | BN129: n.a. | BO129: n.d. | BP129: n.a. | BQ129: n.d. | BR129: n.d. | BS129: n.d. | BT129: n.d. | BU129: n.d. | BV129: n.d. | BW129: n.d. | BX129: n.d. | BY129: n.d. | BZ129: n.d. | CA129: n.d. | CB129: n.d. | CC129: n.d. | CD129: n.d. | CE129: n.d. | CF129: n.d. | CG129: n.d. | CH129: n.d. | CI129: n.d. | CJ129: n.d. | CK129: n.d. | CL129: n.d. | CM129: n.d. | CN129: n.d. | CO129: n.d. | CP129: n.d. | CQ129: n.d. | CR129: n.d. | CS129: n.d. | CT129: n.d. | CU129: n.d. | CV129: n.d. | CW129: n.d. | CX129: n.d. | CY129: n.d. | CZ129: n.d. | DA129: n.d. | DB129: n.d. | DC129: n.d. | DD129: n.d. | DE129: n.d. | DF129: n.d. | DG129: n.d. | DH129: n.d.
A130: 2000 | B130: agosto | C130: 2000-agosto | D130: 8.509577721 | E130: 7.60064494 | F130: 7.975579661 | G130: 7.130705141 | H130: n.d. | I130: n.d. | J130: n.d. | K130: n.d. | L130: n.d. | N130: n.d. | P130: n.d. | Q130: n.d. | R130: n.d. | S130: n.d. | T130: n.d. | U130: n.d. | V130: n.d. | W130: n.d. | X130: n.d. | Y130: n.d. | Z130: n.d. | AA130: n.d. | AC130: n.d. | AD130: n.d. | AE130: n.d. | AF130: n.d. | AG130: n.d. | AH130: n.d. | AI130: n.d. | AJ130: n.d. | AK130: n.d. | AL130: n.d. | AN130: n.d. | AO130: n.d. | AP130: n.d. | AQ130: n.d. | AR130: n.d. | AS130: n.d. | AT130: n.d. | AU130: n.d. | AV130: n.d. | AW130: n.d. | AX130: n.d. | AY130: n.d. | AZ130: n.d. | BA130: n.d. | BB130: n.d. | BC130: n.d. | BD130: n.d. | BE130: n.d. | BF130: n.d. | BG130: n.d. | BH130: n.d. | BI130: n.d. | BJ130: n.d. | BK130: n.a. | BL130: n.d. | BM130: n.d. | BN130: n.a. | BO130: n.d. | BP130: n.a. | BQ130: n.d. | BR130: n.d. | BS130: n.d. | BT130: n.d. | BU130: n.d. | BV130: n.d. | BW130: n.d. | BX130: n.d. | BY130: n.d. | BZ130: n.d. | CA130: n.d. | CB130: n.d. | CC130: n.d. | CD130: n.d. | CE130: n.d. | CF130: n.d. | CG130: n.d. | CH130: n.d. | CI130: n.d. | CJ130: n.d. | CK130: n.d. | CL130: n.d. | CM130: n.d. | CN130: n.d. | CO130: n.d. | CP130: n.d. | CQ130: n.d. | CR130: n.d. | CS130: n.d. | CT130: n.d. | CU130: n.d. | CV130: n.d. | CW130: n.d. | CX130: n.d. | CY130: n.d. | CZ130: n.d. | DA130: n.d. | DB130: n.d. | DC130: n.d. | DD130: n.d. | DE130: n.d. | DF130: n.d. | DG130: n.d. | DH130: n.d.
A131: 2000 | B131: septiembre | C131: 2000-septiembre | D131: 9.077154768 | E131: 7.639528907 | F131: 8.536738294 | G131: 7.162436823 | H131: n.d. | I131: n.d. | J131: n.d. | K131: n.d. | L131: n.d. | N131: n.d. | P131: n.d. | Q131: n.d. | R131: n.d. | S131: n.d. | T131: n.d. | U131: n.d. | V131: n.d. | W131: n.d. | X131: n.d. | Y131: n.d. | Z131: n.d. | AA131: n.d. | AC131: n.d. | AD131: n.d. | AE131: n.d. | AF131: n.d. | AG131: n.d. | AH131: n.d. | AI131: n.d. | AJ131: n.d. | AK131: n.d. | AL131: n.d. | AN131: n.d. | AO131: n.d. | AP131: n.d. | AQ131: n.d. | AR131: n.d. | AS131: n.d. | AT131: n.d. | AU131: n.d. | AV131: n.d. | AW131: n.d. | AX131: n.d. | AY131: n.d. | AZ131: n.d. | BA131: n.d. | BB131: n.d. | BC131: n.d. | BD131: n.d. | BE131: n.d. | BF131: n.d. | BG131: n.d. | BH131: n.d. | BI131: n.d. | BJ131: n.d. | BK131: n.a. | BL131: n.d. | BM131: n.d. | BN131: n.a. | BO131: n.d. | BP131: n.a. | BQ131: n.d. | BR131: n.d. | BS131: n.d. | BT131: n.d. | BU131: n.d. | BV131: n.d. | BW131: n.d. | BX131: n.d. | BY131: n.d. | BZ131: n.d. | CA131: n.d. | CB131: n.d. | CC131: n.d. | CD131: n.d. | CE131: n.d. | CF131: n.d. | CG131: n.d. | CH131: n.d. | CI131: n.d. | CJ131: n.d. | CK131: n.d. | CL131: n.d. | CM131: n.d. | CN131: n.d. | CO131: =IF(OR(CM131="n.d.",CM131="",CN131="",CN131="n.d."),"n.d.",(CM131/CN131)*100) -> n.d. | CP131: n.d. | CQ131: n.d. | CR131: n.d. | CS131: n.d. | CT131: n.d. | CU131: n.d. | CV131: n.d. | CW131: n.d. | CX131: n.d. | CY131: n.d. | CZ131: n.d. | DA131: n.d. | DB131: n.d. | DC131: n.d. | DD131: n.d. | DE131: n.d. | DF131: n.d. | DG131: n.d. | DH131: n.d.
A132: 2000 | B132: octubre | C132: =A132&"-"&B132 -> 2000-octubre | D132: 7.793200289 | E132: 7.682320646 | F132: 7.325640362 | G132: 7.196965903 | H132: n.d. | I132: n.d. | J132: n.d. | K132: n.d. | L132: n.d. | M132: =IF(B132<>"diciembre","",L132) ->  | N132: n.d. | O132: =IF(B132<>"diciembre","",N132) ->  | P132: n.d. | Q132: n.d. | R132: n.d. | S132: n.d. | T132: n.d. | U132: n.d. | V132: n.d. | W132: n.d. | X132: n.d. | Y132: n.d. | Z132: n.d. | AA132: n.d. | AC132: n.d. | AD132: n.d. | AE132: n.d. | AF132: n.d. | AG132: n.d. | AH132: n.d. | AI132: n.d. | AJ132: n.d. | AK132: n.d. | AL132: n.d. | AN132: n.d. | AO132: n.d. | AP132: n.d. | AQ132: n.d. | AR132: n.d. | AS132: n.d. | AT132: n.d. | AU132: n.d. | AV132: n.d. | AW132: n.d. | AX132: n.d. | AY132: n.d. | AZ132: n.d. | BA132: n.d. | BB132: n.d. | BC132: n.d. | BD132: n.d. | BE132: n.d. | BF132: n.d. | BG132: n.d. | BH132: n.d. | BI132: n.d. | BJ132: n.d. | BK132: n.a. | BL132: n.d. | BM132: n.d. | BN132: n.a. | BO132: n.d. | BP132: n.a. | BQ132: n.d. | BR132: n.d. | BS132: n.d. | BT132: n.d. | BU132: n.d. | BV132: n.d. | BW132: n.d. | BX132: n.d. | BY132: n.d. | BZ132: n.d. | CA132: n.d. | CB132: n.d. | CC132: n.d. | CD132: n.d. | CE132: n.d. | CF132: n.d. | CG132: n.d. | CH132: n.d. | CI132: n.d. | CJ132: n.d. | CK132: n.d. | CL132: n.d. | CM132: n.d. | CN132: n.d. | CO132: n.d. | CP132: n.d. | CQ132: n.d. | CR132: =IF(OR(CP132="n.d.",CP132="",CQ132="",CQ132="n.d."),"n.d.",(CP132/CQ132)*100) -> n.d. | CS132: n.d. | CT132: n.d. | CU132: n.d. | CV132: n.d. | CW132: n.d. | CX132: n.d. | CY132: n.d. | CZ132: n.d. | DA132: n.d. | DB132: n.d. | DC132: n.d. | DD132: n.d. | DE132: n.d. | DF132: n.d. | DG132: n.d. | DH132: n.d.
A133: 2000 | B133: noviembre | C133: 2000-noviembre | D133: 7.711181333 | E133: 7.729275174 | F133: 7.220182327 | G133: 7.234562598 | H133: n.d. | I133: n.d. | J133: n.d. | K133: n.d. | L133: n.d. | N133: n.d. | P133: n.d. | Q133: n.d. | R133: n.d. | S133: n.d. | T133: n.d. | U133: n.d. | V133: n.d. | W133: n.d. | X133: n.d. | Y133: n.d. | Z133: n.d. | AA133: n.d. | AC133: n.d. | AD133: n.d. | AE133: n.d. | AF133: n.d. | AG133: n.d. | AH133: n.d. | AI133: n.d. | AJ133: n.d. | AK133: n.d. | AL133: n.d. | AN133: n.d. | AO133: n.d. | AP133: n.d. | AQ133: n.d. | AR133: n.d. | AS133: n.d. | AT133: n.d. | AU133: n.d. | AV133: n.d. | AW133: n.d. | AX133: n.d. | AY133: n.d. | AZ133: n.d. | BA133: n.d. | BB133: n.d. | BC133: n.d. | BD133: n.d. | BE133: n.d. | BF133: n.d. | BG133: n.d. | BH133: n.d. | BI133: n.d. | BJ133: n.d. | BK133: n.a. | BL133: n.d. | BM133: n.d. | BN133: n.a. | BO133: n.d. | BP133: n.a. | BQ133: n.d. | BR133: n.d. | BS133: n.d. | BT133: n.d. | BU133: n.d. | BV133: n.d. | BW133: n.d. | BX133: n.d. | BY133: n.d. | BZ133: n.d. | CA133: n.d. | CB133: n.d. | CC133: n.d. | CD133: n.d. | CE133: n.d. | CF133: n.d. | CG133: n.d. | CH133: n.d. | CI133: n.d. | CJ133: n.d. | CK133: n.d. | CL133: n.d. | CM133: n.d. | CN133: n.d. | CO133: n.d. | CP133: n.d. | CQ133: n.d. | CR133: n.d. | CS133: n.d. | CT133: n.d. | CU133: n.d. | CV133: n.d. | CW133: n.d. | CX133: n.d. | CY133: n.d. | CZ133: n.d. | DA133: n.d. | DB133: n.d. | DC133: n.d. | DD133: n.d. | DE133: n.d. | DF133: n.d. | DG133: n.d. | DH133: n.d.
A134: 2000 | B134: diciembre | C134: 2000-diciembre | D134: 8.194236559 | E134: 7.780659999 | F134: 7.644157972 | G134: 7.275515322 | H134: n.d. | I134: n.d. | J134: n.d. | K134: n.d. | L134: n.d. | M134: n.d. | N134: n.d. | O134: n.d. | P134: n.d. | Q134: n.d. | R134: n.d. | S134: n.d. | T134: n.d. | U134: n.d. | V134: n.d. | W134: n.d. | X134: n.d. | Y134: n.d. | Z134: n.d. | AA134: n.d. | AC134: n.d. | AD134: n.d. | AE134: n.d. | AF134: n.d. | AG134: n.d. | AH134: n.d. | AI134: n.d. | AJ134: n.d. | AK134: n.d. | AL134: n.d. | AN134: n.d. | AO134: n.d. | AP134: n.d. | AQ134: n.d. | AR134: n.d. | AS134: n.d. | AT134: n.d. | AU134: n.d. | AV134: n.d. | AW134: n.d. | AX134: n.d. | AY134: n.d. | AZ134: n.d. | BA134: n.d. | BB134: n.d. | BC134: n.d. | BD134: n.d. | BE134: n.d. | BF134: n.d. | BG134: n.d. | BH134: n.d. | BI134: n.d. | BJ134: n.d. | BK134: n.a. | BL134: n.d. | BM134: n.d. | BN134: n.a. | BO134: n.d. | BP134: n.a. | BQ134: n.d. | BR134: n.d. | BS134: n.d. | BT134: n.d. | BU134: n.d. | BV134: n.d. | BW134: n.d. | BX134: n.d. | BY134: n.d. | BZ134: n.d. | CA134: n.d. | CB134: n.d. | CC134: n.d. | CD134: n.d. | CE134: n.d. | CF134: n.d. | CG134: n.d. | CH134: n.d. | CI134: n.d. | CJ134: n.d. | CK134: n.d. | CL134: n.d. | CM134: n.d. | CN134: n.d. | CO134: n.d. | CP134: n.d. | CQ134: n.d. | CR134: n.d. | CS134: n.d. | CT134: n.d. | CU134: n.d. | CV134: n.d. | CW134: n.d. | CX134: n.d. | CY134: n.d. | CZ134: n.d. | DA134: n.d. | DB134: n.d. | DC134: n.d. | DD134: n.d. | DE134: n.d. | DF134: n.d. | DG134: n.d. | DH134: n.d.
A135: 2001 | B135: enero | C135: 2001-enero | D135: 9.013952639 | E135: 7.83672987 | F135: 8.558582361 | G135: 7.320098389 | H135: n.d. | I135: n.d. | J135: n.d. | K135: n.d. | L135: n.d. | N135: n.d. | P135: n.d. | Q135: n.d. | R135: n.d. | S135: n.d. | T135: n.d. | U135: n.d. | V135: n.d. | W135: n.d. | X135: n.d. | Y135: n.d. | Z135: n.d. | AA135: n.d. | AC135: n.d. | AD135: n.d. | AE135: n.d. | AF135: n.d. | AG135: n.d. | AH135: n.d. | AI135: n.d. | AJ135: =IFERROR(+AF135+AH135,"n.d.") -> n.d. | AK135: n.d. | AL135: n.d. | AN135: n.d. | AO135: n.d. | AP135: n.d. | AQ135: n.d. | AR135: n.d. | AS135: n.d. | AT135: n.d. | AU135: n.d. | AV135: n.d. | AW135: n.d. | AX135: n.d. | AY135: n.d. | AZ135: n.d. | BA135: n.d. | BB135: n.d. | BC135: n.d. | BD135: n.d. | BE135: n.d. | BF135: n.d. | BG135: n.d. | BH135: n.d. | BI135: n.d. | BJ135: n.d. | BK135: n.a. | BL135: n.d. | BM135: n.d. | BN135: n.a. | BO135: n.d. | BP135: n.a. | BQ135: n.d. | BR135: n.d. | BS135: n.d. | BT135: n.d. | BU135: n.d. | BV135: n.d. | BW135: n.d. | BX135: n.d. | BY135: n.d. | BZ135: n.d. | CA135: n.d. | CB135: n.d. | CC135: n.d. | CD135: n.d. | CE135: n.d. | CF135: n.d. | CG135: n.d. | CH135: n.d. | CI135: n.d. | CJ135: n.d. | CK135: n.d. | CL135: n.d. | CM135: n.d. | CN135: n.d. | CO135: n.d. | CP135: n.d. | CQ135: n.d. | CR135: n.d. | CS135: n.d. | CT135: n.d. | CU135: n.d. | CV135: n.d. | CW135: n.d. | CX135: n.d. | CY135: n.d. | CZ135: n.d. | DA135: n.d. | DB135: n.d. | DC135: n.d. | DD135: n.d. | DE135: n.d. | DF135: n.d. | DG135: n.d. | DH135: n.d.
A136: 2001 | B136: febrero | C136: 2001-febrero | D136: 8.784691716 | E136: 7.897762618 | F136: 8.357425589 | G136: 7.368613327 | H136: n.d. | I136: n.d. | J136: n.d. | K136: n.d. | L136: n.d. | N136: n.d. | P136: n.d. | Q136: n.d. | R136: n.d. | S136: n.d. | T136: n.d. | U136: n.d. | V136: n.d. | W136: n.d. | X136: n.d. | Y136: n.d. | Z136: n.d. | AA136: n.d. | AC136: n.d. | AD136: n.d. | AE136: n.d. | AF136: n.d. | AG136: n.d. | AH136: n.d. | AI136: n.d. | AJ136: n.d. | AK136: n.d. | AL136: n.d. | AN136: n.d. | AO136: n.d. | AP136: n.d. | AQ136: n.d. | AR136: n.d. | AS136: n.d. | AT136: n.d. | AU136: n.d. | AV136: n.d. | AW136: n.d. | AX136: n.d. | AY136: n.d. | AZ136: n.d. | BA136: n.d. | BB136: n.d. | BC136: n.d. | BD136: n.d. | BE136: n.d. | BF136: n.d. | BG136: n.d. | BH136: n.d. | BI136: n.d. | BJ136: n.d. | BK136: n.a. | BL136: n.d. | BM136: n.d. | BN136: n.a. | BO136: n.d. | BP136: n.a. | BQ136: n.d. | BR136: n.d. | BS136: n.d. | BT136: n.d. | BU136: n.d. | BV136: n.d. | BW136: n.d. | BX136: n.d. | BY136: n.d. | BZ136: n.d. | CA136: n.d. | CB136: n.d. | CC136: n.d. | CD136: n.d. | CE136: n.d. | CF136: n.d. | CG136: n.d. | CH136: n.d. | CI136: n.d. | CJ136: n.d. | CK136: n.d. | CL136: n.d. | CM136: n.d. | CN136: n.d. | CO136: n.d. | CP136: n.d. | CQ136: n.d. | CR136: n.d. | CS136: n.d. | CT136: n.d. | CU136: n.d. | CV136: n.d. | CW136: n.d. | CX136: n.d. | CY136: n.d. | CZ136: n.d. | DA136: n.d. | DB136: n.d. | DC136: n.d. | DD136: n.d. | DE136: n.d. | DF136: n.d. | DG136: n.d. | DH136: n.d.
A137: 2001 | B137: marzo | C137: 2001-marzo | D137: 8.683916863 | E137: 7.964090337 | F137: 8.233185626 | G137: 7.421432502 | H137: n.d. | I137: n.d. | J137: n.d. | K137: n.d. | L137: n.d. | N137: n.d. | P137: n.d. | Q137: n.d. | R137: n.d. | S137: n.d. | T137: n.d. | U137: n.d. | V137: n.d. | W137: n.d. | X137: n.d. | Y137: n.d. | Z137: n.d. | AA137: n.d. | AC137: n.d. | AD137: n.d. | AE137: n.d. | AF137: n.d. | AG137: n.d. | AH137: n.d. | AI137: n.d. | AJ137: n.d. | AK137: n.d. | AL137: n.d. | AN137: n.d. | AO137: n.d. | AP137: n.d. | AQ137: n.d. | AR137: n.d. | AS137: n.d. | AT137: n.d. | AU137: n.d. | AV137: n.d. | AW137: n.d. | AX137: n.d. | AY137: n.d. | AZ137: n.d. | BA137: n.d. | BB137: n.d. | BC137: n.d. | BD137: n.d. | BE137: n.d. | BF137: n.d. | BG137: n.d. | BH137: n.d. | BI137: n.d. | BJ137: n.d. | BK137: n.a. | BL137: n.d. | BM137: n.d. | BN137: n.a. | BO137: n.d. | BP137: n.a. | BQ137: n.d. | BR137: n.d. | BS137: n.d. | BT137: n.d. | BU137: n.d. | BV137: n.d. | BW137: n.d. | BX137: n.d. | BY137: n.d. | BZ137: n.d. | CA137: n.d. | CB137: n.d. | CC137: n.d. | CD137: n.d. | CE137: n.d. | CF137: n.d. | CG137: n.d. | CH137: n.d. | CI137: n.d. | CJ137: n.d. | CK137: n.d. | CL137: n.d. | CM137: n.d. | CN137: n.d. | CO137: n.d. | CP137: n.d. | CQ137: n.d. | CR137: n.d. | CS137: n.d. | CT137: n.d. | CU137: n.d. | CV137: n.d. | CW137: n.d. | CX137: n.d. | CY137: n.d. | CZ137: n.d. | DA137: n.d. | DB137: n.d. | DC137: n.d. | DD137: n.d. | DE137: n.d. | DF137: n.d. | DG137: n.d. | DH137: n.d.
A138: 2001 | B138: abril | C138: 2001-abril | D138: 8.942066144 | E138: 8.036092173 | F138: 8.495569575 | G138: 7.478990421 | H138: n.d. | I138: n.d. | J138: n.d. | K138: n.d. | L138: n.d. | N138: n.d. | P138: n.d. | Q138: n.d. | R138: n.d. | S138: n.d. | T138: n.d. | U138: n.d. | V138: n.d. | W138: n.d. | X138: n.d. | Y138: n.d. | Z138: n.d. | AA138: n.d. | AC138: n.d. | AD138: n.d. | AE138: n.d. | AF138: n.d. | AG138: n.d. | AH138: n.d. | AI138: n.d. | AJ138: n.d. | AK138: n.d. | AL138: n.d. | AN138: n.d. | AO138: n.d. | AP138: n.d. | AQ138: n.d. | AR138: n.d. | AS138: n.d. | AT138: n.d. | AU138: n.d. | AV138: n.d. | AW138: n.d. | AX138: n.d. | AY138: n.d. | AZ138: n.d. | BA138: n.d. | BB138: n.d. | BC138: n.d. | BD138: n.d. | BE138: n.d. | BF138: n.d. | BG138: n.d. | BH138: n.d. | BI138: n.d. | BJ138: n.d. | BK138: n.a. | BL138: n.d. | BM138: n.d. | BN138: n.a. | BO138: n.d. | BP138: n.a. | BQ138: n.d. | BR138: n.d. | BS138: n.d. | BT138: n.d. | BU138: n.d. | BV138: n.d. | BW138: n.d. | BX138: n.d. | BY138: n.d. | BZ138: n.d. | CA138: n.d. | CB138: n.d. | CC138: n.d. | CD138: n.d. | CE138: n.d. | CF138: n.d. | CG138: n.d. | CH138: n.d. | CI138: n.d. | CJ138: n.d. | CK138: n.d. | CL138: n.d. | CM138: n.d. | CN138: n.d. | CO138: n.d. | CP138: n.d. | CQ138: n.d. | CR138: n.d. | CS138: n.d. | CT138: n.d. | CU138: n.d. | CV138: n.d. | CW138: n.d. | CX138: n.d. | CY138: n.d. | CZ138: n.d. | DA138: n.d. | DB138: n.d. | DC138: n.d. | DD138: n.d. | DE138: n.d. | DF138: n.d. | DG138: n.d. | DH138: n.d.
A139: 2001 | B139: mayo | C139: 2001-mayo | D139: 9.45864672 | E139: 8.114176883 | F139: 8.977468322 | G139: 7.541761411 | H139: n.d. | I139: n.d. | J139: n.d. | K139: n.d. | L139: n.d. | N139: n.d. | P139: n.d. | Q139: n.d. | R139: n.d. | S139: n.d. | T139: n.d. | U139: n.d. | V139: n.d. | W139: n.d. | X139: n.d. | Y139: n.d. | Z139: n.d. | AA139: n.d. | AC139: n.d. | AD139: n.d. | AE139: n.d. | AF139: n.d. | AG139: n.d. | AH139: n.d. | AI139: n.d. | AJ139: n.d. | AK139: n.d. | AL139: n.d. | AN139: n.d. | AO139: n.d. | AP139: n.d. | AQ139: n.d. | AR139: n.d. | AS139: n.d. | AT139: n.d. | AU139: n.d. | AV139: n.d. | AW139: n.d. | AX139: n.d. | AY139: n.d. | AZ139: n.d. | BA139: n.d. | BB139: n.d. | BC139: n.d. | BD139: n.d. | BE139: n.d. | BF139: n.d. | BG139: n.d. | BH139: n.d. | BI139: n.d. | BJ139: n.d. | BK139: n.a. | BL139: n.d. | BM139: n.d. | BN139: n.a. | BO139: n.d. | BP139: n.a. | BQ139: n.d. | BR139: n.d. | BS139: n.d. | BT139: n.d. | BU139: n.d. | BV139: n.d. | BW139: n.d. | BX139: n.d. | BY139: n.d. | BZ139: n.d. | CA139: n.d. | CB139: n.d. | CC139: n.d. | CD139: n.d. | CE139: n.d. | CF139: n.d. | CG139: n.d. | CH139: n.d. | CI139: n.d. | CJ139: n.d. | CK139: n.d. | CL139: n.d. | CM139: n.d. | CN139: n.d. | CO139: n.d. | CP139: n.d. | CQ139: n.d. | CR139: n.d. | CS139: n.d. | CT139: n.d. | CU139: n.d. | CV139: n.d. | CW139: n.d. | CX139: n.d. | CY139: n.d. | CZ139: n.d. | DA139: n.d. | DB139: n.d. | DC139: n.d. | DD139: n.d. | DE139: n.d. | DF139: n.d. | DG139: n.d. | DH139: n.d.
A140: 2001 | B140: junio | C140: 2001-junio | D140: 8.735068714 | E140: 8.19879869 | F140: 8.241617905 | G140: 7.610282103 | H140: n.d. | I140: n.d. | J140: n.d. | K140: n.d. | L140: n.d. | N140: n.d. | P140: n.d. | Q140: n.d. | R140: n.d. | S140: n.d. | T140: n.d. | U140: n.d. | V140: n.d. | W140: n.d. | X140: n.d. | Y140: n.d. | Z140: n.d. | AA140: n.d. | AC140: n.d. | AD140: n.d. | AE140: n.d. | AF140: n.d. | AG140: n.d. | AH140: n.d. | AI140: n.d. | AJ140: n.d. | AK140: n.d. | AL140: n.d. | AN140: n.d. | AO140: n.d. | AP140: n.d. | AQ140: n.d. | AR140: n.d. | AS140: n.d. | AT140: n.d. | AU140: n.d. | AV140: n.d. | AW140: n.d. | AX140: n.d. | AY140: n.d. | AZ140: n.d. | BA140: n.d. | BB140: n.d. | BC140: n.d. | BD140: n.d. | BE140: n.d. | BF140: n.d. | BG140: n.d. | BH140: n.d. | BI140: n.d. | BJ140: n.d. | BK140: n.a. | BL140: n.d. | BM140: n.d. | BN140: n.a. | BO140: n.d. | BP140: n.a. | BQ140: n.d. | BR140: n.d. | BS140: n.d. | BT140: n.d. | BU140: n.d. | BV140: n.d. | BW140: n.d. | BX140: n.d. | BY140: n.d. | BZ140: n.d. | CA140: n.d. | CB140: n.d. | CC140: n.d. | CD140: n.d. | CE140: n.d. | CF140: n.d. | CG140: n.d. | CH140: n.d. | CI140: n.d. | CJ140: n.d. | CK140: n.d. | CL140: n.d. | CM140: n.d. | CN140: n.d. | CO140: n.d. | CP140: n.d. | CQ140: n.d. | CR140: n.d. | CS140: n.d. | CT140: n.d. | CU140: n.d. | CV140: n.d. | CW140: n.d. | CX140: n.d. | CY140: n.d. | CZ140: n.d. | DA140: n.d. | DB140: n.d. | DC140: n.d. | DD140: n.d. | DE140: n.d. | DF140: n.d. | DG140: n.d. | DH140: n.d.
A141: 2001 | B141: julio | C141: 2001-julio | D141: 8.560635395 | E141: 8.290468614 | F141: 8.075142104 | G141: 7.685165138 | H141: n.d. | I141: n.d. | J141: n.d. | K141: n.d. | L141: n.d. | N141: n.d. | P141: n.d. | Q141: n.d. | R141: n.d. | S141: n.d. | T141: n.d. | U141: n.d. | V141: n.d. | W141: n.d. | X141: n.d. | Y141: n.d. | Z141: n.d. | AA141: n.d. | AC141: n.d. | AD141: n.d. | AE141: n.d. | AF141: n.d. | AG141: n.d. | AH141: n.d. | AI141: n.d. | AJ141: n.d. | AK141: n.d. | AL141: n.d. | AN141: n.d. | AO141: n.d. | AP141: n.d. | AQ141: n.d. | AR141: n.d. | AS141: n.d. | AT141: n.d. | AU141: n.d. | AV141: n.d. | AW141: n.d. | AX141: n.d. | AY141: n.d. | AZ141: n.d. | BA141: n.d. | BB141: n.d. | BC141: n.d. | BD141: n.d. | BE141: n.d. | BF141: n.d. | BG141: n.d. | BH141: n.d. | BI141: n.d. | BJ141: n.d. | BK141: n.a. | BL141: n.d. | BM141: n.d. | BN141: n.a. | BO141: n.d. | BP141: n.a. | BQ141: n.d. | BR141: n.d. | BS141: n.d. | BT141: n.d. | BU141: n.d. | BV141: n.d. | BW141: n.d. | BX141: n.d. | BY141: n.d. | BZ141: n.d. | CA141: n.d. | CB141: n.d. | CC141: n.d. | CD141: n.d. | CE141: n.d. | CF141: n.d. | CG141: n.d. | CH141: n.d. | CI141: n.d. | CJ141: n.d. | CK141: n.d. | CL141: n.d. | CM141: n.d. | CN141: n.d. | CO141: n.d. | CP141: n.d. | CQ141: n.d. | CR141: n.d. | CS141: n.d. | CT141: n.d. | CU141: n.d. | CV141: n.d. | CW141: n.d. | CX141: n.d. | CY141: n.d. | CZ141: n.d. | DA141: n.d. | DB141: n.d. | DC141: n.d. | DD141: n.d. | DE141: n.d. | DF141: n.d. | DG141: n.d. | DH141: n.d.
A142: 2001 | B142: agosto | C142: 2001-agosto | D142: 8.982182368 | E142: 8.38971644 | F142: 8.497232632 | G142: 7.767052377 | H142: n.d. | I142: n.d. | J142: n.d. | K142: n.d. | L142: n.d. | N142: n.d. | P142: n.d. | Q142: n.d. | R142: n.d. | S142: n.d. | T142: n.d. | U142: n.d. | V142: n.d. | W142: n.d. | X142: n.d. | Y142: n.d. | Z142: n.d. | AA142: n.d. | AC142: n.d. | AD142: n.d. | AE142: n.d. | AF142: n.d. | AG142: n.d. | AH142: n.d. | AI142: n.d. | AJ142: n.d. | AK142: n.d. | AL142: n.d. | AN142: n.d. | AO142: n.d. | AP142: n.d. | AQ142: n.d. | AR142: n.d. | AS142: n.d. | AT142: n.d. | AU142: n.d. | AV142: n.d. | AW142: n.d. | AX142: n.d. | AY142: n.d. | AZ142: n.d. | BA142: n.d. | BB142: n.d. | BC142: n.d. | BD142: n.d. | BE142: n.d. | BF142: n.d. | BG142: n.d. | BH142: n.d. | BI142: n.d. | BJ142: n.d. | BK142: n.a. | BL142: n.d. | BM142: n.d. | BN142: n.a. | BO142: n.d. | BP142: n.a. | BQ142: n.d. | BR142: n.d. | BS142: n.d. | BT142: n.d. | BU142: n.d. | BV142: n.d. | BW142: n.d. | BX142: n.d. | BY142: n.d. | BZ142: n.d. | CA142: n.d. | CB142: n.d. | CC142: n.d. | CD142: n.d. | CE142: n.d. | CF142: n.d. | CG142: n.d. | CH142: n.d. | CI142: n.d. | CJ142: n.d. | CK142: n.d. | CL142: n.d. | CM142: n.d. | CN142: n.d. | CO142: n.d. | CP142: n.d. | CQ142: n.d. | CR142: n.d. | CS142: n.d. | CT142: n.d. | CU142: n.d. | CV142: n.d. | CW142: n.d. | CX142: n.d. | CY142: n.d. | CZ142: n.d. | DA142: n.d. | DB142: n.d. | DC142: n.d. | DD142: n.d. | DE142: n.d. | DF142: n.d. | DG142: n.d. | DH142: n.d.
A143: 2001 | B143: septiembre | C143: 2001-septiembre | D143: 8.364813087 | E143: 8.497073141 | F143: 7.953772704 | G143: 7.856595869 | H143: n.d. | I143: n.d. | J143: n.d. | K143: n.d. | L143: n.d. | N143: n.d. | P143: n.d. | Q143: n.d. | R143: n.d. | S143: n.d. | T143: n.d. | U143: n.d. | V143: n.d. | W143: n.d. | X143: n.d. | Y143: n.d. | Z143: n.d. | AA143: n.d. | AC143: n.d. | AD143: n.d. | AE143: n.d. | AF143: n.d. | AG143: n.d. | AH143: n.d. | AI143: n.d. | AJ143: n.d. | AK143: n.d. | AL143: n.d. | AN143: n.d. | AO143: n.d. | AP143: n.d. | AQ143: n.d. | AR143: n.d. | AS143: n.d. | AT143: n.d. | AU143: n.d. | AV143: n.d. | AW143: n.d. | AX143: n.d. | AY143: n.d. | AZ143: n.d. | BA143: n.d. | BB143: n.d. | BC143: n.d. | BD143: n.d. | BE143: n.d. | BF143: n.d. | BG143: n.d. | BH143: n.d. | BI143: n.d. | BJ143: n.d. | BK143: n.a. | BL143: n.d. | BM143: n.d. | BN143: n.a. | BO143: n.d. | BP143: n.a. | BQ143: n.d. | BR143: n.d. | BS143: n.d. | BT143: n.d. | BU143: n.d. | BV143: n.d. | BW143: n.d. | BX143: n.d. | BY143: n.d. | BZ143: n.d. | CA143: n.d. | CB143: n.d. | CC143: n.d. | CD143: n.d. | CE143: n.d. | CF143: n.d. | CG143: n.d. | CH143: n.d. | CI143: n.d. | CJ143: n.d. | CK143: n.d. | CL143: n.d. | CM143: n.d. | CN143: n.d. | CO143: n.d. | CP143: n.d. | CQ143: n.d. | CR143: n.d. | CS143: n.d. | CT143: n.d. | CU143: n.d. | CV143: n.d. | CW143: n.d. | CX143: n.d. | CY143: n.d. | CZ143: n.d. | DA143: n.d. | DB143: n.d. | DC143: n.d. | DD143: n.d. | DE143: n.d. | DF143: n.d. | DG143: n.d. | DH143: n.d.
A144: 2001 | B144: octubre | C144: 2001-octubre | D144: 8.08857938 | E144: 8.613078384 | F144: 7.717208077 | G144: 7.954471429 | H144: n.d. | I144: n.d. | J144: n.d. | K144: n.d. | L144: n.d. | N144: n.d. | P144: n.d. | Q144: n.d. | R144: n.d. | S144: n.d. | T144: n.d. | U144: n.d. | V144: n.d. | W144: n.d. | X144: n.d. | Y144: n.d. | Z144: n.d. | AA144: n.d. | AC144: n.d. | AD144: n.d. | AE144: n.d. | AF144: n.d. | AG144: n.d. | AH144: n.d. | AI144: n.d. | AJ144: n.d. | AK144: n.d. | AL144: n.d. | AN144: n.d. | AO144: n.d. | AP144: n.d. | AQ144: n.d. | AR144: n.d. | AS144: n.d. | AT144: n.d. | AU144: n.d. | AV144: n.d. | AW144: n.d. | AX144: n.d. | AY144: n.d. | AZ144: n.d. | BA144: n.d. | BB144: n.d. | BC144: n.d. | BD144: n.d. | BE144: n.d. | BF144: n.d. | BG144: n.d. | BH144: n.d. | BI144: n.d. | BJ144: n.d. | BK144: n.a. | BL144: n.d. | BM144: n.d. | BN144: n.a. | BO144: n.d. | BP144: n.a. | BQ144: n.d. | BR144: n.d. | BS144: n.d. | BT144: n.d. | BU144: n.d. | BV144: n.d. | BW144: n.d. | BX144: n.d. | BY144: n.d. | BZ144: n.d. | CA144: n.d. | CB144: n.d. | CC144: n.d. | CD144: n.d. | CE144: n.d. | CF144: n.d. | CG144: n.d. | CH144: n.d. | CI144: n.d. | CJ144: n.d. | CK144: n.d. | CL144: n.d. | CM144: n.d. | CN144: n.d. | CO144: n.d. | CP144: n.d. | CQ144: n.d. | CR144: n.d. | CS144: n.d. | CT144: n.d. | CU144: n.d. | CV144: n.d. | CW144: n.d. | CX144: n.d. | CY144: n.d. | CZ144: n.d. | DA144: n.d. | DB144: n.d. | DC144: n.d. | DD144: n.d. | DE144: n.d. | DF144: n.d. | DG144: n.d. | DH144: n.d.
A145: 2001 | B145: noviembre | C145: 2001-noviembre | D145: 7.932834006 | E145: 8.738247339 | F145: 7.566068722 | G145: 8.061343975 | H145: n.d. | I145: n.d. | J145: n.d. | K145: n.d. | L145: n.d. | N145: n.d. | P145: n.d. | Q145: n.d. | R145: n.d. | S145: n.d. | T145: n.d. | U145: n.d. | V145: n.d. | W145: n.d. | X145: n.d. | Y145: n.d. | Z145: n.d. | AA145: n.d. | AC145: n.d. | AD145: n.d. | AE145: n.d. | AF145: n.d. | AG145: n.d. | AH145: n.d. | AI145: n.d. | AJ145: n.d. | AK145: n.d. | AL145: n.d. | AN145: n.d. | AO145: n.d. | AP145: n.d. | AQ145: n.d. | AR145: n.d. | AS145: n.d. | AT145: n.d. | AU145: n.d. | AV145: n.d. | AW145: n.d. | AX145: n.d. | AY145: n.d. | AZ145: n.d. | BA145: n.d. | BB145: n.d. | BC145: n.d. | BD145: n.d. | BE145: n.d. | BF145: n.d. | BG145: n.d. | BH145: n.d. | BI145: n.d. | BJ145: n.d. | BK145: n.a. | BL145: n.d. | BM145: n.d. | BN145: n.a. | BO145: n.d. | BP145: n.a. | BQ145: n.d. | BR145: n.d. | BS145: n.d. | BT145: n.d. | BU145: n.d. | BV145: n.d. | BW145: n.d. | BX145: n.d. | BY145: n.d. | BZ145: n.d. | CA145: n.d. | CB145: n.d. | CC145: n.d. | CD145: n.d. | CE145: n.d. | CF145: n.d. | CG145: n.d. | CH145: n.d. | CI145: n.d. | CJ145: n.d. | CK145: n.d. | CL145: n.d. | CM145: n.d. | CN145: n.d. | CO145: n.d. | CP145: n.d. | CQ145: n.d. | CR145: n.d. | CS145: n.d. | CT145: n.d. | CU145: n.d. | CV145: n.d. | CW145: n.d. | CX145: n.d. | CY145: n.d. | CZ145: n.d. | DA145: n.d. | DB145: n.d. | DC145: n.d. | DD145: n.d. | DE145: n.d. | DF145: n.d. | DG145: n.d. | DH145: n.d.
A146: 2001 | B146: diciembre | C146: 2001-diciembre | D146: 7.290439342 | E146: 8.873042356 | F146: 6.941634532 | G146: 8.177836465 | H146: n.d. | I146: n.d. | J146: n.d. | K146: n.d. | L146: 7764.971124 | M146: 7764.971124 | N146: 7764.971124 | O146: 7764.971124 | P146: 8926.434402 | Q146: 18810.28502 | R146: 6410.966982 | S146: n.d. | T146: n.d. | U146: n.d. | V146: 8926.434402 | W146: 18810.28502 | X146: 6410.966982 | Y146: n.d. | Z146: n.d. | AA146: n.d. | AB146: 313.2042494 | AC146: 68.19190985 | AD146: 2610.380196 | AE146: n.d. | AF146: 157.3397929 | AG146: 17.02112151 | AH146: 13188.08344 | AI146: 11414.5771 | AJ146: 13345.42324 | AK146: =IF(OR(AF146="",AG146="",AH146="",AI146=""),"",SUM(AF146:AI146)) -> 24777.02145 | AL146: n.d. | AN146: n.d. | AO146: n.d. | AP146: n.d. | AQ146: n.d. | AR146: n.d. | AS146: 3003.78514 | AT146: 2610.380196 | AU146: 393.4049442 | AV146: n.d. | AW146: 157.3397929 | AX146: 17.02112151 | AY146: 13188.08344 | AZ146: 11414.5771 | BA146: =IFERROR(+AW146+AY146,"n.d.") -> 13345.42324 | BB146: =IF(OR(AW146="",AX146="",AY146="",AZ146=""),"",SUM(AW146:AZ146)) -> 24777.02145 | BC146: n.d. | BD146: n.d. | BE146: n.d. | BF146: n.d. | BG146: n.d. | BH146: n.d. | BI146: n.d. | BJ146: n.d. | BK146: n.a. | BL146: n.d. | BM146: n.d. | BN146: n.a. | BO146: n.d. | BP146: n.a. | BQ146: n.d. | BR146: n.d. | BS146: n.d. | BT146: n.d. | BU146: n.d. | BV146: n.d. | BW146: n.d. | BX146: n.d. | BY146: 1530647.716 | BZ146: 5793.657743 | CA146: 36171.97872 | CB146: 42189.25578 | CC146: 9904.012781 | CD146: 134642.912 | CE146: 0 | CF146: n.d. | CG146: n.d. | CH146: n.d. | CI146: n.d. | CJ146: n.d. | CK146: n.d. | CL146: n.d. | CM146: n.d. | CN146: n.d. | CO146: n.d. | CP146: n.d. | CQ146: n.d. | CR146: n.d. | CS146: n.d. | CT146: n.d. | CU146: n.d. | CV146: n.d. | CW146: n.d. | CX146: n.d. | CY146: n.d. | CZ146: n.d. | DA146: n.d. | DB146: n.d. | DC146: n.d. | DD146: n.d. | DE146: n.d. | DF146: n.d. | DG146: n.d. | DH146: n.d.
A147: 2002 | B147: enero | C147: 2002-enero | D147: 6.514234021 | E147: 9.017855562 | F147: 6.018412117 | G147: 8.304515699 | H147: n.d. | I147: n.d. | J147: n.d. | K147: n.d. | L147: 7465.788389 | N147: 7465.788389 | P147: 8554.961774 | Q147: 18346.13516 | R147: 6591.613831 | S147: n.d. | T147: n.d. | U147: n.d. | V147: 8554.961774 | W147: 18346.13516 | X147: 6591.613831 | Y147: n.d. | Z147: n.d. | AA147: n.d. | AB147: 336.178833 | AC147: 85.38217433 | AD147: 3166.943342 | AE147: n.d. | AF147: 175.9617611 | AG147: 15.46622437 | AH147: 13147.61738 | AI147: 11391.26557 | AJ147: 13323.57915 | AK147: 24730.31094 | AL147: n.d. | AN147: n.d. | AO147: n.d. | AP147: n.d. | AQ147: n.d. | AR147: n.d. | AS147: 3016.949327 | AT147: 3166.943342 | AU147: -149.9940153 | AV147: n.d. | AW147: 175.9617611 | AX147: 15.46622437 | AY147: 13147.61738 | AZ147: 11391.26557 | BA147: 13323.57915 | BB147: 24730.31094 | BC147: n.d. | BD147: n.d. | BE147: n.d. | BF147: n.d. | BG147: n.d. | BH147: n.d. | BI147: n.d. | BJ147: n.d. | BK147: n.a. | BL147: n.d. | BM147: n.d. | BN147: n.a. | BO147: n.d. | BP147: n.a. | BQ147: 15.5727496 | BR147: 66.12084026 | BS147: n.d. | BT147: n.d. | BU147: n.d. | BV147: n.d. | BW147: n.d. | BX147: n.d. | BY147: 1555656.221 | BZ147: 5805.661743 | CA147: 35624.89343 | CB147: 42270.62013 | CC147: 10101.97608 | CD147: 136430.586 | CE147: 0 | CF147: n.d. | CG147: n.d. | CH147: n.d. | CI147: n.d. | CJ147: n.d. | CK147: n.d. | CL147: n.d. | CM147: 15.5727496 | CN147: n.d. | CO147: n.d. | CP147: 66.12084026 | CQ147: n.d. | CR147: n.d. | CS147: n.d. | CT147: 6609.524532 | CU147: 26129.73145 | CV147: 843.1576242 | CW147: n.d. | CX147: n.d. | CY147: n.d. | CZ147: n.d. | DA147: n.d. | DB147: n.d. | DC147: n.d. | DD147: n.d. | DE147: n.d. | DF147: n.d. | DG147: n.d. | DH147: n.d.
A148: 2002 | B148: febrero | C148: 2002-febrero | D148: 6.378083893 | E148: 9.172962872 | F148: 5.886859466 | G148: 8.441840067 | H148: n.d. | I148: n.d. | J148: n.d. | K148: n.d. | L148: 7585.243796 | N148: 7585.243796 | P148: 8368.754397 | Q148: 18846.95354 | R148: 6858.599971 | S148: n.d. | T148: n.d. | U148: n.d. | V148: 8368.754397 | W148: 18846.95354 | X148: 6858.599971 | Y148: n.d. | Z148: n.d. | AA148: n.d. | AB148: 333.9459218 | AC148: 87.72798788 | AD148: 2751.435545 | AE148: n.d. | AF148: 162.5840627 | AG148: 15.38422549 | AH148: 13079.11923 | AI148: 11608.85227 | AJ148: 13241.70329 | AK148: 24865.93979 | AL148: n.d. | AN148: n.d. | AO148: n.d. | AP148: n.d. | AQ148: n.d. | AR148: n.d. | AS148: 2995.612577 | AT148: 2751.435545 | AU148: 244.177032 | AV148: n.d. | AW148: 162.5840627 | AX148: 15.38422549 | AY148: 13079.11923 | AZ148: 11608.85227 | BA148: 13241.70329 | BB148: 24865.93979 | BC148: n.d. | BD148: n.d. | BE148: n.d. | BF148: n.d. | BG148: n.d. | BH148: n.d. | BI148: n.d. | BJ148: n.d. | BK148: n.a. | BL148: n.d. | BM148: n.d. | BN148: n.a. | BO148: n.d. | BP148: n.a. | BQ148: -203.5664069 | BR148: -369.7379666 | BS148: n.d. | BT148: n.d. | BU148: n.d. | BV148: n.d. | BW148: n.d. | BX148: n.d. | BY148: 1565422.957 | BZ148: 5890.665743 | CA148: 36059.33847 | CB148: 42544.85475 | CC148: 10157.00283 | CD148: 138279.5257 | CE148: 0 | CF148: n.d. | CG148: n.d. | CH148: n.d. | CI148: n.d. | CJ148: n.d. | CK148: n.d. | CL148: n.d. | CM148: -203.5664069 | CN148: n.d. | CO148: n.d. | CP148: -369.7379666 | CQ148: n.d. | CR148: n.d. | CS148: n.d. | CT148: 6803.225516 | CU148: 26379.83477 | CV148: 806.1650743 | CW148: n.d. | CX148: n.d. | CY148: n.d. | CZ148: n.d. | DA148: n.d. | DB148: n.d. | DC148: n.d. | DD148: n.d. | DE148: n.d. | DF148: n.d. | DG148: n.d. | DH148: n.d.
A149: 2002 | B149: marzo | C149: 2002-marzo | D149: 6.627634738 | E149: 9.338472855 | F149: 6.131866789 | G149: 8.590092152 | H149: n.d. | I149: n.d. | J149: n.d. | K149: n.d. | L149: 7737.905236 | N149: 7737.905236 | P149: 8652.744172 | Q149: 18736.58298 | R149: 6850.93879 | S149: n.d. | T149: n.d. | U149: n.d. | V149: 8652.744172 | W149: 18736.58298 | X149: 6850.93879 | Y149: n.d. | Z149: n.d. | AA149: n.d. | AB149: 323.9180725 | AC149: 84.28279122 | AD149: 3241.16038 | AE149: n.d. | AF149: 176.8262662 | AG149: 15.33166959 | AH149: 13230.6735 | AI149: 11722.75235 | AJ149: 13407.49977 | AK149: 25145.58379 | AL149: n.d. | AN149: n.d. | AO149: n.d. | AP149: n.d. | AQ149: n.d. | AR149: n.d. | AS149: 3148.742149 | AT149: 3241.16038 | AU149: -92.41823095 | AV149: n.d. | AW149: 176.8262662 | AX149: 15.33166959 | AY149: 13230.6735 | AZ149: 11722.75235 | BA149: 13407.49977 | BB149: 25145.58379 | BC149: n.d. | BD149: n.d. | BE149: n.d. | BF149: n.d. | BG149: n.d. | BH149: n.d. | BI149: n.d. | BJ149: n.d. | BK149: n.a. | BL149: n.d. | BM149: n.d. | BN149: n.a. | BO149: n.d. | BP149: n.a. | BQ149: -239.248876 | BR149: -397.9986222 | BS149: n.d. | BT149: n.d. | BU149: n.d. | BV149: n.d. | BW149: n.d. | BX149: n.d. | BY149: 1596602.956 | BZ149: 5811.225743 | CA149: 35860.14733 | CB149: 42927.81596 | CC149: 9924.119513 | CD149: 140953.0951 | CE149: 0 | CF149: n.d. | CG149: n.d. | CH149: n.d. | CI149: n.d. | CJ149: n.d. | CK149: n.d. | CL149: n.d. | CM149: -239.248876 | CN149: n.d. | CO149: n.d. | CP149: -397.9986222 | CQ149: n.d. | CR149: n.d. | CS149: n.d. | CT149: 7063.216063 | CU149: 26538.53332 | CV149: 864.486908 | CW149: n.d. | CX149: n.d. | CY149: n.d. | CZ149: n.d. | DA149: n.d. | DB149: n.d. | DC149: n.d. | DD149: n.d. | DE149: n.d. | DF149: n.d. | DG149: n.d. | DH149: n.d.
A150: 2002 | B150: abril | C150: 2002-abril | D150: 6.472165088 | E150: 9.514310256 | F150: 5.97617341 | G150: 8.749359881 | H150: n.d. | I150: n.d. | J150: n.d. | K150: n.d. | L150: 8031.561702 | N150: 8031.561702 | P150: 8516.114393 | Q150: 18554.49472 | R150: 6869.653483 | S150: n.d. | T150: n.d. | U150: n.d. | V150: 8516.114393 | W150: 18554.49472 | X150: 6869.653483 | Y150: n.d. | Z150: n.d. | AA150: n.d. | AB150: 331.7477031 | AC150: 119.3001492 | AD150: 3502.129943 | AE150: n.d. | AF150: 180.4587645 | AG150: 6.384828188 | AH150: 13104.99402 | AI150: 11698.28431 | AJ150: 13285.45279 | AK150: 24990.12193 | AL150: n.d. | AN150: n.d. | AO150: n.d. | AP150: n.d. | AQ150: n.d. | AR150: n.d. | AS150: 3256.559287 | AT150: 3502.129943 | AU150: -245.5706557 | AV150: n.d. | AW150: 180.4587645 | AX150: 6.384828188 | AY150: 13104.99402 | AZ150: 11698.28431 | BA150: 13285.45279 | BB150: 24990.12193 | BC150: n.d. | BD150: n.d. | BE150: n.d. | BF150: n.d. | BG150: n.d. | BH150: n.d. | BI150: n.d. | BJ150: n.d. | BK150: n.a. | BL150: n.d. | BM150: n.d. | BN150: n.a. | BO150: n.d. | BP150: n.a. | BQ150: -231.2578353 | BR150: -464.2793272 | BS150: n.d. | BT150: n.d. | BU150: n.d. | BV150: n.d. | BW150: n.d. | BX150: n.d. | BY150: 1624659.088 | BZ150: 5737.405743 | CA150: 35844.91056 | CB150: 42985.76773 | CC150: 9786.53501 | CD150: 140390.0391 | CE150: 0 | CF150: n.d. | CG150: n.d. | CH150: n.d. | CI150: n.d. | CJ150: n.d. | CK150: n.d. | CL150: n.d. | CM150: -231.2578353 | CN150: n.d. | CO150: n.d. | CP150: -464.2793272 | CQ150: n.d. | CR150: n.d. | CS150: n.d. | CT150: 7117.996299 | CU150: 26281.54874 | CV150: 864.9606062 | CW150: n.d. | CX150: n.d. | CY150: n.d. | CZ150: n.d. | DA150: n.d. | DB150: n.d. | DC150: n.d. | DD150: n.d. | DE150: n.d. | DF150: n.d. | DG150: n.d. | DH150: n.d.
A151: 2002 | B151: mayo | C151: 2002-mayo | D151: 6.166958534 | E151: 9.700221633 | F151: 5.674882287 | G151: 8.919546534 | H151: n.d. | I151: n.d. | J151: n.d. | K151: n.d. | L151: 7688.476041 | N151: 7688.476041 | P151: 8214.780494 | Q151: 18551.44312 | R151: 6984.206723 | S151: n.d. | T151: n.d. | U151: n.d. | V151: 8214.780494 | W151: 18551.44312 | X151: 6984.206723 | Y151: n.d. | Z151: n.d. | AA151: n.d. | AB151: 329.9293987 | AC151: 80.20127588 | AD151: 3351.349691 | AE151: n.d. | AF151: 153.3704556 | AG151: 7.995836706 | AH151: 13228.15946 | AI151: 11680.80375 | AJ151: 13381.52991 | AK151: 25070.3295 | AL151: n.d. | AN151: n.d. | AO151: n.d. | AP151: n.d. | AQ151: n.d. | AR151: n.d. | AS151: 3139.236118 | AT151: 3351.349691 | AU151: -212.1135725 | AV151: n.d. | AW151: 153.3704556 | AX151: 7.995836706 | AY151: 13228.15946 | AZ151: 11680.80375 | BA151: 13381.52991 | BB151: 25070.3295 | BC151: n.d. | BD151: n.d. | BE151: n.d. | BF151: n.d. | BG151: n.d. | BH151: n.d. | BI151: n.d. | BJ151: n.d. | BK151: n.a. | BL151: n.d. | BM151: n.d. | BN151: n.a. | BO151: n.d. | BP151: n.a. | BQ151: -262.8152131 | BR151: -554.4935096 | BS151: n.d. | BT151: n.d. | BU151: n.d. | BV151: n.d. | BW151: n.d. | BX151: n.d. | BY151: 1654548.198 | BZ151: 5752.369743 | CA151: 35836.64004 | CB151: 42658.40694 | CC151: 10037.05021 | CD151: 141147.0823 | CE151: 0 | CF151: n.d. | CG151: n.d. | CH151: n.d. | CI151: n.d. | CJ151: n.d. | CK151: n.d. | CL151: n.d. | CM151: -262.8152131 | CN151: n.d. | CO151: n.d. | CP151: -554.4935096 | CQ151: n.d. | CR151: n.d. | CS151: n.d. | CT151: 6831.953144 | CU151: 26327.18343 | CV151: 940.3164555 | CW151: n.d. | CX151: n.d. | CY151: n.d. | CZ151: n.d. | DA151: n.d. | DB151: n.d. | DC151: n.d. | DD151: n.d. | DE151: n.d. | DF151: n.d. | DG151: n.d. | DH151: n.d.
